Workbook

Sheet Cover
F3: Amendments made on 6 August 2014.
F4: Click here for details.
A8: Distribution Network Service Provider
A9: Annual reporting template
A11: This template is to be used by a DNSP to fulfil its annual reporting obligations to the AER.
A13: Colour coding of input sheets:
A14: Dark blue = AER instructions/headings
A15: Yellow = Input cells
A16: Grey = Not applicable/No inputs required
A18: Leave coloured cells blank if no information exists - PLEASE DO NOT ENTER TEXT unless specifically requested to do so.
A19: All dollar amounts are to be unrounded, and in nominal terms.
A22: DNSP - trading name: | E22: Powercor Australia Ltd
A24: DNSP - Australian business number: | E24: ACN 064 651 109
A26: Reporting year: | E26: 2014
A30: Business address | D30: Address | F30: 40 Market Street
D31: Suburb | F31: Melbourne
E32: State | F32: VIC | G32: Postcode | H32: 3000
A34: Postal address | D34: Address | F34: Locked Bag 14090
D35: Suburb | F35: Melbourne
E36: State | F36: VIC | G36: Postcode | H36: 8001
A39: Contact name/s | D39: Hannah Williams
A40: Contact phone/s | D40: 03 9683 4088
A41: Contact email address/s | D41: hwilliams@powercor.com.au
A44: Consumer Price Index | D44: 2010 | E44: 2011 | F44: 2012 | G44: 2013 | H44: 2014 | I44: 2015
A45: ABS CPI (Pub No: 6401.0, All groups, 8 Capital Cities, Sept) | D45: 168.6 | E45: 173.3 | F45: 179.4 | G45: 182.9951904 | H45: 186.9498998 | I45: 191.2659972
A46: ABS CPI (Pub No: 6401.0, All groups, 8 Capital Cities, Sept) | D46: =E46/(1+E54) -> 93.79197324 | E46: =F46/(1+F54) -> 96.40657748 | F46: =G46/(1+G54) -> 99.8 | G46: =H46/(1+H54) -> 101.8 | H46: =I46/(1+I54) -> 104 | I46: 106.4010397
A47: CPI (per cent) | E47: =+E45/D45-1 -> 0.02787663108 | F47: =+F46/E46-1 -> 0.03519907675 | G47: =+G46/F46-1 -> 0.02004008016 | H47: =+H46/G46-1 -> 0.02161100196 | I47: =+I46/H46-1 -> 0.02308692
A48: Reconstructed index (2014 = 100) | D48: =+E48/(1+E47) -> 90.18458966 | E48: =+F48/(1+F47) -> 92.69863219 | F48: =+G48/(1+G47) -> 95.96153846 | G48: =+H48/(1+H47) -> 97.88461538 | H48: 100
A49: Reconstructed index (2015 = 100) | D49: =+E49/(1+E47) -> 89.16123336 | E49: =+F49/(1+F47) -> 91.64674817 | F49: 94.87262909 | G49: =+H49/(1+H47) -> 96.77388418 | H49: =+I49/(1+I47)^0.5 -> 98.86526478 | I49: 100
D50: * Above CPI is used to adjust forecasts from 2011-15 determination.
E54: =E45/D45-1 -> 0.02787663108 | F54: =F45/E45-1 -> 0.03519907675 | G54: =G45/F45-1 -> 0.02004008016 | H54: =H45/G45-1 -> 0.02161100196 | I54: =I45/H45-1 -> 0.02308692

Sheet Contents
C3: Electricity Distribution Network Service Provider Annual Reporting Template
D4: Table of contents
C7: Cover sheet | D7: Operating activities | E7: 18. Self Insurance
D8: 8a. Operating Activities (T)
C9: Reconciliation (deleted) | D9: 8b. Operating Activities (M) | E9: 19. CHAP
C11: 1a. Income Statement | D11: 9a. Operating Oheads (T) (deleted) | E11: 20. Related Party
C12: 1b. Provisions (deleted) | D12: 9b. Operating Oheads (M) (deleted)
E13: 21. AMI
C14: 2. Demand and Revenue | D14: Overheads
D15: 10. Overheads Allocation (deleted) | E15: 22. Safety and Bushfire
C16: Capex
C17: 3a. Capex - total | D17: 11. Total Overheads (deleted) | E17: 23. Shared assets
C18: 3b. Capex - margins
D19: Other information | E19: Pricing proposal
C20: 4a. Capex overheads - total (deleted) | D20: 12. Cost categories (deleted) | E20: 24. Unmetered supply
C21: 4b. Capex overheads - Margins (deleted)
D22: 13. Avoided Cost Payments | E22: 25. Actual t-2 Distr Tariff
C23: 5. Capex for tax depreciation
D24: 14. Alt Control&Others | E24: 26. Actual t-2 Trans Tariff
C25: Maintenance
C26: 6a. Maintenance - total | D26: 15. EBSS | E26: 27. TUoS cost audit (t-2)
C27: 6b. Maintenance - margin
D28: 16. Juris Scheme | E28: 28. Actual t-2 Juris Revenue
C29: 7a. Maintenance overhead -total (deleted)
C30: 7b. Maintenance ohead - margin (deleted) | D30: 17. DMIS-DMIA | E30: 29. Juris cost audit template

Sheet 1a. Income
B1: =Cover!E22 -> Powercor Australia Ltd
B2: Income Statement
B3: =Cover!E26 -> 2014
E4: Colour coding:
B5: Dollar unit used in this sheet | E5: Yellow = Input cells
B6: nominal $'000 | E6: Grey = No inputs required
B8: This information is used to monitor revenues for each service classification. Elements of the information are used to calculate financial ratios, used for intra and inter-business comparison and reconcile statutory amounts with regulatory amounts.
B12: Statutory Account code or reference to account code | C12: Description | D12: Audited Statutory Accounts | E12: Adjustments | F12: Distribution business | G12: Standard Control Services | H12: AMI | I12: Alternative Control Services - Public Lighting | K12: Alternative Control Services | M12: Negotiated Services | N12: Unregulated Services
I13: Energy efficient | J13: Non energy efficient | K13: Fee based services | L13: Quoted services
C14: Distribution Revenue | D14: 711711.1134 | E14: 0 | F14: 711711.1134 | G14: 588969.7944 | H14: 92387.62955 | I14: 1661.171746 | J14: 7643.853114 | K14: 16388.05404 | L14: 4440.99857 | M14: 212.42662 | N14: 7.18532
C15: TUOS revenue | D15: 145503.0605 | E15: -145503.0605 | F15: 0 | G15: 0 | H15: 0 | I15: 0 | J15: 0 | K15: 0 | L15: 0 | M15: 0 | N15: 0
C16: Cross boundary revenue | D16: 5812.20403 | E16: -5812.20403 | F16: 0 | G16: 0 | H16: 0 | I16: 0 | J16: 0 | K16: 0 | L16: 0 | M16: 0 | N16: 0
C17: Jurisdictional Scheme Amounts | D17: 33651.31549 | E17: -33651.31549 | F17: 0 | G17: 0 | H17: 0 | I17: 0 | J17: 0 | K17: 0 | L17: 0 | M17: 0 | N17: 0
C18: Profit from sale of Fixed Assets | D18: -485.43151 | E18: 0 | F18: -485.43151 | G18: -485.43351 | H18: 0 | I18: 0 | J18: 0 | K18: 0 | L18: 0 | M18: 0 | N18: 0
C19: Customer Contributions | D19: 42826.39478 | E19: -42826.39478 | F19: 0 | G19: 0 | H19: 0 | I19: 0 | J19: 0 | K19: 0 | L19: 0 | M19: 0 | N19: 0
C20: Interest income | D20: 105622.4379 | E20: -105009.3215 | F20: 613.11637 | G20: 545.7536451 | H20: 63.57218288 | I20: 0.6283250272 | J20: 3.16221698 | K20: 0 | L20: 0 | M20: 0 | N20: 0
C21: Revenue from use of RAB assets for non-SCS purposes | D21: 0 | E21: 0 | F21: 0 | G21: 0 | H21: 0 | I21: 0 | J21: 0 | K21: 0 | L21: 0 | M21: 0 | N21: 0
C22: Other Revenue | D22: 241701.7521 | E22: -247005.626 | F22: -5303.87388 | G22: 3972.40514 | H22: -11837.82231 | I22: -741.16 | J22: 0 | K22: 0 | L22: 0 | M22: 0 | N22: 3302.70329
C23: Total revenue | D23: =SUM(D14:D22) -> 1286342.847 | E23: -579807.9223 | F23: 706534.9244 | G23: 593002.5197 | H23: 80613.37942 | I23: 920.6400712 | J23: 7647.015331 | K23: 16388.05404 | L23: 4440.99857 | M23: 212.42662 | N23: 3309.88861
C24: TUOS costs | D24: 145503.0605 | E24: -145503.0605 | F24: 0 | G24: 0 | H24: 0 | I24: 0 | J24: 0 | K24: 0 | L24: 0 | M24: 0 | N24: 0
C25: Cross boundary costs | D25: 5812.20403 | E25: -5812.20403 | F25: 0 | G25: 0 | H25: 0 | I25: 0 | J25: 0 | K25: 0 | L25: 0 | M25: 0 | N25: 0
C26: Jurisdictional Scheme Amounts | D26: 33651.31549 | E26: -33651.31549 | F26: 0 | G26: 0 | H26: 0 | I26: 0 | J26: 0 | K26: 0 | L26: 0 | M26: 0 | N26: 0
C27: Maintenance | D27: 142367.6692 | E27: 0 | F27: 142367.6692 | G27: 129867.3189 | H27: 2284.748233 | I27: 1115.81517 | J27: 5615.644013 | K27: 2433.537294 | L27: 1050.605572 | M27: 0 | N27: 0
C28: Operating Expenses | D28: 313948.1241 | E28: -234344.4561 | F28: 79603.66791 | G28: 45724.02941 | H28: 16488.8576 | I28: 33.26202055 | J28: 167.4002325 | K28: 12631.83976 | L28: 4558.27727 | M28: 0 | N28: 0
C29: Depreciation | D29: 198010.0173 | E29: 1490.604523 | F29: 199500.6219 | G29: 154365.9357 | H29: 44048.5932 | I29: 180.0321438 | J29: 906.0608406 | K29: 0 | L29: 0 | M29: 0 | N29: 0
C30: Finance Charges | D30: 17477.03644 | E30: -17293.05272 | F30: 183.98372 | G30: 163.7695399 | H30: 19.07671572 | I30: 0.1885475279 | J30: 0.9489168321 | K30: 0 | L30: 0 | M30: 0 | N30: 0
C31: Loss from sale of Fixed Assets | D31: 0 | E31: 0 | F31: 0 | G31: 0 | H31: 0 | I31: 0 | J31: 0 | K31: 0 | L31: 0 | M31: 0 | N31: 0
C32: Impairment Losses (Nature) | D32: 0 | E32: 0 | F32: 0 | G32: 0 | H32: 0 | I32: 0 | J32: 0 | K32: 0 | L32: 0 | M32: 0 | N32: 0
C33: Costs from use of RAB assets for non-SCS purposes | D33: 0 | E33: 0 | F33: 0 | G33: 0 | H33: 0 | I33: 0 | J33: 0 | K33: 0 | L33: 0 | M33: 0 | N33: 0
C34: Other | D34: 0 | E34: 0 | F34: 0 | G34: 0 | H34: 0 | I34: 0 | J34: 0 | K34: 0 | L34: 0 | M34: 0 | N34: 0
C35: Profit before Tax (PBT) | D35: =D23-SUM(D24:D34) -> 429573.4196 | E35: -144694.4379 | F35: 284878.9817 | G35: 262881.4661 | H35: 17772.10368 | I35: -408.6578106 | J35: 956.9613278 | K35: 1322.67699 | L35: -1167.884272 | M35: 212.42662 | N35: 3309.88861
C36: Income Tax Expenses /(Benefit) | D36: 126122.4196 | E36: -42482.17424 | F36: 83640.24532 | G36: 77181.79258 | H36: 5217.875721 | I36: -119.9816131 | J36: 280.9630964 | K36: 388.3369283 | L36: -342.8899078 | M36: 62.36828927 | N36: 971.7807037
C37: Profit after tax | D37: =D35-D36 -> 303451 | E37: -102212.2637 | F37: 201238.7363 | G37: 185699.6736 | H37: 12554.22796 | I37: -288.6761974 | J37: 675.9982314 | K37: 934.3400613 | L37: -824.9943647 | M37: 150.0583307 | N37: 2338.107906
B39: Note:
B40: Balancing is required at distribution business level: Distribution business = SCS+AMI+ACS+Negotiated services; and Audited Statutory accounts + Adjustments = Distribution business
B42: In addition it is mandatory to produce for each cost or revenue item that has been allocated to the distribution services/AMI a supporting
B43: workpaper that includes the following:
B44: a) the amounts that have been directly attributed to each distribution service
B45: b) the amounts that have been allocated to each distribution service
B46: c) a description of the allocation basis
B47: d) the numeric quantity of each allocator.
B50: Definitions
B51: The accounting terms used in this template have the same meaning as is used for the prepartion of the statutory accounts.
B52: The service classifications have the same meaning as that used in Powercor's approved CAM.
B53: Audited statutory accounts: | C53: the audited set of accounts prepared in accordance with the requirements of the Australian Securities and Investments Commission (ASIC) and the Corporations Act 2001 (Cth).

Sheet 2. Demand and Revenue
B1: =Cover!E22 -> Powercor Australia Ltd
B2: Total Revenue and Demand
B3: =Cover!E26 -> 2014
D4: Colour coding:
B5: Dollar unit used in this sheet | D5: Yellow = Input cells
B6: nominal $'000 | D6: Grey = No inputs required
B8: Table 1 Standard Control Services Revenue - Current Year
B9: Note: insert additional rows as necessary
B11: Statutory Account code or reference to account code | C11: Tariff categories | D11: Amount of Electricity Distributed (GWh) | E11: Distribution Revenue
C12: D1 - Small Single Rate | D12: 2051.186759 | E12: 183592.6415
C13: D1CS - Climate Saver | D13: 24.96254538 | E13: 1256.99143
C14: D3CS - ClimateSaver Interval | D14: 7.412946633 | E14: 367.5211301
C15: D2 - Small Two Rate | D15: 287.0808904 | E15: 20310.32217
C16: D2DK - Small Two Rate DK | D16: 3.623553588 | E16: 320.4195496
C17: D3 - Residential Interval | D17: 534.7991198 | E17: 42578.39396
C18: D2OP - Residential Two Rate 5d - controlled load | D18: 43.16211052 | E18: 583.5744412
C19: D2DKOP - Docklands Two Rate 5d - controlled load | D19: 0.05804645044 | E19: 0.8068432606
C20: DD1 - Dedicated Circuit | D20: 328.2416385 | E20: 1026.92194
C21: D3HW - Hot Water Interval | D21: 10.37540608 | E21: 33.53815211
C22: P13R - Residential - Flexible Pricing | D22: 7.214169677 | E22: 444.5022795
C23: P13RDK - Residential Docklands - Flexible Pricing | D23: 0.007560106405 | E23: 0.4153720416
C24: P13RCS - Climate Saver - Flexible Pricing | D24: 0.004117 | E24: 0.281228135
C25: P1DK - Docklands single rate | D25: 0 | E25: 0
C26: ND1 - Medium single rate | D26: 268.3028956 | E26: 28394.41953
C27: ND1R - Medium single rate | D27: 0 | E27: 0
C28: P14G - Non-Residential | D28: 6.046747607 | E28: 278.4027021
C29: ND2 - Medium Two Rate - 5d | D29: 1140.515527 | E29: 89859.40227
C30: ND2BS - Medium Two Rate - 5d | D30: 0 | E30: 0
C31: ND3 - Medium Two Rate - 7d | D31: 174.9907119 | E31: 13821.16724
C32: ND5 - Non Residential Interval | D32: 395.1607635 | E32: 33809.62077
C33: PL2 - Unmetered Supplies | D33: 104.6329165 | E33: 5717.986982
C34: DL - Large Tariff (kW) | D34: 1173.263382 | E34: 58331.7562
C35: DLA - Large Tariff A (kW) | D35: 0 | E35: 0
C36: DLC - Large Tariff C (kW) | D36: 585.3711018 | E36: 27293.08017
C37: DLCXX - Large Tariff CXX (kW) | D37: 438.4597391 | E37: 26634.14796
C38: DLS - Large Tariff S (kW) | D38: 25.22469804 | E38: 1552.059609
C39: DLDK - Large Tariff DK (kW) | D39: 5.970320436 | E39: 169.2448321
C40: DL.R - Large Tariff R (kW) | D40: 0.2057486696 | E40: 29.25445629
C41: DL.NR - Large Tariff NR (kW) | D41: 52.9538448 | E41: 2835.489785
C42: DL.CXXR - Large Tariff CXXR (kW) | D42: 1.734265985 | E42: 107.0240544
C43: DL.CXXNR - Large Tariff CXXNR (kW) | D43: 4.402660482 | E43: 268.4050018
C44: DH - High Voltage (kW) | D44: 975.391846 | E44: 28351.21301
C45: DHA - High Voltage A (kW) | D45: 11.80437282 | E45: 211.1157053
C46: DHC - High Voltage C (kW) | D46: 421.5078707 | E46: 11908.80503
C47: DHD1 - High Voltage D1 (kW) | D47: 166.0983963 | E47: 1380.146378
C48: DHD2 - High Voltage D2 (kW) | D48: 78.2703502 | E48: 808.0643454
C49: DHD3 - High Voltage D3 (kW) | D49: 26.37916208 | E49: 713.2367068
C50: DHD4 - High Voltage D4 (kW) | D50: -0.01265753351 | E50: -0.02522838468
C51: DHDK - High Voltage DK (kW) | D51: 2.386640138 | E51: 56.42644173
C52: DHD5 - High Voltage D5 (kW) | D52: 0 | E52: 0
C53: DHR - High Voltage R (kW) | D53: 0 | E53: 0
C54: DHNR - High Voltage NR (kW) | D54: 0 | E54: 0
C55: DSA - Subtransmission A | D55: 110.2887955 | E55: 912.2066758
C56: DSG - Subtransmission G | D56: 566.4426495 | E56: 3208.606083
C57: DSS - Subtransmission S | D57: 299.0403028 | E57: 1802.207714
C58: Total | D58: =SUM(D12:D57) -> 10332.96191 | E58: =SUM(E12:E57) -> 588969.7944
B60: Table 2 Standard Control Revenue - Prior Year
B61: Note: insert additional rows as necessary
B63: Statutory Account code or reference to account code | C63: Tariff categories | D63: Amount of Electricity Distributed (GWh) | E63: Distribution Revenue
C64: D1 - Small Single Rate | D64: 2107.685654 | E64: 163620.8625
C65: D1CS - Climate Saver | D65: 26.69509031 | E65: 1398.350058
C66: D3CS - ClimateSaver Interval | D66: 7.929719451 | E66: 406.4211786
C67: D2 - Small Two Rate | D67: 341.0670073 | E67: 20107.19965
C68: D2DK - Small Two Rate DK | D68: 3.983416244 | E68: 271.2946436
C69: D3 - Residential Interval | D69: 509.7918554 | E69: 37228.21192
C70: DD1 - Dedicated Circuit | D70: 365.5008558 | E70: 1162.221451
C71: D3HW - Hot Water Interval | D71: 11.67166959 | E71: 36.97679919
C72: P13R - Residential - Flexible Pricing | D72: 0.121101941 | E72: 5.727856762
C73: P13RDK - Residential Docklands - Flexible Pricing | D73: 0 | E73: 0
C74: P13RCS - Climate Saver - Flexible Pricing | D74: 0 | E74: 0
C75: ND1 - Medium single rate | D75: 264.5123301 | E75: 23097.76416
C76: ND1R - Medium single rate | D76: 0 | E76: 0
C77: ND2 - Medium Two Rate - 5d | D77: 1168.6979 | E77: 86656.91903
C78: ND2BS - Medium Two Rate - 5d | D78: 0 | E78: 0
C79: ND3 - Medium Two Rate - 7d | D79: 176.337522 | E79: 14052.07464
C80: ND5 - Non Residential Interval | D80: 375.9644472 | E80: 29682.16804
C81: PL2 - Unmetered Supplies | D81: 104.6221458 | E81: 5163.422276
C82: DL - Large Tariff (kW) | D82: 1144.650218 | E82: 51413.6617
C83: DLA - Large Tariff A (kW) | D83: 0.003298679925 | E83: 0.05364799993
C84: DLC - Large Tariff C (kW) | D84: 612.6532018 | E84: 25548.28624
C85: DLCXX - Large Tariff CXX (kW) | D85: 417.2229396 | E85: 22637.47652
C86: DLS - Large Tariff S (kW) | D86: 25.60736244 | E86: 1418.144004
C87: DLDK - Large Tariff DK (kW) | D87: 6.418311423 | E87: 232.3925177
C88: DL.R - Large Tariff R (kW) | D88: 0 | E88: 0
C89: DL.NR - Large Tariff NR (kW) | D89: 52.46692126 | E89: 2531.906421
C90: DL.CXXR - Large Tariff CXXR (kW) | D90: 1.589720415 | E90: 95.19946668
C91: DL.CXXNR - Large Tariff CXXNR (kW) | D91: 3.543741436 | E91: 165.0596741
C92: DH - High Voltage (kW) | D92: 935.567608 | E92: 25379.69018
C93: DHA - High Voltage A (kW) | D93: 12.74003307 | E93: 191.7315597
C94: DHC - High Voltage C (kW) | D94: 447.9332626 | E94: 11237.54124
C95: DHD1 - High Voltage D1 (kW) | D95: 163.7995805 | E95: 1291.109396
C96: DHD2 - High Voltage D2 (kW) | D96: 76.10708098 | E96: 704.1578483
C97: DHD3 - High Voltage D3 (kW) | D97: 33.20997302 | E97: 768.9809625
C98: DHD4 - High Voltage D4 (kW) | D98: 4.945364009 | E98: 12.73332975
C99: DHDK - High Voltage DK (kW) | D99: 2.098473151 | E99: 49.02906914
C100: DHD5 - High Voltage D5 (kW) | D100: 0 | E100: 0
C101: DHR - High Voltage R (kW) | D101: 0 | E101: 0
C102: DHNR - High Voltage NR (kW) | D102: 0 | E102: 0
C103: DSA - Subtransmission A | D103: 181.0456258 | E103: 1058.771524
C104: DSG - Subtransmission G | D104: 606.4292613 | E104: 3423.969418
C105: DSS - Subtransmission S | D105: 363.2680409 | E105: 1670.61046
C107: Total | D107: =SUM(D64:D105) -> 10555.88073 | E107: =SUM(E64:E105) -> 532720.1194
B109: Table 3 AMI - Current Year
B110: Note: 'Number of Meters\NMIs refers to end of year figures
B112: Statutory Account code or reference to account code | C112: Tariff categories | D112: Number of Meters\NMIs\Lights | E112: Metering Revenue
C113: MP - Single phase non-off peak meter | D113: 362409 | E113: 41777.72262
C114: MP - Single phase off peak meter | D114: 258184.6667 | E114: 29762.96777
C115: MP - Two or threee phase direct connet | D115: 123847.0833 | E115: 18830.98939
C116: MP - Two or threee phase current transformer connet | D116: 4687.833333 | E116: 944.5219256
C120: Total | D120: =SUM(D113:D119) -> 749128.5833 | E120: =SUM(E113:E119) -> 91316.20171
B123: Table 4 AMI - Prior Year
B124: Note: 'Number of Meters\NMIs refers to end of year figures
B126: Statutory Account code or reference to account code | C126: Tariff categories | D126: Number of Meters | E126: Metering Revenue
C127: MP - Single phase non-off peak meter | D127: 365042.9669 | E127: 46639.10504
C128: MP - Single phase off peak meter | D128: 249035.7918 | E128: 31817.64205
C129: MP - Two or threee phase direct connet | D129: 120029.4144 | E129: 20227.07511
C130: MP - Two or threee phase current transformer connet | D130: 4497.188874 | E130: 1004.19287
C134: Total | D134: =SUM(D127:D133) -> 738605.362 | E134: =SUM(E127:E133) -> 99688.01507
B137: Table 5 Public lighting- Current Year
B139: Statutory Account code or reference to account code | C139: Tariff categories | D139: Number of Lights | E139: Public Lighting Revenue
C140: MDs - Unmetered Supplies | D140: 180969.8506 | E140: 231.81538
C147: Total | D147: =SUM(D140:D146) -> 180969.8506 | E147: =SUM(E140:E146) -> 231.81538
B150: Table 6 Public lighting - Prior Year
B152: Statutory Account code or reference to account code | C152: Tariff categories | D152: Number of Lights | E152: Public Lighting Revenue
C153: MDs - Unmetered Supplies | D153: 177718 | E153: 224.0303816
C160: Total | D160: =SUM(D153:D159) -> 177718 | E160: =SUM(E153:E159) -> 224.0303816
B162: Table 7 Total annual retailer charges
B164: TARC is defined as the total annual amount of network charges billed by the Powercor to all retailers as most recently reported by Powercor to the AER, or total annual amount of network charges billed by Powercor to all retailers.
B166: TARC | C166: 896457.7441

Sheet 3a. Capex - total
B1: Powercor
B2: Capex total
B3: =Cover!E26 -> 2014
D4: Colour coding:
B5: Dollar unit used in this sheet | D5: Yellow = Input cells
B6: nominal $'000 | D6: Grey = No inputs required
B8: The information on sheets 5 and 6 is necessary for monitoring capex and will be used to inform the AER's assessment of capex and its underlying drivers at the next reset. It will also be used to assist in any comparative analysis undertaken by the AER within the current and future regulatory control periods.
B10: Instructions:
B11: Reported expenditure must EXCLUDE capital contributions, except for Table 5.
B12: Reported expenditure must INCLUDE any profit margins or management fees paid directly or indirectly to related party contractors (which is not an actual incurred cost of the related party contractor) for the regulatory reporting period.
B13: Forecast expenditure is to be taken from the 2011-15 distribution determination. This forecast is adjusted using the CPI calculations on the cover sheet.
B14: If allocating based on assumptions then provide method.
B15: All adjustments must be explained with supporting documentation attached.
B18: Table 1 Standard Control Services - capex by purpose by voltage level
C20: Forecast | D20: Adjusted Forecast | E20: Actual | F20: Difference (%) | G20: Sub-transmission | H20: HV | I20: LV | J20: Other
B21: Demand Related
B22: Reinforcement | C22: 55961.99612 | D22: =IF(Cover!$E$26=2014,((C22/Cover!$D$48)*Cover!$H$48),((C22/Cover!$D$49)*Cover!$I$49)) -> 62052.72579 | E22: =SUM(G22:J22) -> 22526.6888 | F22: =IF(D22=0,1,((E22-D22)/D22)*1) -> -0.6369750319 | G22: 2145.259901 | H22: 12902.51686 | I22: 7211.319408 | J22: 267.5926349
B23: New customer connection | C23: 91100.99681 | D23: =IF(Cover!$E$26=2014,((C23/Cover!$D$48)*Cover!$H$48),((C23/Cover!$D$49)*Cover!$I$49)) -> 101016.1461 | E23: 96546.33897 | F23: =IF(D23=0,1,((E23-D23)/D23)*1) -> -0.04424844201 | G23: 9194.293552 | H23: 55298.44076 | I23: 30906.73885 | J23: 1146.865812
B24: Non Demand Related
B25: Reliability & quality maintained | C25: 36742.55669 | D25: =IF(Cover!$E$26=2014,((C25/Cover!$D$48)*Cover!$H$48),((C25/Cover!$D$49)*Cover!$I$49)) -> 40741.50233 | E25: 57735.12881 | F25: =IF(D25=0,1,((E25-D25)/D25)*1) -> 0.4171084892 | G25: 5498.227361 | H25: 33068.70705 | I25: 18482.36368 | J25: 685.830722
B26: Environmental, safety & legal | C26: 62224.66031 | D26: =IF(Cover!$E$26=2014,((C26/Cover!$D$48)*Cover!$H$48),((C26/Cover!$D$49)*Cover!$I$49)) -> 68996.99888 | E26: 104133.6439 | F26: 0.5092488886 | G26: 9916.84719 | H26: 59644.18949 | I26: 33335.61242 | J26: 1236.994766
B27: Sub-total | C27: =C22+C23+C25+C26 -> 246030.2099 | D27: =D22+D23+D25+D26 -> 272807.373 | E27: =E22+E23+E25+E26 -> 280941.8005 | F27: 0.02981747639 | G27: =G22+G23+G25+G26 -> 26754.628 | H27: =H22+H23+H25+H26 -> 160913.8542 | I27: =I22+I23+I25+I26 -> 89936.03437 | J27: =J22+J23+J25+J26 -> 3337.283935
B28: SCADA/Network control | C28: 4130.006121 | D28: =IF(Cover!$E$26=2014,((C28/Cover!$D$48)*Cover!$H$48),((C28/Cover!$D$49)*Cover!$I$49)) -> 4579.503147 | E28: 3080.91902 | F28: -0.3272372742 | G28: 0 | H28: 0 | I28: 0 | J28: 3080.91902
B29: Non network general - IT | C29: 28384.6327 | D29: =IF(Cover!$E$26=2014,((C29/Cover!$D$48)*Cover!$H$48),((C29/Cover!$D$49)*Cover!$I$49)) -> 31473.92787 | E29: 19776.6899 | F29: -0.3716484964 | G29: 0 | H29: 0 | I29: 0 | J29: 19776.6899
B30: Non network general - other | C30: 15460.79534 | D30: =IF(Cover!$E$26=2014,((C30/Cover!$D$48)*Cover!$H$48),((C30/Cover!$D$49)*Cover!$I$49)) -> 17143.50024 | E30: 28538.11049 | F30: 0.6646606639 | G30: 0 | H30: 0 | I30: 0 | J30: 28538.11049
B31: Metering - Non AMI | C31: 0 | D31: =IF(Cover!$E$26=2014,((C31/Cover!$D$48)*Cover!$H$48),((C31/Cover!$D$49)*Cover!$I$49)) -> 0 | E31: 0 | F31: 1 | G31: 0 | H31: 0 | I31: 0 | J31: 0
B32: Standard Control - Total Capex | C32: =SUM(C27:C31) -> 294005.6441 | D32: =SUM(D27:D31) -> 326004.3043 | E32: =SUM(E27:E31) -> 332337.5199 | F32: 0.0194267851 | G32: 26754.628 | H32: =SUM(H27:H31) -> 160913.8542 | I32: 89936.03437 | J32: 54733.00334
B34: Table 2: Material difference explanation
B35: Where the difference between forecast and actual expenditure shown in table 1, column E is greater than ±10per cent, please explain the main factors driving the difference.
C37: Reason for material difference
B38: Demand Related
B39: Reinforcement | C39: Expenditure is less than forecast at the 2011-15 EDPR Final Determinationas a result of: 1.The upgrade to the Geelong East (GLE) zone substation was delayed in response to lower than forecast demand growth. A Regulatory Test for GLE was published in 2014, confirming the timing as 2017. 2. Council planning approval delays and flood mitigation issues have delayed the development of the new Armstrong Creek residential and commercial areas. A number of augmentation projects have been affected. Timing of the new Torquay zone substation has moved out to 2018 due to this delayed commencement of the key development areas. | D39: 0 | E39: 0 | F39: 0
B40: New customer connection
B41: Non Demand Related
B42: Reliability & quality maintained | C42: Increased zone substation plant replacements, including the Sunshine zone substation replacement project, than provided for in the 2011-15 Final Determination. | D42: 0 | E42: 0 | F42: 0
B43: Environmental, safety & legal | C43: Timing of the VBRC works programme resulted in significantly greater expenditure in 2014 compared to the actual 2014 VBRC allowance. Work volumes related to overhead lines were greater than forecast at the 2011-15 EDPR. | D43: 0 | E43: 0 | F43: 0
B44: Other
B45: SCADA/Network control | C45: The absolute expenditure variance is not material. | D45: 0 | E45: 0 | F45: 0
B46: Non network general - IT | C46: Over the regulatory period standard control systems have been maintained and enhanced due to the focus on the implementation of smart meter related systems (not included in the analysis below). Beginning in 2014, Powercor has re-commenced its investment in these standard control systems. | D46: 0 | E46: 0 | F46: 0
B47: Non network general - other | C47: The AER allowance for property was based on the average of expenditure from 2006 to 2009 in accordance with Powercor’s proposal, with some small projects over and above that average. However, Powercor undertook some larger projects in 2014 including the refurbishment of the Warrnambool and Echuca depots and the Market Street head office. Purchase of new fleet including a crane borer and elevated work platforms to support operational requirements; and upgrade of the fleet to address changes in safety and compliance as required by Australian Standards (AS) or Australian Design Rules (ADR). | D47: 0 | E47: 0 | F47: 0
B48: Metering - Non AMI
B50: Table 3 Capex by asset class
B52: Asset class | C52: Audited Statutory Accounts | D52: Adjustments | E52: Forecast | F52: Adjusted Forecast | G52: Actual | H52: Movements in provisions allocated to as-incurred capex | I52: Difference (%)
B53: Subtransmission | C53: 0 | D53: 0 | E53: 38626.07886 | F53: =IF(Cover!$E$26=2014,((E53/Cover!$D$48)*Cover!$H$48),((E53/Cover!$D$49)*Cover!$I$49)) -> 42830.02119 | G53: 26754.628 | H53: 202.0486059 | I53: =IF(F53=0,1,((G53-F53)/F53)*1) -> -0.3753300311
B54: Distribution system assets | C54: 0 | D54: 0 | E54: 239194.509 | F54: =IF(Cover!$E$26=2014,((E54/Cover!$D$48)*Cover!$H$48),((E54/Cover!$D$49)*Cover!$I$49)) -> 265227.6957 | G54: 210646.3685 | H54: 1590.782914 | I54: -0.2057904512
B55: Metering | C55: 0 | D55: 0 | E55: 0 | F55: =IF(Cover!$E$26=2014,((E55/Cover!$D$48)*Cover!$H$48),((E55/Cover!$D$49)*Cover!$I$49)) -> 0 | G55: 0 | H55: 0 | I55: 1
B56: Public Lighting | C56: 0 | D56: 0 | E56: 0 | F56: =IF(Cover!$E$26=2014,((E56/Cover!$D$48)*Cover!$H$48),((E56/Cover!$D$49)*Cover!$I$49)) -> 0 | G56: 0 | H56: 0 | I56: 1
B57: SCADA/Network control | C57: 0 | D57: 0 | E57: 4130.006121 | F57: =IF(Cover!$E$26=2014,((E57/Cover!$D$48)*Cover!$H$48),((E57/Cover!$D$49)*Cover!$I$49)) -> 4579.503147 | G57: 3080.91902 | H57: 23.26683043 | I57: -0.3272372742
B58: Non network - IT | C58: 0 | D58: 0 | E58: 28384.6327 | F58: =IF(Cover!$E$26=2014,((E58/Cover!$D$48)*Cover!$H$48),((E58/Cover!$D$49)*Cover!$I$49)) -> 31473.92787 | G58: 19776.6899 | H58: 149.3518289 | I58: -0.3716484964
B59: Non network - other | C59: 0 | D59: 0 | E59: 15460.79534 | F59: =IF(Cover!$E$26=2014,((E59/Cover!$D$48)*Cover!$H$48),((E59/Cover!$D$49)*Cover!$I$49)) -> 17143.50024 | G59: 28538.11049 | H59: 215.5173093 | I59: 0.6646606639
B60: Equity Raising Costs | C60: 0 | D60: 0 | E60: 0 | F60: =IF(Cover!$E$26=2014,((E60/Cover!$D$48)*Cover!$H$48),((E60/Cover!$D$49)*Cover!$I$49)) -> 0 | G60: 0 | H60: 0 | I60: 1
B61: AMI | C61: 0 | D61: 0 | E61: 15428.80215 | F61: =IF(Cover!$E$26=2014,((E61/Cover!$D$48)*Cover!$H$48),((E61/Cover!$D$49)*Cover!$I$49)) -> 17108.02501 | G61: 21433.14528 | H61: 0 | I61: 0.2528123653
B62: Victorian Bushfires Royal Commission | C62: 0 | D62: 0 | E62: 14502.70084 | F62: =IF(Cover!$E$26=2014,((E62/Cover!$D$48)*Cover!$H$48),((E62/Cover!$D$49)*Cover!$I$49)) -> 16081.12971 | G62: 43540.80392 | H62: 0 | I62: 1.707571216
B63: Alternative control fee and quoted services | C63: 0 | D63: 0 | E63: 0 | F63: =IF(Cover!$E$26=2014,((E63/Cover!$D$48)*Cover!$H$48),((E63/Cover!$D$49)*Cover!$I$49)) -> 0 | G63: 4157.746558 | H63: 0 | I63: 1
B64: Negotiated | C64: 0 | D64: 0 | E64: 0 | F64: =IF(Cover!$E$26=2014,((E64/Cover!$D$48)*Cover!$H$48),((E64/Cover!$D$49)*Cover!$I$49)) -> 0 | G64: 1158.482547 | H64: 0 | I64: 1
B65: Unregulated | C65: 0 | D65: 0 | E65: 0 | F65: =IF(Cover!$E$26=2014,((E65/Cover!$D$48)*Cover!$H$48),((E65/Cover!$D$49)*Cover!$I$49)) -> 0 | G65: 0 | H65: 0 | I65: 1
B66: Total (system and non system) | C66: =SUM(C53:C65) -> 0 | D66: 0 | E66: =SUM(E53:E65) -> 355727.525 | F66: =SUM(F53:F65) -> 394443.8029 | G66: =SUM(G53:G65) -> 359086.8942 | H66: =SUM(H53:H65) -> 2180.967489 | I66: -0.08963737888
B68: Table 4 Other Capex
C70: Forecast | D70: Adjusted Forecast | E70: Actual | F70: Difference (%) | G70: Sub-transmission | H70: HV | I70: LV | J70: Other
B71: AMI
B72: Accumulation Meters | C72: 0 | D72: =IF(Cover!$E$26=2014,((C72/Cover!$D$48)*Cover!$H$48),((C72/Cover!$D$49)*Cover!$I$49)) -> 0 | E72: =SUM(G72:J72) -> 0 | F72: =IF(D72=0,1,((E72-D72)/D72)*1) -> 1 | G72: 0 | H72: 0 | I72: 0 | J72: 0
B73: Manually read interval meters | C73: 0 | D73: =IF(Cover!$E$26=2014,((C73/Cover!$D$48)*Cover!$H$48),((C73/Cover!$D$49)*Cover!$I$49)) -> 0 | E73: =SUM(G73:J73) -> 14.61415 | F73: 1 | G73: 0 | H73: 0 | I73: 0 | J73: 14.61415
B74: Remotely read interval meters & transformers | C74: 6640.980069 | D74: =IF(Cover!$E$26=2014,((C74/Cover!$D$48)*Cover!$H$48),((C74/Cover!$D$49)*Cover!$I$49)) -> 7363.763692 | E74: 11355.00582 | F74: 0.5420111639 | G74: 0 | H74: 0 | I74: 0 | J74: 11355.00582
B75: AMI communication | C75: 2119.146128 | D75: =IF(Cover!$E$26=2014,((C75/Cover!$D$48)*Cover!$H$48),((C75/Cover!$D$49)*Cover!$I$49)) -> 2349.787404 | E75: 5081.697058 | F75: 1.162619924 | G75: 0 | H75: 0 | I75: 0 | J75: 5081.697058
B76: Metering data services (IT) | C76: 6555.148714 | D76: =IF(Cover!$E$26=2014,((C76/Cover!$D$48)*Cover!$H$48),((C76/Cover!$D$49)*Cover!$I$49)) -> 7268.590719 | E76: 4981.82825 | F76: -0.3146087814 | G76: 0 | H76: 0 | I76: 0 | J76: 4981.82825
B77: Metering data services (other) | C77: 113.5272429 | D77: =IF(Cover!$E$26=2014,((C77/Cover!$D$48)*Cover!$H$48),((C77/Cover!$D$49)*Cover!$I$49)) -> 125.8831951 | E77: 0 | F77: -1 | G77: 0 | H77: 0 | I77: 0 | J77: 0
B78: AMI - Total | C78: =SUM(C72:C77) -> 15428.80215 | D78: =SUM(D72:D77) -> 17108.02501 | E78: 21433.14528 | F78: 0.2528123653 | G78: =SUM(G72:G77) -> 0 | H78: =SUM(H72:H77) -> 0 | I78: =SUM(I72:I77) -> 0 | J78: =SUM(J72:J77) -> 21433.14528
B79: Alternative Control services
B80: Public lighting - energy efficient | C80: 0 | D80: =IF(Cover!$E$26=2014,((C80/Cover!$D$48)*Cover!$H$48),((C80/Cover!$D$49)*Cover!$I$49)) -> 0 | E80: =SUM(G80:J80) -> 762.7323509 | F80: =IF(D80=0,1,((E80-D80)/D80)*1) -> 1 | G80: 0 | H80: 0 | I80: 0 | J80: 762.7323509
B81: Public lighting - non energy efficient | C81: 0 | D81: =IF(Cover!$E$26=2014,((C81/Cover!$D$48)*Cover!$H$48),((C81/Cover!$D$49)*Cover!$I$49)) -> 0 | E81: 3395.014207 | F81: 1 | G81: 0 | H81: 0 | I81: 0 | J81: 3395.014207
B82: Public Lighting - Total | C82: =SUM(C80:C81) -> 0 | D82: =SUM(D80:D81) -> 0 | E82: 4157.746558 | F82: 1 | G82: =SUM(G80:G81) -> 0 | H82: =SUM(H80:H81) -> 0 | I82: =SUM(I80:I81) -> 0 | J82: =SUM(J80:J81) -> 4157.746558
B83: Other - fee based services | C83: 0 | D83: =IF(Cover!$E$26=2014,((C83/Cover!$D$48)*Cover!$H$48),((C83/Cover!$D$49)*Cover!$I$49)) -> 0 | E83: 0 | F83: 1 | G83: 0 | H83: 0 | I83: 0 | J83: 0
B84: Other - quoted services | C84: 0 | D84: =IF(Cover!$E$26=2014,((C84/Cover!$D$48)*Cover!$H$48),((C84/Cover!$D$49)*Cover!$I$49)) -> 0 | E84: 0 | F84: 1 | G84: 0 | H84: 0 | I84: 0 | J84: 0
B85: Other Alternative Control - Total | C85: =SUM(C83:C84) -> 0 | D85: =SUM(D83:D84) -> 0 | E85: 0 | F85: 1 | G85: =SUM(G83:G84) -> 0 | H85: =SUM(H83:H84) -> 0 | I85: =SUM(I83:I84) -> 0 | J85: =SUM(J83:J84) -> 0
B86: Negotiated services | C86: 0 | D86: =IF(Cover!$E$26=2014,((C86/Cover!$D$48)*Cover!$H$48),((C86/Cover!$D$49)*Cover!$I$49)) -> 0 | E86: 1158.482547 | F86: 1 | G86: 0 | H86: 0 | I86: 0 | J86: 1158.482547
B87: Unregulated services | C87: 0 | D87: =IF(Cover!$E$26=2014,((C87/Cover!$D$48)*Cover!$H$48),((C87/Cover!$D$49)*Cover!$I$49)) -> 0 | E87: 0 | F87: 1 | G87: 0 | H87: 0 | I87: 0 | J87: 0
B88: Total Other capex | C88: =C78+C82+C85+C86+C87 -> 15428.80215 | D88: =D78+D82+D85+D86+D87 -> 17108.02501 | E88: =E78+E82+E85+E86+E87 -> 26749.37438 | F88: 0.5635571241 | G88: =G78+G82+G85+G86+G87 -> 0 | H88: =H78+H82+H85+H86+H87 -> 0 | I88: =I78+I82+I85+I86+I87 -> 0 | J88: =J78+J82+J85+J86+J87 -> 26749.37438
B91: Table 5 Customer Contributions by asset class
C93: Audited Statutory Accounts | D93: Adjustments | E93: Forecast | F93: Adjusted Forecast | G93: Actual | H93: Difference (%)
B94: Subtransmission | C94: 0 | D94: 0 | E94: 5773.961179 | F94: =IF(Cover!$E$26=2014,((E94/Cover!$D$48)*Cover!$H$48),((E94/Cover!$D$49)*Cover!$I$49)) -> 6402.381162 | G94: 2280.306192 | H94: =IF(F94=0,1,((G94-F94)/F94)*1) -> -0.6438346711
B95: Distribution system assets | C95: 0 | D95: 0 | E95: 40519.1176 | F95: =IF(Cover!$E$26=2014,((E95/Cover!$D$48)*Cover!$H$48),((E95/Cover!$D$49)*Cover!$I$49)) -> 44929.09238 | G95: 33163.38442 | H95: -0.2618728164
B96: Metering | C96: 0 | D96: 0 | E96: 0 | F96: =IF(Cover!$E$26=2014,((E96/Cover!$D$48)*Cover!$H$48),((E96/Cover!$D$49)*Cover!$I$49)) -> 0 | G96: 0 | H96: 1
B97: Public Lighting | C97: 0 | D97: 0 | E97: 0 | F97: =IF(Cover!$E$26=2014,((E97/Cover!$D$48)*Cover!$H$48),((E97/Cover!$D$49)*Cover!$I$49)) -> 0 | G97: 0 | H97: 1
B98: SCADA/Network control | C98: 0 | D98: 0 | E98: 0 | F98: =IF(Cover!$E$26=2014,((E98/Cover!$D$48)*Cover!$H$48),((E98/Cover!$D$49)*Cover!$I$49)) -> 0 | G98: 0 | H98: 1
B99: Non network - IT | C99: 0 | D99: 0 | E99: 0 | F99: =IF(Cover!$E$26=2014,((E99/Cover!$D$48)*Cover!$H$48),((E99/Cover!$D$49)*Cover!$I$49)) -> 0 | G99: 0 | H99: 1
B100: Non network - other | C100: 0 | D100: 0 | E100: 0 | F100: =IF(Cover!$E$26=2014,((E100/Cover!$D$48)*Cover!$H$48),((E100/Cover!$D$49)*Cover!$I$49)) -> 0 | G100: 0 | H100: 1
B101: Equity Raising Costs | C101: 0 | D101: 0 | E101: 0 | F101: =IF(Cover!$E$26=2014,((E101/Cover!$D$48)*Cover!$H$48),((E101/Cover!$D$49)*Cover!$I$49)) -> 0 | G101: 0 | H101: =IF(F101=0,1,((G101-F101)/F101)*1) -> 1
B102: AMI | C102: 0 | D102: 0 | E102: 0 | F102: =IF(Cover!$E$26=2014,((E102/Cover!$D$48)*Cover!$H$48),((E102/Cover!$D$49)*Cover!$I$49)) -> 0 | G102: 0 | H102: 1
B103: Victorian Bushfires Royal Commission | C103: 0 | D103: 0 | E103: 0 | F103: =IF(Cover!$E$26=2014,((E103/Cover!$D$48)*Cover!$H$48),((E103/Cover!$D$49)*Cover!$I$49)) -> 0 | G103: 0 | H103: 1
B104: Alternative control fee and quoted services | C104: 0 | D104: 0 | E104: 0 | F104: =IF(Cover!$E$26=2014,((E104/Cover!$D$48)*Cover!$H$48),((E104/Cover!$D$49)*Cover!$I$49)) -> 0 | G104: 874.455 | H104: 1
B105: Negotiated | C105: 0 | D105: 0 | E105: 0 | F105: =IF(Cover!$E$26=2014,((E105/Cover!$D$48)*Cover!$H$48),((E105/Cover!$D$49)*Cover!$I$49)) -> 0 | G105: 7382.70417 | H105: 1
B106: Unregulated | C106: 0 | D106: 0 | E106: 0 | F106: =IF(Cover!$E$26=2014,((E106/Cover!$D$48)*Cover!$H$48),((E106/Cover!$D$49)*Cover!$I$49)) -> 0 | G106: 0 | H106: 1
B107: Total Customer Contributions | C107: =SUM(C94:C106) -> 0 | D107: =SUM(D94:D106) -> 0 | E107: =SUM(E94:E106) -> 46293.07878 | F107: =SUM(F94:F106) -> 51331.47354 | G107: =SUM(G94:G106) -> 43700.84978 | H107: -0.1486539005
B109: Table 6 Disposals by asset class
C111: Audited Statutory Accounts | D111: Adjustments | E111: Forecast | F111: Adjusted Forecast | G111: Actual | H111: Difference (%)
B112: Subtransmission | C112: 0 | D112: 0 | E112: 0 | F112: =IF(Cover!$E$26=2014,((E112/Cover!$D$48)*Cover!$H$48),((E112/Cover!$D$49)*Cover!$I$49)) -> 0 | G112: 0 | H112: =IF(F112=0,1,((G112-F112)/F112)*1) -> 1
B113: Distribution system assets | C113: 0 | D113: 0 | E113: 0 | F113: =IF(Cover!$E$26=2014,((E113/Cover!$D$48)*Cover!$H$48),((E113/Cover!$D$49)*Cover!$I$49)) -> 0 | G113: 0 | H113: 1
B114: Metering | C114: 0 | D114: 0 | E114: 0 | F114: =IF(Cover!$E$26=2014,((E114/Cover!$D$48)*Cover!$H$48),((E114/Cover!$D$49)*Cover!$I$49)) -> 0 | G114: 0 | H114: 1
B115: Public Lighting | C115: 0 | D115: 0 | E115: 0 | F115: =IF(Cover!$E$26=2014,((E115/Cover!$D$48)*Cover!$H$48),((E115/Cover!$D$49)*Cover!$I$49)) -> 0 | G115: 0 | H115: 1
B116: SCADA/Network control | C116: 0 | D116: 0 | E116: 0 | F116: =IF(Cover!$E$26=2014,((E116/Cover!$D$48)*Cover!$H$48),((E116/Cover!$D$49)*Cover!$I$49)) -> 0 | G116: 0 | H116: 1
B117: Non network - IT | C117: 0 | D117: 0 | E117: 0 | F117: =IF(Cover!$E$26=2014,((E117/Cover!$D$48)*Cover!$H$48),((E117/Cover!$D$49)*Cover!$I$49)) -> 0 | G117: 0 | H117: 1
B118: Non network - other | C118: 0 | D118: 0 | E118: 0 | F118: =IF(Cover!$E$26=2014,((E118/Cover!$D$48)*Cover!$H$48),((E118/Cover!$D$49)*Cover!$I$49)) -> 0 | G118: 1474.10471 | H118: 1
B119: Equity Raising Costs | C119: 0 | D119: 0 | E119: 0 | F119: =IF(Cover!$E$26=2014,((E119/Cover!$D$48)*Cover!$H$48),((E119/Cover!$D$49)*Cover!$I$49)) -> 0 | G119: 0 | H119: 1
B120: AMI | C120: 0 | D120: 0 | E120: 0 | F120: =IF(Cover!$E$26=2014,((E120/Cover!$D$48)*Cover!$H$48),((E120/Cover!$D$49)*Cover!$I$49)) -> 0 | G120: 0 | H120: 1
B121: Victorian Bushfires Royal Commission | C121: 0 | D121: 0 | E121: 0 | F121: =IF(Cover!$E$26=2014,((E121/Cover!$D$48)*Cover!$H$48),((E121/Cover!$D$49)*Cover!$I$49)) -> 0 | G121: 0 | H121: 1
B122: Alternative control fee and quoted services | C122: 0 | D122: 0 | E122: 0 | F122: =IF(Cover!$E$26=2014,((E122/Cover!$D$48)*Cover!$H$48),((E122/Cover!$D$49)*Cover!$I$49)) -> 0 | G122: 0 | H122: 1
B123: Negotiated | C123: 0 | D123: 0 | E123: 0 | F123: =IF(Cover!$E$26=2014,((E123/Cover!$D$48)*Cover!$H$48),((E123/Cover!$D$49)*Cover!$I$49)) -> 0 | G123: 0 | H123: 1
B124: Unregulated | C124: 0 | D124: 0 | E124: 0 | F124: =IF(Cover!$E$26=2014,((E124/Cover!$D$48)*Cover!$H$48),((E124/Cover!$D$49)*Cover!$I$49)) -> 0 | G124: 0 | H124: =IF(F124=0,1,((G124-F124)/F124)*1) -> 1
B125: Total Disposals | C125: =SUM(C112:C124) -> 0 | D125: =SUM(D112:D124) -> 0 | E125: =SUM(E112:E124) -> 0 | F125: =IF(Cover!$E$26=2014,((E125/Cover!$D$48)*Cover!$H$48),((E125/Cover!$D$49)*Cover!$I$49)) -> 0 | G125: =SUM(G112:G124) -> 1474.10471 | H125: 1
B128: Definitions
B129: SCS Capex by purpose | C129: Capex by purpose is defined in appendix G of the RIN.
B130: SCS Capex by asset class | C130: The assets classes must align with asset classes used in the PTRM for the 2011-15 distribution determination.
B131: Capex by service | C131: Capex for non-SCS distribution services is defined in appendix G of the RIN, or in the 2011-15 distribution determination.
B132: Voltage level - HV | C132: Assets with a nominal voltage above 1 kV and not exceeding 35 kV used to distribute electricity from a (zone) substation.
B133: Voltage level - subtransmission | C133: Assets that distribute electricity at voltage levels between the transmission system and the HV section of the network.
B134: Voltage level - LV | C134: Assets that distribute electricity at low voltage. The connection boundaries are the LV terminals of the HV to LV distribution transformers to the supply point.
B135: Voltage level - other | C135: Assets that distribute electricity at a voltage level that is not subtransmission, HV or LV.
B136: Customer contributions | C136: Cash or in kind contributions to Capex projects and gifted assets.
B137: Disposals | C137: The written down value (WDV) of assets disposed or proceeds from the sale of assets.
B138: Forecast | C138: The forecast expenditure derived for the 2011-2015 Distribution determination.
B139: Adjusted Forecast | C139: The forecast adjusted to be in equivalent dollar terms to the actual expenditure for the relevant regulatory year
B140: Actual | C140: The expenditure reported for the relevant regulatory year.
B141: ABS CPI | C141: ABS CPI (Pub No: 6401.0, All groups, 8 Capital Cities, September)
B142: Movements in provisions | C142: The difference between opening and closing capitalised provisions.

Sheet 3b. Capex - margins
B1: Powercor
B2: Capex - margins
B3: =Cover!E26 -> 2014
D4: Colour coding:
B5: Dollar unit used in this sheet | D5: Yellow = Input cells
B6: nominal $'000 | D6: Grey = No inputs required
B8: Instructions:
B9: Reported expenditure must EXCLUDE capital contributions, except for Table 5.
B10: Reported expenditure must ONLY INCLUDE profit margins or management fees paid directly or indirectly to related party contractors (which is not an actual incurred cost of the related party contractor) for the regulatory reporting period.
B11: Forecast expenditure is to be taken from the 2011-15 distribution determination. This forecast is adjusted using the CPI calculations on the cover sheet.
B12: If allocating based on assumptions then provide method.
B13: All adjustments must be explained with supporting documentation attached.
B16: Table 1 Standard Control Services - capex by purpose by voltage level
C18: Forecast | D18: Adjusted Forecast | E18: Actual | F18: Difference (%) | G18: Sub-transmission | H18: HV | I18: LV | J18: Other
B19: Demand Related
B20: Reinforcement | C20: 0 | D20: =IF(Cover!$E$26=2014,((C20/Cover!$D$48)*Cover!$H$48),((C20/Cover!$D$49)*Cover!$I$49)) -> 0 | E20: =SUM(G20:J20) -> 520.0238078 | F20: =IF(D20=0,1,((E20-D20)/D20)*1) -> 1 | G20: 49.5228674 | H20: 297.8518506 | I20: 166.4717709 | J20: 6.177318921
B21: New customer connection | C21: 0 | D21: =IF(Cover!$E$26=2014,((C21/Cover!$D$48)*Cover!$H$48),((C21/Cover!$D$49)*Cover!$I$49)) -> 0 | E21: 2892.805809 | F21: 1 | G21: 275.487461 | H21: 1656.900224 | I21: 926.0547282 | J21: 34.36339604
B22: Non Demand Related
B23: Reliability & quality maintained | C23: 0 | D23: =IF(Cover!$E$26=2014,((C23/Cover!$D$48)*Cover!$H$48),((C23/Cover!$D$49)*Cover!$I$49)) -> 0 | E23: 1408.40843 | F23: =IF(D23=0,1,((E23-D23)/D23)*1) -> 1 | G23: 134.1254436 | H23: 806.6881762 | I23: 450.864445 | J23: 16.73036486
B24: Environmental, safety & legal | C24: 0 | D24: =IF(Cover!$E$26=2014,((C24/Cover!$D$48)*Cover!$H$48),((C24/Cover!$D$49)*Cover!$I$49)) -> 0 | E24: 2974.66862 | F24: 1 | G24: 283.283414 | H24: 1703.788442 | I24: 952.2609266 | J24: 35.33583746
B25: Sub-total | C25: =C20+C21+C23+C24 -> 0 | D25: =D20+D21+D23+D24 -> 0 | E25: =E20+E21+E23+E24 -> 7795.906666 | F25: 1 | G25: =G20+G21+G23+G24 -> 742.419186 | H25: =H20+H21+H23+H24 -> 4465.228692 | I25: =I20+I21+I23+I24 -> 2495.651871 | J25: =J20+J21+J23+J24 -> 92.60691727
B26: SCADA/Network control | C26: 0 | D26: =IF(Cover!$E$26=2014,((C26/Cover!$D$48)*Cover!$H$48),((C26/Cover!$D$49)*Cover!$I$49)) -> 0 | E26: 28.96629851 | F26: 1 | G26: 0 | H26: 0 | I26: 0 | J26: 28.96629851
B27: Non network general - IT | C27: 0 | D27: =IF(Cover!$E$26=2014,((C27/Cover!$D$48)*Cover!$H$48),((C27/Cover!$D$49)*Cover!$I$49)) -> 0 | E27: 1843.644882 | F27: 1 | G27: 0 | H27: 0 | I27: 0 | J27: 1843.644882
B28: Non network general - other | C28: 0 | D28: =IF(Cover!$E$26=2014,((C28/Cover!$D$48)*Cover!$H$48),((C28/Cover!$D$49)*Cover!$I$49)) -> 0 | E28: 0 | F28: 1 | G28: 0 | H28: 0 | I28: 0 | J28: 0
B29: Metering - Non AMI | C29: 0 | D29: =IF(Cover!$E$26=2014,((C29/Cover!$D$48)*Cover!$H$48),((C29/Cover!$D$49)*Cover!$I$49)) -> 0 | E29: 0 | F29: 1 | G29: 0 | H29: 0 | I29: 0 | J29: 0
B30: Standard Control - Total Capex | C30: =SUM(C25:C29) -> 0 | D30: =SUM(D25:D29) -> 0 | E30: =SUM(E25:E29) -> 9668.517847 | F30: 1 | G30: =SUM(G25:G29) -> 742.419186 | H30: 4465.228692 | I30: 2495.651871 | J30: 1965.218098
B32: Table 2: Material difference explanation
B33: Where the difference between forecast and actual expenditure shown in table 1, column E is greater than ±10 per cent, please explain the main factors driving the difference.
C35: Reason for material difference
B36: Demand Related
B37: Reinforcement | C37: N/A | D37: 0 | E37: 0 | F37: 0
B38: New customer connection | C38: N/A | D38: 0 | E38: 0 | F38: 0
B39: Non Demand Related
B40: Reliability & quality maintained | C40: N/A | D40: 0 | E40: 0 | F40: 0
B41: Environmental, safety & legal | C41: N/A | D41: 0 | E41: 0 | F41: 0
B42: Other
B43: SCADA/Network control | C43: N/A | D43: 0 | E43: 0 | F43: 0
B44: Non network general - IT | C44: N/A | D44: 0 | E44: 0 | F44: 0
B45: Non network general - other | C45: N/A | D45: 0 | E45: 0 | F45: 0
B46: Metering - Non AMI | C46: N/A | D46: 0 | E46: 0 | F46: 0
B48: Table 3 Capex by asset class
B50: Asset class | C50: Forecast | D50: Adjusted Forecast | E50: Actual | F50: Difference (%)
B51: Subtransmission | C51: 0 | D51: =IF(Cover!$E$26=2014,((C51/Cover!$D$48)*Cover!$H$48),((C51/Cover!$D$49)*Cover!$I$49)) -> 0 | E51: 742.419186 | F51: =IF(D51=0,1,((E51-D51)/D51)*1) -> 1
B52: Distribution system assets | C52: 0 | D52: =IF(Cover!$E$26=2014,((C52/Cover!$D$48)*Cover!$H$48),((C52/Cover!$D$49)*Cover!$I$49)) -> 0 | E52: 6983.44006 | F52: 1
B53: Metering | C53: 0 | D53: =IF(Cover!$E$26=2014,((C53/Cover!$D$48)*Cover!$H$48),((C53/Cover!$D$49)*Cover!$I$49)) -> 0 | E53: 0 | F53: 1
B54: Public Lighting | C54: 0 | D54: =IF(Cover!$E$26=2014,((C54/Cover!$D$48)*Cover!$H$48),((C54/Cover!$D$49)*Cover!$I$49)) -> 0 | E54: 0 | F54: 1
B55: SCADA/Network control | C55: 0 | D55: =IF(Cover!$E$26=2014,((C55/Cover!$D$48)*Cover!$H$48),((C55/Cover!$D$49)*Cover!$I$49)) -> 0 | E55: 28.96629851 | F55: 1
B56: Non network - IT | C56: 0 | D56: =IF(Cover!$E$26=2014,((C56/Cover!$D$48)*Cover!$H$48),((C56/Cover!$D$49)*Cover!$I$49)) -> 0 | E56: 1843.644882 | F56: 1
B57: Non network - other | C57: 0 | D57: =IF(Cover!$E$26=2014,((C57/Cover!$D$48)*Cover!$H$48),((C57/Cover!$D$49)*Cover!$I$49)) -> 0 | E57: 0 | F57: 1
B58: Equity Raising Costs | C58: 0 | D58: =IF(Cover!$E$26=2014,((C58/Cover!$D$48)*Cover!$H$48),((C58/Cover!$D$49)*Cover!$I$49)) -> 0 | E58: 0 | F58: 1
B59: AMI | C59: 0 | D59: =IF(Cover!$E$26=2014,((C59/Cover!$D$48)*Cover!$H$48),((C59/Cover!$D$49)*Cover!$I$49)) -> 0 | E59: 526.6573418 | F59: 1
B60: Victorian Bushfires Royal Commission | C60: 0 | D60: =IF(Cover!$E$26=2014,((C60/Cover!$D$48)*Cover!$H$48),((C60/Cover!$D$49)*Cover!$I$49)) -> 0 | E60: 70.04742 | F60: 1
B61: Alternative control fee and quoted services | C61: 0 | D61: =IF(Cover!$E$26=2014,((C61/Cover!$D$48)*Cover!$H$48),((C61/Cover!$D$49)*Cover!$I$49)) -> 0 | E61: 133.364874 | F61: 1
B62: Negotiated | C62: 0 | D62: =IF(Cover!$E$26=2014,((C62/Cover!$D$48)*Cover!$H$48),((C62/Cover!$D$49)*Cover!$I$49)) -> 0 | E62: 190.9845103 | F62: 1
B63: Unregulated | C63: 0 | D63: =IF(Cover!$E$26=2014,((C63/Cover!$D$48)*Cover!$H$48),((C63/Cover!$D$49)*Cover!$I$49)) -> 0 | E63: 0 | F63: 1
B64: Total (system and non system) | C64: =SUM(C51:C63) -> 0 | D64: =SUM(D51:D63) -> 0 | E64: =SUM(E51:E63) -> 10519.52457 | F64: 1
B66: Table 4 Other Capex
C68: Forecast | D68: Adjusted Forecast | E68: Actual | F68: Difference (%) | G68: Sub-transmission | H68: HV | I68: LV | J68: Other
B69: AMI
B70: Accumulation Meters | C70: 0 | D70: =IF(Cover!$E$26=2014,((C70/Cover!$D$48)*Cover!$H$48),((C70/Cover!$D$49)*Cover!$I$49)) -> 0 | E70: =SUM(G70:J70) -> 0 | F70: =IF(D70=0,1,((E70-D70)/D70)*1) -> 1 | G70: 0 | H70: 0 | I70: 0 | J70: 0
B71: Manually read interval meters | C71: 0 | D71: =IF(Cover!$E$26=2014,((C71/Cover!$D$48)*Cover!$H$48),((C71/Cover!$D$49)*Cover!$I$49)) -> 0 | E71: =SUM(G71:J71) -> 0.3942708741 | F71: 1 | G71: 0 | H71: 0 | I71: 0 | J71: 0.3942708741
B72: Remotely read interval meters & transformers | C72: 0 | D72: =IF(Cover!$E$26=2014,((C72/Cover!$D$48)*Cover!$H$48),((C72/Cover!$D$49)*Cover!$I$49)) -> 0 | E72: 210.6463036 | F72: 1 | G72: 0 | H72: 0 | I72: 0 | J72: 210.6463036
B73: AMI communication | C73: 0 | D73: =IF(Cover!$E$26=2014,((C73/Cover!$D$48)*Cover!$H$48),((C73/Cover!$D$49)*Cover!$I$49)) -> 0 | E73: 114.6329074 | F73: 1 | G73: 0 | H73: 0 | I73: 0 | J73: 114.6329074
B74: Metering data services (IT) | C74: 0 | D74: =IF(Cover!$E$26=2014,((C74/Cover!$D$48)*Cover!$H$48),((C74/Cover!$D$49)*Cover!$I$49)) -> 0 | E74: 200.98386 | F74: 1 | G74: 0 | H74: 0 | I74: 0 | J74: 200.98386
B75: Metering data services (other) | C75: 0 | D75: =IF(Cover!$E$26=2014,((C75/Cover!$D$48)*Cover!$H$48),((C75/Cover!$D$49)*Cover!$I$49)) -> 0 | E75: 0 | F75: 1 | G75: 0 | H75: 0 | I75: 0 | J75: 0
B76: AMI - Total | C76: =SUM(C70:C75) -> 0 | D76: =SUM(D70:D75) -> 0 | E76: 526.6573418 | F76: 1 | G76: =SUM(G70:G75) -> 0 | H76: =SUM(H70:H75) -> 0 | I76: =SUM(I70:I75) -> 0 | J76: =SUM(J70:J75) -> 526.6573418
B77: Alternative Control services
B78: Public lighting - energy efficient | C78: 0 | D78: =IF(Cover!$E$26=2014,((C78/Cover!$D$48)*Cover!$H$48),((C78/Cover!$D$49)*Cover!$I$49)) -> 0 | E78: =SUM(G78:J78) -> 20.21415531 | F78: =IF(D78=0,1,((E78-D78)/D78)*1) -> 1 | G78: 0 | H78: 0 | I78: 0 | J78: 20.21415531
B79: Public lighting - non energy efficient | C79: 0 | D79: =IF(Cover!$E$26=2014,((C79/Cover!$D$48)*Cover!$H$48),((C79/Cover!$D$49)*Cover!$I$49)) -> 0 | E79: 113.1507187 | F79: 1 | G79: 0 | H79: 0 | I79: 0 | J79: 113.1507187
B80: Public Lighting - Total | C80: =SUM(C78:C79) -> 0 | D80: =SUM(D78:D79) -> 0 | E80: 133.364874 | F80: 1 | G80: =SUM(G78:G79) -> 0 | H80: =SUM(H78:H79) -> 0 | I80: =SUM(I78:I79) -> 0 | J80: =SUM(J78:J79) -> 133.364874
B81: Other - fee based services | C81: 0 | D81: =IF(Cover!$E$26=2014,((C81/Cover!$D$48)*Cover!$H$48),((C81/Cover!$D$49)*Cover!$I$49)) -> 0 | E81: 0 | F81: 1 | G81: 0 | H81: 0 | I81: 0 | J81: 0
B82: Other - quoted services | C82: 0 | D82: =IF(Cover!$E$26=2014,((C82/Cover!$D$48)*Cover!$H$48),((C82/Cover!$D$49)*Cover!$I$49)) -> 0 | E82: 0 | F82: 1 | G82: 0 | H82: 0 | I82: 0 | J82: 0
B83: Other Alternative Control - Total | C83: =SUM(C81:C82) -> 0 | D83: =SUM(D81:D82) -> 0 | E83: 0 | F83: 1 | G83: =SUM(G81:G82) -> 0 | H83: =SUM(H81:H82) -> 0 | I83: =SUM(I81:I82) -> 0 | J83: =SUM(J81:J82) -> 0
B84: Negotiated services | C84: 0 | D84: =IF(Cover!$E$26=2014,((C84/Cover!$D$48)*Cover!$H$48),((C84/Cover!$D$49)*Cover!$I$49)) -> 0 | E84: 190.9845103 | F84: 1 | G84: 0 | H84: 0 | I84: 0 | J84: 190.9845103
B85: Unregulated services | C85: 0 | D85: =IF(Cover!$E$26=2014,((C85/Cover!$D$48)*Cover!$H$48),((C85/Cover!$D$49)*Cover!$I$49)) -> 0 | E85: 0 | F85: 1 | G85: 0 | H85: 0 | I85: 0 | J85: 0
B86: Total Other capex | C86: =C76+C80+C83+C84+C85 -> 0 | D86: =D76+D80+D83+D84+D85 -> 0 | E86: 851.0067261 | F86: 1 | G86: 0 | H86: =H76+H80+H83+H84+H85 -> 0 | I86: =I76+I80+I83+I84+I85 -> 0 | J86: =J76+J80+J83+J84+J85 -> 851.0067261
B89: Table 5 Customer Contributions by asset class
C91: Forecast | D91: Adjusted Forecast | E91: Actual | F91: Difference (%)
B92: Subtransmission | C92: 0 | D92: =IF(Cover!$E$26=2014,((C92/Cover!$D$48)*Cover!$H$48),((C92/Cover!$D$49)*Cover!$I$49)) -> 0 | E92: 0 | F92: =IF(D92=0,1,((E92-D92)/D92)*1) -> 1
B93: Distribution system assets | C93: 0 | D93: =IF(Cover!$E$26=2014,((C93/Cover!$D$48)*Cover!$H$48),((C93/Cover!$D$49)*Cover!$I$49)) -> 0 | E93: 0 | F93: 1
B94: Metering | C94: 0 | D94: =IF(Cover!$E$26=2014,((C94/Cover!$D$48)*Cover!$H$48),((C94/Cover!$D$49)*Cover!$I$49)) -> 0 | E94: 0 | F94: 1
B95: Public Lighting | C95: 0 | D95: =IF(Cover!$E$26=2014,((C95/Cover!$D$48)*Cover!$H$48),((C95/Cover!$D$49)*Cover!$I$49)) -> 0 | E95: 0 | F95: 1
B96: SCADA/Network control | C96: 0 | D96: =IF(Cover!$E$26=2014,((C96/Cover!$D$48)*Cover!$H$48),((C96/Cover!$D$49)*Cover!$I$49)) -> 0 | E96: 0 | F96: 1
B97: Non network - IT | C97: 0 | D97: =IF(Cover!$E$26=2014,((C97/Cover!$D$48)*Cover!$H$48),((C97/Cover!$D$49)*Cover!$I$49)) -> 0 | E97: 0 | F97: 1
B98: Non network - other | C98: 0 | D98: =IF(Cover!$E$26=2014,((C98/Cover!$D$48)*Cover!$H$48),((C98/Cover!$D$49)*Cover!$I$49)) -> 0 | E98: 0 | F98: 1
B99: Equity Raising Costs | C99: 0 | D99: =IF(Cover!$E$26=2014,((C99/Cover!$D$48)*Cover!$H$48),((C99/Cover!$D$49)*Cover!$I$49)) -> 0 | E99: 0 | F99: 1
B100: AMI | C100: 0 | D100: =IF(Cover!$E$26=2014,((C100/Cover!$D$48)*Cover!$H$48),((C100/Cover!$D$49)*Cover!$I$49)) -> 0 | E100: 0 | F100: 1
B101: Victorian Bushfires Royal Commission | C101: 0 | D101: =IF(Cover!$E$26=2014,((C101/Cover!$D$48)*Cover!$H$48),((C101/Cover!$D$49)*Cover!$I$49)) -> 0 | E101: 0 | F101: 1
B102: Alternative control fee and quoted services | C102: 0 | D102: =IF(Cover!$E$26=2014,((C102/Cover!$D$48)*Cover!$H$48),((C102/Cover!$D$49)*Cover!$I$49)) -> 0 | E102: 0 | F102: 1
B103: Negotiated | C103: 0 | D103: =IF(Cover!$E$26=2014,((C103/Cover!$D$48)*Cover!$H$48),((C103/Cover!$D$49)*Cover!$I$49)) -> 0 | E103: 0 | F103: 1
B104: Unregulated | C104: 0 | D104: =IF(Cover!$E$26=2014,((C104/Cover!$D$48)*Cover!$H$48),((C104/Cover!$D$49)*Cover!$I$49)) -> 0 | E104: 0 | F104: 1
B105: Total Customer Contributions | C105: =SUM(C92:C104) -> 0 | D105: =SUM(D92:D104) -> 0 | E105: =SUM(E92:E104) -> 0 | F105: 1
B107: Table 6 Disposals by asset class
C109: Forecast | D109: Adjusted Forecast | E109: Actual | F109: Difference (%)
B110: Subtransmission | C110: 0 | D110: =IF(Cover!$E$26=2014,((C110/Cover!$D$48)*Cover!$H$48),((C110/Cover!$D$49)*Cover!$I$49)) -> 0 | E110: 0 | F110: =IF(D110=0,1,((E110-D110)/D110)*1) -> 1
B111: Distribution system assets | C111: 0 | D111: =IF(Cover!$E$26=2014,((C111/Cover!$D$48)*Cover!$H$48),((C111/Cover!$D$49)*Cover!$I$49)) -> 0 | E111: 0 | F111: 1
B112: Metering | C112: 0 | D112: =IF(Cover!$E$26=2014,((C112/Cover!$D$48)*Cover!$H$48),((C112/Cover!$D$49)*Cover!$I$49)) -> 0 | E112: 0 | F112: 1
B113: Public Lighting | C113: 0 | D113: =IF(Cover!$E$26=2014,((C113/Cover!$D$48)*Cover!$H$48),((C113/Cover!$D$49)*Cover!$I$49)) -> 0 | E113: 0 | F113: 1
B114: SCADA/Network control | C114: 0 | D114: =IF(Cover!$E$26=2014,((C114/Cover!$D$48)*Cover!$H$48),((C114/Cover!$D$49)*Cover!$I$49)) -> 0 | E114: 0 | F114: 1
B115: Non network - IT | C115: 0 | D115: =IF(Cover!$E$26=2014,((C115/Cover!$D$48)*Cover!$H$48),((C115/Cover!$D$49)*Cover!$I$49)) -> 0 | E115: 0 | F115: 1
B116: Non network - other | C116: 0 | D116: =IF(Cover!$E$26=2014,((C116/Cover!$D$48)*Cover!$H$48),((C116/Cover!$D$49)*Cover!$I$49)) -> 0 | E116: 0 | F116: 1
B117: Equity Raising Costs | C117: 0 | D117: =IF(Cover!$E$26=2014,((C117/Cover!$D$48)*Cover!$H$48),((C117/Cover!$D$49)*Cover!$I$49)) -> 0 | E117: 0 | F117: 1
B118: AMI | C118: 0 | D118: =IF(Cover!$E$26=2014,((C118/Cover!$D$48)*Cover!$H$48),((C118/Cover!$D$49)*Cover!$I$49)) -> 0 | E118: 0 | F118: 1
B119: Victorian Bushfires Royal Commission | C119: 0 | D119: =IF(Cover!$E$26=2014,((C119/Cover!$D$48)*Cover!$H$48),((C119/Cover!$D$49)*Cover!$I$49)) -> 0 | E119: 0 | F119: 1
B120: Alternative control fee and quoted services | C120: 0 | D120: =IF(Cover!$E$26=2014,((C120/Cover!$D$48)*Cover!$H$48),((C120/Cover!$D$49)*Cover!$I$49)) -> 0 | E120: 0 | F120: 1
B121: Negotiated | C121: 0 | D121: =IF(Cover!$E$26=2014,((C121/Cover!$D$48)*Cover!$H$48),((C121/Cover!$D$49)*Cover!$I$49)) -> 0 | E121: 0 | F121: 1
B122: Unregulated | C122: 0 | D122: =IF(Cover!$E$26=2014,((C122/Cover!$D$48)*Cover!$H$48),((C122/Cover!$D$49)*Cover!$I$49)) -> 0 | E122: 0 | F122: 1
B123: Total Disposals | C123: =SUM(C110:C122) -> 0 | D123: =SUM(D110:D122) -> 0 | E123: =SUM(E110:E122) -> 0 | F123: 1

Sheet 5. Capex Tax
B1: =Cover!E22 -> Powercor Australia Ltd
B2: Capex Tax
B3: =Cover!E26 -> 2014
D4: Colour coding:
B5: Dollar unit used in this sheet | D5: Yellow = Input cells
B6: nominal $'000 | D6: Grey = No inputs required
B8: This information will be used to allow the roll forward of the regulated asset base.
B10: Table 1: Tax standard lives and Capex Additions - Standard control services
B12: Asset class | C12: Tax standard lives | D12: Capex additions
B13: System Assets
B14: Subtransmission | C14: 44 | D14: 26754.628
B15: Distribution system assets | C15: 46 | D15: 210646.3685
B16: Metering | C16: n/a | D16: 0
B17: Public Lighting | C17: n/a | D17: 0
B18: SCADA/Network control | C18: 10 | D18: 3080.91902
B19: Sub-total | C19: =SUM(C14:C18) -> 100 | D19: =SUM(D14:D18) -> 240481.9156
B20: Non-System Assets
B21: Non network - IT | C21: 4 | D21: 19776.6899
B22: Non network - other | C22: 12 | D22: 28538.11049
B23: Victorian Bushfires Royal Commission | C23: 45 | D23: 43540.80392
B24: Equity Raising Costs | C24: n/a | D24: 0
B25: Sub-total | C25: =SUM(C21:C24) -> 61 | D25: =SUM(D21:D24) -> 91855.60431
B26: Total (system and non system) | C26: =C25+C19 -> 161 | D26: =D25+D19 -> 332337.5199
B28: Table 2 Standard Control Services - excl metering
B30: Asset Class | C30: Tax Depreciation - Rate (Post Ralph 10 May 2006 onwards) | D30: Total Additions per Taxation Category Including Related Party Margin | E30: Additions per Taxation Category - Related Party Margin
B31: Demand related capital expenditure | C31: 0.04 | D31: 154516.7184 | E31: 3412.829617
B32: Replacement expenditure (Group 1) | C32: 1 | D32: 42539.58272 | E32: 1126.264183
B33: Replacement expenditure (Group 2) | C33: 0.1 | D33: 591.76567 | E33: 12.30342451
B34: Replacement expenditure (Group 3) | C34: 0.04 | D34: 14603.78042 | E34: 269.8408222
B35: Environment, safety & legal | C35: 0.1 | D35: 104133.6439 | E35: 2974.66862
B36: SCADA/Network control | C36: 0.1 | D36: 3080.91902 | E36: 28.96629851
B37: Non-network general assets - IT | C37: 0.4 | D37: 19776.6899 | E37: 1843.644882
B38: Non-network general assets - Other | C38: 0.1764705882 | D38: 28538.11049 | E38: 0
B39: RBPC - Excl Metering - TOTAL ADDITIONS | D39: =SUM(D31:D38) -> 367781.2105 | E39: =SUM(E31:E38) -> 9668.517847
B40: Capitalised Finance Charges | D40: Nil | E40: Nil
B42: Table 3 Metering
B44: Asset Class | C44: Tax Depreciation - Rate (Post Ralph 10 May 2006) | D44: Total Additions per Taxation Category Including Related Party Margin | E44: Additions per Taxation Category - Related Party Margin
B45: Meters and transformers (Group 1) (Unit cost < $1,000) | C45: 0.375 | D45: 10994.60647 | E45: 172.4384136
B46: Meters and transformers (Group 2) (Unit cost ≥ $1,000) | C46: 0.06 | D46: 375.0134978 | E46: 38.60216085
B47: IT | C47: 0.4 | D47: 4981.82825 | E47: 200.98386
B48: Communications | C48: 0.2142857143 | D48: 5081.697058 | E48: 114.6329074
B49: Other | C49: 0.1764705882 | D49: 0 | E49: 0
B50: Metering - TOTAL ADDITIONS | D50: =SUM(D45:D49) -> 21433.14528 | E50: =SUM(E45:E49) -> 526.6573418
B51: Capitalised Finance Charges | D51: Nil | E51: Nil

Sheet 6a. Maintenance - total
B1: Powercor
B2: Maintenance Costs total
B3: =Cover!E26 -> 2014
E4: Colour coding:
B5: Dollar unit used in this sheet | E5: Yellow = Input cells
B6: nominal $'000 | E6: Grey = No inputs required
B8: This information is necessary for monitoring maintenance expenditure and will be used to inform the AER's assessment of maintenance expenditure and its underlying drivers at the next reset. It will also be used to assist in any comparative analysis undertaken by the AER within the current and future regulatory control periods.
B10: Instructions:
B11: Reported expenditure must INCLUDE any profit margins or management fees paid directly or indirectly to related party contractors (which is not an actual incurred cost of the related party contractor) for the regulatory reporting period.
B12: Forecast expenditure is to be taken from the 2011-15 distribution determination. This forecast is adjusted using the CPI calculations on the cover sheet.
B13: If allocating based on assumptions then provide method.
B14: All adjustments must be explained with supporting documentation attached.
B16: Table 1: Maintenance expenditure
B18: Statutory Account code or reference to account code | C18: Description | D18: Audited Statutory Accounts | E18: Adjustments | F18: Distribution business | G18: Standard Control Services | K18: AMI | L18: Public Lighting - Alternative Control | N18: Other Alternative Control Services | P18: Negotiated Services | Q18: Unregulated Services
G19: Forecast | H19: Adjusted Forecast | I19: Actual | J19: Difference | L19: Energy efficient | M19: Non energy efficient | N19: Fee based service | O19: Quoted service
C20: Routine | D20: 57273.98022 | E20: 0 | F20: 57273.98022 | G20: 47786.01067 | H20: =IF(Cover!$E$26=2014,((G20/Cover!$D$48)*Cover!$H$48),((G20/Cover!$D$49)*Cover!$I$49)) -> 52986.89149 | I20: 57273.98022 | J20: =IF(H20=0,1,((I20-H20)/H20)*1) -> 0.08090847757 | K20: 0 | L20: 0 | M20: 0 | N20: 0 | O20: 0 | P20: 0 | Q20: 0
C21: Condition based | D21: 40679.7246 | E21: 0 | F21: 40679.7246 | G21: 29915.95349 | H21: =IF(Cover!$E$26=2014,((G21/Cover!$D$48)*Cover!$H$48),((G21/Cover!$D$49)*Cover!$I$49)) -> 33171.91286 | I21: 40679.7246 | J21: 0.226330383 | K21: 0 | L21: 0 | M21: 0 | N21: 0 | O21: 0 | P21: 0 | Q21: 0
C22: Emergency | D22: 26938.01231 | E22: 0 | F22: 26938.01231 | G22: 21852.43045 | H22: =IF(Cover!$E$26=2014,((G22/Cover!$D$48)*Cover!$H$48),((G22/Cover!$D$49)*Cover!$I$49)) -> 24230.78104 | I22: 26938.01231 | J22: 0.1117269504 | K22: 0 | L22: 0 | M22: 0 | N22: 0 | O22: 0 | P22: 0 | Q22: 0
C23: SCADA/Network Control | D23: 1016.8397 | E23: 0 | F23: 1016.8397 | G23: 956.7221887 | H23: =IF(Cover!$E$26=2014,((G23/Cover!$D$48)*Cover!$H$48),((G23/Cover!$D$49)*Cover!$I$49)) -> 1060.848857 | I23: 1016.8397 | J23: -0.04148485131 | K23: 0 | L23: 0 | M23: 0 | N23: 0 | O23: 0 | P23: 0 | Q23: 0
C24: Other - Standard Control Services | D24: 3958.762095 | E24: 0 | F24: 3958.762095 | G24: 4118.369705 | H24: =IF(Cover!$E$26=2014,((G24/Cover!$D$48)*Cover!$H$48),((G24/Cover!$D$49)*Cover!$I$49)) -> 4566.600259 | I24: 3958.762095 | J24: -0.1331051832 | K24: 0 | L24: 0 | M24: 0 | N24: 0 | O24: 0 | P24: 0 | Q24: 0
C25: AMI | D25: 2284.748233 | E25: 0 | F25: 2284.748233 | G25: 0 | H25: =IF(Cover!$E$26=2014,((G25/Cover!$D$48)*Cover!$H$48),((G25/Cover!$D$49)*Cover!$I$49)) -> 0 | I25: 0 | J25: 1 | K25: 2284.748233 | L25: 0 | M25: 0 | N25: 0 | O25: 0 | P25: 0 | Q25: 0
C26: Public Lighting | D26: 6731.459183 | E26: 0 | F26: 6731.459183 | G26: 0 | H26: =IF(Cover!$E$26=2014,((G26/Cover!$D$48)*Cover!$H$48),((G26/Cover!$D$49)*Cover!$I$49)) -> 0 | I26: 0 | J26: 1 | K26: 0 | L26: 1115.81517 | M26: 5615.644013 | N26: 0 | O26: 0 | P26: 0 | Q26: 0
C27: Alternative control -other | D27: 3484.142867 | E27: 0 | F27: 3484.142867 | G27: 0 | H27: =IF(Cover!$E$26=2014,((G27/Cover!$D$48)*Cover!$H$48),((G27/Cover!$D$49)*Cover!$I$49)) -> 0 | I27: 0 | J27: 1 | K27: 0 | L27: 0 | M27: 0 | N27: 2433.537294 | O27: 1050.605572 | P27: 0 | Q27: 0
C28: Negotiated services | D28: 0 | E28: 0 | F28: 0 | G28: 0 | H28: =IF(Cover!$E$26=2014,((G28/Cover!$D$48)*Cover!$H$48),((G28/Cover!$D$49)*Cover!$I$49)) -> 0 | I28: 0 | J28: 1 | K28: 0 | L28: 0 | M28: 0 | N28: 0 | O28: 0 | P28: 0 | Q28: 0
C29: Sub Total | D29: =SUM(D20:D28) -> 142367.6692 | E29: 0 | F29: 142367.6692 | G29: =SUM(G20:G28) -> 104629.4865 | H29: =SUM(H20:H28) -> 116017.0345 | I29: =SUM(I20:I28) -> 129867.3189 | J29: 0.1193814725 | K29: =SUM(K20:K28) -> 2284.748233 | L29: 1115.81517 | M29: 5615.644013 | N29: 2433.537294 | O29: 1050.605572 | P29: 0 | Q29: 0
C30: Unregulated services | D30: 0 | E30: 0 | F30: 0 | G30: 0 | H30: =IF(Cover!$E$26=2014,((G30/Cover!$D$48)*Cover!$H$48),((G30/Cover!$D$49)*Cover!$I$49)) -> 0 | I30: 0 | J30: 1 | K30: 0 | L30: 0 | M30: 0 | N30: 0 | O30: 0 | P30: 0 | Q30: 0
C31: Total | D31: =D29+D30 -> 142367.6692 | E31: 0 | F31: 142367.6692 | G31: =G29+G30 -> 104629.4865 | H31: =H29+H30 -> 116017.0345 | I31: =I29+I30 -> 129867.3189 | J31: 0.1193814725 | K31: =SUM(K29:K30) -> 2284.748233 | L31: 1115.81517 | M31: 5615.644013 | N31: 2433.537294 | O31: 1050.605572 | P31: 0 | Q31: 0
B34: Table 2: Explanation of material difference
B36: Where the difference between forecast and actual expenditure shown in table 1, column J is greater than ±10 per cent, please explain the main factors driving the difference.
B38: Category | C38: Explanation
B39: Condition based | C39: Actual volumes of work have increased in line with the general ageing of the network.
B40: Emergency | C40: Variance is not material in the context of uncontrollable nature of work volume.
B41: Other - Standard Control Services | C41: The absolute expenditure variance is not material.
B44: Table 3: Other network maintenance costs
B46: Note: List any items included in "other - standard control services' which are more than 5 per cent of the total standard control services maintenance costs
B48: Statutory account code or reference to account code | C48: Description | D48: Audited statutory accounts | E48: Adjustments | F48: Distribution business
C49: N/A | D49: 0 | E49: 0 | F49: 0
C50: N/A | D50: 0 | E50: 0 | F50: 0
C51: N/A | D51: 0 | E51: 0 | F51: 0
C52: N/A | D52: 0 | E52: 0 | F52: 0
C53: N/A | D53: 0 | E53: 0 | F53: 0
C54: N/A | D54: 0 | E54: 0 | F54: 0
B57: Definitions
B58: Maintenance categories are as defined in the 2011-15 Distribution determination
B59: Forecast | C59: The forecast expenditure derived for the 2011-2015 Distribution determination.
B60: Adjusted Forecast | C60: The forecast adjusted to be in equivalent dollar terms to the actual expenditure for the relevant regulatory year
B61: Actual | C61: The expenditure reported for the relevant regulatory year.
B62: ABS CPI | C62: ABS CPI (Pub No: 6401.0, All groups, 8 Capital Cities, September)

Sheet 6b. Maintenance - margin
B1: Powercor
B2: Maintenance Costs - Margin
B3: =Cover!E26 -> 2014
E4: Colour coding:
B5: Dollar unit used in this sheet | E5: Yellow = Input cells
B6: nominal $'000 | E6: Grey = No inputs required
B8: This information is necessary for monitoring maintenance expenditure and will be used to inform the AER's assessment of maintenance expenditure and its underlying drivers at the next reset. It will also be used to assist in any comparative analysis undertaken by the AER within the current and future regulatory control periods.
B10: Instructions:
B11: Reported expenditure must ONLY INCLUDE profit margins or management fees paid directly or indirectly to related party contractors (which is not an actual incurred cost of the related party contractor) for the regulatory reporting period.
B12: Forecast expenditure is to be taken from the 2011-15 distribution determination. This forecast is adjusted using the CPI calculations on the cover sheet.
B13: If allocating based on assumptions then provide method.
B14: All adjustments must be explained with supporting documentation attached.
B16: Table 1: Maintenance expenditure
B18: Statutory Account code or reference to account code | C18: Description | D18: Audited Statutory Accounts | E18: Adjustments | F18: Distribution business | G18: Standard Control Services | K18: AMI | L18: Public Lighting - Alternative Control | N18: Other Alternative Control Services | P18: Negotiated Services | Q18: Unregulated Services
G19: Forecast | H19: Adjusted Forecast | I19: Actual | J19: Difference | L19: Energy efficient | M19: Non energy efficient | N19: Fee based service | O19: Quoted service
C20: Routine | D20: -53.01350769 | E20: 0 | F20: -53.01350769 | G20: 0 | H20: =IF(Cover!$E$26=2014,((G20/Cover!$D$48)*Cover!$H$48),((G20/Cover!$D$49)*Cover!$I$49)) -> 0 | I20: -53.01350769 | J20: =IF(H20=0,1,((I20-H20)/H20)*1) -> 1 | K20: 0 | L20: 0 | M20: 0 | N20: 0 | O20: 0 | P20: 0 | Q20: 0
C21: Condition based | D21: 1068.161061 | E21: 0 | F21: 1068.161061 | G21: 0 | H21: =IF(Cover!$E$26=2014,((G21/Cover!$D$48)*Cover!$H$48),((G21/Cover!$D$49)*Cover!$I$49)) -> 0 | I21: 1068.161061 | J21: 1 | K21: 0 | L21: 0 | M21: 0 | N21: 0 | O21: 0 | P21: 0 | Q21: 0
C22: Emergency | D22: 883.6449281 | E22: 0 | F22: 883.6449281 | G22: 0 | H22: =IF(Cover!$E$26=2014,((G22/Cover!$D$48)*Cover!$H$48),((G22/Cover!$D$49)*Cover!$I$49)) -> 0 | I22: 883.6449281 | J22: 1 | K22: 0 | L22: 0 | M22: 0 | N22: 0 | O22: 0 | P22: 0 | Q22: 0
C23: SCADA/Network Control | D23: 34.3105475 | E23: 0 | F23: 34.3105475 | G23: 0 | H23: =IF(Cover!$E$26=2014,((G23/Cover!$D$48)*Cover!$H$48),((G23/Cover!$D$49)*Cover!$I$49)) -> 0 | I23: 34.3105475 | J23: 1 | K23: 0 | L23: 0 | M23: 0 | N23: 0 | O23: 0 | P23: 0 | Q23: 0
C24: Other - Standard Control Services | D24: -457.5984386 | E24: 0 | F24: -457.5984386 | G24: 0 | H24: =IF(Cover!$E$26=2014,((G24/Cover!$D$48)*Cover!$H$48),((G24/Cover!$D$49)*Cover!$I$49)) -> 0 | I24: -457.5984386 | J24: 1 | K24: 0 | L24: 0 | M24: 0 | N24: 0 | O24: 0 | P24: 0 | Q24: 0
C25: AMI | D25: 602.3933071 | E25: 0 | F25: 602.3933071 | G25: 0 | H25: =IF(Cover!$E$26=2014,((G25/Cover!$D$48)*Cover!$H$48),((G25/Cover!$D$49)*Cover!$I$49)) -> 0 | I25: 0 | J25: 1 | K25: 602.3933071 | L25: 0 | M25: 0 | N25: 0 | O25: 0 | P25: 0 | Q25: 0
C26: Public Lighting | D26: 167.2042356 | E26: 0 | F26: 167.2042356 | G26: 0 | H26: =IF(Cover!$E$26=2014,((G26/Cover!$D$48)*Cover!$H$48),((G26/Cover!$D$49)*Cover!$I$49)) -> 0 | I26: 0 | J26: 1 | K26: 0 | L26: 27.71598511 | M26: 139.4882505 | N26: 0 | O26: 0 | P26: 0 | Q26: 0
C27: Alternative control -other | D27: 89.07164178 | E27: 0 | F27: 89.07164178 | G27: 0 | H27: =IF(Cover!$E$26=2014,((G27/Cover!$D$48)*Cover!$H$48),((G27/Cover!$D$49)*Cover!$I$49)) -> 0 | I27: 0 | J27: 1 | K27: 0 | L27: 0 | M27: 0 | N27: 59.58496053 | O27: 29.48668125 | P27: 0 | Q27: 0
C28: Negotiated services | D28: 0 | E28: 0 | F28: 0 | G28: 0 | H28: =IF(Cover!$E$26=2014,((G28/Cover!$D$48)*Cover!$H$48),((G28/Cover!$D$49)*Cover!$I$49)) -> 0 | I28: 0 | J28: 1 | K28: 0 | L28: 0 | M28: 0 | N28: 0 | O28: 0 | P28: 0 | Q28: 0
C29: Sub Total | D29: =SUM(D20:D28) -> 2334.173775 | E29: 0 | F29: 2334.173775 | G29: =SUM(G20:G28) -> 0 | H29: =SUM(H20:H28) -> 0 | I29: =SUM(I20:I28) -> 1475.50459 | J29: 1 | K29: =SUM(K20:K28) -> 602.3933071 | L29: 27.71598511 | M29: 139.4882505 | N29: 59.58496053 | O29: 29.48668125 | P29: 0 | Q29: 0
C30: Unregulated services | D30: 0 | E30: 0 | F30: 0 | G30: 0 | H30: =IF(Cover!$E$26=2014,((G30/Cover!$D$48)*Cover!$H$48),((G30/Cover!$D$49)*Cover!$I$49)) -> 0 | I30: 0 | J30: 1 | K30: 0 | L30: 0 | M30: 0 | N30: 0 | O30: 0 | P30: 0 | Q30: 0
C31: Total | D31: =D29+D30 -> 2334.173775 | E31: 0 | F31: 2334.173775 | G31: =G29+G30 -> 0 | H31: =H29+H30 -> 0 | I31: =I29+I30 -> 1475.50459 | J31: 1 | K31: =SUM(K29:K30) -> 602.3933071 | L31: 27.71598511 | M31: 139.4882505 | N31: 59.58496053 | O31: 29.48668125 | P31: 0 | Q31: 0
B34: Table 2: Explanation of material difference
B36: Where the difference between forecast and actual expenditure shown in table 1, column J is greater than ±10 per cent, please explain the main factors driving the difference.
B38: Category | C38: Explanation
C39: N/A
C40: N/A
C41: N/A
C42: N/A
B44: Table 3: Other network maintenance costs
B46: Note: List any items included in "other - standard control services' which are more than 5 per cent of the total standard control services maintenance costs
B48: Statutory account code or reference to account code | C48: Description | D48: Audited statutory accounts | E48: Adjustments | F48: Distribution business
C49: N/A | D49: 0 | E49: 0 | F49: 0
C50: N/A | D50: 0 | E50: 0 | F50: 0
C51: N/A | D51: 0 | E51: 0 | F51: 0
C52: N/A | D52: 0 | E52: 0 | F52: 0
C53: N/A | D53: 0 | E53: 0 | F53: 0
C54: N/A | D54: 0 | E54: 0 | F54: 0
B56: Definitions
B57: Maintenance categories are as defined in the 2011-15 Distribution determination

Sheet 8a. Operating Activities (T)
B1: =Cover!E22 -> Powercor Australia Ltd
B2: Operating Activities - total
B3: =Cover!E26 -> 2014
E4: Colour coding:
B5: Dollar unit used in this sheet | E5: Yellow = Input cells
B6: nominal $'000 | E6: Grey = No inputs required
B8: This information is necessary for monitoring operating activities, and will be used to inform the AER’s assessment of operating costs and its underlying drivers at the next reset. It will also be used to assist in any comparative analysis undertaken by the AER within the current and future regulatory control periods.
B10: Instructions:
B11: Reported operating charges and costs must INCLUDE any profit margins or management fees paid directly or indirectly to related party contractors (which is not an actual incurred cost of the related party contractor) for the regulatory reporting period.
B12: Forecast expenditure is to be taken from the 2011-15 distribution determination. This forecast is adjusted using the CPI calculations on the cover sheet.
B13: If allocating based on assumptions then provide method.
B14: All adjustments must be explained with supporting documentation attached.
B16: Table 1 Operating charges and costs
B18: Account code or reference to account code | C18: Description | D18: Audited Statutory Accounts | E18: Adjustments | F18: Distribution Business | G18: Standard Control Services | K18: AMI | L18: Public Lighting - Alternative Control | N18: Other Alternative Control Services | P18: Negotiated Services | Q18: Unregulated Services
C19: Designated Pricing Proposal Charges: | G19: Forecast | H19: Adjusted Forecast | I19: Actual | J19: Difference | L19: Energy efficient | M19: Non-energy efficient | N19: Fee based service | O19: Quoted service
C20: Transmission Connection Fee | D20: 26828.33803 | E20: -26828.33803 | F20: 0 | G20: 0 | H20: =IF(Cover!$E$26=2014,((G20/Cover!$D$48)*Cover!$H$48),((G20/Cover!$D$49)*Cover!$I$49)) -> 0 | I20: 0 | J20: =IF(H20=0,1,((I20-H20)/H20)*1) -> 1 | K20: 0 | L20: 0 | M20: 0 | N20: 0 | O20: 0 | P20: 0 | Q20: 0
C21: Avoided TUoS charges/transmission costs | D21: 1187.19993 | E21: -1187.19993 | F21: 0 | G21: 0 | H21: =IF(Cover!$E$26=2014,((G21/Cover!$D$48)*Cover!$H$48),((G21/Cover!$D$49)*Cover!$I$49)) -> 0 | I21: 0 | J21: =IF(H21=0,1,((I21-H21)/H21)*1) -> 1 | K21: 0 | L21: 0 | M21: 0 | N21: 0 | O21: 0 | P21: 0 | Q21: 0
C22: AEMO shared TUOS Charges | D22: 117487.5225 | E22: -117487.5225 | F22: 0 | G22: 0 | H22: =IF(Cover!$E$26=2014,((G22/Cover!$D$48)*Cover!$H$48),((G22/Cover!$D$49)*Cover!$I$49)) -> 0 | I22: 0 | J22: 1 | K22: 0 | L22: 0 | M22: 0 | N22: 0 | O22: 0 | P22: 0 | Q22: 0
C23: Net Cross Boundary Network Charges | D23: 5812.20403 | E23: -5812.20403 | F23: 0 | G23: 0 | H23: =IF(Cover!$E$26=2014,((G23/Cover!$D$48)*Cover!$H$48),((G23/Cover!$D$49)*Cover!$I$49)) -> 0 | I23: 0 | J23: 1 | K23: 0 | L23: 0 | M23: 0 | N23: 0 | O23: 0 | P23: 0 | Q23: 0
C24: Jurisdictional Scheme Amounts:
C25: Premium Feed In Tariff | D25: 33651.31549 | E25: -33651.31549 | F25: 0 | G25: 0 | H25: =IF(Cover!$E$26=2014,((G25/Cover!$D$48)*Cover!$H$48),((G25/Cover!$D$49)*Cover!$I$49)) -> 0 | I25: 0 | J25: =IF(H25=0,1,((I25-H25)/H25)*1) -> 1 | K25: 0 | L25: 0 | M25: 0 | N25: 0 | O25: 0 | P25: 0 | Q25: 0
C26: Transitional Feed In Tariff | D26: 0 | E26: 0 | F26: 0 | G26: 0 | H26: =IF(Cover!$E$26=2014,((G26/Cover!$D$48)*Cover!$H$48),((G26/Cover!$D$49)*Cover!$I$49)) -> 0 | I26: 0 | J26: 1 | K26: 0 | L26: 0 | M26: 0 | N26: 0 | O26: 0 | P26: 0 | Q26: 0
C27: <insert future jurisdictional scheme payment> | H27: =IF(Cover!$E$26=2014,((G27/Cover!$D$48)*Cover!$H$48),((G27/Cover!$D$49)*Cover!$I$49)) -> 0 | J27: =IF(H27=0,1,((I27-H27)/H27)*1) -> 1
C28: Sub Total | D28: =SUM(D20:D27) -> 184966.58 | E28: -184966.58 | F28: 0 | G28: =SUM(G20:G27) -> 0 | H28: =SUM(H20:H27) -> 0 | I28: 0 | J28: 1 | K28: 0 | L28: 0 | M28: 0 | N28: 0 | O28: 0 | P28: 0 | Q28: 0
C29: Operating Costs
C30: Network Operating Costs | D30: 24484.47484 | E30: -1449.812879 | F30: 23034.66196 | G30: 40413.50843 | H30: =IF(Cover!$E$26=2014,((G30/Cover!$D$48)*Cover!$H$48),((G30/Cover!$D$49)*Cover!$I$49)) -> 44811.98904 | I30: 23034.66033 | J30: =IF(H30=0,1,((I30-H30)/H30)*1) -> -0.4859710353 | K30: 0 | L30: 0 | M30: 0 | N30: 0 | O30: 0 | P30: 0 | Q30: 0
C31: Billing & Revenue Collection | D31: 5630.452942 | E31: 0 | F31: 5630.452942 | G31: 4349.835043 | H31: =IF(Cover!$E$26=2014,((G31/Cover!$D$48)*Cover!$H$48),((G31/Cover!$D$49)*Cover!$I$49)) -> 4823.257565 | I31: 5630.452942 | J31: 0.1673548149 | K31: 0 | L31: 0 | M31: 0 | N31: 0 | O31: 0 | P31: 0 | Q31: 0
C32: Advertising/Marketing | D32: 11.91854098 | E32: 0 | F32: 11.91854098 | G32: 145.6250306 | H32: =IF(Cover!$E$26=2014,((G32/Cover!$D$48)*Cover!$H$48),((G32/Cover!$D$49)*Cover!$I$49)) -> 161.4744061 | I32: 11.91854098 | J32: -0.9261892874 | K32: 0 | L32: 0 | M32: 0 | N32: 0 | O32: 0 | P32: 0 | Q32: 0
C33: Customer Service | D33: 7456.742701 | E33: 0 | F33: 7456.742701 | G33: 5719.244805 | H33: =IF(Cover!$E$26=2014,((G33/Cover!$D$48)*Cover!$H$48),((G33/Cover!$D$49)*Cover!$I$49)) -> 6341.709627 | I33: 7456.742701 | J33: 0.1758253119 | K33: 0 | L33: 0 | M33: 0 | N33: 0 | O33: 0 | P33: 0 | Q33: 0
C34: Regulatory | D34: 0 | E34: 0 | F34: 0 | G34: 0 | H34: =IF(Cover!$E$26=2014,((G34/Cover!$D$48)*Cover!$H$48),((G34/Cover!$D$49)*Cover!$I$49)) -> 0 | I34: 0 | J34: 1 | K34: 0 | L34: 0 | M34: 0 | N34: 0 | O34: 0 | P34: 0 | Q34: 0
C35: Regulatory Reset | D35: 1096.48337 | E35: 0 | F35: 1096.48337 | G35: 2231.231435 | H35: =IF(Cover!$E$26=2014,((G35/Cover!$D$48)*Cover!$H$48),((G35/Cover!$D$49)*Cover!$I$49)) -> 2474.071727 | I35: 1096.48337 | J35: -0.5568101935 | K35: 0 | L35: 0 | M35: 0 | N35: 0 | O35: 0 | P35: 0 | Q35: 0
C36: IT | D36: 0 | E36: 0 | F36: 0 | G36: 0 | H36: =IF(Cover!$E$26=2014,((G36/Cover!$D$48)*Cover!$H$48),((G36/Cover!$D$49)*Cover!$I$49)) -> 0 | I36: 0 | J36: 1 | K36: 0 | L36: 0 | M36: 0 | N36: 0 | O36: 0 | P36: 0 | Q36: 0
C37: Licence fee | D37: 18.15425 | E37: 0 | F37: 18.15425 | G37: 0 | H37: =IF(Cover!$E$26=2014,((G37/Cover!$D$48)*Cover!$H$48),((G37/Cover!$D$49)*Cover!$I$49)) -> 0 | I37: 18.15425 | J37: 1 | K37: 0 | L37: 0 | M37: 0 | N37: 0 | O37: 0 | P37: 0 | Q37: 0
C38: GSL payments | D38: 2116.680034 | E38: 0 | F38: 2116.680034 | G38: 1062.431496 | H38: =IF(Cover!$E$26=2014,((G38/Cover!$D$48)*Cover!$H$48),((G38/Cover!$D$49)*Cover!$I$49)) -> 1178.063237 | I38: 2116.680034 | J38: 0.7967456814 | K38: 0 | L38: 0 | M38: 0 | N38: 0 | O38: 0 | P38: 0 | Q38: 0
C39: Non-network alternatives costs | D39: 0 | E39: 0 | F39: 0 | G39: 0 | H39: =IF(Cover!$E$26=2014,((G39/Cover!$D$48)*Cover!$H$48),((G39/Cover!$D$49)*Cover!$I$49)) -> 0 | I39: 0 | J39: 1 | K39: 0 | L39: 0 | M39: 0 | N39: 0 | O39: 0 | P39: 0 | Q39: 0
C40: Debt raising costs | D40: 0 | E40: 230.0682476 | F40: 230.0682476 | G40: 1406.684968 | H40: =IF(Cover!$E$26=2014,((G40/Cover!$D$48)*Cover!$H$48),((G40/Cover!$D$49)*Cover!$I$49)) -> 1559.784186 | I40: 230.0682476 | J40: -0.8524999486 | K40: 0 | L40: 0 | M40: 0 | N40: 0 | O40: 0 | P40: 0 | Q40: 0
C41: Other - Standard Control Services | D41: 239281.978 | E41: -233153.109 | F41: 6128.868993 | G41: 7472.078216 | H41: =IF(Cover!$E$26=2014,((G41/Cover!$D$48)*Cover!$H$48),((G41/Cover!$D$49)*Cover!$I$49)) -> 8285.315978 | I41: 6128.868993 | J41: -0.2602733548 | K41: 0 | L41: 0 | M41: 0 | N41: 0 | O41: 0 | P41: 0 | Q41: 0
C42: AMI | D42: 16462.05807 | E42: 26.79952913 | F42: 16488.8576 | G42: 0 | H42: =IF(Cover!$E$26=2014,((G42/Cover!$D$48)*Cover!$H$48),((G42/Cover!$D$49)*Cover!$I$49)) -> 0 | I42: 0 | J42: 1 | K42: 16488.8576 | L42: 0 | M42: 0 | N42: 0 | O42: 0 | P42: 0 | Q42: 0
C43: Public Lighting | D43: 199.0643098 | E43: 1.597943257 | F43: 200.6622531 | G43: 0 | H43: =IF(Cover!$E$26=2014,((G43/Cover!$D$48)*Cover!$H$48),((G43/Cover!$D$49)*Cover!$I$49)) -> 0 | I43: 0 | J43: 1 | K43: 0 | L43: 33.26202055 | M43: 167.4002325 | N43: 0 | O43: 0 | P43: 0 | Q43: 0
C44: Alternative control -other | D44: 17190.11703 | E44: 0 | F44: 17190.11703 | G44: 0 | H44: =IF(Cover!$E$26=2014,((G44/Cover!$D$48)*Cover!$H$48),((G44/Cover!$D$49)*Cover!$I$49)) -> 0 | I44: 0 | J44: 1 | K44: 0 | L44: 0 | M44: 0 | N44: 12631.83976 | O44: 4558.27727 | P44: 0 | Q44: 0
C45: Negotiated services | D45: 0 | E45: 0 | F45: 0 | G45: 0 | H45: =IF(Cover!$E$26=2014,((G45/Cover!$D$48)*Cover!$H$48),((G45/Cover!$D$49)*Cover!$I$49)) -> 0 | I45: 0 | J45: 1 | K45: 0 | L45: 0 | M45: 0 | N45: 0 | O45: 0 | P45: 0 | Q45: 0
C46: Sub Total | D46: =SUM(D30:D45) -> 313948.1241 | E46: -234344.4561 | F46: 79603.66791 | G46: =SUM(G30:G45) -> 62800.63942 | H46: =SUM(H30:H45) -> 69635.66576 | I46: =SUM(I30:I45) -> 45724.02941 | J46: =IF(H46=0,1,((I46-H46)/H46)*1) -> -0.3433820312 | K46: 16488.8576 | L46: 33.26202055 | M46: 167.4002325 | N46: 12631.83976 | O46: 4558.27727 | P46: 0 | Q46: 0
C47: Unregulated services | D47: 0 | E47: 0 | F47: 0 | G47: 0 | H47: =IF(Cover!$E$26=2014,((G47/Cover!$D$48)*Cover!$H$48),((G47/Cover!$D$49)*Cover!$I$49)) -> 0 | I47: 0 | J47: 1 | K47: 0 | L47: 0 | M47: 0 | N47: 0 | O47: 0 | P47: 0 | Q47: 0
C48: Total | D48: =SUM(D28, D46:D47) -> 498914.7041 | E48: -419311.0362 | F48: 79603.66791 | G48: 62800.63942 | H48: 69635.66576 | I48: 45724.02941 | J48: -0.3433820312 | K48: =SUM(K28, K46:K47) -> 16488.8576 | L48: 33.26202055 | M48: 167.4002325 | N48: 12631.83976 | O48: 4558.27727 | P48: 0 | Q48: 0
B50: Table 2: Explanation of material difference
B52: Where the difference between forecast and actual expenditure shown in table 1, column J is greater than ±10 per cent, please explain the main factors driving the difference.
B54: Category | C54: Explanation
B55: Network Operating Costs | C55: Expenditure reported against network operating is significantly lower than forecast due to factors including: 1. Changes in internal costing attributing more expenditure directly to maintenance activities. 2. Underspend on certain step changes approved for the current regulatory period. 3. Shared resources arrangements with CitiPower more reflecting work performed (higher opex in CitiPower). 4. Efficencies achieved throughout the period. | D55: 0 | E55: 0 | F55: 0
B56: Billing & Revenue Collection | C56: Impact of internal mapping of expenditure. Sum of Billing & Revenue, Advertising, Customer Service & Other - Standard Control Services is in line with forecast. | D56: 0 | E56: 0 | F56: 0
B57: Advertising/Marketing | C57: Impact of internal mapping of expenditure. Sum of Billing & Revenue, Advertising, Customer Service & Other - Standard Control Services is in line with forecast. | D57: 0 | E57: 0 | F57: 0
B58: Customer Service | C58: Impact of internal mapping of expenditure. Sum of Billing & Revenue, Advertising, Customer Service & Other - Standard Control Services is in line with forecast. | D58: 0 | E58: 0 | F58: 0
B59: Regulatory Reset | C59: Lower incremental expenditure due to reduced use of external consultancies. Efficiencies through internalisation. | D59: 0 | E59: 0 | F59: 0
B60: GSL payments | C60: Reflect payments made in accordance with regulatory obligations to customers. Volatile by nature from year to year. Allowance calculated by an average over time. | D60: 0 | E60: 0 | F60: 0
B61: Debt raising costs | C61: Costs incurred by a higher entity and not against the distribution business entity. | D61: 0 | E61: 0 | F61: 0
B62: Other - Standard Control Services | C62: Impact of internal mapping of expenditure. Sum of Billing & Revenue, Advertising, Customer Service & Other - Standard Control Services is in line with forecast. | D62: 0 | E62: 0 | F62: 0
B64: Table 3: Other network operating costs
B66: Note: List any items included in "other - standard control services' which are more than 5 per cent of the total standard control services operating costs.
B68: Statutory Account code or reference to account code | C68: Description | D68: Audited statutory accounts | E68: Adjustments | F68: Distribution business | G68: Standard Control Services
C69: N/A | D69: 0 | E69: 0 | F69: 0 | G69: 0
C70: N/A | D70: 0 | E70: 0 | F70: 0 | G70: 0
C71: N/A | D71: 0 | E71: 0 | F71: 0 | G71: 0
C72: N/A | D72: 0 | E72: 0 | F72: 0 | G72: 0
C73: N/A | D73: 0 | E73: 0 | F73: 0 | G73: 0
C74: N/A | D74: 0 | E74: 0 | F74: 0 | G74: 0
B76: Table 4 Operating Expenditure - Non-Recurrent Network Operating Costs
B78: Note: List any items that are more than 5 per cent of the total standard control services operating costs.
B80: Statutory Account code or reference to account code | C80: Description | D80: Audited Statutory Financial Statements | E80: Adjustments | F80: Distribution business | G80: Standard Control Services
C81: N/A | D81: 0 | E81: 0 | F81: 0 | G81: 0
C82: N/A | D82: 0 | E82: 0 | F82: 0 | G82: 0
C83: N/A | D83: 0 | E83: 0 | F83: 0 | G83: 0
C84: N/A | D84: 0 | E84: 0 | F84: 0 | G84: 0
C85: N/A | D85: 0 | E85: 0 | F85: 0 | G85: 0
B88: Definitions
B89: Operating expenditure categories are as defined in the 2011-15 Distribution determination
B90: Forecast | C90: The forecast expenditure derived for the 2011-2015 Distribution determination.
B91: Adjusted Forecast | C91: The forecast adjusted to be in equivalent dollar terms to the actual expenditure for the relevant regulatory year
B92: Actual | C92: The expenditure reported for the relevant regulatory year.
B93: ABS CPI | C93: ABS CPI (Pub No: 6401.0, All groups, 8 Capital Cities, September)

Sheet 8b. Operating Activities (M)
B1: =Cover!E22 -> Powercor Australia Ltd
B2: Operating Activities - margin
B3: =Cover!E26 -> 2014
E4: Colour coding:
B5: Dollar unit used in this sheet | E5: Yellow = Input cells
B6: nominal $'000 | E6: Grey = No inputs required
B8: This information is necessary for monitoring operating activities, and will be used to inform the AER’s assessment of operating costs and its underlying drivers at the next reset. It will also be used to assist in any comparative analysis undertaken by the AER within the current and future regulatory control periods.
B10: Instructions:
B11: Reported expenditure must ONLY INCLUDE profit margins or management fees paid directly or indirectly to related party contractors (which is not an actual incurred cost of the related party contractor) for the regulatory reporting period.
B12: Forecast expenditure is to be taken from the 2011-15 distribution determination. This forecast is adjusted using the CPI calculations on the cover sheet.
B13: If allocating based on assumptions then provide method.
B14: All adjustments must be explained with supporting documentation attached.
B16: Table 1 Operating charges and costs
B18: Account code or reference to account code | C18: Description | D18: Audited Statutory Accounts | E18: Adjustments | F18: Distribution Business | G18: Standard Control Services | K18: AMI | L18: Public Lighting - Alternative Control | N18: Other Alternative Control Services | P18: Negotiated Services | Q18: Unregulated Services
C19: Designated Pricing Proposal Charges: | G19: Forecast | H19: Adjusted Forecast | I19: Actual | J19: Difference | L19: Energy efficient | M19: Non efficient | N19: Fee based service | O19: Quoted service
C20: Transmission Connection Fee | D20: 0 | E20: 0 | F20: 0 | G20: 0 | H20: =IF(Cover!$E$26=2014,((G20/Cover!$D$48)*Cover!$H$48),((G20/Cover!$D$49)*Cover!$I$49)) -> 0 | I20: 0 | J20: =IF(H20=0,1,((I20-H20)/H20)*1) -> 1 | K20: 0 | L20: 0 | M20: 0 | N20: 0 | O20: 0 | P20: 0 | Q20: 0
C21: Avoided TUoS charges/transmission costs | D21: 0 | E21: 0 | F21: 0 | G21: 0 | H21: =IF(Cover!$E$26=2014,((G21/Cover!$D$48)*Cover!$H$48),((G21/Cover!$D$49)*Cover!$I$49)) -> 0 | I21: 0 | J21: =IF(H21=0,1,((I21-H21)/H21)*1) -> 1 | K21: 0 | L21: 0 | M21: 0 | N21: 0 | O21: 0 | P21: 0 | Q21: 0
C22: AEMO shared TUOS Charges | D22: 0 | E22: 0 | F22: 0 | G22: 0 | H22: =IF(Cover!$E$26=2014,((G22/Cover!$D$48)*Cover!$H$48),((G22/Cover!$D$49)*Cover!$I$49)) -> 0 | I22: 0 | J22: 1 | K22: 0 | L22: 0 | M22: 0 | N22: 0 | O22: 0 | P22: 0 | Q22: 0
C23: Net Cross Boundary Network Charges | D23: 0 | E23: 0 | F23: 0 | G23: 0 | H23: =IF(Cover!$E$26=2014,((G23/Cover!$D$48)*Cover!$H$48),((G23/Cover!$D$49)*Cover!$I$49)) -> 0 | I23: 0 | J23: 1 | K23: 0 | L23: 0 | M23: 0 | N23: 0 | O23: 0 | P23: 0 | Q23: 0
C24: Jurisdictional Scheme Amounts:
C25: Premium Feed In Tariff | D25: 0 | E25: 0 | F25: 0 | G25: 0 | H25: =IF(Cover!$E$26=2014,((G25/Cover!$D$48)*Cover!$H$48),((G25/Cover!$D$49)*Cover!$I$49)) -> 0 | I25: 0 | J25: =IF(H25=0,1,((I25-H25)/H25)*1) -> 1 | K25: 0 | L25: 0 | M25: 0 | N25: 0 | O25: 0 | P25: 0 | Q25: 0
C26: Transitional Feed In Tariff | D26: 0 | E26: 0 | F26: 0 | G26: 0 | H26: =IF(Cover!$E$26=2014,((G26/Cover!$D$48)*Cover!$H$48),((G26/Cover!$D$49)*Cover!$I$49)) -> 0 | I26: 0 | J26: 1 | K26: 0 | L26: 0 | M26: 0 | N26: 0 | O26: 0 | P26: 0 | Q26: 0
C27: <insert future jurisdictional scheme payment> | H27: =IF(Cover!$E$26=2014,((G27/Cover!$D$48)*Cover!$H$48),((G27/Cover!$D$49)*Cover!$I$49)) -> 0 | J27: =IF(H27=0,1,((I27-H27)/H27)*1) -> 1
C28: Sub Total | D28: =SUM(D20:D27) -> 0 | E28: 0 | F28: 0 | G28: 0 | H28: =SUM(H20:H27) -> 0 | I28: 0 | J28: 1 | K28: 0 | L28: 0 | M28: 0 | N28: 0 | O28: 0 | P28: 0 | Q28: 0
C29: Operating Costs
C30: Network Operating Costs | D30: 0 | E30: 393.3276423 | F30: 393.3276423 | G30: 0 | H30: =IF(Cover!$E$26=2014,((G30/Cover!$D$48)*Cover!$H$48),((G30/Cover!$D$49)*Cover!$I$49)) -> 0 | I30: 393.3276423 | J30: =IF(H30=0,1,((I30-H30)/H30)*1) -> 1 | K30: 0 | L30: 0 | M30: 0 | N30: 0 | O30: 0 | P30: 0 | Q30: 0
C31: Billing & Revenue Collection | D31: 0 | E31: 604.0884999 | F31: 604.0884999 | G31: 0 | H31: =IF(Cover!$E$26=2014,((G31/Cover!$D$48)*Cover!$H$48),((G31/Cover!$D$49)*Cover!$I$49)) -> 0 | I31: 604.0884999 | J31: 1 | K31: 0 | L31: 0 | M31: 0 | N31: 0 | O31: 0 | P31: 0 | Q31: 0
C32: Advertising/Marketing | D32: 0 | E32: -62.04600124 | F32: -62.04600124 | G32: 0 | H32: =IF(Cover!$E$26=2014,((G32/Cover!$D$48)*Cover!$H$48),((G32/Cover!$D$49)*Cover!$I$49)) -> 0 | I32: -62.04600124 | J32: 1 | K32: 0 | L32: 0 | M32: 0 | N32: 0 | O32: 0 | P32: 0 | Q32: 0
C33: Customer Service | D33: 0 | E33: 1967.946121 | F33: 1967.946121 | G33: 0 | H33: =IF(Cover!$E$26=2014,((G33/Cover!$D$48)*Cover!$H$48),((G33/Cover!$D$49)*Cover!$I$49)) -> 0 | I33: 1967.946121 | J33: 1 | K33: 0 | L33: 0 | M33: 0 | N33: 0 | O33: 0 | P33: 0 | Q33: 0
C34: Regulatory | D34: 0 | E34: 0 | F34: 0 | G34: 0 | H34: =IF(Cover!$E$26=2014,((G34/Cover!$D$48)*Cover!$H$48),((G34/Cover!$D$49)*Cover!$I$49)) -> 0 | I34: 0 | J34: 1 | K34: 0 | L34: 0 | M34: 0 | N34: 0 | O34: 0 | P34: 0 | Q34: 0
C35: Regulatory Reset | D35: 0 | E35: 0 | F35: 0 | G35: 0 | H35: =IF(Cover!$E$26=2014,((G35/Cover!$D$48)*Cover!$H$48),((G35/Cover!$D$49)*Cover!$I$49)) -> 0 | I35: 0 | J35: 1 | K35: 0 | L35: 0 | M35: 0 | N35: 0 | O35: 0 | P35: 0 | Q35: 0
C36: IT | D36: 0 | E36: 0 | F36: 0 | G36: 0 | H36: =IF(Cover!$E$26=2014,((G36/Cover!$D$48)*Cover!$H$48),((G36/Cover!$D$49)*Cover!$I$49)) -> 0 | I36: 0 | J36: 1 | K36: 0 | L36: 0 | M36: 0 | N36: 0 | O36: 0 | P36: 0 | Q36: 0
C37: Licence fee | D37: 0 | E37: 0 | F37: 0 | G37: 0 | H37: =IF(Cover!$E$26=2014,((G37/Cover!$D$48)*Cover!$H$48),((G37/Cover!$D$49)*Cover!$I$49)) -> 0 | I37: 0 | J37: 1 | K37: 0 | L37: 0 | M37: 0 | N37: 0 | O37: 0 | P37: 0 | Q37: 0
C38: GSL payments | D38: 0 | E38: 0 | F38: 0 | G38: 0 | H38: =IF(Cover!$E$26=2014,((G38/Cover!$D$48)*Cover!$H$48),((G38/Cover!$D$49)*Cover!$I$49)) -> 0 | I38: 0 | J38: 1 | K38: 0 | L38: 0 | M38: 0 | N38: 0 | O38: 0 | P38: 0 | Q38: 0
C39: Non-network alternatives costs | D39: 0 | E39: 0 | F39: 0 | G39: 0 | H39: =IF(Cover!$E$26=2014,((G39/Cover!$D$48)*Cover!$H$48),((G39/Cover!$D$49)*Cover!$I$49)) -> 0 | I39: 0 | J39: 1 | K39: 0 | L39: 0 | M39: 0 | N39: 0 | O39: 0 | P39: 0 | Q39: 0
C40: Debt raising costs | D40: 0 | E40: 0 | F40: 0 | G40: 0 | H40: =IF(Cover!$E$26=2014,((G40/Cover!$D$48)*Cover!$H$48),((G40/Cover!$D$49)*Cover!$I$49)) -> 0 | I40: 0 | J40: 1 | K40: 0 | L40: 0 | M40: 0 | N40: 0 | O40: 0 | P40: 0 | Q40: 0
C41: Other - Standard Control Services (a,b) | D41: 0 | E41: 1153.782759 | F41: 1153.782759 | G41: 0 | H41: =IF(Cover!$E$26=2014,((G41/Cover!$D$48)*Cover!$H$48),((G41/Cover!$D$49)*Cover!$I$49)) -> 0 | I41: 1153.782759 | J41: 1 | K41: 0 | L41: 0 | M41: 0 | N41: 0 | O41: 0 | P41: 0 | Q41: 0
C42: AMI | D42: 0 | E42: 1534.023935 | F42: 1534.023935 | G42: 0 | H42: =IF(Cover!$E$26=2014,((G42/Cover!$D$48)*Cover!$H$48),((G42/Cover!$D$49)*Cover!$I$49)) -> 0 | I42: 0 | J42: 1 | K42: 1534.023935 | L42: 0 | M42: 0 | N42: 0 | O42: 0 | P42: 0 | Q42: 0
C43: Public Lighting | D43: 0 | E43: 47.29909302 | F43: 47.29909302 | G43: 0 | H43: =IF(Cover!$E$26=2014,((G43/Cover!$D$48)*Cover!$H$48),((G43/Cover!$D$49)*Cover!$I$49)) -> 0 | I43: 0 | J43: 1 | K43: 0 | L43: 7.840355507 | M43: 39.45873751 | N43: 0 | O43: 0 | P43: 0 | Q43: 0
C44: Alternative control -other | D44: 0 | E44: 1024.793304 | F44: 1024.793304 | G44: 0 | H44: =IF(Cover!$E$26=2014,((G44/Cover!$D$48)*Cover!$H$48),((G44/Cover!$D$49)*Cover!$I$49)) -> 0 | I44: 0 | J44: 1 | K44: 0 | L44: 0 | M44: 0 | N44: 837.0033165 | O44: 187.7899877 | P44: 0 | Q44: 0
C45: Negotiated services | D45: 0 | E45: 0 | F45: 0 | G45: 0 | H45: =IF(Cover!$E$26=2014,((G45/Cover!$D$48)*Cover!$H$48),((G45/Cover!$D$49)*Cover!$I$49)) -> 0 | I45: 0 | J45: 1 | K45: 0 | L45: 0 | M45: 0 | N45: 0 | O45: 0 | P45: 0 | Q45: 0
C46: Sub Total | D46: =SUM(D30:D45) -> 0 | E46: 6663.215354 | F46: 6663.215354 | G46: 0 | H46: =SUM(H30:H45) -> 0 | I46: =SUM(I30:I45) -> 4057.099022 | J46: =IF(H46=0,1,((I46-H46)/H46)*1) -> 1 | K46: =SUM(K30:K45) -> 1534.023935 | L46: 7.840355507 | M46: 39.45873751 | N46: 837.0033165 | O46: 187.7899877 | P46: 0 | Q46: 0
C47: Unregulated services | D47: 0 | E47: 0 | F47: 0 | G47: 0 | H47: =IF(Cover!$E$26=2014,((G47/Cover!$D$48)*Cover!$H$48),((G47/Cover!$D$49)*Cover!$I$49)) -> 0 | I47: 0 | J47: 1 | K47: 0 | L47: 0 | M47: 0 | N47: 0 | O47: 0 | P47: 0 | Q47: 0
C48: Total | D48: =SUM(D28, D46:D47) -> 0 | E48: 6663.215354 | F48: 6663.215354 | G48: 0 | H48: 0 | I48: 4057.099022 | J48: 1 | K48: =SUM(K28, K46:K47) -> 1534.023935 | L48: 7.840355507 | M48: 39.45873751 | N48: 837.0033165 | O48: 187.7899877 | P48: 0 | Q48: 0
B50: Table 2: Explanation of material difference
B52: Where the difference between forecast and actual expenditure shown in table 1, column J is greater than ±10 per cent, please explain the main factors driving the difference.
B54: Category | C54: Explanation
C55: N/A
C56: N/A
C57: N/A
B59: Table 3 Operating costs - Other standard control services
B61: Note: List any items included in "other - standard control services' which are more than 5 per cent of the total standard control services operating costs
B63: Statutory Account code or reference to account code | C63: Description | D63: Audited Statutory Accounts | E63: Adjustments | F63: Distribution Business | G63: Standard Control Services
C64: N/A | D64: 0 | E64: 0 | F64: 0 | G64: 0
C65: N/A | D65: 0 | E65: 0 | F65: 0 | G65: 0
C66: N/A | D66: 0 | E66: 0 | F66: 0 | G66: 0
C67: N/A | D67: 0 | E67: 0 | F67: 0 | G67: 0
C68: N/A | D68: 0 | E68: 0 | F68: 0 | G68: 0
C69: N/A | D69: 0 | E69: 0 | F69: 0 | G69: 0
C70: N/A | D70: 0 | E70: 0 | F70: 0 | G70: 0
B72: Table 3 Operating Expenditure - Non-Recurrent Network Operating Costs
B74: Note: List any non-recurrent cost items included in "network operating costs" that are more than 5 per cent of the total standard control services operating costs.
B76: Statutory Account code or reference to account code | C76: Description | D76: Audited Statutory Accounts | E76: Adjustments | F76: Distribution Business | G76: Standard Control Services
C77: N/A | D77: 0 | E77: 0 | F77: 0 | G77: 0
C78: N/A | D78: 0 | E78: 0 | F78: 0 | G78: 0
C79: N/A | D79: 0 | E79: 0 | F79: 0 | G79: 0
C80: N/A | D80: 0 | E80: 0 | F80: 0 | G80: 0
C81: N/A | D81: 0 | E81: 0 | F81: 0 | G81: 0
C82: N/A | D82: 0 | E82: 0 | F82: 0 | G82: 0
C83: N/A | D83: 0 | E83: 0 | F83: 0 | G83: 0
B85: Definitions
B86: Operating activities are as defined in Appndix G of the RIN, or the 2011-15 distribution determination

Sheet 13. Avoided Cost Payments
B1: =Cover!E22 -> Powercor Australia Ltd | D1: Colour coding:
B2: Avoided Cost Payments | D2: Yellow = Input cells
B3: =Cover!E26 -> 2014 | D3: Grey = No inputs required
B5: Dollar unit used in this sheet
B6: nominal $'000
B8: This information is necessary for monitoring avoided cost payments, and will be used to inform the AER’s assessment of expenditure and its underlying drivers at the next reset. It will also be used to assist in any comparative analysis undertaken by the AER within the current and future regulatory control periods.
B10: Statutory Account code or reference to account code | C10: Description | D10: Avoided Cost Payment | E10: Number of Projects
C11: Deferral of Augmentation to Transmission Networks
C12: Embedded generators | D12: 1187.19993 | E12: 14
C13: Related party embedded generators | D13: 0 | E13: 0
C14: Customers | D14: 0 | E14: 0
C15: Avoided TUOS | D15: 0 | E15: 0
C16: Sub Total | D16: =SUM(D12:D15) -> 1187.19993 | E16: =SUM(E12:E15) -> 14
C17: Deferral of Augmentation to Distribution Networks
C18: Embedded generators | D18: 0 | E18: 0
C19: Related party embedded generators | D19: 0 | E19: 0
C20: Customers | D20: 0 | E20: 0
C21: Sub Total | D21: =SUM(D18:D20) -> 0 | E21: =SUM(E18:E20) -> 0
C22: TOTAL | D22: =D21+D16 -> 1187.19993 | E22: =E21+E16 -> 14
B24: Definition
B25: Avoided cost payments | C25: The payments made by Powercor to represent costs that Powercor would have incurred in the provision of distribution services, but for the actions of another party, which may include a Related Party, embedded generator, third party or customer.
B26: Embedded generators | C26: A person that owns, controls or operates an embedded generating unit.
B27: Related party embedded generators | C27: A related party that owns, controls or operates an embedded generating unit.
B28: Customers | C28: A Distribution Customer (with active and/or inactive accounts) with an active National Metering Identifier (NMI).
B29: Avoided TUOS | C29: Cost of using another distribution network service provider’s distribution network.

Sheet 14. Alt Control&Others
B1: =Cover!E22 -> Powercor Australia Ltd | E1: Colour coding:
B2: Alternative Control Services and Other Services | E2: Yellow = Input cells
B3: =Cover!E26 -> 2014 | E3: Grey = No inputs required
B4: Dollar unit used in this sheet
B5: nominal $'000
B7: This information is necessary for monitoring Alternative control & other services, and will be used to inform the AER’s assessment of expenditure and its underlying drivers at the next reset. It will also be used to assist in any comparative analysis undertaken by the AER within the current and future regulatory control periods.
B10: Statutory Account code or reference to account code | C10: Description | D10: Direct O&M Costs | E10: Indirect O&M costs | F10: Direct Capex | G10: Indirect Capex | H10: Total expenditure | I10: Revenue
C11: Alternative Control Services - Fee Based
C12: Meter investigation | D12: 41.00141164 | E12: 6.800055322 | F12: 0 | G12: 0 | H12: =SUM(D12:G12) -> 47.80146696 | I12: -129.06872
C13: Meter Testing | D13: 168.1251284 | E13: 27.88343446 | F13: 0 | G13: 0 | H13: =SUM(D13:G13) -> 196.0085628 | I13: -122.42073
C14: De-energisation of existing connections | D14: 1076.452613 | E14: 34.46712714 | F14: 0 | G14: 0 | H14: 1110.91974 | I14: -1159.001444
C15: Energisation of existing connections | D15: 1745.719651 | E15: 55.89650716 | F15: 0 | G15: 0 | H15: 1801.616158 | I15: -1879.591887
C16: Special meter reading | D16: 56.57511496 | E16: 1.811488641 | F16: 0 | G16: 0 | H16: 58.3866036 | I16: -60.91363353
C17: Re-test of type 5 and 6 metering installations for first tier customers with annual consumption greater than 160 MWh | D17: 0 | E17: 0 | F17: 0 | G17: 0 | H17: 0 | I17: 0
C18: Operation, repair, replacement and maintenance of DNSP public lighting assets | D18: 5907.603846 | E18: 1022.919647 | F18: 4478.127041 | G18: 554.0745165 | H18: 11962.72505 | I18: -9305.02486
C19: Fault response - not DNSP fault | D19: 0 | E19: 0 | F19: 0 | G19: 0 | H19: 0 | I19: 0
C20: Temporary disconnect/reconnect services | D20: 0 | E20: 0 | F20: 0 | G20: 0 | H20: 0 | I20: 0
C21: Wasted attendance - not DNSP fault | D21: 98.14094172 | E21: 16.47546808 | F21: 0 | G21: 0 | H21: 114.6164098 | I21: -124.4878
C22: Service truck visits | D22: 2934.700969 | E22: 481.8759196 | F22: 0 | G22: 0 | H22: 3416.576888 | I22: -3392.15554
C23: Reserve feeder | D23: 200.4284644 | E23: 6.417554554 | F23: 0 | G23: 0 | H23: 206.846019 | I23: -302.40355
C24: PV installation | D24: 2225.380082 | E24: 71.25483959 | F24: 0 | G24: 0 | H24: 2296.634922 | I24: -2600.488943
C25: Routine connections - customers below 100 amps | D25: 4963.614405 | E25: 852.3574298 | F25: 0 | G25: 0 | H25: 5815.971834 | I25: -6617.49743
C26: Temporary supply services | D26: 0 | E26: 0 | F26: 0 | G26: 0 | H26: 0 | I26: 0
C27: Remote meter re-configuration | D27: 0 | E27: 0 | F27: 0 | G27: 0 | H27: 0 | I27: 0
C28: Remote de-energisation | D28: 0 | E28: 0 | F28: 0 | G28: 0 | H28: 0 | I28: 0
C29: Remote re-energisation | D29: 0 | E29: 0 | F29: 0 | G29: 0 | H29: 0 | I29: 0
C30: Total fee based alternative control services | D30: =SUM(D12:D29) -> 19417.74263 | E30: 2578.159471 | F30: 4478.127041 | G30: 554.0745165 | H30: 27028.10365 | I30: -25693.05454
C31: Alternative Control Services - Quoted
C32: Rearrangement of network assets at customer request, excluding alteration and relocation of existing public lighting assets | D32: 0 | E32: 0 | F32: 0 | G32: 0 | H32: =SUM(D32:G32) -> 0 | I32: 0
C33: Supply enhancement at customer request | D33: 0 | E33: 0 | F33: 0 | G33: 0 | H33: 0 | I33: 0
C34: Supply abolishment | D34: 503.3396077 | E34: 85.23612511 | F34: 0 | G34: 0 | H34: 588.5757328 | I34: -663.15486
C35: Emergency recoverable works (that is, emergency works where customer is at fault and immediate action needs to be taken by the DNSP) | D35: 1564.86746 | E35: 239.919164 | F35: 0 | G35: 0 | H35: 1804.786624 | I35: -1433.18863
C36: Auditing of design and construction | D36: 887.9027224 | E36: 140.2133459 | F36: 0 | G36: 0 | H36: 1028.116068 | I36: -809.05508
C37: Specification and design enquiry fees | D37: 1463.390788 | E37: 231.0916653 | F37: 0 | G37: 0 | H37: 1694.482453 | I37: -1084.90846
C38: Elective underground service where an existing overhead service exists | D38: 0 | E38: 0 | F38: 0 | G38: 0 | H38: 0 | I38: 0
C39: Damage to overhead service cables pulled down by high load vehicles | D39: 0 | E39: 0 | F39: 0 | G39: 0 | H39: 0 | I39: 0
C40: High load escorts—lifting overhead lines | D40: 19.86345053 | E40: 3.114565606 | F40: 0 | G40: 0 | H40: 22.97801614 | I40: -20.40578
C41: Covering of low voltage mains for safety reasons | D41: 398.0341868 | E41: 62.41129084 | F41: 0 | G41: 0 | H41: 460.4454776 | I41: -406.27961
C42: Routine connections, for customers > 100amps | D42: 0 | E42: 0 | F42: 0 | G42: 0 | H42: 0 | I42: 0
C43: After hours truck by appointment | D43: 8.124624652 | E43: 1.373846041 | F43: 0 | G43: 0 | H43: 9.498470693 | I43: -24.00615
C44: Total quoted alternative control services | D44: =SUM(D32:D43) -> 4845.52284 | E44: =SUM(E32:E43) -> 763.3600029 | F44: =SUM(F32:F43) -> 0 | G44: 0 | H44: 5608.882842 | I44: -4440.99857
C45: Other Activities - Non Regulated
C46: Pole, Duct, Fibre & Property Rental | D46: 0 | E46: 0 | F46: 0 | G46: 0 | I46: -3302.70329
D47: 0 | E47: 0 | F47: 0 | G47: 0 | I47: 0
C48: [other activities to be listed and aggregate total reported] | D48: 0 | E48: 0 | F48: 0 | G48: 0 | H48: =SUM(D48:G48) -> 0 | I48: 0
C49: Total non - regulated | D49: =SUM(D48:D48) -> 0 | E49: =SUM(E48:E48) -> 0 | F49: =SUM(F48:F48) -> 0 | G49: =SUM(G48:G48) -> 0 | H49: =SUM(D49:G49) -> 0 | I49: =SUM(I46:I48) -> -3302.70329
C50: TOTAL | D50: =SUM(D30,D44,D49) -> 24263.26547 | E50: =SUM(E30,E44,E49) -> 3341.519474 | F50: 4478.127041 | G50: 554.0745165 | H50: 32636.9865 | I50: -33436.7564
C51: Public Lighting (amounts also included above)
C52: Efficient luminaires | D52: 979.2518694 | E52: 169.5604438 | F52: 678.7511046 | G52: 83.98124632 | H52: =SUM(D52:G52) -> 1911.544664 | I52: -1661.171746
C53: Non-energy efficient luminaires | D53: 4928.351977 | E53: 853.3592027 | F53: 3799.375937 | G53: 470.0932702 | H53: =SUM(D53:G53) -> 10051.18039 | I53: -7643.853114
C54: Total public lighting | D54: =SUM(D52:D53) -> 5907.603846 | E54: =SUM(E52:E53) -> 1022.919647 | F54: =SUM(F52:F53) -> 4478.127041 | G54: =SUM(G52:G53) -> 554.0745165 | H54: =SUM(D54:G54) -> 11962.72505 | I54: =SUM(I52:I53) -> -9305.02486
B58: Definitions
B59: Alternative control services are as defined in Powercor's approved CAM.

Sheet 15. EBSS
B1: =Cover!E22 -> Powercor Australia Ltd
B2: Efficiency Benefits Sharing Schemes
B3: =Cover!E26 -> 2014
D4: Colour coding:
B5: Dollar unit used in this sheet | D5: Yellow = Input cells
B6: nominal $'000 | D6: Grey = No inputs required
B8: EBSS information is used by the AER to monitor EBSS scheme throughout the regulatory control period.
B11: Table 1 Opex for EBSS Purposes
B13: Note: a) Only superannuation costs related to defined benefit schemes are to be reported
B14: b) Only self insurance cost categories approved in the AER's determination are to be reported
B16: Total Actual Opex | C16: ='6a. Maintenance - total '!I31+'8a. Operating Activities (T)'!I48 -> 175591.3483
B17: Debt raising costs | C17: 230.0682476
B18: Self insurance | C18: 0
B19: Superannuation defined benefit schemes | C19: 4162
B20: Non network alternatives costs | C20: 0
B21: DMIA costs | C21: 230.6141137
B22: Pass through event costs | C22: 2965.909555
B23: GSL payments | C23: 2116.680034
B24: Total opex adjustment for EBSS purposes | C24: =SUM(C17:C23) -> 9705.27195
B25: Total opex for EBSS purposes | C25: =C16-C24 -> 165886.0764
B27: Note: Total opex for EBSS purposes has not been adjusted for movement in provisions
B29: Table 2 Explanation of Capitalisation Policy Changes
B31: Note: This should include a description of any items that have previously been considered as opex items, but are now being considered capex items.
B33: Capitalisation Policy Change | C33: Impact on forecast opex | D33: Description
B34: 0 | C34: 0 | D34: 0 | E34: 0 | F34: 0 | G34: 0 | H34: 0 | I34: 0 | J34: 0 | K34: 0
B35: 0 | C35: 0 | D35: 0 | E35: 0 | F35: 0 | G35: 0 | H35: 0 | I35: 0 | J35: 0 | K35: 0
B36: 0 | C36: 0 | D36: 0 | E36: 0 | F36: 0 | G36: 0 | H36: 0 | I36: 0 | J36: 0 | K36: 0
B37: 0 | C37: 0 | D37: 0 | E37: 0 | F37: 0 | G37: 0 | H37: 0 | I37: 0 | J37: 0 | K37: 0
B38: Total | C38: =SUM(C34:C37) -> 0
B41: Definitions
B42: EBSS exclusions have the meaning used in the 2011-15 Distribution determination

Sheet 16. Juris Scheme
B1: =Cover!E22 -> Powercor Australia Ltd
B2: Jurisdictional Scheme Payments
B3: =Cover!E26 -> 2014
D5: Colour coding:
B6: Dollar unit used in this sheet | D6: Yellow = Input cells
B7: nominal $'000 | D7: Grey = No inputs required
B9: Jurisdictional scheme information is used by the AER to monitor approved Jurisdictional schemes throughout the regulatory control period.
B12: Scheme Payment Name | C12: Description | D12: Date DNSP Became Subject to Scheme | E12: Description of Cost Recovery Method | F12: Total Scheme Payments
B13: Premium Solar Feed-in Tariff & Transitional feed-in tariff payments | C13: Credit per kWh paid for excess electricity fed back into the grid | D13: 1 November 2009 | E13: Appendix F3 of the Final Decision Distribution determination 2011-2015 | F13: 41443.99919
D17: Total jurisdictional scheme payments | F17: =SUM(F13:F16) -> 41443.99919
B19: Definitions
B20: Jurisdictional Scheme Payment | C20: In respect of a Jurisdictional Scheme, the amounts a DNSP is required under the Jurisdictional Scheme obligations to: (a) pay to a person (b) pay into a fund established under an Act of a participating jurisdiction (c) credit against charges payable by a person (d) reimburse a person less any amounts recovered by the DNSP from any person in respect of those amounts other than under the NER.
B21: Jurisdictional Scheme | C21: Jurisdictional scheme has the meaning given in clause 6.18.7A(d) of the NER.

Sheet 17.DMIS-DMIA
B1: =Cover!E22 -> Powercor Australia Ltd
B2: Demand management incentive scheme
B3: =Cover!E26 -> 2014
D5: Colour coding:
B6: Dollar unit used in this sheet | D6: Yellow = Input cells
B7: nominal $'000 | D7: Grey = No inputs required
B10: This information will form the basis of the AER’s assessment of the DNSP’s compliance with the DMIS, and its entitlement to recover expenditure under the DMIS. The information will also assist the AER in assessing proposals for demand management expenditure in opex and capex forecasts submitted in a DNSP’s regulatory proposals, and in the development and implementation of DMEGCIS, in future regulatory control periods.
B13: Table 1 DMIA expenditure in the regulatory reporting year
B15: Name of project | C15: =B3 -> 2014
C16: Operating expenditure | D16: Capital expenditure | E16: Total expenditure
B17: Network Support CTN 2014 | C17: 35.439 | D17: 0 | E17: =SUM(C17:D17) -> 35.439
B18: Network Support BMH 2014 | C18: 8 | D18: 0 | E18: 8
B19: Greensync Pilot | C19: 18.5 | D19: 0 | E19: 18.5
B20: Demand Management Storage Project | C20: 106.3488031 | D20: 0 | E20: 106.3488031
B21: Storage Investment Framework Design and Analysis | C21: 62.32631056 | D21: 0 | E21: 62.32631056
B22: 0 | C22: 0 | D22: 0 | E22: 0
B23: Total | C23: =SUM(C17:C22) -> 230.6141137 | D23: =SUM(D17:D22) -> 0 | E23: =SUM(E17:E22) -> 230.6141137
B25: Table 2 DMIA expenditure in the previous reporting year
B27: Name of project | C27: =B3-1 -> 2013
C28: Operating expenditure | D28: Capital expenditure | E28: Total expenditure
B29: BBD21 Generation 2012/2013 Summer | C29: 189.852 | D29: 0 | E29: =SUM(C29:D29) -> 189.852
B30: 0 | C30: 0 | D30: 0 | E30: =SUM(C30:D30) -> 0
B31: 0 | C31: 0 | D31: 0 | E31: =SUM(C31:D31) -> 0
B32: Total | C32: =SUM(C29:C31) -> 189.852 | D32: =SUM(D29:D31) -> 0 | E32: =SUM(E29:E31) -> 189.852
B34: Table 3 Foregone revenue in the regulatory reporting year
B36: Name of project | C36: =B3 -> 2014
C37: Forecast quantity | D37: Actual quantity | E37: Forgone quantity | F37: Price
B38: 0 | C38: 0 | D38: 0 | E38: =C38-D38 -> 0 | F38: 0
B39: 0 | C39: 0 | D39: 0 | E39: =C39-D39 -> 0 | F39: 0
B40: 0 | C40: 0 | D40: 0 | E40: 0 | F40: 0
B41: 0 | C41: 0 | D41: 0 | E41: 0 | F41: 0
B42: 0 | C42: 0 | D42: 0 | E42: 0 | F42: 0
B43: 0 | C43: 0 | D43: 0 | E43: 0 | F43: 0
B44: Total | C44: =SUM(C38:C43) -> 0 | D44: =SUM(D38:D43) -> 0 | E44: 0
B47: Definitions
B48: Demand management incentive scheme | C48: The AER’s Demand Management Incentive Scheme – CitiPower, Powercor, Jemena, SP AusNet and United Energy 2011–15: Part A – Demand Management Innovation Allowance, dated April 2009.
B49: The terms used in this template have the same meaning as in the Demand management incentive scheme

Sheet 18. Self Insurance
B1: =Cover!E22 -> Powercor Australia Ltd
B2: Self Insurance
B3: =Cover!E26 -> 2014
D4: Colour coding:
B5: Dollar unit used in this sheet | D5: Yellow = Input cells
B6: nominal $'000 | D6: Grey = No inputs required
B8: Information on actual, audited costs incurred by DNSPs on self insurance events (collected annually) will assist the AER with determining an appropriate self insurance allowance for DNSPs at the next regulatory reset. The information is required to be reported annually so that DNSPs can clearly demonstrate (to the AER) that their business processes and reporting systems properly account for self insurance events. This includes correctly accounting for the risks insured and costs to the DNSP.
B11: Table 1 Self Insurance Events with an Incurred Cost of Greater than $100 000 per Event.
B13: Type of Self Insurance Event | C13: Date of Event | D13: Description of Event | H13: Cost of the Event that Relates to Regulated Assets | J13: Other Costs (eg Costs Related to Non-regulated Assets) | L13: Total Cost of Self Insurance Event | N13: Costs Covered by External Funding | P13: Costs to be passed through | R13: Is information held that verifies the event?
B14: [eg. Liability, fire etc]
D22: Total actual cost of self insurance | H22: =SUM(H14:I21) -> 0 | J22: =SUM(J14:K21) -> 0 | L22: =SUM(L14:M21) -> 0 | N22: =SUM(N14:O21) -> 0 | P22: =SUM(P14:Q21) -> 0
B24: Table 2 Self insurance events with an incurred cost of less than $100 000 per event
B26: Number of events | C26: Costs of the events that relate to regulated assets | F26: Costs covered by external funding | I26: Costs that do not relate to regulated assets
B30: Table 3 Total self insurance that relate to regulated assets
B32: Total self insurance | D32: =H22+C27+C28 -> 0
B34: Note: This section is not intended to reconcile with EBSS data
B36: Definition
B37: Self Insurance event | C37: Meaning is the same as used in the 2011-15 Distribution Determination

Sheet 19. CHAP
B1: =Cover!E22 -> Powercor Australia Ltd | D1: Colour coding:
B2: Change of Accounting Policy | D2: Yellow = Input cells
B3: =Cover!E26 -> 2014 | D3: Grey = No inputs required
B5: Dollar unit used in this sheet
B6: nominal $'000
B8: This information is required by the AER to assess forecast expenditure proposed by DNSPs at their next reset. It captures changes in accounting policies made from year to year and the effect on the Financial Statements. This information will increase transparency and accountability to stakeholders.
B10: Note: a) Only list those items where the adjustment amount for the item meets the materiality threshold applied in the statutory financial accounts b) Tables 1 and 2 capture both the changes in the application of accounting standards and changes in the accounting standards themselves.
B12: Table 1 The aggregate effect of the change in accounting policy on the balance sheet and income statements
B14: Statutory Account code or reference to account code | C14: Powercor Category | D14: Previously Stated | E14: Adjustment | F14: Restated
C15: Balance Sheet
C16: <Item> | E16: =F16-D16 -> 0
C17: <Item> | E17: =F17-D17 -> 0
C18: <Item> | E18: =F18-D18 -> 0
C19: Income Statement
C20: <Item> | E20: 0
C21: <Item> | E21: 0
C22: <Item> | E22: 0
B24: Table 2: Description and reason for the change in accounting policy
B26: Statutory account code or reference to account code | C26: Description of change | D26: Reason for the change of accounting policy | G26: Items impacted
G27: <Item>
G28: <Item>
G29: <Item>
G30: <Item>

Sheet 20. Related Party
B1: =Cover!E22 -> Powercor Australia Ltd | D1: Colour coding:
B2: Related Party Transactions | D2: Yellow = Input cells
B3: =Cover!E26 -> 2014 | D3: Grey = No inputs required
B4: Dollar unit used in this sheet
B5: nominal $'000
B7: The AER will use information on related party transactions to understand of the financial impacts of the such transactions on the costs of the DNSP and will be used to inform the AER’s assessment of expenditure and its underlying drivers at the next reset.
B10: Table 1. Payments made by Powercor to Related Party under CONTROL or INFLUENCING Ownership
B11: Note: for transactions with a Related Party that is related to the provision of standard control services, alternative control services, Advanced Metering Infrastructure or negotiated distribution services and greater than $500,000
B13: Name of related party | C13: Services Provided | D13: Contract Charge | F13: Actual Cost | H13: Margin | J13: Description of how this transaction amount was determined | K13: Description of how this amount is reflected in the Regulatory Accounting Statements, including the asset class or cost category | L13: Where the related party costs have been allocated to different asset classes or cost categories, the description of the basis of allocation and the quantum of the allocator
D14: Capex | E14: Opex | F14: Capex | G14: Opex | H14: Capex | I14: Opex
B15: CHED Services | C15: Corporate Services - management, administration, back office and other business functions | D15: x | E15: x | F15: x | G15: x | H15: x | I15: x | J15: The services fee amount is based on an arms length negotiated price. The actual incurred cost of the individual services was determined by the related party. | K15: The contract price / actual cost is included in operating expenses, maintenance and capital expenditure, allocated between Standard Control, AMI and ACS. | L15: Refer to the Services Fee Allocation workpaper for details of the amount and the method of its allocation.
B16: Powercor Network Services | C16: Network Services - construction, maintenance, faults, emergency and related services | D16: x | E16: x | F16: x | G16: x | H16: x | I16: x | J16: The fee amount is based on an arms length negotiated price and the actual cost incurred was determined by the related party. | K16: The contract price /actual cost is directly attributable to Standard Control and AMI capital, maintenance and operating expenditure. | L16: No costs are allocated
B17: CHED Services | C17: Infill Insurance Premium | D17: x | E17: x | F17: x | G17: x | H17: x | I17: x | J17: The fee amount is in accordance with external assessment and advice for these services. The actual cost is based on actual administrative costs and the acturial cost of providing the infill insurance services. | K17: The contract price / actual cost is included in Operating Expenses as a directly attributable cost to Standard Control | L17: No costs are allocated
B18: CHED Services | C18: AMI Project Services | D18: x | E18: x | F18: x | G18: x | H18: x | I18: x | J18: The fee amount is based on an arms length negotiated price. The actual incurred cost was determined by the related party. | K18: The contract price actual cost has been directly attributed to AMI capital and operating expenses | L18: No costs are allocated
B19: CHED Services | C19: Metering and Servicing Activities | D19: x | E19: x | F19: x | G19: x | H19: x | I19: x | J19: The fee amount is based on an arms length negotiated price. The actual incurred cost was determined by the related party. | K19: The contract price / actual cost is included in operating, maintenance and capital expenditure as a directly attributable cost to AMI and ACS. | L19: No costs are allocated
B20: CHED Services | C20: IT AMI Support Services | D20: x | E20: x | F20: x | G20: x | H20: x | I20: x | J20: The fee amount is based on an arms length negotiated price. The actual incurred cost was determined by the related party | K20: The contract price / actual cost is included in operating expenses as an ACS. | L20: No costs are allocated
B21: CHED Services | C21: IT System Enhancements | D21: x | E21: x | F21: x | G21: x | H21: x | I21: x | J21: The fee amount is based on an arms length negotiated price. The actual incurred cost was determined by the related party | K21: The contract price / actual cost is included in capital expenses and is allocated directly to Standard Control | L21: No costs are allocated
B23: Table 2. Composition of margins in relation to table 1.
B25: Name of related party | C25: Services Provided | D25: Margins | H25: Total
D26: Overhead | F26: Residual
B27: CHED Services | C27: Corporate Services - management, administration, back office and other business functions | D27: x | F27: x | H27: x
B28: Powercor Network Services | C28: Network Services - construction, maintenance, faults, emergency and related services | D28: x | F28: x | H28: x
B29: CHED Services | C29: Infill Insurance Premium | D29: x | F29: x | H29: x
B30: CHED Services | C30: AMI Project Services | D30: x | F30: x | H30: x
B31: CHED Services | C31: Metering and Servicing Activities | D31: x | F31: x | H31: x
B32: CHED Services | C32: IT AMI Support Services | D32: x | F32: x | H32: x
B33: CHED Services | C33: IT System Enhancements | D33: x | F33: x | H33: x
B35: Note: Provide, if separately identifiable the proportion of margins related to overhead costs and the proportion if any, that is related to assets used but not in the Distribution Businesses regulatory asset base.
B37: Definition
B38: Related Party Transaction | C38: Any transaction between the related party and the regulated distribution business.
B39: Related Party Transaction - Actual Cost | C39: The actual cost of the related party transaction
B40: Related Party Transaction - Contract Charge | C40: The charge specified in the contract for the related party transaction
B41: Related party | C41: In relation to the provision of distribution services by Powercor, any other Entity that, at any time during each Relevant Regulatory Year: (a) has control or significant influence over Powercor; (b) is subject to control or significant influence by Powercor; (c) is controlled by the same Entity that controls or which has common control over, Powercor; (d) is controlled by the same Entity that significantly influences Powercor; (e) is significantly influenced by the same Entity that controls Powercor; or (f) has been novated or assigned a contract or arrangement by Powercor with any of the Entities identified in subparagraphs (a)–(e), and includes: (i) CKI/HEI Electricity Distribution Holdings (Australia) Pty Ltd (ACN 101 392161); (ii) CHED Services Pty Ltd (ACN 112 304 622); (iii) Powercor Network Services Pty Ltd (ACN 123 230 240); (iv) CKI/HEI Electricity Distribution Pty Ltd (ACN 093 830 632) and each of its subsidiaries; (v) CKI/HEI Electricity Distribution Two Pty Ltd (ACN 101 064 304) and each of its subsidiaries including the trustees of The CitiPower Trust; and but excludes any other where the relationship arises solely from normal dealings with the following Entities: (a) financial institutions; (b) authorised trustee corporations; (c) fund managers; (d) trade unions; (e) statutory authorities; (f) government departments; or (g) local governments

Sheet 21. AMI
B1: =Cover!E22 -> Powercor Australia Ltd | D1: Colour coding:
B2: Advanced Metering Infrastructure | D2: Yellow = Input cells
B3: =Cover!E26 -> 2014 | D3: Grey = No inputs required
B4: Dollar unit used in this sheet
B5: nominal $'000
B7: AMI information is used by the AER to monitor AMI throughout the regulatory control period.
B10: Table 1 Standard control asset base - metering
C12: Opening value | D12: Actual capital expenditure – as incurred | E12: Actual asset disposals – as incurred | F12: Actual capital contributions – as incurred | G12: Actual net capital expenditure – as incurred
B13: Accumulation meters | C13: 0 | D13: 0 | E13: 0 | F13: 0 | G13: =D13-E13-F13 -> 0
B14: Manually read interval meters | C14: 0 | D14: 14.61415 | E14: 0 | F14: 0 | G14: 14.61415
B15: Remotely read interval meters and transformers | C15: 0 | D15: 11355.00582 | E15: 0 | F15: 0 | G15: 11355.00582
B16: IT | C16: 0 | D16: 4981.82825 | E16: 0 | F16: 0 | G16: 4981.82825
B17: Communications | C17: 0 | D17: 5081.697058 | E17: 0 | F17: 0 | G17: 5081.697058
B18: Other | C18: 0 | D18: 0 | E18: 0 | F18: 0 | G18: 0
B19: Total | C19: =SUM(C13:C18) -> 0 | D19: =SUM(D13:D18) -> 21433.14528 | E19: =SUM(E13:E18) -> 0 | F19: =SUM(F13:F18) -> 0 | G19: 21433.14528
B21: Table 2a Number of meters installed
C22: =$B$3 -> 2014 | D22: =$B$3-1 -> 2013
B23: Accumulation meters
B24: Single phase non off peak | C24: 0 | D24: 4
B25: Single phase off peak | C25: 0 | D25: 24
B26: Multi phase direct connect | C26: 0 | D26: 12
B27: Multi phase current transformers | C27: 0 | D27: 0
B28: Total accumulation meters installed | C28: =SUM(C24:C27) -> 0 | D28: =SUM(D24:D27) -> 40
B29: MRIM meters
B30: Single phase non off peak | C30: 0 | D30: 1
B31: Single phase off peak | C31: 0 | D31: 189
B32: Multi phase direct connect | C32: 0 | D32: 1
B33: Multi phase current transformers | C33: 0 | D33: 0
B34: Total MRIM meters installed | C34: =SUM(C30:C33) -> 0 | D34: =SUM(D30:D33) -> 191
B35: AMI meters
B36: Single phase single element | C36: 14498 | D36: 65600
B37: Single phase single element with contactor | C37: 2325 | D37: 15904
B38: Single phase two element with contactor | C38: 6173 | D38: 55813
B39: Three phase | C39: 7414 | D39: 40580
B40: Three phase direct connected meter | C40: 1966 | D40: 8341
B41: Three phase direct connected meter with contactor | C41: 0 | D41: 0
B42: Three phase Current transformer connected meter | C42: 548 | D42: 2361
B43: Total AMI meters installed | C43: =SUM(C36:C42) -> 32924 | D43: =SUM(D36:D42) -> 188599
B45: Total meters installed | C45: =SUM(C28,C34,C43) -> 32924 | D45: =SUM(D28,D34,D43) -> 188830
B47: Table 2b Cumulative number of meters
C48: =$B$3 -> 2014 | D48: =$B$3-1 -> 2013
B49: Accumulation meters
B50: Single phase non off peak | C50: 9917 | D50: 13767
B51: Single phase off peak | C51: 12079 | D51: 17124
B52: Multi phase direct connect | C52: 6823 | D52: 12017
B53: Multi phase current transformers | C53: 108 | D53: 203
B54: Total accumulation meters | C54: =SUM(C50:C53) -> 28927 | D54: =SUM(D50:D53) -> 43111
B55: MRIM meters
B56: Single phase non off peak | C56: 72 | D56: 129
B57: Single phase off peak | C57: 567 | D57: 998
B58: Multi phase direct connect | C58: 447 | D58: 1029
B59: Multi phase current transformers | C59: 24 | D59: 67
B60: Total MRIM meters | C60: =SUM(C56:C59) -> 1110 | D60: =SUM(D56:D59) -> 2223
B61: AMI meters
B62: Single phase single element | C62: 427222 | D62: 415710
B63: Single phase single element with contactor | C63: 54376 | D63: 52612
B64: Single phase two element with contactor | C64: 195809 | D64: 191437
B65: Three phase | C65: 110279 | D65: 104146
B66: Three phase direct connected meter | C66: 19482 | D66: 17805
B67: Three phase direct connected meter with contactor | C67: 0 | D67: 0
B68: Three phase Current transformer connected meter | C68: 4872 | D68: 4503
B69: Total AMI meters | C69: =SUM(C62:C68) -> 812040 | D69: =SUM(D62:D68) -> 786213
B71: Total meters | C71: =SUM(C54,C60,C69) -> 842077 | D71: =SUM(D54,D60,D69) -> 831547
B73: Table 3 AMI meter reconciliation
C74: =$B$3 -> 2014 | D74: =$B$3-1 -> 2013
B75: Opening number of meters | C75: 786213 | D75: 603954.094
B76: Installs | C76: =C43 -> 32924 | D76: =D43 -> 188599
B77: Abolishments | C77: 2188 | D77: 1550
B78: AMI meter for AMI meter replacements | C78: 4909 | D78: 4790
B79: Closing number of meters | C79: =(C75+C76)-(C77+C78) -> 812040 | D79: =(D75+D76)-(D77+D78) -> 786213.094
B82: Table 4 Number of meter read quantity - end of year
C83: =$B$3 -> 2014
B84: Number of meters read monthly - accumulation | C84: 403
B85: Number of meters read quarterly - accumulation | C85: 30855
B86: Number of meters read monthly - interval | C86: 205
B87: Number of meters read quarterly - interval | C87: 4618
B88: Number of meters read remotely | C88: 805996
B89: Total | C89: =SUM(C84:C88) -> 842077
B92: Definitions
B93: AMI services and assets are as defined in Powercor's approved CAM.

Sheet 22. Safety and Bushfire
B1: Powercor
B2: Safety and Bushfire Related Expenditure | C2: Colour coding:
B3: =Cover!E26 -> 2014 | C3: Yellow = Input cells
C4: Grey = No inputs required
B7: Bushfire and safety related expenditure information is used by the AER to monitor the expenditures throughout the regulatory control period.
B9: Instructions
B10: Please populate table 1 where the asset categories definitions differ from the "Asset Installation"' worksheet.
B11: The definitions in table 1 are not limited or restricted. Please include additional definitions where necessary.
B12: Median unit costs should be used. Where unit costs are not recorded at the asset category level - provide the best estimates of the unit cost using the cost allocation method outlined in table 1. As a transitional measure, the unit cost may be based on a statistically significant annual sample of actual work orders at a 5 per cent or better confidence interval.
B13: Provide basis of allocation where applicable
B14: AER expected expenditure ($2010) means ESL and non ESL, ESMS related expected expenditure as approved under the AER Determination for 2011-15
B15: AER expected expenditure ($2010) means bushfire related expenditure as approved under the pass through application
B16: AER expected volumes means the bushfire related expenditure volumes approved under pass through applications.
B17: AER expected volumes means the ESL and non ESL and ESMS related volumes as approved under the AER Determination for 2011-15
B18: Replacement information to be reported concern the asset that has replaced an existing asset for bushfire and safety purposes.
B19: CPI applied to convert expenditure in real $2010 to nominal based on lagged September CPI index | C19: 1.108836891
B21: Table 1 Asset groups: Definitions, cost-allocation basis and methodology
B23: Asset group | C23: Category i.e., bushfire, ESMS, ESL or non-ESL | D23: Definitions | H23: Basis for allocation of cost to asset group or category
B24: Pole replacements (FC148) - subtransmission | C24: ESL | D24: 0 | E24: 0 | F24: 0 | G24: 0 | H24: Actual costs are captured at a composite project level including these and other physicals. Costs are allocated to function codes for settlement based on allocation rules. Allocation to voltages for poles is based on actual physicals completed.
B25: Pole replacements (FC148) - HV | C25: ESL | D25: 0 | E25: 0 | F25: 0 | G25: 0
B26: Pole replacements (FC148) - LV | C26: ESL | D26: 0 | E26: 0 | F26: 0 | G26: 0
B27: Pole replacements (FC148) - pole and stay | C27: ESL | D27: 0 | E27: 0 | F27: 0 | G27: 0
B28: Pole replacements (FC149) - staked | C28: ESL | D28: 0 | E28: 0 | F28: 0 | G28: 0
B29: Crossarm replacements (FC155) | C29: ESL | D29: 0 | E29: 0 | F29: 0 | G29: 0
B30: HV overhead conductor replacements | C30: ESL | D30: 0 | E30: 0 | F30: 0 | G30: 0 | H30: Actual costs are captured at a function code level. Allocation to voltages is based on value of asset additions to various voltages
B31: LV overhead conductor replacements | C31: ESL | D31: 0 | E31: 0 | F31: 0 | G31: 0
B32: Replacement of SWER with ABC/underground cabling | C32: 0 | D32: 0 | E32: 0 | F32: 0 | G32: 0
B33: Replacement of 22kV distribution feeders with ABC/underground cabling | C33: 0 | D33: 0 | E33: 0 | F33: 0 | G33: 0
B34: <DNSP to input as appropriate>
B37: Table 2 Bushfire-related expenditure - approved under pass-through applications (volumes)
B39: Asset group | C39: Units | D39: As approved under pass through applications | E39: Actual Units | F39: Difference | G39: Reasons for difference
B40: Pole replacements (FC148) - subtransmission | C40: no. of poles | D40: 0 | E40: 0 | F40: =E40-D40 -> 0 | G40: 0
B41: Pole replacements (FC148) - HV | C41: no. of poles | D41: 0 | E41: 0 | F41: 0 | G41: 0
B42: Pole replacements (FC148) - LV | C42: no. of poles | D42: 0 | E42: 0 | F42: 0 | G42: 0
B43: Pole replacements (FC148) - pole and stay | C43: no. of poles | D43: 0 | E43: 0 | F43: 0 | G43: 0
B44: Pole replacements (FC149) - staked | C44: no. of poles | D44: 0 | E44: 0 | F44: 0 | G44: 0
B45: Crossarm replacements (FC155) | C45: no. of crossarms | D45: 0 | E45: 0 | F45: 0 | G45: 0
B46: HV overhead conductor replacements | C46: no. of km | D46: 0 | E46: 0 | F46: 0 | G46: 0
B47: LV overhead conductor replacements | C47: no. of km | D47: 0 | E47: 0 | F47: 0 | G47: 0
B48: Replacement of SWER with ABC/underground cabling | C48: no. of km | D48: 0 | E48: 0 | F48: 0 | G48: 0
B49: Replacement of 22kV distribution feeders with ABC/underground cabling | C49: no. of feeders | D49: 0 | E49: 0 | F49: 0 | G49: 0
B50: VBRC Armour Rods and Dampers and Armour Rods (FC 167) | C50: Non compliant poles | D50: 39947.39088 | E50: 93103 | F50: 53155.60912 | G50: Resource ramp up program has different profile to original plan.
B51: VBRC SWER ACR (FC 167) Not Approved by pass through | C51: SWER ACRs | D51: 0 | E51: 0 | F51: 0 | G51: Stage 1 SWER ACR Program finalisation (not pass through)
B52: VBRC Spacers - Lidar Conductor Clearance Survey | C52: Kms | D52: 418.45 | E52: 1498 | F52: 1079.55 | G52: Program changed to suit successful tenderer availability to be completed 2014
B53: VBRC Asset Inspection | C53: no. of poles | D53: 53556.8 | E53: 59980 | F53: =E53-D53 -> 6423.2 | G53: 0
B54: <DNSP to input as appropriate> | C54: <DNSP to input as appropriate> | F54: 0
B57: Table 3 Safety related other - ESL, non ESL and ESMS (volumes) - approved under AER determination for 2011-15
B59: Asset group | C59: Units | D59: AER expected volumes | E59: Actual Units | F59: Difference | G59: Reasons for difference
B60: Pole replacements (FC148) - subtransmission | C60: no. of poles | D60: 68.95 | E60: 55 | F60: =E60-D60 -> -13.95 | G60: Actuals driven by the Asset Inspection Program - EPDR values are estimates only
B61: Pole replacements (FC148) - HV | C61: no. of poles | D61: 679.65 | E61: 1124 | F61: =E61-D61 -> 444.35 | G61: Actuals driven by the Asset Inspection Program - EPDR values are estimates only
B62: Pole replacements (FC148) - LV | C62: no. of poles | D62: 216.7 | E62: 318 | F62: 101.3 | G62: Actuals driven by the Asset Inspection Program - EPDR values are estimates only
B63: Pole replacements (FC148) - pole and stay | C63: no. of poles | D63: 19.7 | E63: 21 | F63: 1.3 | G63: Actuals driven by the Asset Inspection Program - EPDR values are estimates only
B64: Pole replacements (FC149) - staked | C64: no. of poles | D64: 977 | E64: 1221 | F64: 244 | G64: Actuals driven by the Asset Inspection Program - EPDR values are estimates only
B65: Crossarm replacements (FC155) | C65: no. of crossarms | D65: 3200 | E65: 8204 | F65: 5004 | G65: Actuals driven by the Asset Inspection Program - EPDR values are estimates only
B66: HV overhead conductor replacements | C66: no. of km | D66: 480 | E66: 69.2 | F66: -410.8 | G66: Following deferral of program while outworking of VBRC were finalised the program of replacment recommenced. Replacement in 2014 contained a greater percentage of more complex subtransmission replacement.
B67: LV overhead conductor replacements | C67: no. of km | D67: 4 | E67: 7.8 | F67: 3.8 | G67: Actuals driven by the Asset Inspection Program - EPDR values are estimates only
B68: Replacement of SWER with ABC/underground cabling | C68: no. of km | D68: 0 | E68: 0 | F68: 0 | G68: Not Applicable
B69: Replacement of 22kV distribution feeders with ABC/underground cabling | C69: no. of feeders | D69: 0 | E69: 0 | F69: 0 | G69: Not Applicable
B70: <DNSP to input as appropriate> | C70: <DNSP to input as appropriate> | F70: 0
B73: Table 4 Bushfire-related expenditure pass-through applications ($ nominal - excluding margins and overheads)
B75: Asset group | C75: As approved under pass through applications | D75: Actual | E75: Difference | F75: Reasons for difference
B76: Pole replacements (FC148) - subtransmission | C76: 0 | D76: 0 | E76: =C76-D76 -> 0 | F76: 0
B77: Pole replacements (FC148) - HV | C77: 0 | D77: 0 | E77: =C77-D77 -> 0 | F77: 0
B78: Pole replacements (FC148) - LV | C78: 0 | D78: 0 | E78: 0 | F78: 0
B79: Pole replacements (FC148) - pole and stay | C79: 0 | D79: 0 | E79: 0 | F79: 0
B80: Pole replacements (FC149) - staked | C80: 0 | D80: 0 | E80: 0 | F80: 0
B81: Crossarm replacements (FC155) | C81: 0 | D81: 0 | E81: 0 | F81: 0
B82: HV overhead conductor replacements | C82: 0 | D82: 0 | E82: 0 | F82: 0
B83: LV overhead conductor replacements | C83: 0 | D83: 0 | E83: 0 | F83: 0
B84: Replacement of SWER with ABC/underground cabling | C84: 0 | D84: 0 | E84: 0 | F84: 0
B85: Replacement of 22kV distribution feeders with ABC/underground cabling | C85: 0 | D85: 0 | E85: 0 | F85: 0
B86: Armour Rods & Dampers Retrofit (pass through) | C86: 15901.33848 | D86: 29162.50521 | E86: -13261.16673 | F86: The programs required different spend profiles to those in the pass through submissions due to the practical implementation requirements of developing the programs tendering and resourcing
B87: VBRC SWER ACR (FC 167) Not Approved by pass through | C87: 0 | D87: 0 | E87: 0 | F87: Not pass through
B88: VBRC Spacers - Lidar Conductor Clearance Survey | C88: 611.0634385 | D88: 1879.63567 | E88: -1268.572232 | F88: The programs required different spend profiles to those in the pass through submissions due to the practical implementation requirements of developing the programs tendering and resourcing
B89: VBRC Asset Inspection | C89: 2585.157855 | D89: 2965.909555 | E89: -380.7517007 | F89: 0
B90: <DNSP to input as appropriate> | E90: 0
B92: Note - Reported expenditure is to be entered EXCLUDING any overheads, profit margins or management fees paid directly or indirectly to related party contractors for the report period.
B94: Table 5 Safety related other - ESL, non ESL and ESMS ($ nominal - excluding margins and overheads)
B96: Asset group | C96: Category i.e., ESMS, ESL or non-ESL | D96: AER expected expenditure ($'000 2010) | E96: Actual | F96: Difference | G96: Reasons for difference
B97: Pole replacements (FC148) - subtransmission | C97: ESL | D97: 583.7661206 | E97: 679.2277123 | F97: =D97*$C$19-E97 -> -31.92630217 | G97: As per reasons provided in Tables 3 and 9
B98: Pole replacements (FC148) - HV | C98: ESL | D98: 5754.266046 | E98: 13880.94452 | F98: =D98*$C$19-E98 -> -7500.402049 | G98: As per reasons provided in Tables 3 and 9
B99: Pole replacements (FC148) - LV | C99: ESL | D99: 1834.693522 | E99: 3927.171137 | F99: -1892.795276 | G99: As per reasons provided in Tables 3 and 9
B100: Pole replacements (FC148) - pole and stay | C100: ESL | D100: 166.7903202 | E100: 259.3414902 | F100: -74.39823012 | G100: As per reasons provided in Tables 3 and 9
B101: Pole replacements (FC149) - staked | C101: ESL | D101: 1127.097401 | E101: 1139.46106 | F101: 110.3061182 | G101: As per reasons provided in Tables 3 and 9
B102: Crossarm replacements (FC155) | C102: ESL | D102: 6865.166924 | E102: 12091.90589 | F102: -4479.555543 | G102: As per reasons provided in Tables 3 and 9
B103: HV overhead conductor replacements | C103: ESL | D103: 22774.03705 | E103: 2813.786256 | F103: 22438.90618 | G103: As per reasons provided in Tables 3 and 9
B104: LV overhead conductor replacements | C104: ESL | D104: 189.7836421 | E104: 1572.647544 | F104: -1362.20844 | G104: As per reasons provided in Tables 3 and 9
B105: Replacement of SWER with ABC/underground cabling | C105: 0 | D105: 0 | E105: 0 | F105: 0 | G105: Not Applicable
B106: Replacement of 22kV distribution feeders with ABC/underground cabling | C106: 0 | D106: 0 | E106: 0 | F106: 0 | G106: Not Applicable
B107: <DNSP to input as appropriate> | C107: <DNSP to input as appropriate> | F107: 0
B109: Note - Reported expenditure is to be entered EXCLUDING any overheads, profit margins or management fees paid directly or indirectly to related party contractors for the report period.
B111: Table 6 Bushfire-related expenditure pass-through applications ($ nominal - margins and overheads)
B113: Asset group | C113: As approved under pass through applications | D113: Actual | E113: Difference | F113: Reasons for difference
B114: Pole replacements (FC148) - subtransmission | C114: 0 | D114: 0 | E114: =C114-D114 -> 0 | F114: 0
B115: Pole replacements (FC148) - HV | C115: 0 | D115: 0 | E115: =C115-D115 -> 0 | F115: 0
B116: Pole replacements (FC148) - LV | C116: 0 | D116: 0 | E116: 0 | F116: 0
B117: Pole replacements (FC148) - pole and stay | C117: 0 | D117: 0 | E117: 0 | F117: 0
B118: Pole replacements (FC149) - staked | C118: 0 | D118: 0 | E118: 0 | F118: 0
B119: Crossarm replacements (FC155) | C119: 0 | D119: 0 | E119: 0 | F119: 0
B120: HV overhead conductor replacements | C120: 0 | D120: 0 | E120: 0 | F120: 0
B121: LV overhead conductor replacements | C121: 0 | D121: 0 | E121: 0 | F121: 0
B122: Replacement of SWER with ABC/underground cabling | C122: 0 | D122: 0 | E122: 0 | F122: 0
B123: Replacement of 22kV distribution feeders with ABC/underground cabling | C123: 0 | D123: 0 | E123: 0 | F123: 0
B124: Armour Rods & Dampers Retrofit (pass through) | C124: 0 | D124: 12041.4903 | E124: -12041.4903 | F124: The approved pass through amount does not allow for margins and overheads.
B125: VBRC SWER ACR (FC 167) Not Approved by pass through | C125: 0 | D125: 0 | E125: 0 | F125: 0
B126: VBRC Spacers - Lidar Conductor Clearance Survey | C126: 0 | D126: 457.17274 | E126: -457.17274 | F126: The approved pass through amount does not allow for margins and overheads.
B127: VBRC Asset Inspection | C127: 0 | D127: 0 | E127: 0 | F127: 0
B128: <DNSP to input as appropriate> | E128: 0
B130: Note -Reported expenditure to be entered is the sum of overheads, profit margins or management fees paid directly or indirectly to related party contractors for the report period.
B132: Table 7 Safety related other - ESL, non ESL and ESMS ($ nominal - margins and overheads)
B134: Asset group | C134: Category i.e., ESMS, ESL or non-ESL | D134: AER expected expenditure ($ 2010) | E134: Actual | F134: Difference | G134: Reasons for difference
B135: Pole replacements (FC148) - subtransmission | C135: ESL | D135: 94.41870741 | E135: 200.6956543 | F135: =D135*$C$19-E135 -> -96.00070838 | G135: As per reasons provided in Tables 3 and 9
B136: Pole replacements (FC148) - HV | C136: ESL | D136: 930.6986873 | E136: 4101.489372 | F136: =D136*$C$19-E136 -> -3069.496334 | G136: As per reasons provided in Tables 3 and 9
B137: Pole replacements (FC148) - LV | C137: ESL | D137: 296.744509 | E137: 1160.385783 | F137: -831.3445246 | G137: As per reasons provided in Tables 3 and 9
B138: Pole replacements (FC148) - pole and stay | C138: ESL | D138: 26.97677355 | E138: 76.62924984 | F138: -46.71640814 | G138: As per reasons provided in Tables 3 and 9
B139: Pole replacements (FC149) - staked | C139: ESL | D139: 199.6593265 | E139: 362.55006 | F139: -141.1604332 | G139: As per reasons provided in Tables 3 and 9
B140: Crossarm replacements (FC155) | C140: ESL | D140: 1061.334412 | E140: 3570.79665 | F140: -2393.949901 | G140: As per reasons provided in Tables 3 and 9
B141: HV overhead conductor replacements | C141: ESL | D141: 3981.085051 | E141: 852.2311977 | F141: 3562.142772 | G141: As per reasons provided in Tables 3 and 9
B142: LV overhead conductor replacements | C142: ESL | D142: 33.17570876 | E142: 476.3188023 | F142: -439.5323526 | G142: As per reasons provided in Tables 3 and 9
B143: Replacement of SWER with ABC/underground cabling | C143: 0 | D143: 0 | E143: 0 | F143: 0 | G143: Not Applicable
B144: Replacement of 22kV distribution feeders with ABC/underground cabling | C144: 0 | D144: 0 | E144: 0 | F144: 0 | G144: Not Applicable
B145: <DNSP to input as appropriate> | C145: <DNSP to input as appropriate> | F145: 0
B147: Note -Reported expenditure to be entered is the sum of overheads, profit margins or management fees paid directly or indirectly to related party contractors for the report period.
B149: Table 8 Bushfire-related expenditure including approved pass-through applications ($ unit cost)
B151: Asset group | C151: As approved under pass through applications | D151: Actual | E151: Difference | F151: Reasons for difference
B152: Pole replacements (FC148) - subtransmission | C152: 0 | D152: 0 | E152: =C152-D152 -> 0 | F152: 0
B153: Pole replacements (FC148) - HV | C153: 0 | D153: 0 | E153: =C153-D153 -> 0 | F153: 0
B154: Pole replacements (FC148) - LV | C154: 0 | D154: 0 | E154: 0 | F154: 0
B155: Pole replacements (FC148) - pole and stay | C155: 0 | D155: 0 | E155: 0 | F155: 0
B156: Pole replacements (FC149) - staked | C156: 0 | D156: 0 | E156: 0 | F156: 0
B157: Crossarm replacements (FC155) | C157: 0 | D157: 0 | E157: 0 | F157: 0
B158: HV overhead conductor replacements | C158: 0 | D158: 0 | E158: 0 | F158: 0
B159: LV overhead conductor replacements | C159: 0 | D159: 0 | E159: 0 | F159: 0
B160: Replacement of SWER with ABC/underground cabling | C160: 0 | D160: 0 | E160: 0 | F160: 0
B161: Replacement of 22kV distribution feeders with ABC/underground cabling | C161: 0 | D161: 0 | E161: 0 | F161: 0
B162: Armour Rods & Dampers Retrofit (pass through) | C162: 0.3980569978 | D162: 0.4425635641 | E162: -0.04450656631 | F162: 0
B163: VBRC SWER ACR (FC 167) Not Approved by pass through | C163: 0 | D163: 0 | E163: 0 | F163: 0
B164: VBRC Spacers - Lidar Conductor Clearance Survey | C164: 1.460302159 | D164: 1.55995221 | E164: -0.09965005047 | F164: 0
B165: VBRC Asset Inspection | C165: 0.04826946074 | D165: 0.04944830869 | E165: -0.001178847957 | F165: 0
B166: <DNSP to input as appropriate> | E166: 0
B168: Note - Where applicable, provide allocation assumptions and methods.
B169: Table 9 Safety related other - ESL, non ESL and ESMS ($ unit cost)
B171: Asset group | C171: Category i.e., ESMS, ESL or non-ESL | D171: AER expected expenditure ($'000 2010) | E171: Actual | F171: Difference | G171: Reasons for difference
B172: Pole replacements (FC148) - subtransmission | C172: ESL | D172: 8.466513714 | E172: 12.34959477 | F172: =D172*$C$19-E172 -> -2.961612026 | G172: Average actual cost is derived from settlment rules applied to actual costs of composite maintenance packages including items in addition to poles. Average cost varies with mix of pole types, locations and acess conditions.
B173: Pole replacements (FC148) - HV | C173: ESL | D173: 8.466513714 | E173: 12.34959477 | F173: -2.961612026 | G173: 0
B174: Pole replacements (FC148) - LV | C174: ESL | D174: 8.466513714 | E174: 12.34959477 | F174: -2.961612026 | G174: 0
B175: Pole replacements (FC148) - pole and stay | C175: ESL | D175: 8.466513714 | E175: 12.34959477 | F175: -2.961612026 | G175: 0
B176: Pole replacements (FC149) - staked | C176: ESL | D176: 1.153630912 | E176: 0.9332195414 | F176: 0.3459689727 | G176: No material variance
B177: Crossarm replacements (FC155) | C177: ESL | D177: 2.145364664 | E177: 1.473903692 | F177: 0.9049557913 | G177: Average actual cost is derived from settlment rules applied to actual costs of composite maintenance packages including items in addition to cross arms Average cost varies with mix of cross arm types, locations and acess conditions.
B178: HV overhead conductor replacements | C178: ESL | D178: 47.44591052 | E178: 0 | F178: 52.6097759 | G178: Refer comments in table 3
B179: LV overhead conductor replacements | C179: ESL | D179: 47.44591052 | E179: 0 | F179: 52.6097759 | G179: Refer comments in table 3
B180: Replacement of SWER with ABC/underground cabling | C180: 0 | D180: 0 | E180: 0 | F180: 0 | G180: Not Applicable
B181: Replacement of 22kV distribution feeders with ABC/underground cabling | C181: 0 | D181: 0 | E181: 0 | F181: 0 | G181: Not Applicable
B182: <DNSP to input as appropriate> | C182: <DNSP to input as appropriate> | F182: 0
B184: Definitions
B185: f-factor scheme | C185: The AER's Final determinations and explanatory statement, F-factor scheme determinations 2012-15 for Victorian electricity distribution network service providers, 22 December 2011
B186: All terms have the meaning used in the AER's f-factor scheme

Sheet 23. Shared asset
B1: =Cover!E22 -> Powercor Australia Ltd
B2: Shared assets
B3: =Cover!E26 -> 2014
D4: Colour coding:
B5: Dollar unit used in this sheet | D5: Yellow = Input cells
B6: nominal $'000 | D6: Grey = No inputs required
B8: This information is used to monitor outcomes compared to forecasts used to determine customer benefits under the AER's Shared Asset Guideline.
B10: Table 1: Total unregulated revenue earned with shared assets
B12: Total shared asset unregulated revenue | C12: 3302.70329
B14: Table 2: Shared asset unregulated services and apportioned revenue
B16: Note: All services for which an unregulated revenue is earned must be listed in column B. Apportioned revenue and Apportionment methodology are only required where a "Yes" response is returned in column C.
B18: Name of shared asset unregulated service | C18: Were the revenues for this service derived using apportionment? | D18: Apportioned revenue | E18: Apportionment methodology
B19: Property Rentals | C19: No | D19: 0 | E19: 0
B20: Joint use of Poles | C20: No | D20: 0 | E20: 0
B21: Optical Fibre Lease | C21: No | D21: 0 | E21: 0
B22: 0 | C22: 0 | D22: 0 | E22: 0
B23: 0 | C23: 0 | D23: 0 | E23: 0
B24: 0 | C24: 0 | D24: 0 | E24: 0
B25: 0 | C25: 0 | D25: 0 | E25: 0
B26: 0 | C26: 0 | D26: 0 | E26: 0
B28: Definitions
B29: Shared assets | C29: Assets used to provide both standard control services and unregulated services.
B30: Shared asset unregulated services | C30: Unregulated services provided, in part or in whole, by use of shared assets.
B31: Shared asset unregulated revenue | C31: Revenue earned by charging for unregulated services provided with shared assets. In some circumstances this may reflect revenue apportionment in line with the AER’s Shared Asset Guideline.
B32: Apportionment | C32: The allocation of unregulated revenues reflecting the proportionate use of the shared asset, in line with the AER's Shared Asset Guideline.

Sheet 24. Unmetered supply
B1: =Cover!E22 -> Powercor Australia Ltd
B2: Unmetered Supply Tariff Quantity Data Template (Actual t-2)
B3: =Cover!E26 -> 2014
B5: Templates 24 to 29 collect data required for annual pricing proposals. T-2 requires actual information for the reporting year.
D9: Qt-2
D10: NMIs | E10: Meters | F10: Lights
B11: Proposed tariff | D11: ActVolComp1 | E11: ActVolComp2 | F11: ActVolComp3
B12: metering data services - unmetered supplies | D12: 0 | E12: 0 | F12: 180984
B15: Definitions
B16: All information must be reported consistent the terms used in the DNSPs pricing proposal

Sheet 25. Actual t-2 Distr Tariff
B1: =Cover!E22 -> Powercor Australia Ltd
B2: Tariff Quantity Data Template (Actual t-2) Distribution Tariff Revenue
B3: =Cover!E26 -> 2014
B4: Templates 24 to 29 collect data required for annual pricing proposals. T-2 requires actual information for the reporting year.
D5: Distribution Tariffs (Pt-2) | Z5: Actual Quantities (Qt-2) | AW5: Actual Revenue (P-2)*(Qt-2)
B6: Tariffs t-2 | D6: (t-2)Tar Fixed | E6: (t-2)Tar PkBlk1 | F6: (t-2)Tar PkBlk2 | G6: (t-2)Tar PkBlk3 | H6: (t-2)Tar PkBlk4 | I6: (t-2)Tar OPkBlk1 | J6: (t-2)Tar OPkBlk2 | K6: (t-2)Tar OPkBlk3 | L6: (t-2)Tar OPkBlk4 | M6: (t-2)Tar DemBlk1 | N6: (t-2)Tar DemBlk2 | O6: (t-2)Tar DemBlk3 | P6: (t-2)Tar DemBlk4 | Q6: (t-2)Tar SumBlk1 | R6: (t-2)Tar SumBlk2 | S6: (t-2)Tar SumBlk3 | T6: (t-2)Tar SumBlk4 | U6: (t-2)Tar WtrBlk1 | V6: (t-2)Tar WtrBlk2 | W6: (t-2)Tar WtrBlk3 | X6: (t-2)Tar WtrBlk4 | Z6: ActVol Fixed | AA6: ActVol PkBlk1 | AB6: ActVol PkBlk2 | AC6: ActVol PkBlk3 | AD6: ActVol PkBlk4 | AE6: ActVol OPkBlk1 | AF6: ActVol OPkBlk2 | AG6: ActVol OPkBlk3 | AH6: ActVol OPkBlk4 | AI6: ActVol DemBlk1 | AJ6: ActVol DemBlk2 | AK6: ActVol DemBlk3 | AL6: ActVol DemBlk4 | AM6: (t-2)Tar SumBlk1 | AN6: (t-2)Tar SumBlk2 | AO6: (t-2)Tar SumBlk3 | AP6: (t-2)Tar SumBlk4 | AQ6: (t-2)Tar WtrBlk1 | AR6: (t-2)Tar WtrBlk2 | AS6: (t-2)Tar WtrBlk3 | AT6: (t-2)Tar WtrBlk4 | AW6: ActRev Fixed | AX6: ActRev PkBlk1 | AY6: ActRev PkBlk2 | AZ6: ActRev PkBlk3 | BA6: ActRev PkBlk4 | BB6: ActRev OPkBlk1 | BC6: ActRev OPkBlk2 | BD6: ActRev OPkBlk3 | BE6: ActRev OPkBlk4 | BF6: ActRev DemBlk1 | BG6: ActRev DemBlk2 | BH6: ActRev DemBlk3 | BI6: ActRev DemBlk4 | BJ6: (t-2)Tar SumBlk1 | BK6: (t-2)Tar SumBlk2 | BL6: (t-2)Tar SumBlk3 | BM6: (t-2)Tar SumBlk4 | BN6: (t-2)Tar WtrBlk1 | BO6: (t-2)Tar WtrBlk2 | BP6: (t-2)Tar WtrBlk3 | BQ6: (t-2)Tar WtrBlk4 | BR6: ActRev Total
AW7: =D7*Z7 -> 0 | AX7: =E7/100*AA7 -> 0 | AY7: =F7/100*AB7 -> 0 | AZ7: =G7/100*AC7 -> 0 | BA7: =H7/100*AD7 -> 0 | BB7: =I7/100*AE7 -> 0 | BC7: =J7/100*AF7 -> 0 | BD7: =K7/100*AG7 -> 0 | BE7: =L7/100*AH7 -> 0 | BF7: =M7*AI7 -> 0 | BG7: =N7*AJ7 -> 0 | BH7: =O7*AK7 -> 0 | BI7: =P7*AL7 -> 0 | BJ7: =Q7/100*AM7 -> 0 | BK7: =R7/100*AN7 -> 0 | BL7: =S7/100*AO7 -> 0 | BM7: =T7/100*AP7 -> 0 | BN7: =U7/100*AQ7 -> 0 | BO7: 0 | BP7: 0 | BQ7: 0 | BR7: =SUM(AW7:BQ7) -> 0
B8: Residential Single Rate | D8: 59.9699 | E8: 7.2725 | F8: 7.5448 | G8: 8.7003 | H8: 9.5971 | I8: 0 | J8: 0 | K8: 0 | L8: 0 | M8: 0 | N8: 0 | O8: 0 | P8: 0 | Q8: 0 | R8: 0 | S8: 0 | T8: 0 | U8: 0 | V8: 0 | W8: 0 | X8: 0 | Z8: 494144.5 | AA8: 1447276833 | AB8: 582901117.9 | AC8: 18823367.87 | AD8: 2185865.032 | AE8: -424.650006 | AF8: 0 | AG8: 0 | AH8: 0 | AI8: 0 | AJ8: 0 | AK8: 0 | AL8: 0 | AM8: 0 | AN8: 0 | AO8: 0 | AP8: 0 | AQ8: 0 | AR8: 0 | AS8: 0 | AT8: 0 | AW8: 29608150.41 | AX8: 105298423.3 | AY8: 43945870.65 | AZ8: 1642242.433 | BA8: 209887.7132 | BB8: -13.388057 | BC8: 0 | BD8: 0 | BE8: 0 | BF8: 0 | BG8: 0 | BH8: 0 | BI8: 0 | BJ8: 0 | BK8: 0 | BL8: 0 | BM8: 0 | BN8: 0 | BO8: 0 | BP8: 0 | BQ8: 0 | BR8: =SUM(AW8:BQ8) -> 180704561.1
B9: Climate Saver | D9: 0 | E9: 6.9188 | F9: 8.1709 | G9: 11.8939 | H9: 16 | I9: 3.275 | J9: 0 | K9: 0 | L9: 0 | M9: 0 | N9: 0 | O9: 0 | P9: 0 | Q9: 0 | R9: 0 | S9: 0 | T9: 0 | U9: 0 | V9: 0 | W9: 0 | X9: 0 | Z9: 17253.58333 | AA9: 7574411.121 | AB9: 2414309.641 | AC9: 81059.09656 | AD9: -0.8074525153 | AE9: 14892766.33 | AF9: 0 | AG9: 0 | AH9: 0 | AI9: 0 | AJ9: 0 | AK9: 0 | AL9: 0 | AM9: 0 | AN9: 0 | AO9: 0 | AP9: 0 | AQ9: 0 | AR9: 0 | AS9: 0 | AT9: 0 | AW9: 0 | AX9: 518291.6369 | AY9: 196670.635 | AZ9: 9590.450501 | BA9: -0.09531734707 | BB9: 491759.4268 | BC9: 0 | BD9: 0 | BE9: 0 | BF9: 0 | BG9: 0 | BH9: 0 | BI9: 0 | BJ9: 0 | BK9: 0 | BL9: 0 | BM9: 0 | BN9: 0 | BO9: 0 | BP9: 0 | BQ9: 0 | BR9: 1216312.054
B10: Climate Saver Interval | D10: 0 | E10: 6.9188 | F10: 8.1709 | G10: 11.8939 | H10: 16 | I10: 3.275 | J10: 0 | K10: 0 | L10: 0 | M10: 0 | N10: 0 | O10: 0 | P10: 0 | Q10: 0 | R10: 0 | S10: 0 | T10: 0 | U10: 0 | V10: 0 | W10: 0 | X10: 0 | Z10: 4683.916667 | AA10: 2212872.421 | AB10: 640958.2488 | AC10: 18573.72841 | AD10: 0 | AE10: 4540542.234 | AF10: 0 | AG10: 0 | AH10: 0 | AI10: 0 | AJ10: 0 | AK10: 0 | AL10: 0 | AM10: 0 | AN10: 0 | AO10: 0 | AP10: 0 | AQ10: 0 | AR10: 0 | AS10: 0 | AT10: 0 | AW10: 0 | AX10: 151052.0153 | AY10: 51813.89667 | AZ10: 2195.46107 | BA10: 0 | BB10: 150593.9827 | BC10: 0 | BD10: 0 | BE10: 0 | BF10: 0 | BG10: 0 | BH10: 0 | BI10: 0 | BJ10: 0 | BK10: 0 | BL10: 0 | BM10: 0 | BN10: 0 | BO10: 0 | BP10: 0 | BQ10: 0 | BR10: 355655.3558
B11: Residential - Flexible Pricing | D11: 48.7656 | E11: 0 | F11: 0 | G11: 0 | H11: 0 | I11: 0 | J11: 0 | K11: 0 | L11: 0 | M11: 0 | N11: 0 | O11: 0 | P11: 0 | Q11: 10.5755 | R11: 3.9116 | S11: 1.0534 | T11: 0 | U11: 10.5755 | V11: 3.9116 | W11: 1.0534 | X11: 0 | Z11: 1709.25 | AA11: 0 | AB11: 0 | AC11: 0 | AD11: 0 | AE11: -454.6394868 | AF11: 0 | AG11: 0 | AH11: 0 | AI11: 0 | AJ11: 0 | AK11: 0 | AL11: 0 | AM11: 727016.2397 | AN11: 1519792.015 | AO11: 1016119.596 | AP11: 0 | AQ11: 987120.1847 | AR11: 1619789.001 | AS11: 1344787.28 | AT11: 0 | AW11: 106184.6245 | AX11: 0 | AY11: 0 | AZ11: 0 | BA11: 0 | BB11: -11.628849 | BC11: 0 | BD11: 0 | BE11: 0 | BF11: 0 | BG11: 0 | BH11: 0 | BI11: 0 | BJ11: 76544.41793 | BK11: 59114.44608 | BL11: 10575.44259 | BM11: 0 | BN11: 104499.0558 | BO11: 63453.67525 | BP11: 14210.23746 | BQ11: 0 | BR11: 434570.2708
B12: Residential Docklands - Flexible Pricing | D12: 64.9776 | E12: 0 | F12: 0 | G12: 0 | H12: 0 | I12: 0 | J12: 0 | K12: 0 | L12: 0 | M12: 0 | N12: 0 | O12: 0 | P12: 0 | Q12: 10.0469 | R12: 3.8592 | S12: 1.001 | T12: 0 | U12: 10.0469 | V12: 3.8592 | W12: 1.001 | X12: 0 | Z12: 1 | AA12: 0 | AB12: 0 | AC12: 0 | AD12: 0 | AE12: 0 | AF12: 0 | AG12: 0 | AH12: 0 | AI12: 0 | AJ12: 0 | AK12: 0 | AL12: 0 | AM12: 940.2905452 | AN12: 1900.998513 | AO12: 1344.266273 | AP12: 0 | AQ12: 877.4213888 | AR12: 1482.957237 | AS12: 1014.172448 | AT12: 0 | AW12: 75.0859 | AX12: 0 | AY12: 0 | AZ12: 0 | BA12: 0 | BB12: 0 | BC12: 0 | BD12: 0 | BE12: 0 | BF12: 0 | BG12: 0 | BH12: 0 | BI12: 0 | BJ12: 91.61333431 | BK12: 70.40742334 | BL12: 12.3906681 | BM12: 0 | BN12: 88.2998379 | BO12: 57.23756808 | BP12: 10.16025479 | BQ12: 0 | BR12: 405.1949865
B13: Climate Saver - Flexible Pricing | D13: 0 | E13: 0 | F13: 0 | G13: 0 | H13: 0 | I13: 0 | J13: 0 | K13: 0 | L13: 0 | M13: 0 | N13: 0 | O13: 0 | P13: 0 | Q13: 6.9188 | R13: 0 | S13: 0 | T13: 0 | U13: 3.275 | V13: 0 | W13: 0 | X13: 0 | Z13: 0 | AA13: 0 | AB13: 0 | AC13: 0 | AD13: 0 | AE13: 0 | AF13: 0 | AG13: 0 | AH13: 0 | AI13: 0 | AJ13: 0 | AK13: 0 | AL13: 0 | AM13: 4117 | AN13: 0 | AO13: 0 | AP13: 0 | AQ13: 0 | AR13: 0 | AS13: 0 | AT13: 0 | AW13: 0 | AX13: 0 | AY13: 0 | AZ13: 0 | BA13: 0 | BB13: 0 | BC13: 0 | BD13: 0 | BE13: 0 | BF13: 0 | BG13: 0 | BH13: 0 | BI13: 0 | BJ13: 272.623605 | BK13: 0 | BL13: 0 | BM13: 0 | BN13: 0 | BO13: 0 | BP13: 0 | BQ13: 0 | BR13: 272.623605
B14: Docklands single rate | D14: 79.0979 | E14: 6.6823 | F14: 0 | G14: 0 | H14: 0 | I14: 0 | J14: 0 | K14: 0 | L14: 0 | M14: 0 | N14: 0 | O14: 0 | P14: 0 | Q14: 0 | R14: 0 | S14: 0 | T14: 0 | U14: 0 | V14: 0 | W14: 0 | X14: 0 | Z14: 0 | AA14: 0 | AB14: 0 | AC14: 0 | AD14: 0 | AE14: 0 | AF14: 0 | AG14: 0 | AH14: 0 | AI14: 0 | AJ14: 0 | AK14: 0 | AL14: 0 | AM14: 0 | AN14: 0 | AO14: 0 | AP14: 0 | AQ14: 0 | AR14: 0 | AS14: 0 | AT14: 0 | AW14: 0 | AX14: 0 | AY14: 0 | AZ14: 0 | BA14: 0 | BB14: 0 | BC14: 0 | BD14: 0 | BE14: 0 | BF14: 0 | BG14: 0 | BH14: 0 | BI14: 0 | BJ14: 0 | BK14: 0 | BL14: 0 | BM14: 0 | BN14: 0 | BO14: 0 | BP14: 0 | BQ14: 0 | BR14: 0
B15: Residential Two Rate 5d | D15: 74.0536 | E15: 11.159 | F15: 12.5665 | G15: 13.39 | H15: 17.0166 | I15: 1.3221 | J15: 0 | K15: 0 | L15: 0 | M15: 0 | N15: 0 | O15: 0 | P15: 0 | Q15: 0 | R15: 0 | S15: 0 | T15: 0 | U15: 0 | V15: 0 | W15: 0 | X15: 0 | Z15: 45993.16667 | AA15: 103189365.8 | AB15: 21183211.29 | AC15: 648654.0654 | AD15: 36778.31085 | AE15: 162022880.9 | AF15: 0 | AG15: 0 | AH15: 0 | AI15: 0 | AJ15: 0 | AK15: 0 | AL15: 0 | AM15: 0 | AN15: 0 | AO15: 0 | AP15: 0 | AQ15: 0 | AR15: 0 | AS15: 0 | AT15: 0 | AW15: 3394852.443 | AX15: 11519188 | AY15: 2665646.2 | AZ15: 86864.01519 | BA15: 5978.366012 | BB15: 2158370.619 | BC15: 0 | BD15: 0 | BE15: 0 | BF15: 0 | BG15: 0 | BH15: 0 | BI15: 0 | BJ15: 0 | BK15: 0 | BL15: 0 | BM15: 0 | BN15: 0 | BO15: 0 | BP15: 0 | BQ15: 0 | BR15: 19830899.64
B16: Docklands Two Rate 5d | D16: 79.0979 | E16: 12.805 | F16: 14.5433 | G16: 14.6434 | H16: 17.0202 | I16: 1.3576 | J16: 0 | K16: 0 | L16: 0 | M16: 0 | N16: 0 | O16: 0 | P16: 0 | Q16: 0 | R16: 0 | S16: 0 | T16: 0 | U16: 0 | V16: 0 | W16: 0 | X16: 0 | Z16: 588.25 | AA16: 1573601.209 | AB16: 243069.4936 | AC16: 40797.76722 | AD16: -1.348366296 | AE16: 1766086.466 | AF16: 0 | AG16: 0 | AH16: 0 | AI16: 0 | AJ16: 0 | AK16: 0 | AL16: 0 | AM16: 0 | AN16: 0 | AO16: 0 | AP16: 0 | AQ16: 0 | AR16: 0 | AS16: 0 | AT16: 0 | AW16: 46634.82174 | AX16: 201847.6896 | AY16: 35605.43069 | AZ16: 5969.848486 | BA16: -0.2001016034 | BB16: 23912.42473 | BC16: 0 | BD16: 0 | BE16: 0 | BF16: 0 | BG16: 0 | BH16: 0 | BI16: 0 | BJ16: 0 | BK16: 0 | BL16: 0 | BM16: 0 | BN16: 0 | BO16: 0 | BP16: 0 | BQ16: 0 | BR16: 313970.0151
B17: Residential Interval | D17: 74.0536 | E17: 11.159 | F17: 12.5665 | G17: 13.39 | H17: 17.0166 | I17: 1.3221 | J17: 0 | K17: 0 | L17: 0 | M17: 0 | N17: 0 | O17: 0 | P17: 0 | Q17: 0 | R17: 0 | S17: 0 | T17: 0 | U17: 0 | V17: 0 | W17: 0 | X17: 0 | Z17: 108947.8333 | AA17: 222417090.4 | AB17: 38733959.44 | AC17: 1528840.717 | AD17: 54583.25017 | AE17: 272064646 | AF17: 0 | AG17: 0 | AH17: 0 | AI17: 0 | AJ17: 0 | AK17: 0 | AL17: 0 | AM17: 0 | AN17: 0 | AO17: 0 | AP17: 0 | AQ17: 0 | AR17: 0 | AS17: 0 | AT17: 0 | AW17: 8065632.208 | AX17: 24830458.18 | AY17: 4868400.781 | AZ17: 204713.6218 | BA17: 9262.895754 | BB17: 3615518.882 | BC17: 0 | BD17: 0 | BE17: 0 | BF17: 0 | BG17: 0 | BH17: 0 | BI17: 0 | BJ17: 0 | BK17: 0 | BL17: 0 | BM17: 0 | BN17: 0 | BO17: 0 | BP17: 0 | BQ17: 0 | BR17: 41593986.57
B18: Residential Two Rate 5d - controlled load | D18: 0 | E18: 0 | F18: 0 | G18: 0 | H18: 0 | I18: 1.3221 | J18: 0 | K18: 0 | L18: 0 | M18: 0 | N18: 0 | O18: 0 | P18: 0 | Q18: 0 | R18: 0 | S18: 0 | T18: 0 | U18: 0 | V18: 0 | W18: 0 | X18: 0 | Z18: 14459.33333 | AA18: 0 | AB18: 0 | AC18: 0 | AD18: 0 | AE18: 43150474.84 | AF18: 0 | AG18: 0 | AH18: 0 | AI18: 0 | AJ18: 0 | AK18: 0 | AL18: 0 | AM18: 0 | AN18: 0 | AO18: 0 | AP18: 0 | AQ18: 0 | AR18: 0 | AS18: 11635.6812 | AT18: 0 | AW18: 0 | AX18: 0 | AY18: 0 | AZ18: 0 | BA18: 0 | BB18: 569605.5713 | BC18: 0 | BD18: 0 | BE18: 0 | BF18: 0 | BG18: 0 | BH18: 0 | BI18: 0 | BJ18: 0 | BK18: 0 | BL18: 0 | BM18: 0 | BN18: 0 | BO18: 0 | BP18: 290.172 | BQ18: 0 | BR18: 569895.7433
B19: Docklands Two Rate 5d - controlled load | D19: 0 | E19: 0 | F19: 0 | G19: 0 | H19: 0 | I19: 1.3576 | J19: 0 | K19: 0 | L19: 0 | M19: 0 | N19: 0 | O19: 0 | P19: 0 | Q19: 0 | R19: 0 | S19: 0 | T19: 0 | U19: 0 | V19: 0 | W19: 0 | X19: 0 | Z19: 23.58333333 | AA19: 0 | AB19: 0 | AC19: 0 | AD19: 0 | AE19: 58046.45044 | AF19: 0 | AG19: 0 | AH19: 0 | AI19: 0 | AJ19: 0 | AK19: 0 | AL19: 0 | AM19: 0 | AN19: 0 | AO19: 0 | AP19: 0 | AQ19: 0 | AR19: 0 | AS19: 0 | AT19: 0 | AW19: 0 | AX19: 0 | AY19: 0 | AZ19: 0 | BA19: 0 | BB19: 787.9781642 | BC19: 0 | BD19: 0 | BE19: 0 | BF19: 0 | BG19: 0 | BH19: 0 | BI19: 0 | BJ19: 0 | BK19: 0 | BL19: 0 | BM19: 0 | BN19: 0 | BO19: 0 | BP19: 0 | BQ19: 0 | BR19: 787.9781642
B20: Dedicated circuit | D20: 0 | E20: 0 | F20: 0 | G20: 0 | H20: 0 | I20: 0.2954 | J20: 0 | K20: 0 | L20: 0 | M20: 0 | N20: 0 | O20: 0 | P20: 0 | Q20: 0 | R20: 0 | S20: 0 | T20: 0 | U20: 0 | V20: 0 | W20: 0 | X20: 0 | Z20: 161727.4167 | AA20: 0 | AB20: 0 | AC20: 0 | AD20: 0 | AE20: 328145182.1 | AF20: 0 | AG20: 0 | AH20: 0 | AI20: 0 | AJ20: 0 | AK20: 0 | AL20: 0 | AM20: 0 | AN20: 0 | AO20: 521.52 | AP20: 0 | AQ20: 0 | AR20: 0 | AS20: 95934.8712 | AT20: 0 | AW20: 0 | AX20: 0 | AY20: 0 | AZ20: 0 | BA20: 0 | BB20: 998285.26 | BC20: 0 | BD20: 0 | BE20: 0 | BF20: 0 | BG20: 0 | BH20: 0 | BI20: 0 | BJ20: 0 | BK20: 0 | BL20: 13.452 | BM20: 0 | BN20: 0 | BO20: 0 | BP20: 2472.36 | BQ20: 0 | BR20: 1000771.072
B21: Hot Water Interval | D21: 0 | E21: 0 | F21: 0 | G21: 0 | H21: 0 | I21: 0.2954 | J21: 0 | K21: 0 | L21: 0 | M21: 0 | N21: 0 | O21: 0 | P21: 0 | Q21: 0 | R21: 0 | S21: 0 | T21: 0 | U21: 0 | V21: 0 | W21: 0 | X21: 0 | Z21: 5573.083333 | AA21: -9.4947368 | AB21: 0 | AC21: 0 | AD21: 0 | AE21: 10374744.91 | AF21: 0 | AG21: 0 | AH21: 0 | AI21: 0 | AJ21: 0 | AK21: 0 | AL21: 0 | AM21: 0 | AN21: 0 | AO21: 0 | AP21: 0 | AQ21: 0 | AR21: 0 | AS21: 670.662 | AT21: 0 | AW21: 0 | AX21: -0.9295062 | AY21: 0 | AZ21: 0 | BA21: 0 | BB21: 32695.98294 | BC21: 0 | BD21: 0 | BE21: 0 | BF21: 0 | BG21: 0 | BH21: 0 | BI21: 0 | BJ21: 0 | BK21: 0 | BL21: 0 | BM21: 0 | BN21: 0 | BO21: 0 | BP21: 17.292 | BQ21: 0 | BR21: 32712.34543
B22: Non-Residential Single Rate | D22: 58.8415 | E22: 8.0575 | F22: 9.5503 | G22: 11.3099 | H22: 11.41 | I22: 0 | J22: 0 | K22: 0 | L22: 0 | M22: 0 | N22: 0 | O22: 0 | P22: 0 | Q22: 0 | R22: 0 | S22: 0 | T22: 0 | U22: 0 | V22: 0 | W22: 0 | X22: 0 | Z22: 41710.08333 | AA22: 82881661.12 | AB22: 105137732.8 | AC22: 58705805.45 | AD22: 21577696.19 | AE22: 0 | AF22: 0 | AG22: 0 | AH22: 0 | AI22: 0 | AJ22: 0 | AK22: 0 | AL22: 0 | AM22: 0 | AN22: 0 | AO22: 0 | AP22: 0 | AQ22: 0 | AR22: 0 | AS22: 0 | AT22: 0 | AW22: 2447423.398 | AX22: 6681565.013 | AY22: 10046822.75 | AZ22: 6648412.666 | BA22: 2461943.959 | BB22: 0 | BC22: 0 | BD22: 0 | BE22: 0 | BF22: 0 | BG22: 0 | BH22: 0 | BI22: 0 | BJ22: 0 | BK22: 0 | BL22: 0 | BM22: 0 | BN22: 0 | BO22: 0 | BP22: 0 | BQ22: 0 | BR22: 28286167.79
B23: Non-Residential | D23: 58.8415 | E23: 0 | F23: 0 | G23: 0 | H23: 0 | I23: 0 | J23: 0 | K23: 0 | L23: 0 | M23: 0 | N23: 0 | O23: 0 | P23: 0 | Q23: 8.4605 | R23: 3.1295 | S23: 0.843 | T23: 0 | U23: 8.4605 | V23: 3.1295 | W23: 0.843 | X23: 0 | Z23: 73.5 | AA23: 0 | AB23: 0 | AC23: 0 | AD23: 0 | AE23: 0 | AF23: 0 | AG23: 0 | AH23: 0 | AI23: 0 | AJ23: 0 | AK23: 0 | AL23: 0 | AM23: 1448099.955 | AN23: 543067.1681 | AO23: 1525141.224 | AP23: 0 | AQ23: 1129244.936 | AR23: 334150.1161 | AS23: 1067044.207 | AT23: 0 | AW23: 5992.43796 | AX23: 0 | AY23: 0 | AZ23: 0 | BA23: 0 | BB23: 0 | BC23: 0 | BD23: 0 | BE23: 0 | BF23: 0 | BG23: 0 | BH23: 0 | BI23: 0 | BJ23: 122516.2509 | BK23: 16995.25354 | BL23: 12856.74785 | BM23: 0 | BN23: 95540.12669 | BO23: 10457.31387 | BP23: 8995.381213 | BQ23: 0 | BR23: 273353.512
B24: Non-Residential Two Rate 5d | D24: 74.8121 | E24: 12.9688 | F24: 13.0688 | G24: 13.1688 | H24: 13.3182 | I24: 0.93 | J24: 0 | K24: 0 | L24: 0 | M24: 0 | N24: 0 | O24: 0 | P24: 0 | Q24: 0 | R24: 0 | S24: 0 | T24: 0 | U24: 0 | V24: 0 | W24: 0 | X24: 0 | Z24: 31399.41667 | AA24: 86185647.07 | AB24: 196284237.9 | AC24: 203945550.4 | AD24: 124077072.2 | AE24: 530023019 | AF24: 0 | AG24: 0 | AH24: 0 | AI24: 0 | AJ24: 0 | AK24: 0 | AL24: 0 | AM24: 0 | AN24: 0 | AO24: 0 | AP24: 0 | AQ24: 0 | AR24: 0 | AS24: 0 | AT24: 0 | AW24: 2344926.38 | AX24: 11206745.67 | AY24: 25701178.07 | AZ24: 26923064.19 | BA24: 16522642.14 | BB24: 4926050.464 | BC24: 0 | BD24: 0 | BE24: 0 | BF24: 0 | BG24: 0 | BH24: 0 | BI24: 0 | BJ24: 0 | BK24: 0 | BL24: 0 | BM24: 0 | BN24: 0 | BO24: 0 | BP24: 0 | BQ24: 0 | BR24: 87624606.91
B25: Non-Residential Interval | D25: 74.8121 | E25: 12.9688 | F25: 13.0688 | G25: 13.1688 | H25: 13.3182 | I25: 0.93 | J25: 0 | K25: 0 | L25: 0 | M25: 0 | N25: 0 | O25: 0 | P25: 0 | Q25: 0 | R25: 0 | S25: 0 | T25: 0 | U25: 0 | V25: 0 | W25: 0 | X25: 0 | Z25: 14878.83333 | AA25: 37806383.47 | AB25: 75261661.59 | AC25: 75772608.48 | AD25: 41993191.56 | AE25: 164326918.4 | AF25: 0 | AG25: 0 | AH25: 0 | AI25: 0 | AJ25: 0 | AK25: 0 | AL25: 0 | AM25: 0 | AN25: 0 | AO25: 0 | AP25: 0 | AQ25: 0 | AR25: 0 | AS25: 0 | AT25: 0 | AW25: 1113403.238 | AX25: 4909937.755 | AY25: 9846462.975 | AZ25: 9983126.162 | BA25: 5592936.974 | BB25: 1528026.674 | BC25: 0 | BD25: 0 | BE25: 0 | BF25: 0 | BG25: 0 | BH25: 0 | BI25: 0 | BJ25: 0 | BK25: 0 | BL25: 0 | BM25: 0 | BN25: 0 | BO25: 0 | BP25: 0 | BQ25: 0 | BR25: 32973893.78
B26: Non-Residential Two Rate 7d | D26: 78.8172 | E26: 8.117 | F26: 8.8204 | G26: 10.1223 | H26: 11.2369 | I26: 1.0282 | J26: 0 | K26: 0 | L26: 0 | M26: 0 | N26: 0 | O26: 0 | P26: 0 | Q26: 0 | R26: 0 | S26: 0 | T26: 0 | U26: 0 | V26: 0 | W26: 0 | X26: 0 | Z26: 8563.75 | AA26: 21041916.07 | AB26: 40747040.14 | AC26: 36370332.91 | AD26: 29298026.07 | AE26: 47533396.76 | AF26: 0 | AG26: 0 | AH26: 0 | AI26: 0 | AJ26: 0 | AK26: 0 | AL26: 0 | AM26: 0 | AN26: 0 | AO26: 0 | AP26: 0 | AQ26: 0 | AR26: 0 | AS26: 0 | AT26: 0 | AW26: 673963.5184 | AX26: 1711208.634 | AY26: 3600446.878 | AZ26: 3682449.641 | BA26: 3290327.671 | BB26: 488323.4468 | BC26: 0 | BD26: 0 | BE26: 0 | BF26: 0 | BG26: 0 | BH26: 0 | BI26: 0 | BJ26: 0 | BK26: 0 | BL26: 0 | BM26: 0 | BN26: 0 | BO26: 0 | BP26: 0 | BQ26: 0 | BR26: 13446719.79
B27: Public Lighting | D27: 0 | E27: 11.46 | F27: 0 | G27: 0 | H27: 0 | I27: 2.8959 | J27: 0 | K27: 0 | L27: 0 | M27: 0 | N27: 0 | O27: 0 | P27: 0 | Q27: 0 | R27: 0 | S27: 0 | T27: 0 | U27: 0 | V27: 0 | W27: 0 | X27: 0 | Z27: 6360.416667 | AA27: 30129258.54 | AB27: 0 | AC27: 0 | AD27: 0 | AE27: 74503657.92 | AF27: 0 | AG27: 0 | AH27: 0 | AI27: 0 | AJ27: 0 | AK27: 0 | AL27: 0 | AM27: 0 | AN27: 0 | AO27: 0 | AP27: 0 | AQ27: 0 | AR27: 0 | AS27: 0 | AT27: 0 | AW27: 0 | AX27: 3523180.568 | AY27: 0 | AZ27: 0 | BA27: 0 | BB27: 2049043.431 | BC27: 0 | BD27: 0 | BE27: 0 | BF27: 0 | BG27: 0 | BH27: 0 | BI27: 0 | BJ27: 0 | BK27: 0 | BL27: 0 | BM27: 0 | BN27: 0 | BO27: 0 | BP27: 0 | BQ27: 0 | BR27: 5572223.999
B28: Large Low Voltage Demand | D28: 0 | E28: 2.5198 | F28: 0 | G28: 0 | H28: 0 | I28: 1.5378 | J28: 0 | K28: 0 | L28: 0 | M28: 79.4199 | N28: 0 | O28: 0 | P28: 0 | Q28: 0 | R28: 0 | S28: 0 | T28: 0 | U28: 0 | V28: 0 | W28: 0 | X28: 0 | Z28: 904.8333333 | AA28: 659319087.3 | AB28: 0 | AC28: 0 | AD28: 0 | AE28: 513944294.6 | AF28: 0 | AG28: 0 | AH28: 0 | AI28: 437074.363 | AJ28: 0 | AK28: 0 | AL28: 0 | AM28: 0 | AN28: 0 | AO28: 0 | AP28: 0 | AQ28: 0 | AR28: 0 | AS28: 0 | AT28: 0 | AW28: 0 | AX28: 16626069.69 | AY28: 0 | AZ28: 0 | BA28: 0 | BB28: 7909070.377 | BC28: 0 | BD28: 0 | BE28: 0 | BF28: 33158632.4 | BG28: 0 | BH28: 0 | BI28: 0 | BJ28: 0 | BK28: 0 | BL28: 0 | BM28: 0 | BN28: 0 | BO28: 0 | BP28: 0 | BQ28: 0 | BR28: 57693772.47
B29: Large Low Voltage Demand A | D29: 0 | E29: 2.5198 | F29: 0 | G29: 0 | H29: 0 | I29: 1.5378 | J29: 0 | K29: 0 | L29: 0 | M29: 79.4199 | N29: 0 | O29: 0 | P29: 0 | Q29: 0 | R29: 0 | S29: 0 | T29: 0 | U29: 0 | V29: 0 | W29: 0 | X29: 0 | Z29: 0 | AA29: 0 | AB29: 0 | AC29: 0 | AD29: 0 | AE29: 0 | AF29: 0 | AG29: 0 | AH29: 0 | AI29: 0 | AJ29: 0 | AK29: 0 | AL29: 0 | AM29: 0 | AN29: 0 | AO29: 0 | AP29: 0 | AQ29: 0 | AR29: 0 | AS29: 0 | AT29: 0 | AW29: 0 | AX29: 0 | AY29: 0 | AZ29: 0 | BA29: 0 | BB29: 0 | BC29: 0 | BD29: 0 | BE29: 0 | BF29: 0 | BG29: 0 | BH29: 0 | BI29: 0 | BJ29: 0 | BK29: 0 | BL29: 0 | BM29: 0 | BN29: 0 | BO29: 0 | BP29: 0 | BQ29: 0 | BR29: 0
B30: Large Low Voltage Demand C | D30: 0 | E30: 2.5297 | F30: 0 | G30: 0 | H30: 0 | I30: 1.4298 | J30: 0 | K30: 0 | L30: 0 | M30: 75.7473 | N30: 0 | O30: 0 | P30: 0 | Q30: 0 | R30: 0 | S30: 0 | T30: 0 | U30: 0 | V30: 0 | W30: 0 | X30: 0 | Z30: 432.6666667 | AA30: 341591156.5 | AB30: 0 | AC30: 0 | AD30: 0 | AE30: 243779945.3 | AF30: 0 | AG30: 0 | AH30: 0 | AI30: 203818.0555 | AJ30: 0 | AK30: 0 | AL30: 0 | AM30: 0 | AN30: 0 | AO30: 0 | AP30: 0 | AQ30: 0 | AR30: 0 | AS30: 0 | AT30: 0 | AW30: 0 | AX30: 8648937.093 | AY30: 0 | AZ30: 0 | BA30: 0 | BB30: 3487894.237 | BC30: 0 | BD30: 0 | BE30: 0 | BF30: 14840782.28 | BG30: 0 | BH30: 0 | BI30: 0 | BJ30: 0 | BK30: 0 | BL30: 0 | BM30: 0 | BN30: 0 | BO30: 0 | BP30: 0 | BQ30: 0 | BR30: 26977613.61
B31: Large Low Voltage Demand S | D31: 0 | E31: 2.8224 | F31: 0 | G31: 0 | H31: 0 | I31: 1.6873 | J31: 0 | K31: 0 | L31: 0 | M31: 82.3544 | N31: 0 | O31: 0 | P31: 0 | Q31: 0 | R31: 0 | S31: 0 | T31: 0 | U31: 0 | V31: 0 | W31: 0 | X31: 0 | Z31: 47.83333333 | AA31: 14865403.61 | AB31: 0 | AC31: 0 | AD31: 0 | AE31: 10359294.43 | AF31: 0 | AG31: 0 | AH31: 0 | AI31: 11663.77868 | AJ31: 0 | AK31: 0 | AL31: 0 | AM31: 0 | AN31: 0 | AO31: 0 | AP31: 0 | AQ31: 0 | AR31: 0 | AS31: 0 | AT31: 0 | AW31: 0 | AX31: 419656.7332 | AY31: 0 | AZ31: 0 | BA31: 0 | BB31: 174813.9319 | BC31: 0 | BD31: 0 | BE31: 0 | BF31: 942104.6181 | BG31: 0 | BH31: 0 | BI31: 0 | BJ31: 0 | BK31: 0 | BL31: 0 | BM31: 0 | BN31: 0 | BO31: 0 | BP31: 0 | BQ31: 0 | BR31: 1536575.283
B32: Large Low Voltage Demand Docklands | D32: 0 | E32: 1.6927 | F32: 0 | G32: 0 | H32: 0 | I32: 1.4606 | J32: 0 | K32: 0 | L32: 0 | M32: 67.3431 | N32: 0 | O32: 0 | P32: 0 | Q32: 0 | R32: 0 | S32: 0 | T32: 0 | U32: 0 | V32: 0 | W32: 0 | X32: 0 | Z32: 7.916666667 | AA32: 2924409.718 | AB32: 0 | AC32: 0 | AD32: 0 | AE32: 3045910.718 | AF32: 0 | AG32: 0 | AH32: 0 | AI32: 1256.160767 | AJ32: 0 | AK32: 0 | AL32: 0 | AM32: 0 | AN32: 0 | AO32: 0 | AP32: 0 | AQ32: 0 | AR32: 0 | AS32: 0 | AT32: 0 | AW32: 0 | AX32: 49509.81387 | AY32: 0 | AZ32: 0 | BA32: 0 | BB32: 44524.33552 | BC32: 0 | BD32: 0 | BE32: 0 | BF32: 72767.72098 | BG32: 0 | BH32: 0 | BI32: 0 | BJ32: 0 | BK32: 0 | BL32: 0 | BM32: 0 | BN32: 0 | BO32: 0 | BP32: 0 | BQ32: 0 | BR32: 166801.8704
B33: Large Low Voltage Demand CXX | D33: 0 | E33: 2.9468 | F33: 0 | G33: 0 | H33: 0 | I33: 1.761 | J33: 0 | K33: 0 | L33: 0 | M33: 90.1108 | N33: 0 | O33: 0 | P33: 0 | Q33: 0 | R33: 0 | S33: 0 | T33: 0 | U33: 0 | V33: 0 | W33: 0 | X33: 0 | Z33: 1106.75 | AA33: 252188819.1 | AB33: 0 | AC33: 0 | AD33: 0 | AE33: 186270920 | AF33: 0 | AG33: 0 | AH33: 0 | AI33: 178698.3556 | AJ33: 0 | AK33: 0 | AL33: 0 | AM33: 0 | AN33: 0 | AO33: 0 | AP33: 0 | AQ33: 0 | AR33: 0 | AS33: 0 | AT33: 0 | AW33: 0 | AX33: 7432748.479 | AY33: 0 | AZ33: 0 | BA33: 0 | BB33: 3280563.386 | BC33: 0 | BD33: 0 | BE33: 0 | BF33: 15642070.45 | BG33: 0 | BH33: 0 | BI33: 0 | BJ33: 0 | BK33: 0 | BL33: 0 | BM33: 0 | BN33: 0 | BO33: 0 | BP33: 0 | BQ33: 0 | BR33: 26355382.32
B34: Large Low Voltage Demand EN.R | D34: 0 | E34: 2.7898 | F34: 0 | G34: 0 | H34: 0 | I34: 1.7182 | J34: 0 | K34: 0 | L34: 0 | M34: 86.8396 | N34: 0 | O34: 0 | P34: 0 | Q34: 0 | R34: 0 | S34: 0 | T34: 0 | U34: 0 | V34: 0 | W34: 0 | X34: 0 | Z34: 1 | AA34: 151747.936 | AB34: 0 | AC34: 0 | AD34: 0 | AE34: 54000.7336 | AF34: 0 | AG34: 0 | AH34: 0 | AI34: 291.6666667 | AJ34: 0 | AK34: 0 | AL34: 0 | AM34: 0 | AN34: 0 | AO34: 0 | AP34: 0 | AQ34: 0 | AR34: 0 | AS34: 0 | AT34: 0 | AW34: 0 | AX34: 4233.447728 | AY34: 0 | AZ34: 0 | BA34: 0 | BB34: 927.844653 | BC34: 0 | BD34: 0 | BE34: 0 | BF34: 23958.65083 | BG34: 0 | BH34: 0 | BI34: 0 | BJ34: 0 | BK34: 0 | BL34: 0 | BM34: 0 | BN34: 0 | BO34: 0 | BP34: 0 | BQ34: 0 | BR34: 29119.94321
B35: Large Low Voltage Demand EN.NR | D35: 0 | E35: 2.7898 | F35: 0 | G35: 0 | H35: 0 | I35: 1.7182 | J35: 0 | K35: 0 | L35: 0 | M35: 86.8396 | N35: 0 | O35: 0 | P35: 0 | Q35: 0 | R35: 0 | S35: 0 | T35: 0 | U35: 0 | V35: 0 | W35: 0 | X35: 0 | Z35: 24.16666667 | AA35: 32398135.27 | AB35: 0 | AC35: 0 | AD35: 0 | AE35: 20555709.52 | AF35: 0 | AG35: 0 | AH35: 0 | AI35: 19127.53288 | AJ35: 0 | AK35: 0 | AL35: 0 | AM35: 0 | AN35: 0 | AO35: 0 | AP35: 0 | AQ35: 0 | AR35: 0 | AS35: 0 | AT35: 0 | AW35: 0 | AX35: 902953.2536 | AY35: 0 | AZ35: 0 | BA35: 0 | BB35: 352799.6435 | BC35: 0 | BD35: 0 | BE35: 0 | BF35: 1547003.438 | BG35: 0 | BH35: 0 | BI35: 0 | BJ35: 0 | BK35: 0 | BL35: 0 | BM35: 0 | BN35: 0 | BO35: 0 | BP35: 0 | BQ35: 0 | BR35: 2802756.335
B36: Large Low Voltage Demand EN.R CXX | D36: 0 | E36: 2.7898 | F36: 0 | G36: 0 | H36: 0 | I36: 2.2627 | J36: 0 | K36: 0 | L36: 0 | M36: 91.1369 | N36: 0 | O36: 0 | P36: 0 | Q36: 0 | R36: 0 | S36: 0 | T36: 0 | U36: 0 | V36: 0 | W36: 0 | X36: 0 | Z36: 2.083333333 | AA36: 1197077.768 | AB36: 0 | AC36: 0 | AD36: 0 | AE36: 537188.2163 | AF36: 0 | AG36: 0 | AH36: 0 | AI36: 674.0195833 | AJ36: 0 | AK36: 0 | AL36: 0 | AM36: 0 | AN36: 0 | AO36: 0 | AP36: 0 | AQ36: 0 | AR36: 0 | AS36: 0 | AT36: 0 | AW36: 0 | AX36: 33489.90409 | AY36: 0 | AZ36: 0 | BA36: 0 | BB36: 12182.29176 | BC36: 0 | BD36: 0 | BE36: 0 | BF36: 60165.51108 | BG36: 0 | BH36: 0 | BI36: 0 | BJ36: 0 | BK36: 0 | BL36: 0 | BM36: 0 | BN36: 0 | BO36: 0 | BP36: 0 | BQ36: 0 | BR36: 105837.7069
B37: Large Low Voltage Demand EN.NRCXX | D37: 0 | E37: 2.7898 | F37: 0 | G37: 0 | H37: 0 | I37: 2.2627 | J37: 0 | K37: 0 | L37: 0 | M37: 91.1369 | N37: 0 | O37: 0 | P37: 0 | Q37: 0 | R37: 0 | S37: 0 | T37: 0 | U37: 0 | V37: 0 | W37: 0 | X37: 0 | Z37: 6.916666667 | AA37: 2711408.526 | AB37: 0 | AC37: 0 | AD37: 0 | AE37: 1691251.956 | AF37: 0 | AG37: 0 | AH37: 0 | AI37: 1734.095822 | AJ37: 0 | AK37: 0 | AL37: 0 | AM37: 0 | AN37: 0 | AO37: 0 | AP37: 0 | AQ37: 0 | AR37: 0 | AS37: 0 | AT37: 0 | AW37: 0 | AX37: 75330.12542 | AY37: 0 | AZ37: 0 | BA37: 0 | BB37: 38168.24311 | BC37: 0 | BD37: 0 | BE37: 0 | BF37: 151939.5864 | BG37: 0 | BH37: 0 | BI37: 0 | BJ37: 0 | BK37: 0 | BL37: 0 | BM37: 0 | BN37: 0 | BO37: 0 | BP37: 0 | BQ37: 0 | BR37: 265437.9549
B38: High Voltage Demand | D38: 0 | E38: 1.0744 | F38: 0 | G38: 0 | H38: 0 | I38: 0.2887 | J38: 0 | K38: 0 | L38: 0 | M38: 81.5923 | N38: 0 | O38: 0 | P38: 0 | Q38: 0 | R38: 0 | S38: 0 | T38: 0 | U38: 0 | V38: 0 | W38: 0 | X38: 0 | Z38: 118 | AA38: 513734520.5 | AB38: 0 | AC38: 0 | AD38: 0 | AE38: 461657325.4 | AF38: 0 | AG38: 0 | AH38: 0 | AI38: 265224.6059 | AJ38: 0 | AK38: 0 | AL38: 0 | AM38: 0 | AN38: 0 | AO38: 0 | AP38: 0 | AQ38: 0 | AR38: 0 | AS38: 0 | AT38: 0 | AW38: 0 | AX38: 5526245.441 | AY38: 0 | AZ38: 0 | BA38: 0 | BB38: 1333976.11 | BC38: 0 | BD38: 0 | BE38: 0 | BF38: 21229662.53 | BG38: 0 | BH38: 0 | BI38: 0 | BJ38: 0 | BK38: 0 | BL38: 0 | BM38: 0 | BN38: 0 | BO38: 0 | BP38: 0 | BQ38: 0 | BR38: 28089884.08
B39: High Voltage Demand A | D39: 0 | E39: 0.6213 | F39: 0 | G39: 0 | H39: 0 | I39: 0.186 | J39: 0 | K39: 0 | L39: 0 | M39: 44.0102 | N39: 0 | O39: 0 | P39: 0 | Q39: 0 | R39: 0 | S39: 0 | T39: 0 | U39: 0 | V39: 0 | W39: 0 | X39: 0 | Z39: 3.166666667 | AA39: 5867874.995 | AB39: 0 | AC39: 0 | AD39: 0 | AE39: 5936497.82 | AF39: 0 | AG39: 0 | AH39: 0 | AI39: 3945.666667 | AJ39: 0 | AK39: 0 | AL39: 0 | AM39: 0 | AN39: 0 | AO39: 0 | AP39: 0 | AQ39: 0 | AR39: 0 | AS39: 0 | AT39: 0 | AW39: 0 | AX39: 36459.46036 | AY39: 0 | AZ39: 0 | BA39: 0 | BB39: 11039.37532 | BC39: 0 | BD39: 0 | BE39: 0 | BF39: 161820.8417 | BG39: 0 | BH39: 0 | BI39: 0 | BJ39: 0 | BK39: 0 | BL39: 0 | BM39: 0 | BN39: 0 | BO39: 0 | BP39: 0 | BQ39: 0 | BR39: 209319.6774
B40: High Voltage Demand C | D40: 0 | E40: 1.0688 | F40: 0 | G40: 0 | H40: 0 | I40: 0.2848 | J40: 0 | K40: 0 | L40: 0 | M40: 79.1458 | N40: 0 | O40: 0 | P40: 0 | Q40: 0 | R40: 0 | S40: 0 | T40: 0 | U40: 0 | V40: 0 | W40: 0 | X40: 0 | Z40: 40.91666667 | AA40: 226586139 | AB40: 0 | AC40: 0 | AD40: 0 | AE40: 194921731.7 | AF40: 0 | AG40: 0 | AH40: 0 | AI40: 113184.329 | AJ40: 0 | AK40: 0 | AL40: 0 | AM40: 0 | AN40: 0 | AO40: 0 | AP40: 0 | AQ40: 0 | AR40: 0 | AS40: 0 | AT40: 0 | AW40: 0 | AX40: 2424223.663 | AY40: 0 | AZ40: 0 | BA40: 0 | BB40: 555207.9307 | BC40: 0 | BD40: 0 | BE40: 0 | BF40: 8817196.278 | BG40: 0 | BH40: 0 | BI40: 0 | BJ40: 0 | BK40: 0 | BL40: 0 | BM40: 0 | BN40: 0 | BO40: 0 | BP40: 0 | BQ40: 0 | BR40: 11796627.87
B41: High Voltage Demand D1 | D41: 0 | E41: 0.2221 | F41: 0 | G41: 0 | H41: 0 | I41: 0.0693 | J41: 0 | K41: 0 | L41: 0 | M41: 50.8989 | N41: 0 | O41: 0 | P41: 0 | Q41: 0 | R41: 0 | S41: 0 | T41: 0 | U41: 0 | V41: 0 | W41: 0 | X41: 0 | Z41: 1 | AA41: 79161602.68 | AB41: 0 | AC41: 0 | AD41: 0 | AE41: 86936793.64 | AF41: 0 | AG41: 0 | AH41: 0 | AI41: 22257.97816 | AJ41: 0 | AK41: 0 | AL41: 0 | AM41: 0 | AN41: 0 | AO41: 0 | AP41: 0 | AQ41: 0 | AR41: 0 | AS41: 0 | AT41: 0 | AW41: 0 | AX41: 176156.8033 | AY41: 0 | AZ41: 0 | BA41: 0 | BB41: 60371.57559 | BC41: 0 | BD41: 0 | BE41: 0 | BF41: 1133135.889 | BG41: 0 | BH41: 0 | BI41: 0 | BJ41: 0 | BK41: 0 | BL41: 0 | BM41: 0 | BN41: 0 | BO41: 0 | BP41: 0 | BQ41: 0 | BR41: 1369664.268
B42: High Voltage Demand D2 | D42: 0 | E42: 0.0941 | F42: 0 | G42: 0 | H42: 0 | I42: 0.0935 | J42: 0 | K42: 0 | L42: 0 | M42: 58.1707 | N42: 0 | O42: 0 | P42: 0 | Q42: 0 | R42: 0 | S42: 0 | T42: 0 | U42: 0 | V42: 0 | W42: 0 | X42: 0 | Z42: 1 | AA42: 37358613.25 | AB42: 0 | AC42: 0 | AD42: 0 | AE42: 40911736.95 | AF42: 0 | AG42: 0 | AH42: 0 | AI42: 12577.61866 | AJ42: 0 | AK42: 0 | AL42: 0 | AM42: 0 | AN42: 0 | AO42: 0 | AP42: 0 | AQ42: 0 | AR42: 0 | AS42: 0 | AT42: 0 | AW42: 0 | AX42: 35526.60346 | AY42: 0 | AZ42: 0 | BA42: 0 | BB42: 38292.89706 | BC42: 0 | BD42: 0 | BE42: 0 | BF42: 729969.9049 | BG42: 0 | BH42: 0 | BI42: 0 | BJ42: 0 | BK42: 0 | BL42: 0 | BM42: 0 | BN42: 0 | BO42: 0 | BP42: 0 | BQ42: 0 | BR42: 803789.4054
B43: High Voltage Demand Docklands | D43: 0 | E43: 0.7257 | F43: 0 | G43: 0 | H43: 0 | I43: 0.3586 | J43: 0 | K43: 0 | L43: 0 | M43: 41.2615 | N43: 0 | O43: 0 | P43: 0 | Q43: 0 | R43: 0 | S43: 0 | T43: 0 | U43: 0 | V43: 0 | W43: 0 | X43: 0 | Z43: 1 | AA43: 1673069.355 | AB43: 0 | AC43: 0 | AD43: 0 | AE43: 713570.7832 | AF43: 0 | AG43: 0 | AH43: 0 | AI43: 1000 | AJ43: 0 | AK43: 0 | AL43: 0 | AM43: 0 | AN43: 0 | AO43: 0 | AP43: 0 | AQ43: 0 | AR43: 0 | AS43: 0 | AT43: 0 | AW43: 0 | AX43: 12165.14718 | AY43: 0 | AZ43: 0 | BA43: 0 | BB43: 2564.093909 | BC43: 0 | BD43: 0 | BE43: 0 | BF43: 41144.06164 | BG43: 0 | BH43: 0 | BI43: 0 | BJ43: 0 | BK43: 0 | BL43: 0 | BM43: 0 | BN43: 0 | BO43: 0 | BP43: 0 | BQ43: 0 | BR43: 55873.30273
B44: High Voltage Demand D3 | D44: 0 | E44: 0.4777 | F44: 0 | G44: 0 | H44: 0 | I44: 0.0597 | J44: 0 | K44: 0 | L44: 0 | M44: 56.9474 | N44: 0 | O44: 0 | P44: 0 | Q44: 0 | R44: 0 | S44: 0 | T44: 0 | U44: 0 | V44: 0 | W44: 0 | X44: 0 | Z44: 1 | AA44: 10910927.27 | AB44: 0 | AC44: 0 | AD44: 0 | AE44: 15468234.81 | AF44: 0 | AG44: 0 | AH44: 0 | AI44: 11400 | AJ44: 0 | AK44: 0 | AL44: 0 | AM44: 0 | AN44: 0 | AO44: 0 | AP44: 0 | AQ44: 0 | AR44: 0 | AS44: 0 | AT44: 0 | AW44: 0 | AX44: 52504.04274 | AY44: 0 | AZ44: 0 | BA44: 0 | BB44: 9387.932912 | BC44: 0 | BD44: 0 | BE44: 0 | BF44: 647816.1327 | BG44: 0 | BH44: 0 | BI44: 0 | BJ44: 0 | BK44: 0 | BL44: 0 | BM44: 0 | BN44: 0 | BO44: 0 | BP44: 0 | BQ44: 0 | BR44: 709708.1084
B45: High Voltage Demand D4 | D45: 0 | E45: 0.0001 | F45: 0 | G45: 0 | H45: 0 | I45: 0.0001 | J45: 0 | K45: 0 | L45: 0 | M45: 0.0001 | N45: 0 | O45: 0 | P45: 0 | Q45: 0 | R45: 0 | S45: 0 | T45: 0 | U45: 0 | V45: 0 | W45: 0 | X45: 0 | Z45: 0 | AA45: -5402.17578 | AB45: 0 | AC45: 0 | AD45: 0 | AE45: -7255.357725 | AF45: 0 | AG45: 0 | AH45: 0 | AI45: 0 | AJ45: 0 | AK45: 0 | AL45: 0 | AM45: 0 | AN45: 0 | AO45: 0 | AP45: 0 | AQ45: 0 | AR45: 0 | AS45: 0 | AT45: 0 | AW45: 0 | AX45: 10.18850352 | AY45: 0 | AZ45: 0 | BA45: 0 | BB45: 4.832068245 | BC45: 0 | BD45: 0 | BE45: 0 | BF45: 0 | BG45: 0 | BH45: 0 | BI45: 0 | BJ45: 0 | BK45: 0 | BL45: 0 | BM45: 0 | BN45: 0 | BO45: 0 | BP45: 0 | BQ45: 0 | BR45: 15.02057177
B46: Subtransmission Demand A | D46: 0 | E46: 0.2458 | F46: 0 | G46: 0 | H46: 0 | I46: 0.015 | J46: 0 | K46: 0 | L46: 0 | M46: 13.8272 | N46: 0 | O46: 0 | P46: 0 | Q46: 0 | R46: 0 | S46: 0 | T46: 0 | U46: 0 | V46: 0 | W46: 0 | X46: 0 | Z46: 3 | AA46: 67563109.93 | AB46: 0 | AC46: 0 | AD46: 0 | AE46: 42725685.58 | AF46: 0 | AG46: 0 | AH46: 0 | AI46: 51789.80533 | AJ46: 0 | AK46: 0 | AL46: 0 | AM46: 0 | AN46: 0 | AO46: 0 | AP46: 0 | AQ46: 0 | AR46: 0 | AS46: 0 | AT46: 0 | AW46: 0 | AX46: 176635.1733 | AY46: 0 | AZ46: 0 | BA46: 0 | BB46: 8122.712893 | BC46: 0 | BD46: 0 | BE46: 0 | BF46: 714425.9366 | BG46: 0 | BH46: 0 | BI46: 0 | BJ46: 0 | BK46: 0 | BL46: 0 | BM46: 0 | BN46: 0 | BO46: 0 | BP46: 0 | BQ46: 0 | BR46: 899183.8229
B47: Subtransmission Demand G | D47: 0 | E47: 0.3305 | F47: 0 | G47: 0 | H47: 0 | I47: 0.0188 | J47: 0 | K47: 0 | L47: 0 | M47: 11.9416 | N47: 0 | O47: 0 | P47: 0 | Q47: 0 | R47: 0 | S47: 0 | T47: 0 | U47: 0 | V47: 0 | W47: 0 | X47: 0 | Z47: 7.083333333 | AA47: 274827905.9 | AB47: 0 | AC47: 0 | AD47: 0 | AE47: 291614743.6 | AF47: 0 | AG47: 0 | AH47: 0 | AI47: 184657.0585 | AJ47: 0 | AK47: 0 | AL47: 0 | AM47: 0 | AN47: 0 | AO47: 0 | AP47: 0 | AQ47: 0 | AR47: 0 | AS47: 0 | AT47: 0 | AW47: 0 | AX47: 909223.3284 | AY47: 0 | AZ47: 0 | BA47: 0 | BB47: 55433.24538 | BC47: 0 | BD47: 0 | BE47: 0 | BF47: 2186756.044 | BG47: 0 | BH47: 0 | BI47: 0 | BJ47: 0 | BK47: 0 | BL47: 0 | BM47: 0 | BN47: 0 | BO47: 0 | BP47: 0 | BQ47: 0 | BR47: 3151412.617
B48: Subtransmission Demand S | D48: 0 | E48: 0.3289 | F48: 0 | G48: 0 | H48: 0 | I48: 0.0181 | J48: 0 | K48: 0 | L48: 0 | M48: 12.0183 | N48: 0 | O48: 0 | P48: 0 | Q48: 0 | R48: 0 | S48: 0 | T48: 0 | U48: 0 | V48: 0 | W48: 0 | X48: 0 | Z48: 2 | AA48: 157057011.2 | AB48: 0 | AC48: 0 | AD48: 0 | AE48: 141983291.6 | AF48: 0 | AG48: 0 | AH48: 0 | AI48: 101426.2087 | AJ48: 0 | AK48: 0 | AL48: 0 | AM48: 0 | AN48: 0 | AO48: 0 | AP48: 0 | AQ48: 0 | AR48: 0 | AS48: 0 | AT48: 0 | AW48: 0 | AX48: 525930.0867 | AY48: 0 | AZ48: 0 | BA48: 0 | BB48: 29138.7553 | BC48: 0 | BD48: 0 | BE48: 0 | BF48: 1214656.795 | BG48: 0 | BH48: 0 | BI48: 0 | BJ48: 0 | BK48: 0 | BL48: 0 | BM48: 0 | BN48: 0 | BO48: 0 | BP48: 0 | BQ48: 0 | BR48: 1769725.637
AW49: 0 | AX49: 0 | AY49: 0 | AZ49: 0 | BA49: 0 | BB49: 0 | BC49: 0 | BD49: 0 | BE49: 0 | BF49: 0 | BG49: 0 | BH49: 0 | BI49: 0 | BJ49: 0 | BK49: 0 | BL49: 0 | BM49: 0 | BN49: 0 | BO49: 0 | BP49: 0 | BQ49: 0 | BR49: 0
AW50: 0 | AX50: 0 | AY50: 0 | AZ50: 0 | BA50: 0 | BB50: 0 | BC50: 0 | BD50: 0 | BE50: 0 | BF50: 0 | BG50: 0 | BH50: 0 | BI50: 0 | BJ50: 0 | BK50: 0 | BL50: 0 | BM50: 0 | BN50: 0 | BO50: 0 | BP50: 0 | BQ50: 0 | BR50: 0
AW51: 0 | AX51: 0 | AY51: 0 | AZ51: 0 | BA51: 0 | BB51: 0 | BC51: 0 | BD51: 0 | BE51: 0 | BF51: 0 | BG51: 0 | BH51: 0 | BI51: 0 | BJ51: 0 | BK51: 0 | BL51: 0 | BM51: 0 | BN51: 0 | BO51: 0 | BP51: 0 | BQ51: 0 | BR51: 0
AW52: 0 | AX52: 0 | AY52: 0 | AZ52: 0 | BA52: 0 | BB52: 0 | BC52: 0 | BD52: 0 | BE52: 0 | BF52: 0 | BG52: 0 | BH52: 0 | BI52: 0 | BJ52: 0 | BK52: 0 | BL52: 0 | BM52: 0 | BN52: 0 | BO52: 0 | BP52: 0 | BQ52: 0 | BR52: 0
AW53: 0 | AX53: 0 | AY53: 0 | AZ53: 0 | BA53: 0 | BB53: 0 | BC53: 0 | BD53: 0 | BE53: 0 | BF53: 0 | BG53: 0 | BH53: 0 | BI53: 0 | BJ53: 0 | BK53: 0 | BL53: 0 | BM53: 0 | BN53: 0 | BO53: 0 | BP53: 0 | BQ53: 0 | BR53: 0
AW54: 0 | AX54: 0 | AY54: 0 | AZ54: 0 | BA54: 0 | BB54: 0 | BC54: 0 | BD54: 0 | BE54: 0 | BF54: 0 | BG54: 0 | BH54: 0 | BI54: 0 | BJ54: 0 | BK54: 0 | BL54: 0 | BM54: 0 | BN54: 0 | BO54: 0 | BP54: 0 | BQ54: 0 | BR54: 0
AW55: 0 | AX55: 0 | AY55: 0 | AZ55: 0 | BA55: 0 | BB55: 0 | BC55: 0 | BD55: 0 | BE55: 0 | BF55: 0 | BG55: 0 | BH55: 0 | BI55: 0 | BJ55: 0 | BK55: 0 | BL55: 0 | BM55: 0 | BN55: 0 | BO55: 0 | BP55: 0 | BQ55: 0 | BR55: 0
AW56: 0 | AX56: 0 | AY56: 0 | AZ56: 0 | BA56: 0 | BB56: 0 | BC56: 0 | BD56: 0 | BE56: 0 | BF56: 0 | BG56: 0 | BH56: 0 | BI56: 0 | BJ56: 0 | BK56: 0 | BL56: 0 | BM56: 0 | BN56: 0 | BO56: 0 | BP56: 0 | BQ56: 0 | BR56: 0
AW57: 0 | AX57: 0 | AY57: 0 | AZ57: 0 | BA57: 0 | BB57: 0 | BC57: 0 | BD57: 0 | BE57: 0 | BF57: 0 | BG57: 0 | BH57: 0 | BI57: 0 | BJ57: 0 | BK57: 0 | BL57: 0 | BM57: 0 | BN57: 0 | BO57: 0 | BP57: 0 | BQ57: 0 | BR57: 0
AW58: 0 | AX58: 0 | AY58: 0 | AZ58: 0 | BA58: 0 | BB58: 0 | BC58: 0 | BD58: 0 | BE58: 0 | BF58: 0 | BG58: 0 | BH58: 0 | BI58: 0 | BJ58: 0 | BK58: 0 | BL58: 0 | BM58: 0 | BN58: 0 | BO58: 0 | BP58: 0 | BQ58: 0 | BR58: 0
AW59: 0 | AX59: 0 | AY59: 0 | AZ59: 0 | BA59: 0 | BB59: 0 | BC59: 0 | BD59: 0 | BE59: 0 | BF59: 0 | BG59: 0 | BH59: 0 | BI59: 0 | BJ59: 0 | BK59: 0 | BL59: 0 | BM59: 0 | BN59: 0 | BO59: 0 | BP59: 0 | BQ59: 0 | BR59: 0
AW60: 0 | AX60: 0 | AY60: 0 | AZ60: 0 | BA60: 0 | BB60: 0 | BC60: 0 | BD60: 0 | BE60: 0 | BF60: 0 | BG60: 0 | BH60: 0 | BI60: 0 | BJ60: 0 | BK60: 0 | BL60: 0 | BM60: 0 | BN60: 0 | BO60: 0 | BP60: 0 | BQ60: 0 | BR60: 0
AW61: 0 | AX61: 0 | AY61: 0 | AZ61: 0 | BA61: 0 | BB61: 0 | BC61: 0 | BD61: 0 | BE61: 0 | BF61: 0 | BG61: 0 | BH61: 0 | BI61: 0 | BJ61: 0 | BK61: 0 | BL61: 0 | BM61: 0 | BN61: 0 | BO61: 0 | BP61: 0 | BQ61: 0 | BR61: 0
AW62: 0 | AX62: 0 | AY62: 0 | AZ62: 0 | BA62: 0 | BB62: 0 | BC62: 0 | BD62: 0 | BE62: 0 | BF62: 0 | BG62: 0 | BH62: 0 | BI62: 0 | BJ62: 0 | BK62: 0 | BL62: 0 | BM62: 0 | BN62: 0 | BO62: 0 | BP62: 0 | BQ62: 0 | BR62: 0
AW63: 0 | AX63: 0 | AY63: 0 | AZ63: 0 | BA63: 0 | BB63: 0 | BC63: 0 | BD63: 0 | BE63: 0 | BF63: 0 | BG63: 0 | BH63: 0 | BI63: 0 | BJ63: 0 | BK63: 0 | BL63: 0 | BM63: 0 | BN63: 0 | BO63: 0 | BP63: 0 | BQ63: 0 | BR63: 0
AW64: 0 | AX64: 0 | AY64: 0 | AZ64: 0 | BA64: 0 | BB64: 0 | BC64: 0 | BD64: 0 | BE64: 0 | BF64: 0 | BG64: 0 | BH64: 0 | BI64: 0 | BJ64: 0 | BK64: 0 | BL64: 0 | BM64: 0 | BN64: 0 | BO64: 0 | BP64: 0 | BQ64: 0 | BR64: 0
AW65: 0 | AX65: 0 | AY65: 0 | AZ65: 0 | BA65: 0 | BB65: 0 | BC65: 0 | BD65: 0 | BE65: 0 | BF65: 0 | BG65: 0 | BH65: 0 | BI65: 0 | BJ65: 0 | BK65: 0 | BL65: 0 | BM65: 0 | BN65: 0 | BO65: 0 | BP65: 0 | BQ65: 0 | BR65: 0
AW66: 0 | AX66: 0 | AY66: 0 | AZ66: 0 | BA66: 0 | BB66: 0 | BC66: 0 | BD66: 0 | BE66: 0 | BF66: 0 | BG66: 0 | BH66: 0 | BI66: 0 | BJ66: 0 | BK66: 0 | BL66: 0 | BM66: 0 | BN66: 0 | BO66: 0 | BP66: 0 | BQ66: 0 | BR66: 0
Z67: =SUM(Z7:Z66) -> 960803.25 | AA67: 4724371649 | AB67: 1063547298 | AC67: 395935590.5 | AD67: 219223210.5 | AE67: 3916502355 | AF67: 0 | AG67: 0 | AH67: 0 | AI67: 1621801.299 | AJ67: 0 | AK67: 0 | AL67: 0 | AM67: =SUM(AM7:AM66) -> 2180173.485 | AN67: 2064760.182 | AO67: 2543126.607 | AP67: 0 | AQ67: 2117242.542 | AR67: 1955422.074 | AS67: 2521086.874 | AT67: 0 | AW67: =SUM(AW7:AW66) -> 47807238.57 | AX67: 214619906 | AY67: 100958918.3 | AZ67: 49188628.49 | BA67: 28092979.43 | BB67: 34437432.88 | BC67: 0 | BD67: 0 | BE67: 0 | BF67: 103316009.1 | BG67: 0 | BH67: 0 | BI67: 0 | BJ67: =SUM(BJ7:BJ66) -> 199424.9058 | BK67: 76180.10705 | BL67: 23458.03311 | BM67: 0 | BN67: 200127.4823 | BO67: 73968.22668 | BP67: 25995.60293 | BQ67: 0 | BR67: =SUM(AW67:BQ67) -> 579020267.1
AW69: 0 | AX69: 0 | AY69: 0 | AZ69: 0 | BA69: 0 | BB69: 0 | BC69: 0 | BD69: 0 | BE69: 0 | BF69: 0 | BG69: 0 | BH69: 0 | BI69: 0 | BJ69: 0 | BK69: 0 | BL69: 0 | BM69: 0 | BN69: 0 | BO69: 0 | BP69: 0 | BQ69: 0 | BR69: 0
B70: Definitions
B71: All information must be reported consistent the terms used in the DNSPs pricing proposal

Sheet 26. Actual t-2 Trans Tariff
B1: =Cover!E22 -> Powercor Australia Ltd
B2: Tariff Quantity Data Template (Actual t-2) Transmission Tariff Revenue
B3: =Cover!E26 -> 2014
B5: Templates 24 to 29 collect data required for annual pricing proposals. T-2 requires actual information for the reporting year.
D6: Transmission Tariffs (Pt-2) | Z6: Actual Quantities (Qt-2) | AW6: Actual Revenue (P-2)*(Qt-2)
B7: Tariffs t-2 | D7: (t-2)Tar Fixed | E7: (t-2)Tar PkBlk1 | F7: (t-2)Tar PkBlk2 | G7: (t-2)Tar PkBlk3 | H7: (t-2)Tar PkBlk4 | I7: (t-2)Tar OPkBlk1 | J7: (t-2)Tar OPkBlk2 | K7: (t-2)Tar OPkBlk3 | L7: (t-2)Tar OPkBlk4 | M7: (t-2)Tar DemBlk1 | N7: (t-2)Tar DemBlk2 | O7: (t-2)Tar DemBlk3 | P7: (t-2)Tar DemBlk4 | Q7: (t-2)Tar SumBlk1 | R7: (t-2)Tar SumBlk2 | S7: (t-2)Tar SumBlk3 | T7: (t-2)Tar SumBlk4 | U7: (t-2)Tar WtrBlk1 | V7: (t-2)Tar WtrBlk2 | W7: (t-2)Tar WtrBlk3 | X7: (t-2)Tar WtrBlk4 | Z7: ActVol Fixed | AA7: ActVol PkBlk1 | AB7: ActVol PkBlk2 | AC7: ActVol PkBlk3 | AD7: ActVol PkBlk4 | AE7: ActVol OPkBlk1 | AF7: ActVol OPkBlk2 | AG7: ActVol OPkBlk3 | AH7: ActVol OPkBlk4 | AI7: ActVol DemBlk1 | AJ7: ActVol DemBlk2 | AK7: ActVol DemBlk3 | AL7: ActVol DemBlk4 | AM7: (t-2)Tar SumBlk1 | AN7: (t-2)Tar SumBlk2 | AO7: (t-2)Tar SumBlk3 | AP7: (t-2)Tar SumBlk4 | AQ7: (t-2)Tar WtrBlk1 | AR7: (t-2)Tar WtrBlk2 | AS7: (t-2)Tar WtrBlk3 | AT7: (t-2)Tar WtrBlk4 | AW7: ActRev Fixed | AX7: ActRev PkBlk1 | AY7: ActRev PkBlk2 | AZ7: ActRev PkBlk3 | BA7: ActRev PkBlk4 | BB7: ActRev OPkBlk1 | BC7: ActRev OPkBlk2 | BD7: ActRev OPkBlk3 | BE7: ActRev OPkBlk4 | BF7: ActRev DemBlk1 | BG7: ActRev DemBlk2 | BH7: ActRev DemBlk3 | BI7: ActRev DemBlk4 | BJ7: (t-2)Tar SumBlk1 | BK7: (t-2)Tar SumBlk2 | BL7: (t-2)Tar SumBlk3 | BM7: (t-2)Tar SumBlk4 | BN7: (t-2)Tar WtrBlk1 | BO7: (t-2)Tar WtrBlk2 | BP7: (t-2)Tar WtrBlk3 | BQ7: (t-2)Tar WtrBlk4 | BR7: ActRev Total
AW8: =D8*Z8 -> 0 | AX8: =E8/100*AA8 -> 0 | AY8: =F8/100*AB8 -> 0 | AZ8: =G8/100*AC8 -> 0 | BA8: =H8/100*AD8 -> 0 | BB8: =I8/100*AE8 -> 0 | BC8: =J8/100*AF8 -> 0 | BD8: =K8/100*AG8 -> 0 | BE8: =L8/100*AH8 -> 0 | BF8: =M8*AI8 -> 0 | BG8: =N8*AJ8 -> 0 | BH8: =O8*AK8 -> 0 | BI8: =P8*AL8 -> 0 | BJ8: =Q8/100*AM8 -> 0 | BK8: =R8/100*AN8 -> 0 | BL8: =S8/100*AO8 -> 0 | BM8: =T8/100*AP8 -> 0 | BN8: 0 | BO8: 0 | BP8: 0 | BQ8: =X8*AT8 -> 0 | BR8: =SUM(AW8:BQ8) -> 0
B9: Residential Single Rate | D9: 5.3065 | E9: 0.4749 | F9: 0.8904 | G9: 2.3002 | H9: 1.4692 | I9: 0 | J9: 0 | K9: 0 | L9: 0 | M9: 0 | N9: 0 | O9: 0 | P9: 0 | Q9: 0 | R9: 0 | S9: 0 | T9: 0 | U9: 0 | V9: 0 | W9: 0 | X9: 0 | Z9: 494144.5 | AA9: 1447276833 | AB9: 582901117.9 | AC9: 18823367.87 | AD9: 2185865.032 | AE9: -424.650006 | AF9: 0 | AG9: 0 | AH9: 0 | AI9: 0 | AJ9: 0 | AK9: 0 | AL9: 0 | AM9: 0 | AN9: 0 | AO9: 0 | AP9: 0 | AQ9: 0 | AR9: 0 | AS9: 0 | AT9: 0 | AW9: =D9*Z9 -> 2622177.789 | AX9: 6873117.68 | AY9: 5190151.553 | AZ9: 432975.1077 | BA9: 32114.72905 | BB9: 0 | BC9: 0 | BD9: 0 | BE9: 0 | BF9: =M9*AI9 -> 0 | BG9: =N9*AJ9 -> 0 | BH9: =O9*AK9 -> 0 | BI9: =P9*AL9 -> 0 | BJ9: 0 | BK9: 0 | BL9: 0 | BM9: 0 | BN9: 0 | BO9: 0 | BP9: 0 | BQ9: 0 | BR9: =SUM(AW9:BQ9) -> 15150536.86
B10: Climate Saver | D10: 0 | E10: 2.0654 | F10: 2.1419 | G10: 0.306 | H10: 0.153 | I10: 0.8906 | J10: 0 | K10: 0 | L10: 0 | M10: 0 | N10: 0 | O10: 0 | P10: 0 | Q10: 0 | R10: 0 | S10: 0 | T10: 0 | U10: 0 | V10: 0 | W10: 0 | X10: 0 | Z10: 17253.58333 | AA10: 7574411.121 | AB10: 2414309.641 | AC10: 81059.09656 | AD10: -0.8074525153 | AE10: 14892766.33 | AF10: 0 | AG10: 0 | AH10: 0 | AI10: 0 | AJ10: 0 | AK10: 0 | AL10: 0 | AM10: 0 | AN10: 0 | AO10: 0 | AP10: 0 | AQ10: 0 | AR10: 0 | AS10: 0 | AT10: 0 | AW10: 0 | AX10: 156441.8873 | AY10: 51712.09821 | AZ10: 248.0408355 | BA10: -0.001235402348 | BB10: 132634.9769 | BC10: 0 | BD10: 0 | BE10: 0 | BF10: 0 | BG10: 0 | BH10: 0 | BI10: 0 | BJ10: 0 | BK10: 0 | BL10: 0 | BM10: 0 | BN10: 0 | BO10: 0 | BP10: 0 | BQ10: 0 | BR10: 341037.002
B11: Climate Saver Interval | D11: 0 | E11: 2.0654 | F11: 2.1419 | G11: 0.306 | H11: 0.153 | I11: 0.8906 | J11: 0 | K11: 0 | L11: 0 | M11: 0 | N11: 0 | O11: 0 | P11: 0 | Q11: 0 | R11: 0 | S11: 0 | T11: 0 | U11: 0 | V11: 0 | W11: 0 | X11: 0 | Z11: 4683.916667 | AA11: 2212872.421 | AB11: 640958.2488 | AC11: 18573.72841 | AD11: 0 | AE11: 4540542.234 | AF11: 0 | AG11: 0 | AH11: 0 | AI11: 0 | AJ11: 0 | AK11: 0 | AL11: 0 | AM11: 0 | AN11: 0 | AO11: 0 | AP11: 0 | AQ11: 0 | AR11: 0 | AS11: 0 | AT11: 0 | AW11: 0 | AX11: 45704.66699 | AY11: 13728.68473 | AZ11: 56.83560894 | BA11: 0 | BB11: 40438.06914 | BC11: 0 | BD11: 0 | BE11: 0 | BF11: 0 | BG11: 0 | BH11: 0 | BI11: 0 | BJ11: 0 | BK11: 0 | BL11: 0 | BM11: 0 | BN11: 0 | BO11: 0 | BP11: 0 | BQ11: 0 | BR11: 99928.25646
B12: Residential - Flexible Pricing | D12: 25.2717 | E12: 0 | F12: 0 | G12: 0 | H12: 0 | I12: 0 | J12: 0 | K12: 0 | L12: 0 | M12: 0 | N12: 0 | O12: 0 | P12: 0 | Q12: 3.2399 | R12: 1.5847 | S12: 0.8582 | T12: 0 | U12: 3.2399 | V12: 1.5847 | W12: 0.8582 | X12: 0 | Z12: 1709.25 | AA12: 0 | AB12: 0 | AC12: 0 | AD12: 0 | AE12: -454.6394868 | AF12: 0 | AG12: 0 | AH12: 0 | AI12: 0 | AJ12: 0 | AK12: 0 | AL12: 0 | AM12: 727016.2397 | AN12: 1519792.015 | AO12: 1016119.596 | AP12: 0 | AQ12: 987120.1847 | AR12: 1619789.001 | AS12: 1344787.28 | AT12: 0 | AW12: 43195.65323 | AX12: 0 | AY12: 0 | AZ12: 0 | BA12: 0 | BB12: 0 | BC12: 0 | BD12: 0 | BE12: 0 | BF12: 0 | BG12: 0 | BH12: 0 | BI12: 0 | BJ12: 23554.59915 | BK12: 24084.14407 | BL12: 8720.338373 | BM12: 0 | BN12: 31981.70686 | BO12: 25668.79629 | BP12: 11540.96444 | BQ12: 0 | BR12: 168746.2024
B13: Residential Docklands - Flexible Pricing | D13: 6.4177 | E13: 0 | F13: 0 | G13: 0 | H13: 0 | I13: 0 | J13: 0 | K13: 0 | L13: 0 | M13: 0 | N13: 0 | O13: 0 | P13: 0 | Q13: 2.4351 | R13: 1.3734 | S13: 0.7264 | T13: 0 | U13: 2.4351 | V13: 1.3734 | W13: 0.7264 | X13: 0 | Z13: 1 | AA13: 0 | AB13: 0 | AC13: 0 | AD13: 0 | AE13: 0 | AF13: 0 | AG13: 0 | AH13: 0 | AI13: 0 | AJ13: 0 | AK13: 0 | AL13: 0 | AM13: 940.2905452 | AN13: 1900.998513 | AO13: 1344.266273 | AP13: 0 | AQ13: 877.4213888 | AR13: 1482.957237 | AS13: 1014.172448 | AT13: 0 | AW13: 6.4177 | AX13: 0 | AY13: 0 | AZ13: 0 | BA13: 0 | BB13: 0 | BC13: 0 | BD13: 0 | BE13: 0 | BF13: 0 | BG13: 0 | BH13: 0 | BI13: 0 | BJ13: 22.89701507 | BK13: 26.10831358 | BL13: 9.764750204 | BM13: 0 | BN13: 21.36608824 | BO13: 20.36693469 | BP13: 7.366948665 | BQ13: 0 | BR13: 114.2877504
B14: Climate Saver - Flexible Pricing | D14: 0 | E14: 0 | F14: 0 | G14: 0 | H14: 0 | I14: 0 | J14: 0 | K14: 0 | L14: 0 | M14: 0 | N14: 0 | O14: 0 | P14: 0 | Q14: 3.3995 | R14: 0 | S14: 0 | T14: 0 | U14: 0.7125 | V14: 0 | W14: 0 | X14: 0 | Z14: 0 | AA14: 0 | AB14: 0 | AC14: 0 | AD14: 0 | AE14: 0 | AF14: 0 | AG14: 0 | AH14: 0 | AI14: 0 | AJ14: 0 | AK14: 0 | AL14: 0 | AM14: 4117 | AN14: 0 | AO14: 0 | AP14: 0 | AQ14: 0 | AR14: 0 | AS14: 0 | AT14: 0 | AW14: 0 | AX14: 0 | AY14: 0 | AZ14: 0 | BA14: 0 | BB14: 0 | BC14: 0 | BD14: 0 | BE14: 0 | BF14: 0 | BG14: 0 | BH14: 0 | BI14: 0 | BJ14: 139.957415 | BK14: 0 | BL14: 0 | BM14: 0 | BN14: 0 | BO14: 0 | BP14: 0 | BQ14: 0 | BR14: 139.957415
B15: Docklands single rate | D15: 19.994 | E15: 1.4155 | F15: 0 | G15: 0 | H15: 0 | I15: 0 | J15: 0 | K15: 0 | L15: 0 | M15: 0 | N15: 0 | O15: 0 | P15: 0 | Q15: 0 | R15: 0 | S15: 0 | T15: 0 | U15: 0 | V15: 0 | W15: 0 | X15: 0 | Z15: 0 | AA15: 0 | AB15: 0 | AC15: 0 | AD15: 0 | AE15: 0 | AF15: 0 | AG15: 0 | AH15: 0 | AI15: 0 | AJ15: 0 | AK15: 0 | AL15: 0 | AM15: 0 | AN15: 0 | AO15: 0 | AP15: 0 | AQ15: 0 | AR15: 0 | AS15: 0 | AT15: 0 | AW15: 0 | AX15: 0 | AY15: 0 | AZ15: 0 | BA15: 0 | BB15: 0 | BC15: 0 | BD15: 0 | BE15: 0 | BF15: 0 | BG15: 0 | BH15: 0 | BI15: 0 | BJ15: 0 | BK15: 0 | BL15: 0 | BM15: 0 | BN15: 0 | BO15: 0 | BP15: 0 | BQ15: 0 | BR15: 0
B16: Residential Two Rate 5d | D16: 8.4243 | E16: 1.2528 | F16: 1.2528 | G16: 1.2528 | H16: 0.1089 | I16: 0.729 | J16: 0 | K16: 0 | L16: 0 | M16: 0 | N16: 0 | O16: 0 | P16: 0 | Q16: 0 | R16: 0 | S16: 0 | T16: 0 | U16: 0 | V16: 0 | W16: 0 | X16: 0 | Z16: 45993.16667 | AA16: 103189365.8 | AB16: 21183211.29 | AC16: 648654.0654 | AD16: 36778.31085 | AE16: 162022880.9 | AF16: 0 | AG16: 0 | AH16: 0 | AI16: 0 | AJ16: 0 | AK16: 0 | AL16: 0 | AM16: 0 | AN16: 0 | AO16: 0 | AP16: 0 | AQ16: 0 | AR16: 0 | AS16: 0 | AT16: 0 | AW16: 387460.234 | AX16: 1292756.375 | AY16: 265383.271 | AZ16: 8126.338131 | BA16: 40.05158051 | BB16: 1181146.802 | BC16: 0 | BD16: 0 | BE16: 0 | BF16: 0 | BG16: 0 | BH16: 0 | BI16: 0 | BJ16: 0 | BK16: 0 | BL16: 0 | BM16: 0 | BN16: 0 | BO16: 0 | BP16: 0 | BQ16: 0 | BR16: 3134913.072
B17: Docklands Two Rate 5d | D17: 2.1394 | E17: 0.1515 | F17: 0.1515 | G17: 0.1515 | H17: 0.1515 | I17: 0.2024 | J17: 0 | K17: 0 | L17: 0 | M17: 0 | N17: 0 | O17: 0 | P17: 0 | Q17: 0 | R17: 0 | S17: 0 | T17: 0 | U17: 0 | V17: 0 | W17: 0 | X17: 0 | Z17: 588.25 | AA17: 1573601.209 | AB17: 243069.4936 | AC17: 40797.76722 | AD17: -1.348366296 | AE17: 1766086.466 | AF17: 0 | AG17: 0 | AH17: 0 | AI17: 0 | AJ17: 0 | AK17: 0 | AL17: 0 | AM17: 0 | AN17: 0 | AO17: 0 | AP17: 0 | AQ17: 0 | AR17: 0 | AS17: 0 | AT17: 0 | AW17: 1258.50205 | AX17: 2384.005832 | AY17: 368.2502827 | AZ17: 61.80861734 | BA17: -0.002042774938 | BB17: 3574.559008 | BC17: 0 | BD17: 0 | BE17: 0 | BF17: 0 | BG17: 0 | BH17: 0 | BI17: 0 | BJ17: 0 | BK17: 0 | BL17: 0 | BM17: 0 | BN17: 0 | BO17: 0 | BP17: 0 | BQ17: 0 | BR17: 7647.123747
B18: Residential Interval | D18: 8.4243 | E18: 1.2528 | F18: 1.2528 | G18: 1.2528 | H18: 0.1089 | I18: 0.729 | J18: 0 | K18: 0 | L18: 0 | M18: 0 | N18: 0 | O18: 0 | P18: 0 | Q18: 0 | R18: 0 | S18: 0 | T18: 0 | U18: 0 | V18: 0 | W18: 0 | X18: 0 | Z18: 108947.8333 | AA18: 222417090.4 | AB18: 38733959.44 | AC18: 1528840.717 | AD18: 54583.25017 | AE18: 272064646 | AF18: 0 | AG18: 0 | AH18: 0 | AI18: 0 | AJ18: 0 | AK18: 0 | AL18: 0 | AM18: 0 | AN18: 0 | AO18: 0 | AP18: 0 | AQ18: 0 | AR18: 0 | AS18: 0 | AT18: 0 | AW18: 917809.2324 | AX18: 2786441.308 | AY18: 485259.0439 | AZ18: 19153.31651 | BA18: 59.44115943 | BB18: 1983351.269 | BC18: 0 | BD18: 0 | BE18: 0 | BF18: 0 | BG18: 0 | BH18: 0 | BI18: 0 | BJ18: 0 | BK18: 0 | BL18: 0 | BM18: 0 | BN18: 0 | BO18: 0 | BP18: 0 | BQ18: 0 | BR18: 6192073.612
B19: Residential Two Rate 5d - controlled load | D19: 0 | E19: 0 | F19: 0 | G19: 0 | H19: 0 | I19: 0.729 | J19: 0 | K19: 0 | L19: 0 | M19: 0 | N19: 0 | O19: 0 | P19: 0 | Q19: 0 | R19: 0 | S19: 0 | T19: 0 | U19: 0 | V19: 0 | W19: 0 | X19: 0 | Z19: 14459.33333 | AA19: 0 | AB19: 0 | AC19: 0 | AD19: 0 | AE19: 43150474.84 | AF19: 0 | AG19: 0 | AH19: 0 | AI19: 0 | AJ19: 0 | AK19: 0 | AL19: 0 | AM19: 0 | AN19: 0 | AO19: 0 | AP19: 0 | AQ19: 0 | AR19: 0 | AS19: 11635.6812 | AT19: 0 | AW19: 0 | AX19: 0 | AY19: 0 | AZ19: 0 | BA19: 0 | BB19: 314566.9616 | BC19: 0 | BD19: 0 | BE19: 0 | BF19: 0 | BG19: 0 | BH19: 0 | BI19: 0 | BJ19: 0 | BK19: 0 | BL19: 0 | BM19: 0 | BN19: 0 | BO19: 0 | BP19: 0 | BQ19: 0 | BR19: 314566.9616
B20: Docklands Two Rate 5d - controlled load | D20: 0 | E20: 0 | F20: 0 | G20: 0 | H20: 0 | I20: 0.2024 | J20: 0 | K20: 0 | L20: 0 | M20: 0 | N20: 0 | O20: 0 | P20: 0 | Q20: 0 | R20: 0 | S20: 0 | T20: 0 | U20: 0 | V20: 0 | W20: 0 | X20: 0 | Z20: 23.58333333 | AA20: 0 | AB20: 0 | AC20: 0 | AD20: 0 | AE20: 58046.45044 | AF20: 0 | AG20: 0 | AH20: 0 | AI20: 0 | AJ20: 0 | AK20: 0 | AL20: 0 | AM20: 0 | AN20: 0 | AO20: 0 | AP20: 0 | AQ20: 0 | AR20: 0 | AS20: 0 | AT20: 0 | AW20: 0 | AX20: 0 | AY20: 0 | AZ20: 0 | BA20: 0 | BB20: 117.4860157 | BC20: 0 | BD20: 0 | BE20: 0 | BF20: 0 | BG20: 0 | BH20: 0 | BI20: 0 | BJ20: 0 | BK20: 0 | BL20: 0 | BM20: 0 | BN20: 0 | BO20: 0 | BP20: 0 | BQ20: 0 | BR20: 117.4860157
B21: Dedicated circuit | D21: 0 | E21: 0 | F21: 0 | G21: 0 | H21: 0 | I21: 2.242 | J21: 0 | K21: 0 | L21: 0 | M21: 0 | N21: 0 | O21: 0 | P21: 0 | Q21: 0 | R21: 0 | S21: 0 | T21: 0 | U21: 0 | V21: 0 | W21: 0 | X21: 0 | Z21: 161727.4167 | AA21: 0 | AB21: 0 | AC21: 0 | AD21: 0 | AE21: 328145182.1 | AF21: 0 | AG21: 0 | AH21: 0 | AI21: 0 | AJ21: 0 | AK21: 0 | AL21: 0 | AM21: 0 | AN21: 0 | AO21: 521.52 | AP21: 0 | AQ21: 0 | AR21: 0 | AS21: 95934.8712 | AT21: 0 | AW21: 0 | AX21: 0 | AY21: 0 | AZ21: 0 | BA21: 0 | BB21: 7357014.983 | BC21: 0 | BD21: 0 | BE21: 0 | BF21: 0 | BG21: 0 | BH21: 0 | BI21: 0 | BJ21: 0 | BK21: 0 | BL21: 0 | BM21: 0 | BN21: 0 | BO21: 0 | BP21: 0 | BQ21: 0 | BR21: 7357014.983
B22: Hot Water Interval | D22: 0 | E22: 0 | F22: 0 | G22: 0 | H22: 0 | I22: 2.242 | J22: 0 | K22: 0 | L22: 0 | M22: 0 | N22: 0 | O22: 0 | P22: 0 | Q22: 0 | R22: 0 | S22: 0 | T22: 0 | U22: 0 | V22: 0 | W22: 0 | X22: 0 | Z22: 5573.083333 | AA22: -9.4947368 | AB22: 0 | AC22: 0 | AD22: 0 | AE22: 10374744.91 | AF22: 0 | AG22: 0 | AH22: 0 | AI22: 0 | AJ22: 0 | AK22: 0 | AL22: 0 | AM22: 0 | AN22: 0 | AO22: 0 | AP22: 0 | AQ22: 0 | AR22: 0 | AS22: 670.662 | AT22: 0 | AW22: 0 | AX22: 0 | AY22: 0 | AZ22: 0 | BA22: 0 | BB22: 232601.7809 | BC22: 0 | BD22: 0 | BE22: 0 | BF22: 0 | BG22: 0 | BH22: 0 | BI22: 0 | BJ22: 0 | BK22: 0 | BL22: 0 | BM22: 0 | BN22: 0 | BO22: 0 | BP22: 0 | BQ22: 0 | BR22: 232601.7809
B23: Non-Residential Single Rate | D23: 0.7859 | E23: 0.0012 | F23: 0.0012 | G23: 0.0012 | H23: 0.0012 | I23: 0 | J23: 0 | K23: 0 | L23: 0 | M23: 0 | N23: 0 | O23: 0 | P23: 0 | Q23: 0 | R23: 0 | S23: 0 | T23: 0 | U23: 0 | V23: 0 | W23: 0 | X23: 0 | Z23: 41710.08333 | AA23: 82881661.12 | AB23: 105137732.8 | AC23: 58705805.45 | AD23: 21577696.19 | AE23: 0 | AF23: 0 | AG23: 0 | AH23: 0 | AI23: 0 | AJ23: 0 | AK23: 0 | AL23: 0 | AM23: 0 | AN23: 0 | AO23: 0 | AP23: 0 | AQ23: 0 | AR23: 0 | AS23: 0 | AT23: 0 | AW23: 32779.95449 | AX23: 994.5799335 | AY23: 1261.652793 | AZ23: 704.4696654 | BA23: 258.9323543 | BB23: 0 | BC23: 0 | BD23: 0 | BE23: 0 | BF23: 0 | BG23: 0 | BH23: 0 | BI23: 0 | BJ23: 0 | BK23: 0 | BL23: 0 | BM23: 0 | BN23: 0 | BO23: 0 | BP23: 0 | BQ23: 0 | BR23: 35999.58924
B24: Non-Residential | D24: 31.4912 | E24: 0 | F24: 0 | G24: 0 | H24: 0 | I24: 0 | J24: 0 | K24: 0 | L24: 0 | M24: 0 | N24: 0 | O24: 0 | P24: 0 | Q24: 3.9884 | R24: 2.9136 | S24: 1.4273 | T24: 0 | U24: 3.9884 | V24: 2.9136 | W24: 1.4273 | X24: 0 | Z24: 73.5 | AA24: 0 | AB24: 0 | AC24: 0 | AD24: 0 | AE24: 0 | AF24: 0 | AG24: 0 | AH24: 0 | AI24: 0 | AJ24: 0 | AK24: 0 | AL24: 0 | AM24: 1448099.955 | AN24: 543067.1681 | AO24: 1525141.224 | AP24: 0 | AQ24: 1129244.936 | AR24: 334150.1161 | AS24: 1067044.207 | AT24: 0 | AW24: 2314.6032 | AX24: 0 | AY24: 0 | AZ24: 0 | BA24: 0 | BB24: 0 | BC24: 0 | BD24: 0 | BE24: 0 | BF24: 0 | BG24: 0 | BH24: 0 | BI24: 0 | BJ24: 57756.0186 | BK24: 15822.80501 | BL24: 21768.3407 | BM24: =T24/100*AP24 -> 0 | BN24: 45038.80504 | BO24: 9735.797782 | BP24: 15229.92196 | BQ24: 0 | BR24: 167666.2923
B25: Non-Residential Two Rate 5d | D25: 1.7751 | E25: 0.0878 | F25: 0.3511 | G25: 0.8778 | H25: 0.8778 | I25: 0.7835 | J25: 0 | K25: 0 | L25: 0 | M25: 0 | N25: 0 | O25: 0 | P25: 0 | Q25: 0 | R25: 0 | S25: 0 | T25: 0 | U25: 0 | V25: 0 | W25: 0 | X25: 0 | Z25: 31399.41667 | AA25: 86185647.07 | AB25: 196284237.9 | AC25: 203945550.4 | AD25: 124077072.2 | AE25: 530023019 | AF25: 0 | AG25: 0 | AH25: 0 | AI25: 0 | AJ25: 0 | AK25: 0 | AL25: 0 | AM25: 0 | AN25: 0 | AO25: 0 | AP25: 0 | AQ25: 0 | AR25: 0 | AS25: 0 | AT25: 0 | AW25: 55737.10453 | AX25: 75670.99813 | AY25: 689153.9592 | AZ25: 1790234.042 | BA25: 1089148.54 | BB25: 4152730.354 | BC25: 0 | BD25: 0 | BE25: 0 | BF25: 0 | BG25: 0 | BH25: 0 | BI25: 0 | BJ25: 0 | BK25: 0 | BL25: 0 | BM25: 0 | BN25: 0 | BO25: 0 | BP25: 0 | BQ25: 0 | BR25: 7852674.997
B26: Non-Residential Interval | D26: 1.7751 | E26: 0.0878 | F26: 0.3511 | G26: 0.8778 | H26: 0.8778 | I26: 0.7835 | J26: 0 | K26: 0 | L26: 0 | M26: 0 | N26: 0 | O26: 0 | P26: 0 | Q26: 0 | R26: 0 | S26: 0 | T26: 0 | U26: 0 | V26: 0 | W26: 0 | X26: 0 | Z26: 14878.83333 | AA26: 37806383.47 | AB26: 75261661.59 | AC26: 75772608.48 | AD26: 41993191.56 | AE26: 164326918.4 | AF26: 0 | AG26: 0 | AH26: 0 | AI26: 0 | AJ26: 0 | AK26: 0 | AL26: 0 | AM26: 0 | AN26: 0 | AO26: 0 | AP26: 0 | AQ26: 0 | AR26: 0 | AS26: 0 | AT26: 0 | AW26: 26411.41705 | AX26: 33194.00469 | AY26: 264243.6938 | AZ26: 665131.9572 | BA26: 368616.2355 | BB26: 1287501.405 | BC26: 0 | BD26: 0 | BE26: 0 | BF26: 0 | BG26: 0 | BH26: 0 | BI26: 0 | BJ26: 0 | BK26: 0 | BL26: 0 | BM26: 0 | BN26: 0 | BO26: 0 | BP26: 0 | BQ26: 0 | BR26: 2645098.714
B27: Non-Residential Two Rate 7d | D27: 6.4585 | E27: 2.0252 | F27: 2.0252 | G27: 2.0252 | H27: 2.0252 | I27: 0.8528 | J27: 0 | K27: 0 | L27: 0 | M27: 0 | N27: 0 | O27: 0 | P27: 0 | Q27: 0 | R27: 0 | S27: 0 | T27: 0 | U27: 0 | V27: 0 | W27: 0 | X27: 0 | Z27: 8563.75 | AA27: 21041916.07 | AB27: 40747040.14 | AC27: 36370332.91 | AD27: 29298026.07 | AE27: 47533396.76 | AF27: 0 | AG27: 0 | AH27: 0 | AI27: 0 | AJ27: 0 | AK27: 0 | AL27: 0 | AM27: 0 | AN27: 0 | AO27: 0 | AP27: 0 | AQ27: 0 | AR27: 0 | AS27: 0 | AT27: 0 | AW27: 55308.97938 | AX27: 426140.8842 | AY27: 825209.0569 | AZ27: 736571.982 | BA27: 593343.624 | BB27: 405364.8076 | BC27: 0 | BD27: 0 | BE27: 0 | BF27: 0 | BG27: 0 | BH27: 0 | BI27: 0 | BJ27: 0 | BK27: 0 | BL27: 0 | BM27: 0 | BN27: 0 | BO27: 0 | BP27: 0 | BQ27: 0 | BR27: 3041939.334
B28: Public Lighting | D28: 0 | E28: 1.3648 | F28: 0 | G28: 0 | H28: 0 | I28: 0.5074 | J28: 0 | K28: 0 | L28: 0 | M28: 0 | N28: 0 | O28: 0 | P28: 0 | Q28: 0 | R28: 0 | S28: 0 | T28: 0 | U28: 0 | V28: 0 | W28: 0 | X28: 0 | Z28: 6360.416667 | AA28: 30129258.54 | AB28: 0 | AC28: 0 | AD28: 0 | AE28: 74503657.92 | AF28: 0 | AG28: 0 | AH28: 0 | AI28: 0 | AJ28: 0 | AK28: 0 | AL28: 0 | AM28: 0 | AN28: 0 | AO28: 0 | AP28: 0 | AQ28: 0 | AR28: 0 | AS28: 0 | AT28: 0 | AW28: 0 | AX28: 411204.1206 | AY28: 0 | AZ28: 0 | BA28: 0 | BB28: 378031.5603 | BC28: 0 | BD28: 0 | BE28: 0 | BF28: 0 | BG28: 0 | BH28: 0 | BI28: 0 | BJ28: 0 | BK28: 0 | BL28: 0 | BM28: 0 | BN28: 0 | BO28: 0 | BP28: 0 | BQ28: 0 | BR28: 789235.6809
B29: Large Low Voltage Demand | D29: 0 | E29: 1.2006 | F29: 0 | G29: 0 | H29: 0 | I29: 0.4803 | J29: 0 | K29: 0 | L29: 0 | M29: 40.6299 | N29: 0 | O29: 0 | P29: 0 | Q29: 0 | R29: 0 | S29: 0 | T29: 0 | U29: 0 | V29: 0 | W29: 0 | X29: 0 | Z29: 904.8333333 | AA29: 659319087.3 | AB29: 0 | AC29: 0 | AD29: 0 | AE29: 513944294.6 | AF29: 0 | AG29: 0 | AH29: 0 | AI29: 437074.363 | AJ29: 0 | AK29: 0 | AL29: 0 | AM29: 0 | AN29: 0 | AO29: 0 | AP29: 0 | AQ29: 0 | AR29: 0 | AS29: 0 | AT29: 0 | AW29: 0 | AX29: 7915784.962 | AY29: 0 | AZ29: 0 | BA29: 0 | BB29: 2468474.447 | BC29: 0 | BD29: 0 | BE29: 0 | BF29: 17758287.66 | BG29: 0 | BH29: 0 | BI29: 0 | BJ29: 0 | BK29: 0 | BL29: 0 | BM29: 0 | BN29: 0 | BO29: 0 | BP29: 0 | BQ29: 0 | BR29: 28142547.07
B30: Large Low Voltage Demand A | D30: 0 | E30: 1.2006 | F30: 0 | G30: 0 | H30: 0 | I30: 0.4803 | J30: 0 | K30: 0 | L30: 0 | M30: 40.6299 | N30: 0 | O30: 0 | P30: 0 | Q30: 0 | R30: 0 | S30: 0 | T30: 0 | U30: 0 | V30: 0 | W30: 0 | X30: 0 | Z30: 0 | AA30: 0 | AB30: 0 | AC30: 0 | AD30: 0 | AE30: 0 | AF30: 0 | AG30: 0 | AH30: 0 | AI30: 0 | AJ30: 0 | AK30: 0 | AL30: 0 | AM30: 0 | AN30: 0 | AO30: 0 | AP30: 0 | AQ30: 0 | AR30: 0 | AS30: 0 | AT30: 0 | AW30: 0 | AX30: 0 | AY30: 0 | AZ30: 0 | BA30: 0 | BB30: 0 | BC30: 0 | BD30: 0 | BE30: 0 | BF30: 0 | BG30: 0 | BH30: 0 | BI30: 0 | BJ30: 0 | BK30: 0 | BL30: 0 | BM30: 0 | BN30: 0 | BO30: 0 | BP30: 0 | BQ30: 0 | BR30: 0
B31: Large Low Voltage Demand C | D31: 0 | E31: 1.206 | F31: 0 | G31: 0 | H31: 0 | I31: 0.4803 | J31: 0 | K31: 0 | L31: 0 | M31: 40.7844 | N31: 0 | O31: 0 | P31: 0 | Q31: 0 | R31: 0 | S31: 0 | T31: 0 | U31: 0 | V31: 0 | W31: 0 | X31: 0 | Z31: 432.6666667 | AA31: 341591156.5 | AB31: 0 | AC31: 0 | AD31: 0 | AE31: 243779945.3 | AF31: 0 | AG31: 0 | AH31: 0 | AI31: 203818.0555 | AJ31: 0 | AK31: 0 | AL31: 0 | AM31: 0 | AN31: 0 | AO31: 0 | AP31: 0 | AQ31: 0 | AR31: 0 | AS31: 0 | AT31: 0 | AW31: 0 | AX31: 4119589.347 | AY31: 0 | AZ31: 0 | BA31: 0 | BB31: 1170875.077 | BC31: 0 | BD31: 0 | BE31: 0 | BF31: 8312597.104 | BG31: 0 | BH31: 0 | BI31: 0 | BJ31: 0 | BK31: 0 | BL31: 0 | BM31: 0 | BN31: 0 | BO31: 0 | BP31: 0 | BQ31: 0 | BR31: 13603061.53
B32: Large Low Voltage Demand S | D32: 0 | E32: 1.1482 | F32: 0 | G32: 0 | H32: 0 | I32: 0.4803 | J32: 0 | K32: 0 | L32: 0 | M32: 38.8492 | N32: 0 | O32: 0 | P32: 0 | Q32: 0 | R32: 0 | S32: 0 | T32: 0 | U32: 0 | V32: 0 | W32: 0 | X32: 0 | Z32: 47.83333333 | AA32: 14865403.61 | AB32: 0 | AC32: 0 | AD32: 0 | AE32: 10359294.43 | AF32: 0 | AG32: 0 | AH32: 0 | AI32: 11663.77868 | AJ32: 0 | AK32: 0 | AL32: 0 | AM32: 0 | AN32: 0 | AO32: 0 | AP32: 0 | AQ32: 0 | AR32: 0 | AS32: 0 | AT32: 0 | AW32: 0 | AX32: 170684.5642 | AY32: 0 | AZ32: 0 | BA32: 0 | BB32: 49755.69114 | BC32: 0 | BD32: 0 | BE32: 0 | BF32: 453128.4705 | BG32: 0 | BH32: 0 | BI32: 0 | BJ32: 0 | BK32: 0 | BL32: 0 | BM32: 0 | BN32: 0 | BO32: 0 | BP32: 0 | BQ32: 0 | BR32: 673568.7259
B33: Large Low Voltage Demand Docklands | D33: 0 | E33: 1.1027 | F33: 0 | G33: 0 | H33: 0 | I33: 0.4515 | J33: 0 | K33: 0 | L33: 0 | M33: 41.4235 | N33: 0 | O33: 0 | P33: 0 | Q33: 0 | R33: 0 | S33: 0 | T33: 0 | U33: 0 | V33: 0 | W33: 0 | X33: 0 | Z33: 7.916666667 | AA33: 2924409.718 | AB33: 0 | AC33: 0 | AD33: 0 | AE33: 3045910.718 | AF33: 0 | AG33: 0 | AH33: 0 | AI33: 1256.160767 | AJ33: 0 | AK33: 0 | AL33: 0 | AM33: 0 | AN33: 0 | AO33: 0 | AP33: 0 | AQ33: 0 | AR33: 0 | AS33: 0 | AT33: 0 | AW33: 0 | AX33: 32247.46596 | AY33: 0 | AZ33: 0 | BA33: 0 | BB33: 13752.28689 | BC33: 0 | BD33: 0 | BE33: 0 | BF33: 52034.57554 | BG33: 0 | BH33: 0 | BI33: 0 | BJ33: 0 | BK33: 0 | BL33: 0 | BM33: 0 | BN33: 0 | BO33: 0 | BP33: 0 | BQ33: 0 | BR33: 98034.32839
B34: Large Low Voltage Demand CXX | D34: 0 | E34: 1.1942 | F34: 0 | G34: 0 | H34: 0 | I34: 0.4803 | J34: 0 | K34: 0 | L34: 0 | M34: 40.3733 | N34: 0 | O34: 0 | P34: 0 | Q34: 0 | R34: 0 | S34: 0 | T34: 0 | U34: 0 | V34: 0 | W34: 0 | X34: 0 | Z34: 1106.75 | AA34: 252188819.1 | AB34: 0 | AC34: 0 | AD34: 0 | AE34: 186270920 | AF34: 0 | AG34: 0 | AH34: 0 | AI34: 178698.3556 | AJ34: 0 | AK34: 0 | AL34: 0 | AM34: 0 | AN34: 0 | AO34: 0 | AP34: 0 | AQ34: 0 | AR34: 0 | AS34: 0 | AT34: 0 | AW34: 0 | AX34: 3011638.878 | AY34: 0 | AZ34: 0 | BA34: 0 | BB34: 894659.2286 | BC34: 0 | BD34: 0 | BE34: 0 | BF34: 7214642.322 | BG34: 0 | BH34: 0 | BI34: 0 | BJ34: 0 | BK34: 0 | BL34: 0 | BM34: 0 | BN34: 0 | BO34: 0 | BP34: 0 | BQ34: 0 | BR34: 11120940.43
B35: Large Low Voltage Demand EN.R | D35: 0 | E35: 1.1877 | F35: 0 | G35: 0 | H35: 0 | I35: 0.474 | J35: 0 | K35: 0 | L35: 0 | M35: 39.6475 | N35: 0 | O35: 0 | P35: 0 | Q35: 0 | R35: 0 | S35: 0 | T35: 0 | U35: 0 | V35: 0 | W35: 0 | X35: 0 | Z35: 1 | AA35: 151747.936 | AB35: 0 | AC35: 0 | AD35: 0 | AE35: 54000.7336 | AF35: 0 | AG35: 0 | AH35: 0 | AI35: 291.6666667 | AJ35: 0 | AK35: 0 | AL35: 0 | AM35: 0 | AN35: 0 | AO35: 0 | AP35: 0 | AQ35: 0 | AR35: 0 | AS35: 0 | AT35: 0 | AW35: 0 | AX35: 1802.310236 | AY35: 0 | AZ35: 0 | BA35: 0 | BB35: 255.9634773 | BC35: 0 | BD35: 0 | BE35: 0 | BF35: 11563.85417 | BG35: 0 | BH35: 0 | BI35: 0 | BJ35: 0 | BK35: 0 | BL35: 0 | BM35: 0 | BN35: 0 | BO35: 0 | BP35: 0 | BQ35: 0 | BR35: 13622.12788
B36: Large Low Voltage Demand EN.NR | D36: 0 | E36: 1.1877 | F36: 0 | G36: 0 | H36: 0 | I36: 0.474 | J36: 0 | K36: 0 | L36: 0 | M36: 39.6475 | N36: 0 | O36: 0 | P36: 0 | Q36: 0 | R36: 0 | S36: 0 | T36: 0 | U36: 0 | V36: 0 | W36: 0 | X36: 0 | Z36: 24.16666667 | AA36: 32398135.27 | AB36: 0 | AC36: 0 | AD36: 0 | AE36: 20555709.52 | AF36: 0 | AG36: 0 | AH36: 0 | AI36: 19127.53288 | AJ36: 0 | AK36: 0 | AL36: 0 | AM36: 0 | AN36: 0 | AO36: 0 | AP36: 0 | AQ36: 0 | AR36: 0 | AS36: 0 | AT36: 0 | AW36: 0 | AX36: 384792.6527 | AY36: 0 | AZ36: 0 | BA36: 0 | BB36: 97434.06315 | BC36: 0 | BD36: 0 | BE36: 0 | BF36: 758358.86 | BG36: 0 | BH36: 0 | BI36: 0 | BJ36: 0 | BK36: 0 | BL36: 0 | BM36: 0 | BN36: 0 | BO36: 0 | BP36: 0 | BQ36: 0 | BR36: 1240585.576
B37: Large Low Voltage Demand EN.R CXX | D37: 0 | E37: 1.1803 | F37: 0 | G37: 0 | H37: 0 | I37: 0.474 | J37: 0 | K37: 0 | L37: 0 | M37: 41.3711 | N37: 0 | O37: 0 | P37: 0 | Q37: 0 | R37: 0 | S37: 0 | T37: 0 | U37: 0 | V37: 0 | W37: 0 | X37: 0 | Z37: 2.083333333 | AA37: 1197077.768 | AB37: 0 | AC37: 0 | AD37: 0 | AE37: 537188.2163 | AF37: 0 | AG37: 0 | AH37: 0 | AI37: 674.0195833 | AJ37: 0 | AK37: 0 | AL37: 0 | AM37: 0 | AN37: 0 | AO37: 0 | AP37: 0 | AQ37: 0 | AR37: 0 | AS37: 0 | AT37: 0 | AW37: 0 | AX37: 14129.1089 | AY37: 0 | AZ37: 0 | BA37: 0 | BB37: 2546.272145 | BC37: 0 | BD37: 0 | BE37: 0 | BF37: 27884.93158 | BG37: 0 | BH37: 0 | BI37: 0 | BJ37: 0 | BK37: 0 | BL37: 0 | BM37: 0 | BN37: 0 | BO37: 0 | BP37: 0 | BQ37: 0 | BR37: 44560.31263
B38: Large Low Voltage Demand EN.NRCXX | D38: 0 | E38: 1.1803 | F38: 0 | G38: 0 | H38: 0 | I38: 0.474 | J38: 0 | K38: 0 | L38: 0 | M38: 41.3711 | N38: 0 | O38: 0 | P38: 0 | Q38: 0 | R38: 0 | S38: 0 | T38: 0 | U38: 0 | V38: 0 | W38: 0 | X38: 0 | Z38: 6.916666667 | AA38: 2711408.526 | AB38: 0 | AC38: 0 | AD38: 0 | AE38: 1691251.956 | AF38: 0 | AG38: 0 | AH38: 0 | AI38: 1734.095822 | AJ38: 0 | AK38: 0 | AL38: 0 | AM38: 0 | AN38: 0 | AO38: 0 | AP38: 0 | AQ38: 0 | AR38: 0 | AS38: 0 | AT38: 0 | AW38: 0 | AX38: 32002.75483 | AY38: 0 | AZ38: 0 | BA38: 0 | BB38: 8016.534271 | BC38: 0 | BD38: 0 | BE38: 0 | BF38: 71741.45168 | BG38: 0 | BH38: 0 | BI38: 0 | BJ38: 0 | BK38: 0 | BL38: 0 | BM38: 0 | BN38: 0 | BO38: 0 | BP38: 0 | BQ38: 0 | BR38: 111760.7408
B39: High Voltage Demand | D39: 0 | E39: 1.7563 | F39: 0 | G39: 0 | H39: 0 | I39: 0.6332 | J39: 0 | K39: 0 | L39: 0 | M39: 21.305 | N39: 0 | O39: 0 | P39: 0 | Q39: 0 | R39: 0 | S39: 0 | T39: 0 | U39: 0 | V39: 0 | W39: 0 | X39: 0 | Z39: 118 | AA39: 513734520.5 | AB39: 0 | AC39: 0 | AD39: 0 | AE39: 461657325.4 | AF39: 0 | AG39: 0 | AH39: 0 | AI39: 265224.6059 | AJ39: 0 | AK39: 0 | AL39: 0 | AM39: 0 | AN39: 0 | AO39: 0 | AP39: 0 | AQ39: 0 | AR39: 0 | AS39: 0 | AT39: 0 | AW39: 0 | AX39: 9022719.384 | AY39: 0 | AZ39: 0 | BA39: 0 | BB39: 2923214.185 | BC39: 0 | BD39: 0 | BE39: 0 | BF39: 5650610.229 | BG39: 0 | BH39: 0 | BI39: 0 | BJ39: 0 | BK39: 0 | BL39: 0 | BM39: 0 | BN39: 0 | BO39: 0 | BP39: 0 | BQ39: 0 | BR39: 17596543.8
B40: High Voltage Demand A | D40: 0 | E40: 1.726 | F40: 0 | G40: 0 | H40: 0 | I40: 0.5809 | J40: 0 | K40: 0 | L40: 0 | M40: 32.0599 | N40: 0 | O40: 0 | P40: 0 | Q40: 0 | R40: 0 | S40: 0 | T40: 0 | U40: 0 | V40: 0 | W40: 0 | X40: 0 | Z40: 3.166666667 | AA40: 5867874.995 | AB40: 0 | AC40: 0 | AD40: 0 | AE40: 5936497.82 | AF40: 0 | AG40: 0 | AH40: 0 | AI40: 3945.666667 | AJ40: 0 | AK40: 0 | AL40: 0 | AM40: 0 | AN40: 0 | AO40: 0 | AP40: 0 | AQ40: 0 | AR40: 0 | AS40: 0 | AT40: 0 | AW40: 0 | AX40: =E40/100*AA40 -> 101279.5224 | AY40: =F40/100*AB40 -> 0 | AZ40: =G40/100*AC40 -> 0 | BA40: =H40/100*AD40 -> 0 | BB40: =I40/100*AE40 -> 34485.11584 | BC40: =J40/100*AF40 -> 0 | BD40: =K40/100*AG40 -> 0 | BE40: =L40/100*AH40 -> 0 | BF40: 126497.6788 | BG40: 0 | BH40: 0 | BI40: 0 | BJ40: =Q40/100*AM40 -> 0 | BK40: =R40/100*AN40 -> 0 | BL40: =S40/100*AO40 -> 0 | BM40: =T40/100*AP40 -> 0 | BN40: 0 | BO40: 0 | BP40: 0 | BQ40: =X40*AT40 -> 0 | BR40: 262262.317
B41: High Voltage Demand C | D41: 0 | E41: 1.7622 | F41: 0 | G41: 0 | H41: 0 | I41: 0.5969 | J41: 0 | K41: 0 | L41: 0 | M41: 21.7079 | N41: 0 | O41: 0 | P41: 0 | Q41: 0 | R41: 0 | S41: 0 | T41: 0 | U41: 0 | V41: 0 | W41: 0 | X41: 0 | Z41: 40.91666667 | AA41: 226586139 | AB41: 0 | AC41: 0 | AD41: 0 | AE41: 194921731.7 | AF41: 0 | AG41: 0 | AH41: 0 | AI41: 113184.329 | AJ41: 0 | AK41: 0 | AL41: 0 | AM41: 0 | AN41: 0 | AO41: 0 | AP41: 0 | AQ41: 0 | AR41: 0 | AS41: 0 | AT41: 0 | AW41: 0 | AX41: 3992900.942 | AY41: 0 | AZ41: 0 | BA41: 0 | BB41: 1163487.816 | BC41: 0 | BD41: 0 | BE41: 0 | BF41: 2456994.095 | BG41: =N41*AJ41 -> 0 | BH41: =O41*AK41 -> 0 | BI41: =P41*AL41 -> 0 | BJ41: 0 | BK41: 0 | BL41: 0 | BM41: 0 | BN41: 0 | BO41: 0 | BP41: 0 | BQ41: 0 | BR41: 7613382.853
B42: High Voltage Demand D1 | D42: 0 | E42: 1.627 | F42: 0 | G42: 0 | H42: 0 | I42: 0.5557 | J42: 0 | K42: 0 | L42: 0 | M42: 31.2584 | N42: 0 | O42: 0 | P42: 0 | Q42: 0 | R42: 0 | S42: 0 | T42: 0 | U42: 0 | V42: 0 | W42: 0 | X42: 0 | Z42: 1 | AA42: 79161602.68 | AB42: 0 | AC42: 0 | AD42: 0 | AE42: 86936793.64 | AF42: 0 | AG42: 0 | AH42: 0 | AI42: 22257.97816 | AJ42: 0 | AK42: 0 | AL42: 0 | AM42: 0 | AN42: 0 | AO42: 0 | AP42: 0 | AQ42: 0 | AR42: 0 | AS42: 0 | AT42: 0 | AW42: 0 | AX42: 1287959.276 | AY42: 0 | AZ42: 0 | BA42: 0 | BB42: 483107.7623 | BC42: 0 | BD42: 0 | BE42: 0 | BF42: 695748.7845 | BG42: 0 | BH42: 0 | BI42: 0 | BJ42: 0 | BK42: 0 | BL42: 0 | BM42: 0 | BN42: 0 | BO42: 0 | BP42: 0 | BQ42: 0 | BR42: 2466815.822
B43: High Voltage Demand D2 | D43: 0 | E43: 1.5341 | F43: 0 | G43: 0 | H43: 0 | I43: 0.12 | J43: 0 | K43: 0 | L43: 0 | M43: 28.8476 | N43: 0 | O43: 0 | P43: 0 | Q43: 0 | R43: 0 | S43: 0 | T43: 0 | U43: 0 | V43: 0 | W43: 0 | X43: 0 | Z43: 1 | AA43: 37358613.25 | AB43: 0 | AC43: 0 | AD43: 0 | AE43: 40911736.95 | AF43: 0 | AG43: 0 | AH43: 0 | AI43: 12577.61866 | AJ43: 0 | AK43: 0 | AL43: 0 | AM43: 0 | AN43: 0 | AO43: 0 | AP43: 0 | AQ43: 0 | AR43: 0 | AS43: 0 | AT43: 0 | AW43: 0 | AX43: 573118.4859 | AY43: 0 | AZ43: 0 | BA43: 0 | BB43: 49094.08434 | BC43: 0 | BD43: 0 | BE43: 0 | BF43: 362834.1121 | BG43: 0 | BH43: 0 | BI43: 0 | BJ43: 0 | BK43: 0 | BL43: 0 | BM43: 0 | BN43: 0 | BO43: 0 | BP43: 0 | BQ43: 0 | BR43: 985046.6824
B44: High Voltage Demand Docklands | D44: 0 | E44: 1.7067 | F44: 0 | G44: 0 | H44: 0 | I44: 0.6906 | J44: 0 | K44: 0 | L44: 0 | M44: 35.0033 | N44: 0 | O44: 0 | P44: 0 | Q44: 0 | R44: 0 | S44: 0 | T44: 0 | U44: 0 | V44: 0 | W44: 0 | X44: 0 | Z44: 1 | AA44: 1673069.355 | AB44: 0 | AC44: 0 | AD44: 0 | AE44: 713570.7832 | AF44: 0 | AG44: 0 | AH44: 0 | AI44: 1000 | AJ44: 0 | AK44: 0 | AL44: 0 | AM44: 0 | AN44: 0 | AO44: 0 | AP44: 0 | AQ44: 0 | AR44: 0 | AS44: 0 | AT44: 0 | AW44: 0 | AX44: 28554.27468 | AY44: 0 | AZ44: 0 | BA44: 0 | BB44: 4927.919829 | BC44: 0 | BD44: 0 | BE44: 0 | BF44: 35003.3 | BG44: 0 | BH44: 0 | BI44: 0 | BJ44: 0 | BK44: 0 | BL44: 0 | BM44: 0 | BN44: 0 | BO44: 0 | BP44: 0 | BQ44: 0 | BR44: 68485.49451
B45: High Voltage Demand D3 | D45: 0 | E45: 0.7641 | F45: 0 | G45: 0 | H45: 0 | I45: 0.5742 | J45: 0 | K45: 0 | L45: 0 | M45: 22.8654 | N45: 0 | O45: 0 | P45: 0 | Q45: 0 | R45: 0 | S45: 0 | T45: 0 | U45: 0 | V45: 0 | W45: 0 | X45: 0 | Z45: 1 | AA45: 10910927.27 | AB45: 0 | AC45: 0 | AD45: 0 | AE45: 15468234.81 | AF45: 0 | AG45: 0 | AH45: 0 | AI45: 11400 | AJ45: 0 | AK45: 0 | AL45: 0 | AM45: 0 | AN45: 0 | AO45: 0 | AP45: 0 | AQ45: 0 | AR45: 0 | AS45: 0 | AT45: 0 | AW45: 0 | AX45: 83370.39527 | AY45: 0 | AZ45: 0 | BA45: 0 | BB45: 88818.60428 | BC45: 0 | BD45: 0 | BE45: 0 | BF45: 260665.56 | BG45: 0 | BH45: 0 | BI45: 0 | BJ45: 0 | BK45: 0 | BL45: 0 | BM45: 0 | BN45: 0 | BO45: 0 | BP45: 0 | BQ45: 0 | BR45: 432854.5595
B46: High Voltage Demand D4 | D46: 0 | E46: 1.9083 | F46: 0 | G46: 0 | H46: 0 | I46: 0.6806 | J46: 0 | K46: 0 | L46: 0 | M46: 53.4 | N46: 0 | O46: 0 | P46: 0 | Q46: 0 | R46: 0 | S46: 0 | T46: 0 | U46: 0 | V46: 0 | W46: 0 | X46: 0 | Z46: 0 | AA46: -5402.17578 | AB46: 0 | AC46: 0 | AD46: 0 | AE46: -7255.357725 | AF46: 0 | AG46: 0 | AH46: 0 | AI46: 0 | AJ46: 0 | AK46: 0 | AL46: 0 | AM46: 0 | AN46: 0 | AO46: 0 | AP46: 0 | AQ46: 0 | AR46: 0 | AS46: 0 | AT46: 0 | AW46: 0 | AX46: -103.0897204 | AY46: 0 | AZ46: 0 | BA46: 0 | BB46: -49.37996468 | BC46: 0 | BD46: 0 | BE46: 0 | BF46: 0 | BG46: 0 | BH46: 0 | BI46: 0 | BJ46: 0 | BK46: 0 | BL46: 0 | BM46: 0 | BN46: 0 | BO46: 0 | BP46: 0 | BQ46: 0 | BR46: -152.4696851
B47: Subtransmission Demand A | D47: 0 | E47: 2.7436 | F47: 0 | G47: 0 | H47: 0 | I47: 0.5895 | J47: 0 | K47: 0 | L47: 0 | M47: 7.6272 | N47: 0 | O47: 0 | P47: 0 | Q47: 0 | R47: 0 | S47: 0 | T47: 0 | U47: 0 | V47: 0 | W47: 0 | X47: 0 | Z47: 3 | AA47: 67563109.93 | AB47: 0 | AC47: 0 | AD47: 0 | AE47: 42725685.58 | AF47: 0 | AG47: 0 | AH47: 0 | AI47: 51789.80533 | AJ47: 0 | AK47: 0 | AL47: 0 | AM47: 0 | AN47: 0 | AO47: 0 | AP47: 0 | AQ47: 0 | AR47: 0 | AS47: 0 | AT47: 0 | AW47: 0 | AX47: 1853661.484 | AY47: 0 | AZ47: 0 | BA47: 0 | BB47: 251867.9165 | BC47: 0 | BD47: 0 | BE47: 0 | BF47: 395011.2032 | BG47: 0 | BH47: 0 | BI47: 0 | BJ47: 0 | BK47: 0 | BL47: 0 | BM47: 0 | BN47: 0 | BO47: 0 | BP47: 0 | BQ47: 0 | BR47: 2500540.604
B48: Subtransmission Demand G | D48: 0 | E48: 2.6595 | F48: 0 | G48: 0 | H48: 0 | I48: 0.5895 | J48: 0 | K48: 0 | L48: 0 | M48: 9.7774 | N48: 0 | O48: 0 | P48: 0 | Q48: 0 | R48: 0 | S48: 0 | T48: 0 | U48: 0 | V48: 0 | W48: 0 | X48: 0 | Z48: 7.083333333 | AA48: 274827905.9 | AB48: 0 | AC48: 0 | AD48: 0 | AE48: 291614743.6 | AF48: 0 | AG48: 0 | AH48: 0 | AI48: 184657.0585 | AJ48: 0 | AK48: 0 | AL48: 0 | AM48: 0 | AN48: 0 | AO48: 0 | AP48: 0 | AQ48: 0 | AR48: 0 | AS48: 0 | AT48: 0 | AW48: 0 | AX48: 7309048.157 | AY48: 0 | AZ48: 0 | BA48: 0 | BB48: 1719068.914 | BC48: 0 | BD48: 0 | BE48: 0 | BF48: 1805465.924 | BG48: 0 | BH48: 0 | BI48: 0 | BJ48: 0 | BK48: 0 | BL48: 0 | BM48: 0 | BN48: 0 | BO48: 0 | BP48: 0 | BQ48: 0 | BR48: 10833582.99
B49: Subtransmission Demand S | D49: 0 | E49: 2.6407 | F49: 0 | G49: 0 | H49: 0 | I49: 0.5895 | J49: 0 | K49: 0 | L49: 0 | M49: 9.7142 | N49: 0 | O49: 0 | P49: 0 | Q49: 0 | R49: 0 | S49: 0 | T49: 0 | U49: 0 | V49: 0 | W49: 0 | X49: 0 | Z49: 2 | AA49: 157057011.2 | AB49: 0 | AC49: 0 | AD49: 0 | AE49: 141983291.6 | AF49: 0 | AG49: 0 | AH49: 0 | AI49: 101426.2087 | AJ49: 0 | AK49: 0 | AL49: 0 | AM49: 0 | AN49: 0 | AO49: 0 | AP49: 0 | AQ49: 0 | AR49: 0 | AS49: 0 | AT49: 0 | AW49: 0 | AX49: 4147404.496 | AY49: 0 | AZ49: 0 | BA49: 0 | BB49: 836991.5037 | BC49: 0 | BD49: 0 | BE49: 0 | BF49: 985274.4762 | BG49: 0 | BH49: 0 | BI49: 0 | BJ49: 0 | BK49: 0 | BL49: 0 | BM49: 0 | BN49: 0 | BO49: 0 | BP49: 0 | BQ49: 0 | BR49: 5969670.476
AW50: 0 | AX50: 0 | AY50: 0 | AZ50: 0 | BA50: 0 | BB50: 0 | BC50: 0 | BD50: 0 | BE50: 0 | BF50: 0 | BG50: 0 | BH50: 0 | BI50: 0 | BJ50: 0 | BK50: 0 | BL50: 0 | BM50: 0 | BN50: 0 | BO50: 0 | BP50: 0 | BQ50: 0 | BR50: 0
AW51: 0 | AX51: 0 | AY51: 0 | AZ51: 0 | BA51: 0 | BB51: 0 | BC51: 0 | BD51: 0 | BE51: 0 | BF51: 0 | BG51: 0 | BH51: 0 | BI51: 0 | BJ51: 0 | BK51: 0 | BL51: 0 | BM51: 0 | BN51: 0 | BO51: 0 | BP51: 0 | BQ51: 0 | BR51: 0
AW52: 0 | AX52: 0 | AY52: 0 | AZ52: 0 | BA52: 0 | BB52: 0 | BC52: 0 | BD52: 0 | BE52: 0 | BF52: 0 | BG52: 0 | BH52: 0 | BI52: 0 | BJ52: 0 | BK52: 0 | BL52: 0 | BM52: 0 | BN52: 0 | BO52: 0 | BP52: 0 | BQ52: 0 | BR52: 0
AW53: 0 | AX53: 0 | AY53: 0 | AZ53: 0 | BA53: 0 | BB53: 0 | BC53: 0 | BD53: 0 | BE53: 0 | BF53: 0 | BG53: 0 | BH53: 0 | BI53: 0 | BJ53: 0 | BK53: 0 | BL53: 0 | BM53: 0 | BN53: 0 | BO53: 0 | BP53: 0 | BQ53: 0 | BR53: 0
AW54: 0 | AX54: 0 | AY54: 0 | AZ54: 0 | BA54: 0 | BB54: 0 | BC54: 0 | BD54: 0 | BE54: 0 | BF54: 0 | BG54: 0 | BH54: 0 | BI54: 0 | BJ54: 0 | BK54: 0 | BL54: 0 | BM54: 0 | BN54: 0 | BO54: 0 | BP54: 0 | BQ54: 0 | BR54: 0
AW55: 0 | AX55: 0 | AY55: 0 | AZ55: 0 | BA55: 0 | BB55: 0 | BC55: 0 | BD55: 0 | BE55: 0 | BF55: 0 | BG55: 0 | BH55: 0 | BI55: 0 | BJ55: 0 | BK55: 0 | BL55: 0 | BM55: 0 | BN55: 0 | BO55: 0 | BP55: 0 | BQ55: 0 | BR55: 0
AW56: 0 | AX56: 0 | AY56: 0 | AZ56: 0 | BA56: 0 | BB56: 0 | BC56: 0 | BD56: 0 | BE56: 0 | BF56: 0 | BG56: 0 | BH56: 0 | BI56: 0 | BJ56: 0 | BK56: 0 | BL56: 0 | BM56: =T56/100*AP56 -> 0 | BN56: 0 | BO56: 0 | BP56: 0 | BQ56: 0 | BR56: 0
AW57: 0 | AX57: 0 | AY57: 0 | AZ57: 0 | BA57: 0 | BB57: 0 | BC57: 0 | BD57: 0 | BE57: 0 | BF57: 0 | BG57: 0 | BH57: 0 | BI57: 0 | BJ57: 0 | BK57: 0 | BL57: 0 | BM57: 0 | BN57: 0 | BO57: 0 | BP57: 0 | BQ57: 0 | BR57: 0
AW58: 0 | AX58: 0 | AY58: 0 | AZ58: 0 | BA58: 0 | BB58: 0 | BC58: 0 | BD58: 0 | BE58: 0 | BF58: 0 | BG58: 0 | BH58: 0 | BI58: 0 | BJ58: 0 | BK58: 0 | BL58: 0 | BM58: 0 | BN58: 0 | BO58: 0 | BP58: 0 | BQ58: 0 | BR58: 0
AW59: 0 | AX59: 0 | AY59: 0 | AZ59: 0 | BA59: 0 | BB59: 0 | BC59: 0 | BD59: 0 | BE59: 0 | BF59: 0 | BG59: 0 | BH59: 0 | BI59: 0 | BJ59: 0 | BK59: 0 | BL59: 0 | BM59: 0 | BN59: 0 | BO59: 0 | BP59: 0 | BQ59: 0 | BR59: 0
AW60: 0 | AX60: 0 | AY60: 0 | AZ60: 0 | BA60: 0 | BB60: 0 | BC60: 0 | BD60: 0 | BE60: 0 | BF60: 0 | BG60: 0 | BH60: 0 | BI60: 0 | BJ60: 0 | BK60: 0 | BL60: 0 | BM60: 0 | BN60: 0 | BO60: 0 | BP60: 0 | BQ60: 0 | BR60: 0
AW61: 0 | AX61: 0 | AY61: 0 | AZ61: 0 | BA61: 0 | BB61: 0 | BC61: 0 | BD61: 0 | BE61: 0 | BF61: 0 | BG61: 0 | BH61: 0 | BI61: 0 | BJ61: 0 | BK61: 0 | BL61: 0 | BM61: 0 | BN61: 0 | BO61: 0 | BP61: 0 | BQ61: 0 | BR61: 0
AW62: 0 | AX62: 0 | AY62: 0 | AZ62: 0 | BA62: 0 | BB62: 0 | BC62: 0 | BD62: 0 | BE62: 0 | BF62: 0 | BG62: 0 | BH62: 0 | BI62: 0 | BJ62: 0 | BK62: 0 | BL62: 0 | BM62: 0 | BN62: 0 | BO62: 0 | BP62: 0 | BQ62: 0 | BR62: 0
AW63: 0 | AX63: 0 | AY63: 0 | AZ63: 0 | BA63: 0 | BB63: 0 | BC63: 0 | BD63: 0 | BE63: 0 | BF63: 0 | BG63: 0 | BH63: 0 | BI63: 0 | BJ63: 0 | BK63: 0 | BL63: 0 | BM63: 0 | BN63: 0 | BO63: 0 | BP63: 0 | BQ63: 0 | BR63: 0
AW64: 0 | AX64: 0 | AY64: 0 | AZ64: 0 | BA64: 0 | BB64: 0 | BC64: 0 | BD64: 0 | BE64: 0 | BF64: 0 | BG64: 0 | BH64: 0 | BI64: 0 | BJ64: 0 | BK64: 0 | BL64: 0 | BM64: 0 | BN64: 0 | BO64: 0 | BP64: 0 | BQ64: 0 | BR64: 0
AW65: 0 | AX65: 0 | AY65: 0 | AZ65: 0 | BA65: 0 | BB65: 0 | BC65: 0 | BD65: 0 | BE65: 0 | BF65: 0 | BG65: 0 | BH65: 0 | BI65: 0 | BJ65: 0 | BK65: 0 | BL65: 0 | BM65: 0 | BN65: 0 | BO65: 0 | BP65: 0 | BQ65: 0 | BR65: 0
AW66: 0 | AX66: 0 | AY66: 0 | AZ66: 0 | BA66: 0 | BB66: 0 | BC66: 0 | BD66: 0 | BE66: 0 | BF66: 0 | BG66: 0 | BH66: 0 | BI66: 0 | BJ66: 0 | BK66: 0 | BL66: 0 | BM66: 0 | BN66: 0 | BO66: 0 | BP66: 0 | BQ66: 0 | BR66: 0
AW67: 0 | AX67: 0 | AY67: 0 | AZ67: 0 | BA67: 0 | BB67: 0 | BC67: 0 | BD67: 0 | BE67: 0 | BF67: 0 | BG67: 0 | BH67: 0 | BI67: 0 | BJ67: 0 | BK67: 0 | BL67: 0 | BM67: 0 | BN67: 0 | BO67: 0 | BP67: 0 | BQ67: 0 | BR67: 0
Z68: =SUM(Z8:Z67) -> 960803.25 | AA68: 4724371649 | AB68: 1063547298 | AC68: 395935590.5 | AD68: 219223210.5 | AE68: 3916502355 | AF68: 0 | AG68: 0 | AH68: 0 | AI68: 1621801.299 | AJ68: 0 | AK68: 0 | AL68: 0 | AM68: =SUM(AM8:AM67) -> 2180173.485 | AN68: 2064760.182 | AO68: 2543126.607 | AP68: 0 | AQ68: 2117242.542 | AR68: 1955422.074 | AS68: 2521086.874 | AT68: 0 | AW68: =SUM(AW8:AW67) -> 4144459.887 | AX68: 56186635.88 | AY68: 7786471.264 | AZ68: 3653263.898 | BA68: 2083581.55 | BB68: 29729859.02 | BC68: 0 | BD68: 0 | BE68: 0 | BF68: 47434344.59 | BG68: 0 | BH68: 0 | BI68: 0 | BJ68: =SUM(BJ8:BJ67) -> 81473.47218 | BK68: 39933.05739 | BL68: 30498.44382 | BM68: 0 | BN68: 77041.878 | BO68: 35424.96101 | BP68: 26778.25335 | BQ68: 0 | BR68: =SUM(AW68:BQ68) -> 151309766.2
AW70: 0 | AX70: 0 | AY70: 0 | AZ70: 0 | BA70: 0 | BB70: 0 | BC70: 0 | BD70: 0 | BE70: 0 | BF70: 0 | BG70: 0 | BH70: 0 | BI70: 0 | BJ70: 0 | BK70: 0 | BL70: 0 | BM70: 0 | BN70: 0 | BO70: 0 | BP70: 0 | BQ70: 0 | BR70: 0
B72: Definitions
B73: All information must be reported consistent the terms used in the DNSPs pricing proposal

Sheet 27. TUoS cost audit (t-2)
B1: =Cover!E22 -> Powercor Australia Ltd
B2: TUoS cost audit template (t-2)
B3: =Cover!E26 -> 2014
B5: Templates 24 to 29 collect data required for annual pricing proposals. T-2 requires actual information for the reporting year.
B7: TUOS charges (AEMO) | F7: t-2 actual
B8: AEMO (TUOS Usage) | F8: 55615994.55
B9: AEMO (TUOS General and Common Service) | F9: 82023382.9
B10: Grid equalisation | F10: -7604400
E12: Total | F12: =SUM(F8:F11) -> 130034977.4
B14: Transmission connection fees (SPI Powernet) | F14: t-2 actual
B15: SP Connection | F15: 15788070.27
B16: SP Augmentation | F16: 10772569.84
E19: Total | F19: =SUM(F15:F18) -> 26560640.11
B21: Cross boundary network charges (internetwork charges) | F21: t-2 actual
B22: Distribution Business | C22: Amount (payable)/receivable
C23: HV crossings | D23: Sub-transmission crossings | E23: TUoS Adjustment | F23: Total
B24: Jemena | C24: 0 | D24: -5148153.9 | F24: =SUM(C24:E24) -> -5148153.9
B25: ETSA | C25: -642701.63 | D25: 0 | F25: -642701.63
F26: =SUM(C26:E26) -> 0
F27: =SUM(C27:E27) -> 0
F28: =SUM(C28:E28) -> 0
B29: Total | F29: =SUM(F24:F28) -> -5790855.53
B31: Payments to embedded generators | F31: t-2 actual
B32: Avoided transmission costs
B34: Avoided Transmission cost | F34: 1740842.265
B38: Total | F38: =SUM(F34:F37) -> 1740842.265
B40: Avoided TUoS usage charges
B46: Total | F46: =SUM(F41:F45) -> 0
B47: Total payments to embedded generators | F47: =F46+F38 -> 1740842.265
B49: Where the following definitions apply
B50: HV Crossings | C50: Payments/Receipts for energy transferred utilising the distributor’s HV and LV line assets.
B51: Sub-transmission Crossings | C51: Payments/Receipts for the Sub-transmission assets in shared loops that support each distributor’s Zone Substation capacity to ensure N-1 reliability is maintained.
B52: TuoS Adjustment | C52: Payments/Receipts for the adjustment of TuoS paid by a distributor for energy delivered to another distribution business through a shared loop.

Sheet 28. Actual t-2 Juris Revenue
B1: =Cover!E22 -> Powercor Australia Ltd
B2: Tariff Quantity Data Template (Actual t-2) Jurisdictional Scheme Tariff Revenue
B3: =Cover!E26 -> 2014
B5: Templates 24 to 29 collect data required for annual pricing proposals. T-2 requires actual information for the reporting year.
D6: Jurisdictional Scheme Tariffs (Pt-2) | Z6: Actual Quantities (Qt-2) | AW6: Actual Revenue (P-2)*(Qt-2)
B7: Tariff (t-2) | D7: (t-2)Tar Fixed | E7: (t-2)Tar PkBlk1 | F7: (t-2)Tar PkBlk2 | G7: (t-2)Tar PkBlk3 | H7: (t-2)Tar PkBlk4 | I7: (t-2)Tar OPkBlk1 | J7: (t-2)Tar OPkBlk2 | K7: (t-2)Tar OPkBlk3 | L7: (t-2)Tar OPkBlk4 | M7: (t-2)Tar DemBlk1 | N7: (t-2)Tar DemBlk2 | O7: (t-2)Tar DemBlk3 | P7: (t-2)Tar DemBlk4 | Q7: (t-2)Tar SumBlk1 | R7: (t-2)Tar SumBlk2 | S7: (t-2)Tar SumBlk3 | T7: (t-2)Tar SumBlk4 | U7: (t-2)Tar WtrBlk1 | V7: (t-2)Tar WtrBlk2 | W7: (t-2)Tar WtrBlk3 | X7: (t-2)Tar WtrBlk4 | Z7: ActVol Fixed | AA7: ActVol PkBlk1 | AB7: ActVol PkBlk2 | AC7: ActVol PkBlk3 | AD7: ActVol PkBlk4 | AE7: ActVol OPkBlk1 | AF7: ActVol OPkBlk2 | AG7: ActVol OPkBlk3 | AH7: ActVol OPkBlk4 | AI7: ActVol DemBlk1 | AJ7: ActVol DemBlk2 | AK7: ActVol DemBlk3 | AL7: ActVol DemBlk4 | AM7: (t-2)Tar SumBlk1 | AN7: (t-2)Tar SumBlk2 | AO7: (t-2)Tar SumBlk3 | AP7: (t-2)Tar SumBlk4 | AQ7: (t-2)Tar WtrBlk1 | AR7: (t-2)Tar WtrBlk2 | AS7: (t-2)Tar WtrBlk3 | AT7: (t-2)Tar WtrBlk4 | AW7: ActRev Fixed | AX7: ActRev PkBlk1 | AY7: ActRev PkBlk2 | AZ7: ActRev PkBlk3 | BA7: ActRev PkBlk4 | BB7: ActRev OPkBlk1 | BC7: ActRev OPkBlk2 | BD7: ActRev OPkBlk3 | BE7: ActRev OPkBlk4 | BF7: ActRev DemBlk1 | BG7: ActRev DemBlk2 | BH7: ActRev DemBlk3 | BI7: ActRev DemBlk4 | BJ7: (t-2)Tar SumBlk1 | BK7: (t-2)Tar SumBlk2 | BL7: (t-2)Tar SumBlk3 | BM7: (t-2)Tar SumBlk4 | BN7: (t-2)Tar WtrBlk1 | BO7: (t-2)Tar WtrBlk2 | BP7: (t-2)Tar WtrBlk3 | BQ7: (t-2)Tar WtrBlk4 | BR7: ActRev Total
AW8: =D8*Z8 -> 0 | AX8: =E8/100*AA8 -> 0 | AY8: =F8/100*AB8 -> 0 | AZ8: =G8/100*AC8 -> 0 | BA8: =H8/100*AD8 -> 0 | BB8: =I8/100*AE8 -> 0 | BC8: =J8/100*AF8 -> 0 | BD8: =K8/100*AG8 -> 0 | BE8: =L8/100*AH8 -> 0 | BF8: =M8*AI8 -> 0 | BG8: =N8*AJ8 -> 0 | BH8: =O8*AK8 -> 0 | BI8: =P8*AL8 -> 0 | BJ8: =Q8/100*AM8 -> 0 | BK8: =R8/100*AN8 -> 0 | BL8: =S8/100*AO8 -> 0 | BM8: =T8/100*AP8 -> 0 | BN8: =U8/100*AQ8 -> 0 | BO8: 0 | BP8: 0 | BQ8: 0 | BR8: =SUM(AW8:BQ8) -> 0
B9: Residential Single Rate | D9: 0 | E9: 0.3236 | F9: 0.3236 | G9: 0.3236 | H9: 0.3236 | I9: 0 | J9: 0 | K9: 0 | L9: 0 | M9: 0 | N9: 0 | O9: 0 | P9: 0 | Q9: 0 | R9: 0 | S9: 0 | T9: 0 | U9: 0 | V9: 0 | W9: 0 | X9: 0 | Z9: 494144.5 | AA9: 1447276833 | AB9: 582901117.9 | AC9: 18823367.87 | AD9: 2185865.032 | AE9: -424.650006 | AF9: 0 | AG9: 0 | AH9: 0 | AI9: 0 | AJ9: 0 | AK9: 0 | AL9: 0 | AM9: 0 | AN9: 0 | AO9: 0 | AP9: 0 | AQ9: 0 | AR9: 0 | AS9: 0 | AT9: 0 | AW9: =D9*Z9 -> 0 | AX9: 4683387.832 | AY9: 1886268.017 | AZ9: 60912.41842 | BA9: 7073.459243 | BB9: 0 | BC9: 0 | BD9: 0 | BE9: 0 | BF9: =M9*AI9 -> 0 | BG9: =N9*AJ9 -> 0 | BH9: =O9*AK9 -> 0 | BI9: =P9*AL9 -> 0 | BJ9: 0 | BK9: 0 | BL9: 0 | BM9: 0 | BN9: 0 | BO9: 0 | BP9: 0 | BQ9: 0 | BR9: =SUM(AW9:BQ9) -> 6637641.727
B10: Climate Saver | D10: 0 | E10: 0.5547 | F10: 0.5547 | G10: 0.5547 | H10: 0.5547 | I10: 0.4109 | J10: 0 | K10: 0 | L10: 0 | M10: 0 | N10: 0 | O10: 0 | P10: 0 | Q10: 0 | R10: 0 | S10: 0 | T10: 0 | U10: 0 | V10: 0 | W10: 0 | X10: 0 | Z10: 17253.58333 | AA10: 7574411.121 | AB10: 2414309.641 | AC10: 81059.09656 | AD10: -0.8074525153 | AE10: 14892766.33 | AF10: 0 | AG10: 0 | AH10: 0 | AI10: 0 | AJ10: 0 | AK10: 0 | AL10: 0 | AM10: 0 | AN10: 0 | AO10: 0 | AP10: 0 | AQ10: 0 | AR10: 0 | AS10: 0 | AT10: 0 | AW10: 0 | AX10: 42015.25849 | AY10: 13392.17558 | AZ10: 449.6348086 | BA10: -0.004478939102 | BB10: 61194.37684 | BC10: 0 | BD10: 0 | BE10: 0 | BF10: 0 | BG10: 0 | BH10: 0 | BI10: 0 | BJ10: 0 | BK10: 0 | BL10: 0 | BM10: 0 | BN10: 0 | BO10: 0 | BP10: 0 | BQ10: 0 | BR10: 117051.4412
B11: Climate Saver Interval | D11: 0 | E11: 0.5547 | F11: 0.5547 | G11: 0.5547 | H11: 0.5547 | I11: 0.4109 | J11: 0 | K11: 0 | L11: 0 | M11: 0 | N11: 0 | O11: 0 | P11: 0 | Q11: 0 | R11: 0 | S11: 0 | T11: 0 | U11: 0 | V11: 0 | W11: 0 | X11: 0 | Z11: 4683.916667 | AA11: 2212872.421 | AB11: 640958.2488 | AC11: 18573.72841 | AD11: 0 | AE11: 4540542.234 | AF11: 0 | AG11: 0 | AH11: 0 | AI11: 0 | AJ11: 0 | AK11: 0 | AL11: 0 | AM11: 0 | AN11: 0 | AO11: 0 | AP11: 0 | AQ11: 0 | AR11: 0 | AS11: 0 | AT11: 0 | AW11: 0 | AX11: 12274.80332 | AY11: 3555.395406 | AZ11: 103.0284715 | BA11: 0 | BB11: 18657.08804 | BC11: 0 | BD11: 0 | BE11: 0 | BF11: 0 | BG11: 0 | BH11: 0 | BI11: 0 | BJ11: 0 | BK11: 0 | BL11: 0 | BM11: 0 | BN11: 0 | BO11: 0 | BP11: 0 | BQ11: 0 | BR11: 34590.31524
B12: Residential - Flexible Pricing | D12: 0 | E12: 0 | F12: 0 | G12: 0 | H12: 0 | I12: 0 | J12: 0 | K12: 0 | L12: 0 | M12: 0 | N12: 0 | O12: 0 | P12: 0 | Q12: 1.0093 | R12: 0.8953 | S12: 0.4919 | T12: 0 | U12: 1.0093 | V12: 0.8953 | W12: 0.4919 | X12: 0 | Z12: 1709.25 | AA12: 0 | AB12: 0 | AC12: 0 | AD12: 0 | AE12: -454.6394868 | AF12: 0 | AG12: 0 | AH12: 0 | AI12: 0 | AJ12: 0 | AK12: 0 | AL12: 0 | AM12: 727016.2397 | AN12: 1519792.015 | AO12: 1016119.596 | AP12: 0 | AQ12: 987120.1847 | AR12: 1619789.001 | AS12: 1344787.28 | AT12: 0 | AW12: 0 | AX12: 0 | AY12: 0 | AZ12: 0 | BA12: 0 | BB12: 0 | BC12: 0 | BD12: 0 | BE12: 0 | BF12: 0 | BG12: 0 | BH12: 0 | BI12: 0 | BJ12: 7337.774907 | BK12: 13606.69791 | BL12: 4998.292293 | BM12: 0 | BN12: 9963.004024 | BO12: 14501.97092 | BP12: 6615.008632 | BQ12: 0 | BR12: 57022.74869
B13: Residential Docklands - Flexible Pricing | D13: 0 | E13: 0 | F13: 0 | G13: 0 | H13: 0 | I13: 0 | J13: 0 | K13: 0 | L13: 0 | M13: 0 | N13: 0 | O13: 0 | P13: 0 | Q13: 0.7899 | R13: 0.6714 | S13: 0.351 | T13: 0 | U13: 0.7899 | V13: 0.6714 | W13: 0.351 | X13: 0 | Z13: 1 | AA13: 0 | AB13: 0 | AC13: 0 | AD13: 0 | AE13: 0 | AF13: 0 | AG13: 0 | AH13: 0 | AI13: 0 | AJ13: 0 | AK13: 0 | AL13: 0 | AM13: 940.2905452 | AN13: 1900.998513 | AO13: 1344.266273 | AP13: 0 | AQ13: 877.4213888 | AR13: 1482.957237 | AS13: 1014.172448 | AT13: 0 | AW13: 0 | AX13: 0 | AY13: 0 | AZ13: 0 | BA13: 0 | BB13: 0 | BC13: 0 | BD13: 0 | BE13: 0 | BF13: 0 | BG13: 0 | BH13: 0 | BI13: 0 | BJ13: 7.427355017 | BK13: 12.76330402 | BL13: 4.718374617 | BM13: 0 | BN13: 6.93075155 | BO13: 9.956574889 | BP13: 3.559745294 | BQ13: 0 | BR13: 45.35610538
B14: Climate Saver - Flexible Pricing | D14: 0 | E14: 0 | F14: 0 | G14: 0 | H14: 0 | I14: 0 | J14: 0 | K14: 0 | L14: 0 | M14: 0 | N14: 0 | O14: 0 | P14: 0 | Q14: 0.585 | R14: 0 | S14: 0 | T14: 0 | U14: 0.585 | V14: 0 | W14: 0 | X14: 0 | Z14: 0 | AA14: 0 | AB14: 0 | AC14: 0 | AD14: 0 | AE14: 0 | AF14: 0 | AG14: 0 | AH14: 0 | AI14: 0 | AJ14: 0 | AK14: 0 | AL14: 0 | AM14: 4117 | AN14: 0 | AO14: 0 | AP14: 0 | AQ14: 0 | AR14: 0 | AS14: 0 | AT14: 0 | AW14: 0 | AX14: 0 | AY14: 0 | AZ14: 0 | BA14: 0 | BB14: 0 | BC14: 0 | BD14: 0 | BE14: 0 | BF14: 0 | BG14: 0 | BH14: 0 | BI14: 0 | BJ14: 24.08445 | BK14: 0 | BL14: 0 | BM14: 0 | BN14: 0 | BO14: 0 | BP14: 0 | BQ14: 0 | BR14: 24.08445
B15: Docklands single rate | D15: 0 | E15: 0.3236 | F15: 0 | G15: 0 | H15: 0 | I15: 0 | J15: 0 | K15: 0 | L15: 0 | M15: 0 | N15: 0 | O15: 0 | P15: 0 | Q15: 0 | R15: 0 | S15: 0 | T15: 0 | U15: 0 | V15: 0 | W15: 0 | X15: 0 | Z15: 0 | AA15: 0 | AB15: 0 | AC15: 0 | AD15: 0 | AE15: 0 | AF15: 0 | AG15: 0 | AH15: 0 | AI15: 0 | AJ15: 0 | AK15: 0 | AL15: 0 | AM15: 0 | AN15: 0 | AO15: 0 | AP15: 0 | AQ15: 0 | AR15: 0 | AS15: 0 | AT15: 0 | AW15: 0 | AX15: 0 | AY15: 0 | AZ15: 0 | BA15: 0 | BB15: 0 | BC15: 0 | BD15: 0 | BE15: 0 | BF15: 0 | BG15: 0 | BH15: 0 | BI15: 0 | BJ15: 0 | BK15: 0 | BL15: 0 | BM15: 0 | BN15: 0 | BO15: 0 | BP15: 0 | BQ15: 0 | BR15: 0
B16: Residential Two Rate 5d | D16: 0 | E16: 0.6934 | F16: 0.6934 | G16: 0.6934 | H16: 0.6934 | I16: 0.4109 | J16: 0 | K16: 0 | L16: 0 | M16: 0 | N16: 0 | O16: 0 | P16: 0 | Q16: 0 | R16: 0 | S16: 0 | T16: 0 | U16: 0 | V16: 0 | W16: 0 | X16: 0 | Z16: 45993.16667 | AA16: 103189365.8 | AB16: 21183211.29 | AC16: 648654.0654 | AD16: 36778.31085 | AE16: 162022880.9 | AF16: 0 | AG16: 0 | AH16: 0 | AI16: 0 | AJ16: 0 | AK16: 0 | AL16: 0 | AM16: 0 | AN16: 0 | AO16: 0 | AP16: 0 | AQ16: 0 | AR16: 0 | AS16: 0 | AT16: 0 | AW16: 0 | AX16: 715515.0628 | AY16: 146884.3871 | AZ16: 4497.767289 | BA16: 255.0208074 | BB16: 665752.0177 | BC16: 0 | BD16: 0 | BE16: 0 | BF16: 0 | BG16: 0 | BH16: 0 | BI16: 0 | BJ16: 0 | BK16: 0 | BL16: 0 | BM16: 0 | BN16: 0 | BO16: 0 | BP16: 0 | BQ16: 0 | BR16: 1532904.256
B17: Docklands Two Rate 5d | D17: 0 | E17: 0.6934 | F17: 0.6934 | G17: 0.6934 | H17: 0.6934 | I17: 0.4109 | J17: 0 | K17: 0 | L17: 0 | M17: 0 | N17: 0 | O17: 0 | P17: 0 | Q17: 0 | R17: 0 | S17: 0 | T17: 0 | U17: 0 | V17: 0 | W17: 0 | X17: 0 | Z17: 588.25 | AA17: 1573601.209 | AB17: 243069.4936 | AC17: 40797.76722 | AD17: -1.348366296 | AE17: 1766086.466 | AF17: 0 | AG17: 0 | AH17: 0 | AI17: 0 | AJ17: 0 | AK17: 0 | AL17: 0 | AM17: 0 | AN17: 0 | AO17: 0 | AP17: 0 | AQ17: 0 | AR17: 0 | AS17: 0 | AT17: 0 | AW17: 0 | AX17: 10911.35078 | AY17: 1685.443868 | AZ17: 282.8917179 | BA17: -0.009349571895 | BB17: 7256.849291 | BC17: 0 | BD17: 0 | BE17: 0 | BF17: 0 | BG17: 0 | BH17: 0 | BI17: 0 | BJ17: 0 | BK17: 0 | BL17: 0 | BM17: 0 | BN17: 0 | BO17: 0 | BP17: 0 | BQ17: 0 | BR17: 20136.52631
B18: Residential Interval | D18: 0 | E18: 0.6934 | F18: 0.6934 | G18: 0.6934 | H18: 0.6934 | I18: 0.4109 | J18: 0 | K18: 0 | L18: 0 | M18: 0 | N18: 0 | O18: 0 | P18: 0 | Q18: 0 | R18: 0 | S18: 0 | T18: 0 | U18: 0 | V18: 0 | W18: 0 | X18: 0 | Z18: 108947.8333 | AA18: 222417090.4 | AB18: 38733959.44 | AC18: 1528840.717 | AD18: 54583.25017 | AE18: 272064646 | AF18: 0 | AG18: 0 | AH18: 0 | AI18: 0 | AJ18: 0 | AK18: 0 | AL18: 0 | AM18: 0 | AN18: 0 | AO18: 0 | AP18: 0 | AQ18: 0 | AR18: 0 | AS18: 0 | AT18: 0 | AW18: 0 | AX18: 1542240.105 | AY18: 268581.2748 | AZ18: 10600.98153 | BA18: 378.4802567 | BB18: 1117913.63 | BC18: 0 | BD18: 0 | BE18: 0 | BF18: 0 | BG18: 0 | BH18: 0 | BI18: 0 | BJ18: 0 | BK18: 0 | BL18: 0 | BM18: 0 | BN18: 0 | BO18: 0 | BP18: 0 | BQ18: 0 | BR18: 2939714.472
B19: Residential Two Rate 5d - controlled load | D19: 0 | E19: 0 | F19: 0 | G19: 0 | H19: 0 | I19: 0.4109 | J19: 0 | K19: 0 | L19: 0 | M19: 0 | N19: 0 | O19: 0 | P19: 0 | Q19: 0 | R19: 0 | S19: 0 | T19: 0 | U19: 0 | V19: 0 | W19: 0 | X19: 0 | Z19: 14459.33333 | AA19: 0 | AB19: 0 | AC19: 0 | AD19: 0 | AE19: 43150474.84 | AF19: 0 | AG19: 0 | AH19: 0 | AI19: 0 | AJ19: 0 | AK19: 0 | AL19: 0 | AM19: 0 | AN19: 0 | AO19: 0 | AP19: 0 | AQ19: 0 | AR19: 0 | AS19: 11635.6812 | AT19: 0 | AW19: 0 | AX19: 0 | AY19: 0 | AZ19: 0 | BA19: 0 | BB19: 177305.3011 | BC19: 0 | BD19: 0 | BE19: 0 | BF19: 0 | BG19: 0 | BH19: 0 | BI19: 0 | BJ19: 0 | BK19: 0 | BL19: 0 | BM19: 0 | BN19: 0 | BO19: 0 | BP19: 0 | BQ19: 0 | BR19: 177305.3011
B20: Docklands Two Rate 5d - controlled load | D20: 0 | E20: 0 | F20: 0 | G20: 0 | H20: 0 | I20: 0.4109 | J20: 0 | K20: 0 | L20: 0 | M20: 0 | N20: 0 | O20: 0 | P20: 0 | Q20: 0 | R20: 0 | S20: 0 | T20: 0 | U20: 0 | V20: 0 | W20: 0 | X20: 0 | Z20: 23.58333333 | AA20: 0 | AB20: 0 | AC20: 0 | AD20: 0 | AE20: 58046.45044 | AF20: 0 | AG20: 0 | AH20: 0 | AI20: 0 | AJ20: 0 | AK20: 0 | AL20: 0 | AM20: 0 | AN20: 0 | AO20: 0 | AP20: 0 | AQ20: 0 | AR20: 0 | AS20: 0 | AT20: 0 | AW20: 0 | AX20: 0 | AY20: 0 | AZ20: 0 | BA20: 0 | BB20: 238.5128649 | BC20: 0 | BD20: 0 | BE20: 0 | BF20: 0 | BG20: 0 | BH20: 0 | BI20: 0 | BJ20: 0 | BK20: 0 | BL20: 0 | BM20: 0 | BN20: 0 | BO20: 0 | BP20: 0 | BQ20: 0 | BR20: 238.5128649
B21: Dedicated circuit | D21: 0 | E21: 0 | F21: 0 | G21: 0 | H21: 0 | I21: 0.0308 | J21: 0 | K21: 0 | L21: 0 | M21: 0 | N21: 0 | O21: 0 | P21: 0 | Q21: 0 | R21: 0 | S21: 0 | T21: 0 | U21: 0 | V21: 0 | W21: 0 | X21: 0 | Z21: 161727.4167 | AA21: 0 | AB21: 0 | AC21: 0 | AD21: 0 | AE21: 328145182.1 | AF21: 0 | AG21: 0 | AH21: 0 | AI21: 0 | AJ21: 0 | AK21: 0 | AL21: 0 | AM21: 0 | AN21: 0 | AO21: 521.52 | AP21: 0 | AQ21: 0 | AR21: 0 | AS21: 95934.8712 | AT21: 0 | AW21: 0 | AX21: 0 | AY21: 0 | AZ21: 0 | BA21: 0 | BB21: 101068.7161 | BC21: 0 | BD21: 0 | BE21: 0 | BF21: 0 | BG21: 0 | BH21: 0 | BI21: 0 | BJ21: 0 | BK21: 0 | BL21: 0 | BM21: 0 | BN21: 0 | BO21: 0 | BP21: 0 | BQ21: 0 | BR21: 101068.7161
B22: Hot Water Interval | D22: 0 | E22: 0 | F22: 0 | G22: 0 | H22: 0 | I22: 0.0308 | J22: 0 | K22: 0 | L22: 0 | M22: 0 | N22: 0 | O22: 0 | P22: 0 | Q22: 0 | R22: 0 | S22: 0 | T22: 0 | U22: 0 | V22: 0 | W22: 0 | X22: 0 | Z22: 5573.083333 | AA22: -9.4947368 | AB22: 0 | AC22: 0 | AD22: 0 | AE22: 10374744.91 | AF22: 0 | AG22: 0 | AH22: 0 | AI22: 0 | AJ22: 0 | AK22: 0 | AL22: 0 | AM22: 0 | AN22: 0 | AO22: 0 | AP22: 0 | AQ22: 0 | AR22: 0 | AS22: 670.662 | AT22: 0 | AW22: 0 | AX22: 0 | AY22: 0 | AZ22: 0 | BA22: 0 | BB22: 3195.421432 | BC22: 0 | BD22: 0 | BE22: 0 | BF22: 0 | BG22: 0 | BH22: 0 | BI22: 0 | BJ22: 0 | BK22: 0 | BL22: 0 | BM22: 0 | BN22: 0 | BO22: 0 | BP22: 0 | BQ22: 0 | BR22: 3195.421432
B23: Non-Residential Single Rate | D23: 0 | E23: 0.0822 | F23: 0.0411 | G23: 0.0822 | H23: 0.0822 | I23: 0 | J23: 0 | K23: 0 | L23: 0 | M23: 0 | N23: 0 | O23: 0 | P23: 0 | Q23: 0 | R23: 0 | S23: 0 | T23: 0 | U23: 0 | V23: 0 | W23: 0 | X23: 0 | Z23: 41710.08333 | AA23: 82881661.12 | AB23: 105137732.8 | AC23: 58705805.45 | AD23: 21577696.19 | AE23: 0 | AF23: 0 | AG23: 0 | AH23: 0 | AI23: 0 | AJ23: 0 | AK23: 0 | AL23: 0 | AM23: 0 | AN23: 0 | AO23: 0 | AP23: 0 | AQ23: 0 | AR23: 0 | AS23: 0 | AT23: 0 | AW23: 0 | AX23: 68128.72544 | AY23: 43211.60817 | AZ23: 48256.17208 | BA23: 17736.86627 | BB23: 0 | BC23: 0 | BD23: 0 | BE23: 0 | BF23: 0 | BG23: 0 | BH23: 0 | BI23: 0 | BJ23: 0 | BK23: 0 | BL23: 0 | BM23: 0 | BN23: 0 | BO23: 0 | BP23: 0 | BQ23: 0 | BR23: 177333.372
B24: Non-Residential | D24: 0 | E24: 0 | F24: 0 | G24: 0 | H24: 0 | I24: 0 | J24: 0 | K24: 0 | L24: 0 | M24: 0 | N24: 0 | O24: 0 | P24: 0 | Q24: 0.4388 | R24: 0.373 | S24: 0.1892 | T24: 0 | U24: 0.4388 | V24: 0.373 | W24: 0.1892 | X24: 0 | Z24: 73.5 | AA24: 0 | AB24: 0 | AC24: 0 | AD24: 0 | AE24: 0 | AF24: 0 | AG24: 0 | AH24: 0 | AI24: 0 | AJ24: 0 | AK24: 0 | AL24: 0 | AM24: 1448099.955 | AN24: 543067.1681 | AO24: 1525141.224 | AP24: 0 | AQ24: 1129244.936 | AR24: 334150.1161 | AS24: 1067044.207 | AT24: 0 | AW24: 0 | AX24: 0 | AY24: 0 | AZ24: 0 | BA24: 0 | BB24: 0 | BC24: 0 | BD24: 0 | BE24: 0 | BF24: 0 | BG24: 0 | BH24: 0 | BI24: 0 | BJ24: 6354.262602 | BK24: 2025.640537 | BL24: 2885.567197 | BM24: 0 | BN24: =U24/100*AQ24 -> 4955.126781 | BO24: 1246.379933 | BP24: 2018.847639 | BQ24: 0 | BR24: 19485.82469
B25: Non-Residential Two Rate 5d | D25: 0 | E25: 0.6164 | F25: 0.6164 | G25: 0.6164 | H25: 0.6164 | I25: 0.5669 | J25: 0 | K25: 0 | L25: 0 | M25: 0 | N25: 0 | O25: 0 | P25: 0 | Q25: 0 | R25: 0 | S25: 0 | T25: 0 | U25: 0 | V25: 0 | W25: 0 | X25: 0 | Z25: 31399.41667 | AA25: 86185647.07 | AB25: 196284237.9 | AC25: 203945550.4 | AD25: 124077072.2 | AE25: 530023019 | AF25: 0 | AG25: 0 | AH25: 0 | AI25: 0 | AJ25: 0 | AK25: 0 | AL25: 0 | AM25: 0 | AN25: 0 | AO25: 0 | AP25: 0 | AQ25: 0 | AR25: 0 | AS25: 0 | AT25: 0 | AW25: 0 | AX25: 531248.3286 | AY25: 1209896.042 | AZ25: 1257120.373 | BA25: 764811.0731 | BB25: 3004700.495 | BC25: 0 | BD25: 0 | BE25: 0 | BF25: 0 | BG25: 0 | BH25: 0 | BI25: 0 | BJ25: 0 | BK25: 0 | BL25: 0 | BM25: 0 | BN25: 0 | BO25: 0 | BP25: 0 | BQ25: 0 | BR25: 6767776.311
B26: Non-Residential Interval | D26: 0 | E26: 0.6164 | F26: 0.6164 | G26: 0.6164 | H26: 0.6164 | I26: 0.5669 | J26: 0 | K26: 0 | L26: 0 | M26: 0 | N26: 0 | O26: 0 | P26: 0 | Q26: 0 | R26: 0 | S26: 0 | T26: 0 | U26: 0 | V26: 0 | W26: 0 | X26: 0 | Z26: 14878.83333 | AA26: 37806383.47 | AB26: 75261661.59 | AC26: 75772608.48 | AD26: 41993191.56 | AE26: 164326918.4 | AF26: 0 | AG26: 0 | AH26: 0 | AI26: 0 | AJ26: 0 | AK26: 0 | AL26: 0 | AM26: 0 | AN26: 0 | AO26: 0 | AP26: 0 | AQ26: 0 | AR26: 0 | AS26: 0 | AT26: 0 | AW26: 0 | AX26: 233038.5477 | AY26: 463912.8821 | AZ26: 467062.3587 | BA26: 258846.0328 | BB26: 931569.3002 | BC26: 0 | BD26: 0 | BE26: 0 | BF26: 0 | BG26: 0 | BH26: 0 | BI26: 0 | BJ26: 0 | BK26: 0 | BL26: 0 | BM26: 0 | BN26: 0 | BO26: 0 | BP26: 0 | BQ26: 0 | BR26: 2354429.121
B27: Non-Residential Two Rate 7d | D27: 0 | E27: 0.6164 | F27: 0.6164 | G27: 0.6164 | H27: 0.6164 | I27: 0.5669 | J27: 0 | K27: 0 | L27: 0 | M27: 0 | N27: 0 | O27: 0 | P27: 0 | Q27: 0 | R27: 0 | S27: 0 | T27: 0 | U27: 0 | V27: 0 | W27: 0 | X27: 0 | Z27: 8563.75 | AA27: 21041916.07 | AB27: 40747040.14 | AC27: 36370332.91 | AD27: 29298026.07 | AE27: 47533396.76 | AF27: 0 | AG27: 0 | AH27: 0 | AI27: 0 | AJ27: 0 | AK27: 0 | AL27: 0 | AM27: 0 | AN27: 0 | AO27: 0 | AP27: 0 | AQ27: 0 | AR27: 0 | AS27: 0 | AT27: 0 | AW27: 0 | AX27: 129702.3706 | AY27: 251164.7554 | AZ27: 224186.732 | BA27: 180593.0327 | BB27: 269466.8262 | BC27: 0 | BD27: 0 | BE27: 0 | BF27: 0 | BG27: 0 | BH27: 0 | BI27: 0 | BJ27: 0 | BK27: 0 | BL27: 0 | BM27: 0 | BN27: 0 | BO27: 0 | BP27: 0 | BQ27: 0 | BR27: 1055113.717
B28: Public Lighting | D28: 0 | E28: 0.488 | F28: 0 | G28: 0 | H28: 0 | I28: 0.6162 | J28: 0 | K28: 0 | L28: 0 | M28: 0 | N28: 0 | O28: 0 | P28: 0 | Q28: 0 | R28: 0 | S28: 0 | T28: 0 | U28: 0 | V28: 0 | W28: 0 | X28: 0 | Z28: 6360.416667 | AA28: 30129258.54 | AB28: 0 | AC28: 0 | AD28: 0 | AE28: 74503657.92 | AF28: 0 | AG28: 0 | AH28: 0 | AI28: 0 | AJ28: 0 | AK28: 0 | AL28: 0 | AM28: 0 | AN28: 0 | AO28: 0 | AP28: 0 | AQ28: 0 | AR28: 0 | AS28: 0 | AT28: 0 | AW28: 0 | AX28: 147030.7817 | AY28: 0 | AZ28: 0 | BA28: 0 | BB28: 459091.5401 | BC28: 0 | BD28: 0 | BE28: 0 | BF28: 0 | BG28: 0 | BH28: 0 | BI28: 0 | BJ28: 0 | BK28: 0 | BL28: 0 | BM28: 0 | BN28: 0 | BO28: 0 | BP28: 0 | BQ28: 0 | BR28: 606122.3218
B29: Large Low Voltage Demand | D29: 0 | E29: 0.4827 | F29: 0 | G29: 0 | H29: 0 | I29: 0.4827 | J29: 0 | K29: 0 | L29: 0 | M29: 0 | N29: 0 | O29: 0 | P29: 0 | Q29: 0 | R29: 0 | S29: 0 | T29: 0 | U29: 0 | V29: 0 | W29: 0 | X29: 0 | Z29: 904.8333333 | AA29: 659319087.3 | AB29: 0 | AC29: 0 | AD29: 0 | AE29: 513944294.6 | AF29: 0 | AG29: 0 | AH29: 0 | AI29: 437074.363 | AJ29: 0 | AK29: 0 | AL29: 0 | AM29: 0 | AN29: 0 | AO29: 0 | AP29: 0 | AQ29: 0 | AR29: 0 | AS29: 0 | AT29: 0 | AW29: 0 | AX29: 3182533.234 | AY29: 0 | AZ29: 0 | BA29: 0 | BB29: 2480809.11 | BC29: 0 | BD29: 0 | BE29: 0 | BF29: 0 | BG29: 0 | BH29: 0 | BI29: 0 | BJ29: 0 | BK29: 0 | BL29: 0 | BM29: 0 | BN29: 0 | BO29: 0 | BP29: 0 | BQ29: 0 | BR29: 5663342.344
B30: Large Low Voltage Demand A | D30: 0 | E30: 0.4827 | F30: 0 | G30: 0 | H30: 0 | I30: 0.4827 | J30: 0 | K30: 0 | L30: 0 | M30: 0 | N30: 0 | O30: 0 | P30: 0 | Q30: 0 | R30: 0 | S30: 0 | T30: 0 | U30: 0 | V30: 0 | W30: 0 | X30: 0 | Z30: 0 | AA30: 0 | AB30: 0 | AC30: 0 | AD30: 0 | AE30: 0 | AF30: 0 | AG30: 0 | AH30: 0 | AI30: 0 | AJ30: 0 | AK30: 0 | AL30: 0 | AM30: 0 | AN30: 0 | AO30: 0 | AP30: 0 | AQ30: 0 | AR30: 0 | AS30: 0 | AT30: 0 | AW30: 0 | AX30: 0 | AY30: 0 | AZ30: 0 | BA30: 0 | BB30: 0 | BC30: 0 | BD30: 0 | BE30: 0 | BF30: 0 | BG30: 0 | BH30: 0 | BI30: 0 | BJ30: 0 | BK30: 0 | BL30: 0 | BM30: 0 | BN30: 0 | BO30: 0 | BP30: 0 | BQ30: 0 | BR30: 0
B31: Large Low Voltage Demand C | D31: 0 | E31: 0.4827 | F31: 0 | G31: 0 | H31: 0 | I31: 0.4827 | J31: 0 | K31: 0 | L31: 0 | M31: 0 | N31: 0 | O31: 0 | P31: 0 | Q31: 0 | R31: 0 | S31: 0 | T31: 0 | U31: 0 | V31: 0 | W31: 0 | X31: 0 | Z31: 432.6666667 | AA31: 341591156.5 | AB31: 0 | AC31: 0 | AD31: 0 | AE31: 243779945.3 | AF31: 0 | AG31: 0 | AH31: 0 | AI31: 203818.0555 | AJ31: 0 | AK31: 0 | AL31: 0 | AM31: 0 | AN31: 0 | AO31: 0 | AP31: 0 | AQ31: 0 | AR31: 0 | AS31: 0 | AT31: 0 | AW31: 0 | AX31: 1648860.512 | AY31: 0 | AZ31: 0 | BA31: 0 | BB31: 1176725.796 | BC31: 0 | BD31: 0 | BE31: 0 | BF31: 0 | BG31: 0 | BH31: 0 | BI31: 0 | BJ31: 0 | BK31: 0 | BL31: 0 | BM31: 0 | BN31: 0 | BO31: 0 | BP31: 0 | BQ31: 0 | BR31: 2825586.308
B32: Large Low Voltage Demand S | D32: 0 | E32: 0.4827 | F32: 0 | G32: 0 | H32: 0 | I32: 0.4827 | J32: 0 | K32: 0 | L32: 0 | M32: 0 | N32: 0 | O32: 0 | P32: 0 | Q32: 0 | R32: 0 | S32: 0 | T32: 0 | U32: 0 | V32: 0 | W32: 0 | X32: 0 | Z32: 47.83333333 | AA32: 14865403.61 | AB32: 0 | AC32: 0 | AD32: 0 | AE32: 10359294.43 | AF32: 0 | AG32: 0 | AH32: 0 | AI32: 11663.77868 | AJ32: 0 | AK32: 0 | AL32: 0 | AM32: 0 | AN32: 0 | AO32: 0 | AP32: 0 | AQ32: 0 | AR32: 0 | AS32: 0 | AT32: 0 | AW32: 0 | AX32: 71755.30323 | AY32: 0 | AZ32: 0 | BA32: 0 | BB32: 50004.3142 | BC32: 0 | BD32: 0 | BE32: 0 | BF32: 0 | BG32: 0 | BH32: 0 | BI32: 0 | BJ32: 0 | BK32: 0 | BL32: 0 | BM32: 0 | BN32: 0 | BO32: 0 | BP32: 0 | BQ32: 0 | BR32: 121759.6174
B33: Large Low Voltage Demand Docklands | D33: 0 | E33: 0.4827 | F33: 0 | G33: 0 | H33: 0 | I33: 0.4827 | J33: 0 | K33: 0 | L33: 0 | M33: 0 | N33: 0 | O33: 0 | P33: 0 | Q33: 0 | R33: 0 | S33: 0 | T33: 0 | U33: 0 | V33: 0 | W33: 0 | X33: 0 | Z33: 7.916666667 | AA33: 2924409.718 | AB33: 0 | AC33: 0 | AD33: 0 | AE33: 3045910.718 | AF33: 0 | AG33: 0 | AH33: 0 | AI33: 1256.160767 | AJ33: 0 | AK33: 0 | AL33: 0 | AM33: 0 | AN33: 0 | AO33: 0 | AP33: 0 | AQ33: 0 | AR33: 0 | AS33: 0 | AT33: 0 | AW33: 0 | AX33: 14116.12571 | AY33: 0 | AZ33: 0 | BA33: 0 | BB33: 14702.61103 | BC33: 0 | BD33: 0 | BE33: 0 | BF33: 0 | BG33: 0 | BH33: 0 | BI33: 0 | BJ33: 0 | BK33: 0 | BL33: 0 | BM33: 0 | BN33: 0 | BO33: 0 | BP33: 0 | BQ33: 0 | BR33: 28818.73674
B34: Large Low Voltage Demand CXX | D34: 0 | E34: 0.4827 | F34: 0 | G34: 0 | H34: 0 | I34: 0.4827 | J34: 0 | K34: 0 | L34: 0 | M34: 0 | N34: 0 | O34: 0 | P34: 0 | Q34: 0 | R34: 0 | S34: 0 | T34: 0 | U34: 0 | V34: 0 | W34: 0 | X34: 0 | Z34: 1106.75 | AA34: 252188819.1 | AB34: 0 | AC34: 0 | AD34: 0 | AE34: 186270920 | AF34: 0 | AG34: 0 | AH34: 0 | AI34: 178698.3556 | AJ34: 0 | AK34: 0 | AL34: 0 | AM34: 0 | AN34: 0 | AO34: 0 | AP34: 0 | AQ34: 0 | AR34: 0 | AS34: 0 | AT34: 0 | AW34: 0 | AX34: 1217315.43 | AY34: 0 | AZ34: 0 | BA34: 0 | BB34: 899129.7306 | BC34: 0 | BD34: 0 | BE34: 0 | BF34: 0 | BG34: 0 | BH34: 0 | BI34: 0 | BJ34: 0 | BK34: 0 | BL34: 0 | BM34: 0 | BN34: 0 | BO34: 0 | BP34: 0 | BQ34: 0 | BR34: 2116445.161
B35: Large Low Voltage Demand EN.R | D35: 0 | E35: 0.4827 | F35: 0 | G35: 0 | H35: 0 | I35: 0.4827 | J35: 0 | K35: 0 | L35: 0 | M35: 0 | N35: 0 | O35: 0 | P35: 0 | Q35: 0 | R35: 0 | S35: 0 | T35: 0 | U35: 0 | V35: 0 | W35: 0 | X35: 0 | Z35: 1 | AA35: 151747.936 | AB35: 0 | AC35: 0 | AD35: 0 | AE35: 54000.7336 | AF35: 0 | AG35: 0 | AH35: 0 | AI35: 291.6666667 | AJ35: 0 | AK35: 0 | AL35: 0 | AM35: 0 | AN35: 0 | AO35: 0 | AP35: 0 | AQ35: 0 | AR35: 0 | AS35: 0 | AT35: 0 | AW35: 0 | AX35: 732.4872871 | AY35: 0 | AZ35: 0 | BA35: 0 | BB35: 260.6615411 | BC35: 0 | BD35: 0 | BE35: 0 | BF35: 0 | BG35: 0 | BH35: 0 | BI35: 0 | BJ35: 0 | BK35: 0 | BL35: 0 | BM35: 0 | BN35: 0 | BO35: 0 | BP35: 0 | BQ35: 0 | BR35: 993.1488282
B36: Large Low Voltage Demand EN.NR | D36: 0 | E36: 0.4827 | F36: 0 | G36: 0 | H36: 0 | I36: 0.4827 | J36: 0 | K36: 0 | L36: 0 | M36: 0 | N36: 0 | O36: 0 | P36: 0 | Q36: 0 | R36: 0 | S36: 0 | T36: 0 | U36: 0 | V36: 0 | W36: 0 | X36: 0 | Z36: 24.16666667 | AA36: 32398135.27 | AB36: 0 | AC36: 0 | AD36: 0 | AE36: 20555709.52 | AF36: 0 | AG36: 0 | AH36: 0 | AI36: 19127.53288 | AJ36: 0 | AK36: 0 | AL36: 0 | AM36: 0 | AN36: 0 | AO36: 0 | AP36: 0 | AQ36: 0 | AR36: 0 | AS36: 0 | AT36: 0 | AW36: 0 | AX36: 156385.799 | AY36: 0 | AZ36: 0 | BA36: 0 | BB36: 99222.40988 | BC36: 0 | BD36: 0 | BE36: 0 | BF36: 0 | BG36: 0 | BH36: 0 | BI36: 0 | BJ36: 0 | BK36: 0 | BL36: 0 | BM36: 0 | BN36: 0 | BO36: 0 | BP36: 0 | BQ36: 0 | BR36: 255608.2088
B37: Large Low Voltage Demand EN.R CXX | D37: 0 | E37: 0.4827 | F37: 0 | G37: 0 | H37: 0 | I37: 0.4827 | J37: 0 | K37: 0 | L37: 0 | M37: 0 | N37: 0 | O37: 0 | P37: 0 | Q37: 0 | R37: 0 | S37: 0 | T37: 0 | U37: 0 | V37: 0 | W37: 0 | X37: 0 | Z37: 2.083333333 | AA37: 1197077.768 | AB37: 0 | AC37: 0 | AD37: 0 | AE37: 537188.2163 | AF37: 0 | AG37: 0 | AH37: 0 | AI37: 674.0195833 | AJ37: 0 | AK37: 0 | AL37: 0 | AM37: 0 | AN37: 0 | AO37: 0 | AP37: 0 | AQ37: 0 | AR37: 0 | AS37: 0 | AT37: 0 | AW37: 0 | AX37: 5778.294387 | AY37: 0 | AZ37: 0 | BA37: 0 | BB37: 2593.00752 | BC37: 0 | BD37: 0 | BE37: 0 | BF37: 0 | BG37: 0 | BH37: 0 | BI37: 0 | BJ37: 0 | BK37: 0 | BL37: 0 | BM37: 0 | BN37: 0 | BO37: 0 | BP37: 0 | BQ37: 0 | BR37: 8371.301908
B38: Large Low Voltage Demand EN.NRCXX | D38: 0 | E38: 0.4827 | F38: 0 | G38: 0 | H38: 0 | I38: 0.4827 | J38: 0 | K38: 0 | L38: 0 | M38: 0 | N38: 0 | O38: 0 | P38: 0 | Q38: 0 | R38: 0 | S38: 0 | T38: 0 | U38: 0 | V38: 0 | W38: 0 | X38: 0 | Z38: 6.916666667 | AA38: 2711408.526 | AB38: 0 | AC38: 0 | AD38: 0 | AE38: 1691251.956 | AF38: 0 | AG38: 0 | AH38: 0 | AI38: 1734.095822 | AJ38: 0 | AK38: 0 | AL38: 0 | AM38: 0 | AN38: 0 | AO38: 0 | AP38: 0 | AQ38: 0 | AR38: 0 | AS38: 0 | AT38: 0 | AW38: 0 | AX38: 13087.96896 | AY38: 0 | AZ38: 0 | BA38: 0 | BB38: 8163.673191 | BC38: 0 | BD38: 0 | BE38: 0 | BF38: 0 | BG38: 0 | BH38: 0 | BI38: 0 | BJ38: 0 | BK38: 0 | BL38: 0 | BM38: 0 | BN38: 0 | BO38: 0 | BP38: 0 | BQ38: 0 | BR38: 21251.64215
B39: High Voltage Demand | D39: 0 | E39: 0 | F39: 0 | G39: 0 | H39: 0 | I39: 0 | J39: 0 | K39: 0 | L39: 0 | M39: 0 | N39: 0 | O39: 0 | P39: 0 | Q39: 0 | R39: 0 | S39: 0 | T39: 0 | U39: 0 | V39: 0 | W39: 0 | X39: 0 | Z39: 118 | AA39: 513734520.5 | AB39: 0 | AC39: 0 | AD39: 0 | AE39: 461657325.4 | AF39: 0 | AG39: 0 | AH39: 0 | AI39: 265224.6059 | AJ39: 0 | AK39: 0 | AL39: 0 | AM39: 0 | AN39: 0 | AO39: 0 | AP39: 0 | AQ39: 0 | AR39: 0 | AS39: 0 | AT39: 0 | AW39: 0 | AX39: 0 | AY39: 0 | AZ39: 0 | BA39: 0 | BB39: 0 | BC39: 0 | BD39: 0 | BE39: 0 | BF39: 0 | BG39: 0 | BH39: 0 | BI39: 0 | BJ39: 0 | BK39: 0 | BL39: 0 | BM39: 0 | BN39: 0 | BO39: 0 | BP39: 0 | BQ39: 0 | BR39: 0
B40: High Voltage Demand A | D40: 0 | E40: 0 | F40: 0 | G40: 0 | H40: 0 | I40: 0 | J40: 0 | K40: 0 | L40: 0 | M40: 0 | N40: 0 | O40: 0 | P40: 0 | Q40: 0 | R40: 0 | S40: 0 | T40: 0 | U40: 0 | V40: 0 | W40: 0 | X40: 0 | Z40: 3.166666667 | AA40: 5867874.995 | AB40: 0 | AC40: 0 | AD40: 0 | AE40: 5936497.82 | AF40: 0 | AG40: 0 | AH40: 0 | AI40: 3945.666667 | AJ40: 0 | AK40: 0 | AL40: 0 | AM40: 0 | AN40: 0 | AO40: 0 | AP40: 0 | AQ40: 0 | AR40: 0 | AS40: 0 | AT40: 0 | AW40: 0 | AX40: =E40/100*AA40 -> 0 | AY40: =F40/100*AB40 -> 0 | AZ40: =G40/100*AC40 -> 0 | BA40: =H40/100*AD40 -> 0 | BB40: =I40/100*AE40 -> 0 | BC40: =J40/100*AF40 -> 0 | BD40: =K40/100*AG40 -> 0 | BE40: =L40/100*AH40 -> 0 | BF40: 0 | BG40: 0 | BH40: 0 | BI40: 0 | BJ40: =Q40/100*AM40 -> 0 | BK40: =R40/100*AN40 -> 0 | BL40: =S40/100*AO40 -> 0 | BM40: =T40/100*AP40 -> 0 | BN40: =U40/100*AQ40 -> 0 | BO40: 0 | BP40: 0 | BQ40: 0 | BR40: 0
B41: High Voltage Demand C | D41: 0 | E41: 0 | F41: 0 | G41: 0 | H41: 0 | I41: 0 | J41: 0 | K41: 0 | L41: 0 | M41: 0 | N41: 0 | O41: 0 | P41: 0 | Q41: 0 | R41: 0 | S41: 0 | T41: 0 | U41: 0 | V41: 0 | W41: 0 | X41: 0 | Z41: 40.91666667 | AA41: 226586139 | AB41: 0 | AC41: 0 | AD41: 0 | AE41: 194921731.7 | AF41: 0 | AG41: 0 | AH41: 0 | AI41: 113184.329 | AJ41: 0 | AK41: 0 | AL41: 0 | AM41: 0 | AN41: 0 | AO41: 0 | AP41: 0 | AQ41: 0 | AR41: 0 | AS41: 0 | AT41: 0 | AW41: 0 | AX41: 0 | AY41: 0 | AZ41: 0 | BA41: 0 | BB41: 0 | BC41: 0 | BD41: 0 | BE41: 0 | BF41: 0 | BG41: =N41*AJ41 -> 0 | BH41: =O41*AK41 -> 0 | BI41: =P41*AL41 -> 0 | BJ41: 0 | BK41: 0 | BL41: 0 | BM41: 0 | BN41: 0 | BO41: 0 | BP41: 0 | BQ41: 0 | BR41: 0
B42: High Voltage Demand D1 | D42: 0 | E42: 0 | F42: 0 | G42: 0 | H42: 0 | I42: 0 | J42: 0 | K42: 0 | L42: 0 | M42: 0 | N42: 0 | O42: 0 | P42: 0 | Q42: 0 | R42: 0 | S42: 0 | T42: 0 | U42: 0 | V42: 0 | W42: 0 | X42: 0 | Z42: 1 | AA42: 79161602.68 | AB42: 0 | AC42: 0 | AD42: 0 | AE42: 86936793.64 | AF42: 0 | AG42: 0 | AH42: 0 | AI42: 22257.97816 | AJ42: 0 | AK42: 0 | AL42: 0 | AM42: 0 | AN42: 0 | AO42: 0 | AP42: 0 | AQ42: 0 | AR42: 0 | AS42: 0 | AT42: 0 | AW42: 0 | AX42: 0 | AY42: 0 | AZ42: 0 | BA42: 0 | BB42: 0 | BC42: 0 | BD42: 0 | BE42: 0 | BF42: 0 | BG42: 0 | BH42: 0 | BI42: 0 | BJ42: 0 | BK42: 0 | BL42: 0 | BM42: 0 | BN42: 0 | BO42: 0 | BP42: 0 | BQ42: 0 | BR42: 0
B43: High Voltage Demand D2 | D43: 0 | E43: 0 | F43: 0 | G43: 0 | H43: 0 | I43: 0 | J43: 0 | K43: 0 | L43: 0 | M43: 0 | N43: 0 | O43: 0 | P43: 0 | Q43: 0 | R43: 0 | S43: 0 | T43: 0 | U43: 0 | V43: 0 | W43: 0 | X43: 0 | Z43: 1 | AA43: 37358613.25 | AB43: 0 | AC43: 0 | AD43: 0 | AE43: 40911736.95 | AF43: 0 | AG43: 0 | AH43: 0 | AI43: 12577.61866 | AJ43: 0 | AK43: 0 | AL43: 0 | AM43: 0 | AN43: 0 | AO43: 0 | AP43: 0 | AQ43: 0 | AR43: 0 | AS43: 0 | AT43: 0 | AW43: 0 | AX43: 0 | AY43: 0 | AZ43: 0 | BA43: 0 | BB43: 0 | BC43: 0 | BD43: 0 | BE43: 0 | BF43: 0 | BG43: 0 | BH43: 0 | BI43: 0 | BJ43: 0 | BK43: 0 | BL43: 0 | BM43: 0 | BN43: 0 | BO43: 0 | BP43: 0 | BQ43: 0 | BR43: 0
B44: High Voltage Demand Docklands | D44: 0 | E44: 0 | F44: 0 | G44: 0 | H44: 0 | I44: 0 | J44: 0 | K44: 0 | L44: 0 | M44: 0 | N44: 0 | O44: 0 | P44: 0 | Q44: 0 | R44: 0 | S44: 0 | T44: 0 | U44: 0 | V44: 0 | W44: 0 | X44: 0 | Z44: 1 | AA44: 1673069.355 | AB44: 0 | AC44: 0 | AD44: 0 | AE44: 713570.7832 | AF44: 0 | AG44: 0 | AH44: 0 | AI44: 1000 | AJ44: 0 | AK44: 0 | AL44: 0 | AM44: 0 | AN44: 0 | AO44: 0 | AP44: 0 | AQ44: 0 | AR44: 0 | AS44: 0 | AT44: 0 | AW44: 0 | AX44: 0 | AY44: 0 | AZ44: 0 | BA44: 0 | BB44: 0 | BC44: 0 | BD44: 0 | BE44: 0 | BF44: 0 | BG44: 0 | BH44: 0 | BI44: 0 | BJ44: 0 | BK44: 0 | BL44: 0 | BM44: 0 | BN44: 0 | BO44: 0 | BP44: 0 | BQ44: 0 | BR44: 0
B45: High Voltage Demand D3 | D45: 0 | E45: 0 | F45: 0 | G45: 0 | H45: 0 | I45: 0 | J45: 0 | K45: 0 | L45: 0 | M45: 0 | N45: 0 | O45: 0 | P45: 0 | Q45: 0 | R45: 0 | S45: 0 | T45: 0 | U45: 0 | V45: 0 | W45: 0 | X45: 0 | Z45: 1 | AA45: 10910927.27 | AB45: 0 | AC45: 0 | AD45: 0 | AE45: 15468234.81 | AF45: 0 | AG45: 0 | AH45: 0 | AI45: 11400 | AJ45: 0 | AK45: 0 | AL45: 0 | AM45: 0 | AN45: 0 | AO45: 0 | AP45: 0 | AQ45: 0 | AR45: 0 | AS45: 0 | AT45: 0 | AW45: 0 | AX45: 0 | AY45: 0 | AZ45: 0 | BA45: 0 | BB45: 0 | BC45: 0 | BD45: 0 | BE45: 0 | BF45: 0 | BG45: 0 | BH45: 0 | BI45: 0 | BJ45: 0 | BK45: 0 | BL45: 0 | BM45: 0 | BN45: 0 | BO45: 0 | BP45: 0 | BQ45: 0 | BR45: 0
B46: High Voltage Demand D4 | D46: 0 | E46: 0 | F46: 0 | G46: 0 | H46: 0 | I46: 0 | J46: 0 | K46: 0 | L46: 0 | M46: 0 | N46: 0 | O46: 0 | P46: 0 | Q46: 0 | R46: 0 | S46: 0 | T46: 0 | U46: 0 | V46: 0 | W46: 0 | X46: 0 | Z46: 0 | AA46: -5402.17578 | AB46: 0 | AC46: 0 | AD46: 0 | AE46: -7255.357725 | AF46: 0 | AG46: 0 | AH46: 0 | AI46: 0 | AJ46: 0 | AK46: 0 | AL46: 0 | AM46: 0 | AN46: 0 | AO46: 0 | AP46: 0 | AQ46: 0 | AR46: 0 | AS46: 0 | AT46: 0 | AW46: 0 | AX46: 0 | AY46: 0 | AZ46: 0 | BA46: 0 | BB46: 0 | BC46: 0 | BD46: 0 | BE46: 0 | BF46: 0 | BG46: 0 | BH46: 0 | BI46: 0 | BJ46: 0 | BK46: 0 | BL46: 0 | BM46: 0 | BN46: 0 | BO46: 0 | BP46: 0 | BQ46: 0 | BR46: 0
B47: Subtransmission Demand A | D47: 0 | E47: 0 | F47: 0 | G47: 0 | H47: 0 | I47: 0 | J47: 0 | K47: 0 | L47: 0 | M47: 0 | N47: 0 | O47: 0 | P47: 0 | Q47: 0 | R47: 0 | S47: 0 | T47: 0 | U47: 0 | V47: 0 | W47: 0 | X47: 0 | Z47: 3 | AA47: 67563109.93 | AB47: 0 | AC47: 0 | AD47: 0 | AE47: 42725685.58 | AF47: 0 | AG47: 0 | AH47: 0 | AI47: 51789.80533 | AJ47: 0 | AK47: 0 | AL47: 0 | AM47: 0 | AN47: 0 | AO47: 0 | AP47: 0 | AQ47: 0 | AR47: 0 | AS47: 0 | AT47: 0 | AW47: 0 | AX47: 0 | AY47: 0 | AZ47: 0 | BA47: 0 | BB47: 0 | BC47: 0 | BD47: 0 | BE47: 0 | BF47: 0 | BG47: 0 | BH47: 0 | BI47: 0 | BJ47: 0 | BK47: 0 | BL47: 0 | BM47: 0 | BN47: 0 | BO47: 0 | BP47: 0 | BQ47: 0 | BR47: 0
B48: Subtransmission Demand G | D48: 0 | E48: 0 | F48: 0 | G48: 0 | H48: 0 | I48: 0 | J48: 0 | K48: 0 | L48: 0 | M48: 0 | N48: 0 | O48: 0 | P48: 0 | Q48: 0 | R48: 0 | S48: 0 | T48: 0 | U48: 0 | V48: 0 | W48: 0 | X48: 0 | Z48: 7.083333333 | AA48: 274827905.9 | AB48: 0 | AC48: 0 | AD48: 0 | AE48: 291614743.6 | AF48: 0 | AG48: 0 | AH48: 0 | AI48: 184657.0585 | AJ48: 0 | AK48: 0 | AL48: 0 | AM48: 0 | AN48: 0 | AO48: 0 | AP48: 0 | AQ48: 0 | AR48: 0 | AS48: 0 | AT48: 0 | AW48: 0 | AX48: 0 | AY48: 0 | AZ48: 0 | BA48: 0 | BB48: 0 | BC48: 0 | BD48: 0 | BE48: 0 | BF48: 0 | BG48: 0 | BH48: 0 | BI48: 0 | BJ48: 0 | BK48: 0 | BL48: 0 | BM48: 0 | BN48: 0 | BO48: 0 | BP48: 0 | BQ48: 0 | BR48: 0
B49: Subtransmission Demand S | D49: 0 | E49: 0 | F49: 0 | G49: 0 | H49: 0 | I49: 0 | J49: 0 | K49: 0 | L49: 0 | M49: 0 | N49: 0 | O49: 0 | P49: 0 | Q49: 0 | R49: 0 | S49: 0 | T49: 0 | U49: 0 | V49: 0 | W49: 0 | X49: 0 | Z49: 2 | AA49: 157057011.2 | AB49: 0 | AC49: 0 | AD49: 0 | AE49: 141983291.6 | AF49: 0 | AG49: 0 | AH49: 0 | AI49: 101426.2087 | AJ49: 0 | AK49: 0 | AL49: 0 | AM49: 0 | AN49: 0 | AO49: 0 | AP49: 0 | AQ49: 0 | AR49: 0 | AS49: 0 | AT49: 0 | AW49: 0 | AX49: 0 | AY49: 0 | AZ49: 0 | BA49: 0 | BB49: 0 | BC49: 0 | BD49: 0 | BE49: 0 | BF49: 0 | BG49: 0 | BH49: 0 | BI49: 0 | BJ49: 0 | BK49: 0 | BL49: 0 | BM49: 0 | BN49: 0 | BO49: 0 | BP49: 0 | BQ49: 0 | BR49: 0
AW50: 0 | AX50: 0 | AY50: 0 | AZ50: 0 | BA50: 0 | BB50: 0 | BC50: 0 | BD50: 0 | BE50: 0 | BF50: 0 | BG50: 0 | BH50: 0 | BI50: 0 | BJ50: 0 | BK50: 0 | BL50: 0 | BM50: 0 | BN50: 0 | BO50: 0 | BP50: 0 | BQ50: 0 | BR50: 0
AW51: 0 | AX51: 0 | AY51: 0 | AZ51: 0 | BA51: 0 | BB51: 0 | BC51: 0 | BD51: 0 | BE51: 0 | BF51: 0 | BG51: 0 | BH51: 0 | BI51: 0 | BJ51: 0 | BK51: 0 | BL51: 0 | BM51: 0 | BN51: 0 | BO51: 0 | BP51: 0 | BQ51: 0 | BR51: 0
AW52: 0 | AX52: 0 | AY52: 0 | AZ52: 0 | BA52: 0 | BB52: 0 | BC52: 0 | BD52: 0 | BE52: 0 | BF52: 0 | BG52: 0 | BH52: 0 | BI52: 0 | BJ52: 0 | BK52: 0 | BL52: 0 | BM52: 0 | BN52: 0 | BO52: 0 | BP52: 0 | BQ52: 0 | BR52: 0
AW53: 0 | AX53: 0 | AY53: 0 | AZ53: 0 | BA53: 0 | BB53: 0 | BC53: 0 | BD53: 0 | BE53: 0 | BF53: 0 | BG53: 0 | BH53: 0 | BI53: 0 | BJ53: 0 | BK53: 0 | BL53: 0 | BM53: 0 | BN53: 0 | BO53: 0 | BP53: 0 | BQ53: 0 | BR53: 0
AW54: 0 | AX54: 0 | AY54: 0 | AZ54: 0 | BA54: 0 | BB54: 0 | BC54: 0 | BD54: 0 | BE54: 0 | BF54: 0 | BG54: 0 | BH54: 0 | BI54: 0 | BJ54: 0 | BK54: 0 | BL54: 0 | BM54: 0 | BN54: 0 | BO54: 0 | BP54: 0 | BQ54: 0 | BR54: 0
AW55: 0 | AX55: 0 | AY55: 0 | AZ55: 0 | BA55: 0 | BB55: 0 | BC55: 0 | BD55: 0 | BE55: 0 | BF55: 0 | BG55: 0 | BH55: 0 | BI55: 0 | BJ55: 0 | BK55: 0 | BL55: 0 | BM55: 0 | BN55: 0 | BO55: 0 | BP55: 0 | BQ55: 0 | BR55: 0
AW56: 0 | AX56: 0 | AY56: 0 | AZ56: 0 | BA56: 0 | BB56: 0 | BC56: 0 | BD56: 0 | BE56: 0 | BF56: 0 | BG56: 0 | BH56: 0 | BI56: 0 | BJ56: 0 | BK56: 0 | BL56: 0 | BM56: 0 | BN56: =U56/100*AQ56 -> 0 | BO56: 0 | BP56: 0 | BQ56: 0 | BR56: 0
AW57: 0 | AX57: 0 | AY57: 0 | AZ57: 0 | BA57: 0 | BB57: 0 | BC57: 0 | BD57: 0 | BE57: 0 | BF57: 0 | BG57: 0 | BH57: 0 | BI57: 0 | BJ57: 0 | BK57: 0 | BL57: 0 | BM57: 0 | BN57: 0 | BO57: 0 | BP57: 0 | BQ57: 0 | BR57: 0
AW58: 0 | AX58: 0 | AY58: 0 | AZ58: 0 | BA58: 0 | BB58: 0 | BC58: 0 | BD58: 0 | BE58: 0 | BF58: 0 | BG58: 0 | BH58: 0 | BI58: 0 | BJ58: 0 | BK58: 0 | BL58: 0 | BM58: 0 | BN58: 0 | BO58: 0 | BP58: 0 | BQ58: 0 | BR58: 0
AW59: 0 | AX59: 0 | AY59: 0 | AZ59: 0 | BA59: 0 | BB59: 0 | BC59: 0 | BD59: 0 | BE59: 0 | BF59: 0 | BG59: 0 | BH59: 0 | BI59: 0 | BJ59: 0 | BK59: 0 | BL59: 0 | BM59: 0 | BN59: 0 | BO59: 0 | BP59: 0 | BQ59: 0 | BR59: 0
AW60: 0 | AX60: 0 | AY60: 0 | AZ60: 0 | BA60: 0 | BB60: 0 | BC60: 0 | BD60: 0 | BE60: 0 | BF60: 0 | BG60: 0 | BH60: 0 | BI60: 0 | BJ60: 0 | BK60: 0 | BL60: 0 | BM60: 0 | BN60: 0 | BO60: 0 | BP60: 0 | BQ60: 0 | BR60: 0
AW61: 0 | AX61: 0 | AY61: 0 | AZ61: 0 | BA61: 0 | BB61: 0 | BC61: 0 | BD61: 0 | BE61: 0 | BF61: 0 | BG61: 0 | BH61: 0 | BI61: 0 | BJ61: 0 | BK61: 0 | BL61: 0 | BM61: 0 | BN61: 0 | BO61: 0 | BP61: 0 | BQ61: 0 | BR61: 0
AW62: 0 | AX62: 0 | AY62: 0 | AZ62: 0 | BA62: 0 | BB62: 0 | BC62: 0 | BD62: 0 | BE62: 0 | BF62: 0 | BG62: 0 | BH62: 0 | BI62: 0 | BJ62: 0 | BK62: 0 | BL62: 0 | BM62: 0 | BN62: 0 | BO62: 0 | BP62: 0 | BQ62: 0 | BR62: 0
AW63: 0 | AX63: 0 | AY63: 0 | AZ63: 0 | BA63: 0 | BB63: 0 | BC63: 0 | BD63: 0 | BE63: 0 | BF63: 0 | BG63: 0 | BH63: 0 | BI63: 0 | BJ63: 0 | BK63: 0 | BL63: 0 | BM63: 0 | BN63: 0 | BO63: 0 | BP63: 0 | BQ63: 0 | BR63: 0
AW64: 0 | AX64: 0 | AY64: 0 | AZ64: 0 | BA64: 0 | BB64: 0 | BC64: 0 | BD64: 0 | BE64: 0 | BF64: 0 | BG64: 0 | BH64: 0 | BI64: 0 | BJ64: 0 | BK64: 0 | BL64: 0 | BM64: 0 | BN64: 0 | BO64: 0 | BP64: 0 | BQ64: 0 | BR64: 0
AW65: 0 | AX65: 0 | AY65: 0 | AZ65: 0 | BA65: 0 | BB65: 0 | BC65: 0 | BD65: 0 | BE65: 0 | BF65: 0 | BG65: 0 | BH65: 0 | BI65: 0 | BJ65: 0 | BK65: 0 | BL65: 0 | BM65: 0 | BN65: 0 | BO65: 0 | BP65: 0 | BQ65: 0 | BR65: 0
AW66: 0 | AX66: 0 | AY66: 0 | AZ66: 0 | BA66: 0 | BB66: 0 | BC66: 0 | BD66: 0 | BE66: 0 | BF66: 0 | BG66: 0 | BH66: 0 | BI66: 0 | BJ66: 0 | BK66: 0 | BL66: 0 | BM66: 0 | BN66: 0 | BO66: 0 | BP66: 0 | BQ66: 0 | BR66: 0
AW67: 0 | AX67: 0 | AY67: 0 | AZ67: 0 | BA67: 0 | BB67: 0 | BC67: 0 | BD67: 0 | BE67: 0 | BF67: 0 | BG67: 0 | BH67: 0 | BI67: 0 | BJ67: 0 | BK67: 0 | BL67: 0 | BM67: 0 | BN67: 0 | BO67: 0 | BP67: 0 | BQ67: 0 | BR67: 0
Z68: =SUM(Z8:Z67) -> 960803.25 | AA68: 4724371649 | AB68: 1063547298 | AC68: 395935590.5 | AD68: 219223210.5 | AE68: 3916502355 | AF68: 0 | AG68: 0 | AH68: 0 | AI68: 1621801.299 | AJ68: 0 | AK68: 0 | AL68: 0 | AM68: =SUM(AM8:AM67) -> 2180173.485 | AN68: 2064760.182 | AO68: 2543126.607 | AP68: 0 | AQ68: 2117242.542 | AR68: 1955422.074 | AS68: 2521086.874 | AT68: 0 | AW68: =SUM(AW8:AW67) -> 0 | AX68: 14426058.32 | AY68: 4288551.982 | AZ68: 2073472.358 | BA68: 1229693.951 | BB68: 11549021.39 | BC68: 0 | BD68: 0 | BE68: 0 | BF68: 0 | BG68: 0 | BH68: 0 | BI68: 0 | BJ68: =SUM(BJ8:BJ67) -> 13723.54931 | BK68: 15645.10175 | BL68: 7888.577864 | BM68: 0 | BN68: 14925.06156 | BO68: 15758.30743 | BP68: 8637.416016 | BQ68: 0 | BR68: =SUM(AW68:BQ68) -> 33643376.02
AW70: 0 | AX70: 0 | AY70: 0 | AZ70: 0 | BA70: 0 | BB70: 0 | BC70: 0 | BD70: 0 | BE70: 0 | BF70: 0 | BG70: 0 | BH70: 0 | BI70: 0 | BJ70: 0 | BK70: 0 | BL70: 0 | BM70: 0 | BN70: 0 | BO70: 0 | BP70: 0 | BQ70: 0 | BR70: 0
B73: Definitions
B74: All information must be reported consistent the terms used in the DNSPs pricing proposal

Sheet 29. Juris cost audit template
B1: =Cover!E22 -> Powercor Australia Ltd
B2: Jurisdictional amount cost audit template
B3: =Cover!E26 -> 2014
B5: Templates 24 to 29 collect data required for annual pricing proposals. T-2 requires actual information for the reporting year.
B7: Jurisdictional scheme amounts | F7: t-2 actual
B8: PFIT | F8: 28389757.49
B9: TFIT | F9: 13516431.05
B10: <DNSP to insert for future schemes>
E11: Total | F11: =SUM(F8:F10) -> 41906188.54
B13: Where the following definitions apply
B14: PFIT | C14: Premium feed-in tariff payments
B15: TFIT | C15: Transitional feed-in tariff payments

Sheet Income Work Paper
B4: Powercor
B5: Income Statement Workpaper
D9: Directly Attributed ($'000 nominal) | L9: Allocated ($'000 nominal) | T9: Numeric QTY of each allocator (%) | AB9: Description of Allocation Basis | AC9: Reason for choosing this basis
B10: INCOME WORKPAPER | C10: Powercor | D10: SCS | E10: AMI | F10: PL (EF) | G10: PL (NE) | H10: ACS (F) | I10: ACS (Q) | J10: Neg'd | K10: Un'reg | L10: SCS | M10: AMI | N10: PL (EF) | O10: PL (NE) | P10: ACS (F) | Q10: ACS (Q) | R10: Neg'd | S10: Un'reg | T10: SCS | U10: AMI | V10: PL (EF) | W10: PL (NE) | X10: ACS (F) | Y10: ACS (Q) | Z10: Neg'd | AA10: Un'reg | AD10: check
B12: Distribution Revenue | C12: -711711.1134 | D12: -588969.7944 | E12: -92387.62955 | F12: -1661.171746 | G12: -7643.853114 | H12: -16388.05404 | I12: -4440.99857 | J12: -212.42662 | K12: -7.18532 | AD12: =C12-SUM(D12:S12) -> 0
B13: TUOS revenue | C13: 0 | AD13: 0
B14: Cross boundary revenue | C14: 0 | AD14: 0
B15: Jurisdictional Scheme Amounts | C15: 0 | AD15: 0
B16: Profit from sale of Fixed Assets | C16: 485.43151 | D16: 485.43351 | E16: 0 | H16: 0 | AD16: -0.002
B17: Customer Contributions | C17: 0 | AD17: 0
B18: Interest income | C18: -613.11637 | L18: -545.7536451 | M18: -63.57218288 | N18: -0.6283250272 | O18: -3.16221698 | T18: =L18/SUM($L18:$S18) -> 0.8901306046 | U18: =M18/SUM($L18:$S18) -> 0.1036869769 | V18: =N18/SUM($L18:$S18) -> 0.001024805498 | W18: 0.005157613033 | X18: 0 | Y18: 0 | Z18: 0 | AA18: 0 | AB18: Allocation based on RAB balances calculated using the methodology and assumptions consistent with the published AER roll forward model | AC18: Most appropriate allocator | AD18: -3.410605132e-12
B19: Revenue from use of RAB assets for non-SCS purposes | C19: 0 | AD19: 0
B20: Other Revenue | C20: 5303.87388 | D20: -3972.40514 | E20: 11837.82231 | F20: 741.16 | G20: 0 | H20: 0 | I20: 0 | J20: 0 | K20: -3302.70329 | AD20: -5.729816621e-11
B22: Total Revenue | C22: =SUM(C12:C20) -> -706534.9244 | D22: -592456.766 | E22: -80549.80724 | F22: -920.0117461 | G22: -7643.853114 | H22: -16388.05404 | I22: -4440.99857 | J22: -212.42662 | K22: -3309.88861 | L22: -545.7536451 | M22: -63.57218288 | N22: -0.6283250272 | O22: -3.16221698 | P22: 0 | Q22: 0 | R22: 0 | S22: 0 | AD22: =SUM(AD12:AD20) -> -0.00200000006
B24: TUOS costs | C24: 0 | AD24: =C24-SUM(D24:S24) -> 0
B25: Cross boundary costs | C25: 0 | AD25: 0
B26: Jurisdictional Scheme Amounts | C26: 0
B27: Maintenance | C27: 142367.6692 | D27: 129867.3189 | E27: 2284.748233 | F27: 1115.81517 | G27: 5615.644013 | H27: 2433.537294 | I27: 1050.605572 | J27: 0 | K27: 0 | AD27: =C27-SUM(D27:S27) -> 0
B28: Operating Expenses (Billing & Revenue Collection - Allocated) | C28: 5526.570642 | L28: 4871.890075 | M28: 341.7274372 | N28: 13.02684553 | O28: 65.56116975 | P28: 170.7783836 | Q28: 63.58673058 | R28: 0 | T28: 0.8815394556 | U28: 0.06183354187 | V28: 0.002357130013 | W28: 0.01186290269 | X28: 0.03090133008 | Y28: 0.0115056397 | Z28: 0 | AA28: 0 | AB28: Allocation based on Expenditure Split | AC28: Reflective of the costs incurred in providing different categories of distribution services | AD28: 0
B29: Operating Expenses (Advertising/Marketing - Allocated) | C29: 13.52014468 | L29: 11.91854098 | M29: 0.8359984324 | N29: 0.03186873881 | O29: 0.1603881608 | P29: 0.4177904535 | Q29: 0.1555579134 | R29: 0 | T29: 0.8815394556 | U29: 0.06183354187 | V29: 0.002357130013 | W29: 0.01186290269 | X29: 0.03090133008 | Y29: 0.0115056397 | Z29: 0 | AA29: 0 | AB29: Allocation based on Expenditure Split | AC29: Reflective of the costs incurred in providing different categories of distribution services | AD29: 0
B30: Operating Expenses (Customer Service - Allocated) | C30: 8458.773629 | L30: 7456.742701 | M30: 523.0359334 | N30: 19.93842919 | O30: 100.3456085 | P30: 261.387356 | Q30: 97.32360167 | R30: 0 | T30: 0.8815394556 | U30: 0.06183354187 | V30: 0.002357130013 | W30: 0.01186290269 | X30: 0.03090133008 | Y30: 0.0115056397 | Z30: 0 | AA30: 0 | AB30: Allocation based on Expenditure Split | AC30: Reflective of the costs incurred in providing different categories of distribution services | AD30: 0
B31: Operating Expenses (Debt Raising Costs - Allocated) | C31: 258.46572 | L31: 230.0682476 | M31: 26.79952913 | N31: 0.264877091 | O31: 1.333066166 | P31: 0 | Q31: 0 | R31: 0 | S31: 0 | T31: =L31/SUM($L31:$S31) -> 0.8901306046 | U31: =M31/SUM($L31:$S31) -> 0.1036869769 | V31: =N31/SUM($L31:$S31) -> 0.001024805498 | W31: 0.005157613033 | X31: 0 | Y31: 0 | Z31: 0 | AA31: 0 | AB31: Allocation based on RAB balances calculated using the methodology and assumptions consistent with the published AER roll forward model | AC31: Reflective of the costs incurred in providing different categories of distribution services | AD31: 0
B32: Operating Expenses (Directly Attributable) | C32: 65346.33778 | D32: 33153.40984 | E32: 15596.4587 | F32: 0 | G32: 0 | H32: 12199.25623 | I32: 4397.21138 | J32: 0 | K32: 0 | AD32: 0.001627131409
B33: Depreciation | C33: 199500.6219 | D33: 154365.9357 | E33: 44048.5932 | F33: 180.0321438 | G33: 906.0608406 | H33: 0 | I33: 0 | J33: 0 | K33: 0 | AD33: 0
B34: Finance Charges | C34: 183.98372 | D34: 0 | E34: 0 | F34: 0 | G34: 0 | H34: 0 | I34: 0 | J34: 0 | K34: 0 | L34: 163.7695399 | M34: 19.07671572 | N34: 0.1885475279 | O34: 0.9489168321 | P34: 0 | Q34: 0 | R34: 0 | S34: 0 | T34: =L34/SUM($L34:$S34) -> 0.8901306046 | U34: 0.1036869769 | V34: 0.001024805498 | W34: 0.005157613033 | X34: 0 | Y34: 0 | Z34: 0 | AA34: 0 | AB34: Allocation based on RAB balances calculated using the methodology and assumptions consistent with the published AER roll forward model | AC34: Most appropriate allocator | AD34: -3.49587026e-12
B35: Loss from sale of Fixed Assets | C35: 0 | AD35: 0
B36: Impairment Losses (Nature) | C36: 0 | AD36: 0
B37: Costs from use of RAB assets for non-SCS purposes | C37: 0
B38: Other | C38: 0 | AD38: 0
B40: Profit before Tax (PBT) | C40: =SUM(C22:C38) -> -284878.9817 | D40: -275070.1016 | E40: -18620.00711 | F40: 375.8355675 | G40: -1122.14826 | H40: -1755.26052 | I40: 1006.818382 | J40: -212.42662 | K40: -3309.88861 | L40: 12188.63546 | M40: 847.903431 | N40: 32.82224305 | O40: 165.1869324 | P40: 432.58353 | Q40: 161.0658902 | R40: 0 | S40: 0 | AD40: =C40-SUM(D40:S40) -> -0.0003728684969
B42: Income Tax Expense / (Benefit) | C42: 83640.24532 | L42: 77181.79258 | M42: 5217.875721 | N42: -119.9816131 | O42: 280.9630964 | P42: 388.3369283 | Q42: -342.8899078 | R42: 62.36828927 | S42: 971.7807037 | T42: =L42/SUM($L42:$S42) -> 0.9227829479 | U42: 0.06238474877 | V42: -0.001434496181 | W42: 0.003359185446 | X42: 0.004642943413 | Y42: -0.004099580346 | Z42: 0.0007456731944 | AA42: 0.01161857781 | AB42: Allocated based on Proportion of Profit/Loss in each segment | AC42: Most appropriate allocator | AD42: =C42-SUM(D42:S42) -> -0.0004777245049
B44: Profit after Tax | C44: =SUM(C40:C42) -> -201238.7363 | D44: -275070.1016 | E44: -18620.00711 | F44: 375.8355675 | G44: -1122.14826 | H44: -1755.26052 | I44: 1006.818382 | J44: -212.42662 | K44: -3309.88861 | L44: 89370.42804 | M44: 6065.779152 | N44: -87.15937009 | O44: 446.1500288 | P44: 820.9204583 | Q44: -181.8240176 | R44: 62.36828927 | S44: 971.7807037 | AD44: =C44-SUM(D44:S44) -> -0.0008505930018

Sheet Services Fee Workpaper
A2: Services Fee Allocations Workpaper
B4: Powercor
B5: Services Fee Allocations Workpaper
F9: 'Numeric QTY of each allocator (%) | O9: ($'000 nominal) | X9: Basis of allocation
B10: Services Fee | C10: Statutory $000's | D10: Amount Capitalised | E10: Powercor $000 | F10: SCS | G10: AMI | H10: PL (EF) | I10: PL (NE) | J10: ACS (F) | K10: ACS (Q) | L10: Neg'd | M10: Un'reg | N10: Total % | O10: SCS | P10: AMI | Q10: PL (EF) | R10: PL (NE) | S10: ACS (F) | T10: ACS (Q) | U10: Neg'd | V10: Un'reg | W10: Total $
B12: Maintenance | C12: 15802.72589 | E12: 15802.72589 | O12: 14290.80749 | P12: 268.2183395 | Q12: 136.5742623 | R12: 687.3472051 | S12: 298.8074332 | T12: 120.9711581 | U12: 0 | V12: 0 | W12: =SUM(O12:V12) -> 15802.72589 | X12: Directly attributable | Y12: =W12-E12 -> 0
B13: Network operating costs | C13: 411.1653565 | E13: 411.1653565 | O13: 0 | P13: 411.1653565 | Q13: 0 | R13: 0 | S13: 0 | T13: 0 | U13: 0 | V13: 0 | W13: =SUM(O13:V13) -> 411.1653565 | X13: Directly attributable | Y13: =W13-E13 -> 0
B14: Meter data services | C14: 0 | E14: 0 | O14: 0 | P14: 0 | Q14: 0 | R14: 0 | S14: 0 | T14: 0 | U14: 0 | V14: 0 | W14: 0 | X14: Directly attributable to AMI | Y14: 0
B15: Billing and revenue collection - CIS | C15: 664.235267 | E15: 664.235267 | O15: 664.235267 | P15: 0 | Q15: 0 | R15: 0 | S15: 0 | T15: 0 | U15: 0 | V15: 0 | W15: 664.235267 | X15: Directly attributable to SCS | Y15: 0
B16: Billing and revenue collection | C16: 5526.570642 | E16: 5526.570642 | F16: 0.8815394556 | G16: 0.06183354187 | H16: 0.002357130013 | I16: 0.01186290269 | J16: 0.03090133008 | K16: 0.0115056397 | L16: 0 | M16: 0 | N16: 1 | O16: 4871.890075 | P16: 341.7274372 | Q16: 13.02684553 | R16: 65.56116975 | S16: 170.7783836 | T16: 63.58673058 | U16: 0 | V16: 0 | W16: 5526.570642 | X16: Allocation based on expenditure split | Y16: 0
B17: Advertising & Marketing | C17: 13.52014468 | E17: 13.52014468 | F17: 0.8815394556 | G17: 0.06183354187 | H17: 0.002357130013 | I17: 0.01186290269 | J17: 0.03090133008 | K17: 0.0115056397 | L17: 0 | M17: 0 | N17: 1 | O17: 11.91854098 | P17: 0.8359984324 | Q17: 0.03186873881 | R17: 0.1603881608 | S17: 0.4177904535 | T17: 0.1555579134 | U17: 0 | V17: 0 | W17: 13.52014468 | X17: Allocation based on expenditure split | Y17: 0
B18: Customer Service | C18: 8458.773629 | E18: 8458.773629 | F18: 0.8815394556 | G18: 0.06183354187 | H18: 0.002357130013 | I18: 0.01186290269 | J18: 0.03090133008 | K18: 0.0115056397 | L18: 0 | M18: 0 | N18: 1 | O18: 7456.742701 | P18: 523.0359334 | Q18: 19.93842919 | R18: 100.3456085 | S18: 261.387356 | T18: 97.32360167 | U18: 0 | V18: 0 | W18: 8458.773629 | X18: Allocation based on expenditure split | Y18: 0
B19: Regulatory | C19: 4507.602567 | D19: 4507.602567 | E19: 0 | O19: 0 | P19: 0 | Q19: 0 | R19: 0 | S19: 0 | T19: 0 | U19: 0 | V19: 0 | W19: 0 | X19: Directly attributable | Y19: 0
B20: Other | C20: 35489.85458 | D20: 30249.81799 | E20: 5240.036595 | O20: 3844.61677 | S20: 1395.419825 | W20: 5240.036595 | X20: Directly attributable | Y20: 0
Y21: 0
B22: TOTAL | C22: =SUM(C12:C21) -> 70874.44808 | D22: =SUM(D12:D21) -> 34757.42056 | E22: =SUM(E12:E21) -> 36117.02752 | O22: =SUM(O12:O21) -> 31140.21084 | P22: 1544.983065 | Q22: 169.5714057 | R22: 853.4143715 | S22: 2126.810788 | T22: 282.0370483 | U22: 0 | V22: 0 | W22: 36117.02752 | Y22: 0
Y23: 0

Sheet Adjustments Work Paper
C2: POWERCOR - Statutory to Regulatory Reconciliation
C5: Description | D5: Audited Statutory Accounts | E5: Adjustments | F5: Distribution business | H5: Nature | I5: Basis
C7: Distribution Revenue | D7: 711711.1134 | E7: 0 | F7: 711711.1134
C8: TUOS revenue | D8: 145503.0605 | E8: -145503.0605 | F8: 0 | H8: Pass-through transmission revenues | I8: Revenues not earned by the distribution business and only passed through from retailers to the transmission businesses. | J8: =E8 -> -145503.0605
C9: Cross boundary revenue | D9: 5812.20403 | E9: -5812.20403 | F9: 0 | H9: Pass-through transmission revenues | I9: As above | J9: -5812.20403
C10: Jurisdictional Scheme Amounts | D10: 33651.31549 | E10: -33651.31549 | F10: 0 | H10: Pass-through transmission revenues | I10: As above | J10: -33651.31549
C11: Profit from sale of Fixed Assets | D11: -485.43151 | E11: 0 | F11: -485.43151
C12: Customer Contributions | D12: 42826.39478 | E12: -42826.39478 | F12: 0 | H12: Transfer Customer Contribution Revenue to Fixed assets | I12: Customer contributions are netted off against capex for regulatory purposes to ensure that the there is no further recovery of this portion of capex through the RAB. This is consistent with RAB Roll forward methodology | J12: -42826.39478
C13: Interest income | D13: 105622.4379 | E13: -105009.3215 | F13: 613.11637 | H13: Interest Revenue not relating to the Distribution Business | I13: Inter company interest - Notional interest calculated on inter-company loans which is non-cash. Revenue is not reflective of costs incurred. | J13: -105009.3215
C14: Revenue from use of RAB assets for non-SCS purposes | D14: 0 | E14: 0 | F14: 0
C15: Other Revenue | D15: 241701.7521 | E15: -247005.626 | F15: -5303.87388 | H15: Other Revenue | I15: Other Revenue | J15: =SUM(J16:J20) -> -247005.626
H16: Resources Contract Revenue | I16: Under the respective resources agreements, we provide staff to other entities. In turn, these entities pay us for wages and salaries (including bonuses, allowances, leave payments, fringe benefits, fringe benefit tax, payroll tax, superannuation payments and work cover payments); operating expenses that are incidental to the provision of the services (including phone calls and stationery); and motor vehicle expenses relating to provision of the services. The pricing of services under the resources services agreement is at cost. There are no margins, management fees, incentive payments or overhead costs associated with the resources agreement. | J16: -235615.6749
H17: Cost Sharing Agreement | I17: Under the cost sharing agreement, an annual payment is made between us and CitiPower. This payment is based on the pooling of defined overhead costs, and the reallocation of those costs to each distributor based on a defined formula. The difference between the reallocation amount and the actual cost incurred by each distributor is the amount that is paid by one distributor to the other. There are no margins, management fees, incentive payments or overhead costs associated with the cost sharing agreement. | J17: -7580.86327
H18: Activity Allocations treated as Revenue in Statutory Reporting. | I18: Net time confirmations and operating expenditure charged between internal related parties. Reflects work performed by / peformed on behalf of the distribution business. | J18: -640.92976
H19: Customer Contributions earned for WDV of public lighting assets | I19: Customer contributions for these public lighting assets are netted off against capex for regulatory purposes to ensure that the there is no further recovery of this portion of capex through the public lighting RAB. This is consistent with RAB Roll forward methodology. | J19: -874.455
H20: Other revenue relating to non-distribution services | I20: Revenues earned from non distrubition services or assets | J20: -2293.70302
C21: Total revenue | D21: =SUM(D7:D15) -> 1286342.847 | E21: =SUM(E7:E15) -> -579807.9223 | F21: =SUM(F7:F15) -> 706534.9244
C22: TUOS costs | D22: 145503.0605 | E22: -145503.0605 | F22: 0 | H22: Pass-through transmission charges | I22: Costs not incurred by the distribution business and only passed through from transmission businesses to retailers. | J22: =E22 -> -145503.0605
C23: Cross boundary costs | D23: 5812.20403 | E23: -5812.20403 | F23: 0 | H23: Pass-through transmission charges | I23: As above | J23: -5812.20403
C24: Jurisdictional Scheme Amounts | D24: 33651.31549 | E24: -33651.31549 | F24: 0 | H24: Pass-through transmission charges | I24: As above | J24: -33651.31549
C25: Maintenance | D25: 142367.6692 | E25: 0 | F25: 142367.6692
C26: Operating Expenses | D26: 313948.1241 | E26: -234344.4561 | F26: 79603.66791
C27: Network Operating Costs | D27: 24484.47484 | E27: -1449.812879 | F27: 23034.66196 | H27: Network Operating Costs | I27: Network Operating Costs | J27: =SUM(J28:J31) -> -1449.812879
H28: Non-network operating costs transfer to Other Standard Control Services | I28: This is not an adjustment between the statutory and regulatory accounts expenditure. It is merely a product of the reporting templates with an offsetting entry in Other - Standard Control Services . | J28: -293.14767
H29: Capital to Operating adjustment in relation to ACS activities | I29: Certain assets are treated as capex for statutory purposes though not for regulatory purposes. i.e. ACS Capex where revenues are recovered directly from the customer. | J29: 6734.551881
H30: Cost Sharing Agreement | I30: Under the cost sharing agreement, an annual payment is made between us and CitiPower. This payment is based on the pooling of defined overhead costs, and the reallocation of those costs to each distributor based on a defined formula. The difference between the reallocation amount and the actual cost incurred by each distributor is the amount that is paid by one distributor to the other. There are no margins, management fees, incentive payments or overhead costs associated with the cost sharing agreement. | J30: -7312.28733
H31: Activity Allocations treated as Revenue in Statutory Reporting. | I31: Net time confirmations and operating expenditure charged between internal related parties. Reflects work performed by / peformed on behalf of the distribution business. | J31: -578.92976
C32: Billing & Revenue Collection | D32: 5630.452942 | E32: 0 | F32: 5630.452942
C33: Advertising/Marketing | D33: 11.91854098 | E33: 0 | F33: 11.91854098
C34: Customer Service | D34: 7456.742701 | E34: 0 | F34: 7456.742701
C35: Regulatory | D35: 0 | E35: 0 | F35: 0
C36: Regulatory Reset | D36: 1096.48337 | E36: 0 | F36: 1096.48337
C37: IT | D37: 0 | E37: 0 | F37: 0
C38: Licence fee | D38: 18.15425 | E38: 0 | F38: 18.15425
C39: GSL payments | D39: 2116.680034 | E39: 0 | F39: 2116.680034
C40: Non-network alternatives costs | D40: 0 | E40: 0 | F40: 0
C41: Debt raising costs | D41: 0 | E41: 230.0682476 | F41: =E41 -> 230.0682476 | H41: Transfer of Debt Raising costs treated as Finance Charges in Statutory Accounts -Allocated to SCS | I41: Debt rasing costs relating to short term loans. | J41: =E41 -> 230.0682476
C43: Other - Standard Control Services | D43: 239281.978 | E43: -233153.109 | F43: 6128.868993 | H43: Other - Standard Control Services | I43: Other - Standard Control Services | J43: =SUM(J44:J47) -> -233153.109
H44: Resources Contract Cost | I44: Under the respective resources agreements, we provide staff to other entities. In turn, these entities pay us for wages and salaries (including bonuses, allowances, leave payments, fringe benefits, fringe benefit tax, payroll tax, superannuation payments and work cover payments); operating expenses that are incidental to the provision of the services (including phone calls and stationary); and motor vehicle expenses relating to provision of the services. The pricing of services under the resources services agreement is at cost. There are no margins, management fees, incentive payments or overhead costs associated with the resources agreement. | J44: -235615.6749
H45: Non-network operating costs transfer to Other Standard Control Services | I45: This is not an adjustment between the statutory and regulatory accounts expenditure. It is merely a product of the reporting templates with an offsetting entry in Network Operating expenditure. | J45: 293.14767
H46: Capital to Operating adjustment in relation to ACS activities | I46: Certain assets are treated as capex for statutory purposes though not for regulatory purposes. i.e. ACS Capex where revenues are recovered directly from the customer. | J46: 2255.370055
H47: Other items relating to non-distribution services | I47: Net expenditures relating to a a related party for non distribution services. | J47: -85.95178
C49: AMI | D49: 16462.05807 | E49: 26.79952913 | F49: 16488.8576 | H49: Transfer of Debt Raising costs treated as Finance Charges in Statutory Accounts - Allocated to AMI | I49: Debt rasing costs relating to short term loans. | J49: =E49 -> 26.79952913
C50: Public Lighting | D50: 199.0643098 | E50: 1.597943257 | F50: 200.6622531 | H50: Transfer of Debt Raising costs treated as Finance Charges in Statutory Accounts - Allocated to ACS | I50: Debt rasing costs relating to short term loans. | J50: 1.597943257
C51: Alternative control -other | D51: 17190.11703 | E51: 0 | F51: 17190.11703
C52: Negotiated services | D52: 0 | E52: 0 | F52: 0
C53: Unregulated services
C54: Depreciation | D54: 198010.0173 | E54: 1490.604523 | F54: 199500.6219 | H54: The adjustment between statutory and regulatory disclosures relates to the differing methodologies on which depreciation is calculated. | I54: The Depreciation balance has been calculated using the methodology and assumptions consistent with the published AER roll forward model. - For regulatory purposes the asset base is revalued for inflation. - Certain assets are treated as capex for statutory purposes though not for regulatory purposes. i.e. ACS Capex where revenues are recovered directly from the customer. | J54: =E54 -> 1490.604523
C55: Finance Charges | D55: 17477.03644 | E55: -17293.05272 | F55: 183.98372 | H55: Finance Charges | I55: Finance Charges | J55: =SUM(J56:J57) -> -17293.05272
H56: Interest expense not relating to the Distribution Business. | I56: Inter company interest. Inter company interest calculated on inter company loans which is non-cash. Revenue is not reflective of costs incurred. | J56: -17062.98447
H57: Transfer of Debt Raising costs treated as Finance Charges in Statutory Accounts | I57: Debt rasing costs relating to short term loans. | J57: =-J41 -> -230.0682476
C58: Loss from sale of Fixed Assets | D58: 0 | E58: 0 | F58: 0
C59: Impairment Losses (Nature) | D59: 0 | E59: 0 | F59: 0
C60: Costs from use of RAB assets for non-SCS purposes | D60: 0 | E60: 0 | F60: 0
C61: Other | D61: 0 | E61: 0 | F61: 0
C62: Profit before Tax (PBT) | D62: =D21-SUM(D22:D26,D54:D61) -> 429573.4196 | E62: =E21-SUM(E22:E26,E54:E61) -> -144694.4379 | F62: =F21-SUM(F22:F26,F54:F61) -> 284878.9817
C63: Income Tax Expenses /(Benefit) | D63: 126122.4196 | E63: -42482.17424 | F63: 83640.24532 | H63: Re-apportionment of income tax expense | I63: Income tax expense as reported in the Statutory Accounts has been apportioned based on the ratio of profit before tax disclosed per regulatory segment in the Income Statement. | J63: =E63 -> -42482.17424
C64: Profit after tax | D64: =D62-D63 -> 303451 | E64: -102212.2637 | F64: 201238.7363

Sheet Amendments
B2: Amendments - RIN rationalisation
B4: Information no longer required from Annual Reporting RIN | D4: Reasoning
B5: (workbook/worksheet/table/row-column-cell)
B6: Financial information templates
B7: 1b. Provisions | C7: Entire worksheet | D7: Information in Benchmarking RIN T3.3
B8: 2. Demand and Revenue | C8: T1/T2 Standard control services revenue, yr t,t-1 | D8: Information in Benchmarking RIN Worksheet 2
C9: T5/T6 Public lighting revenue, yr t,t-1 | D9: Information in Benchmarking RIN Worksheet 2
B10: 4a. Capex overheads | C10: Entire worksheets | D10: Information in Category analysis RIN Worksheets 2.10
B11: 4b. Capex O’head margins
B12: 7a. Maintenance O’head | C12: Entire worksheets | D12: Information in Category analysis RIN Worksheets 2.10
B13: 7b. Main O’head margins
B14: 9a. Operating O’head | C14: Entire worksheets | D14: Information in Category analysis RIN Worksheets 2.10
B15: 9b. Opex O’head margins
B16: 10. Overheads allocation | C16: Entire worksheet | D16: Information in Category analysis RIN Worksheet 2.10
B17: 11. Total Overheads | C17: Entire worksheet | D17: Information in Category analysis RIN Worksheet 2.10
B18: 12. Cost categories | C18: Entire worksheet | D18: Information in Category analysis RIN Worksheet 2.12
